Workbook

Sheet لفة سلك 2 مم مجدول
F1: بطاقة كارت صنف
A4: اسم الصنف :لفة سلك 2 مم مجدول | K4: كود الصنف | L4: رقم كارت الصنف | M4: المخزن :
A7: رقم اذن اضافة الوارد | B7: تاريخ اذن اضافة الوارد | C7: وارد مشتريات وتحويل مشروع | D7: ع من الصيانة والمامورية | E7: رقم اذن الصرف | F7: تاريخ اذن الصرف | G7: صرف صيانة | H7: صرف تحويل | I7: صرف د الموقع | J7: فرق الصيانة | K7: الرصيد | L7: سعر توريد الصنف | M7: جهه التوريد | N7: ملاحظات
L9: رصيد اول المدة | O9: ج سعر التوريد | Q9: =$A$4 -> اسم الصنف :لفة سلك 2 مم مجدول
A10: 652 | B10: 2018-01-31 | C10: 1 | J10: =G10-D10 -> 0 | K10: =K9+C10-I10 -> 1 | L10: 320 | M10: انريجيا | N10: جلال | O10: =C10*L10 -> 320 | Q10: =$A$4 -> اسم الصنف :لفة سلك 2 مم مجدول
E11: 751 | F11: 2018-02-02 | I11: 1 | J11: =G11-D11 -> 0 | K11: =K10+C11-H11-I11+J11 -> 0 | O11: =C11*L11 -> 0 | Q11: اسم الصنف :لفة سلك 2 مم مجدول
A12: 699 | B12: 2018-04-03 | C12: 2 | J12: =G12-D12 -> 0 | K12: =K11+C12-G12-H12-I12+J12 -> 2 | L12: =380/2 -> 190 | M12: مش موقع | N12: احمد حامد المحاسب | O12: 380 | Q12: اسم الصنف :لفة سلك 2 مم مجدول
E13: 760 | F13: 2018-08-04 | I13: 1 | K13: 1 | M13: خدمة موقع | Q13: اسم الصنف :لفة سلك 2 مم مجدول
A14: 13020 | B14: 2018-09-04 | C14: 5 | J14: 0 | K14: 6 | M14: ادارة المشتريات | O14: 0 | Q14: اسم الصنف :لفة سلك 2 مم مجدول
E15: 763 | F15: 2018-11-04 | I15: 2 | J15: 0 | K15: 4 | M15: خدمة موقع | O15: 0 | Q15: اسم الصنف :لفة سلك 2 مم مجدول
E16: 568 | F16: 2018-12-04 | H16: 2 | J16: 0 | K16: 2 | M16: محول الي نادي الجلالة | O16: 0 | Q16: اسم الصنف :لفة سلك 2 مم مجدول
E17: 787 | F17: 2018-03-05 | I17: 1 | J17: 0 | K17: 1 | M17: خدمة موقع | Q17: اسم الصنف :لفة سلك 2 مم مجدول
E18: 13774 | F18: 23/6/2018 | I18: 1 | J18: 0 | K18: 0 | M18: خدمة موقع | Q18: اسم الصنف :لفة سلك 2 مم مجدول
A19: 10355 | B19: 16/9/2018 | C19: 1 | J19: 0 | K19: 1 | M19: مش موقع | O19: 0 | Q19: اسم الصنف :لفة سلك 2 مم مجدول
E20: 19857 | F20: 2018-01-10 | I20: 1 | J20: 0 | K20: 0 | M20: خدمة موقع | O20: 0 | Q20: اسم الصنف :لفة سلك 2 مم مجدول
A21: 7946 | B21: 15/1/2019 | C21: 15 | J21: 0 | K21: 15 | M21: ادارة المشتريات | O21: =#REF!*L21 ->  | Q21: اسم الصنف :لفة سلك 2 مم مجدول
E22: 11841 | F22: 16/1/2019 | I22: 1 | J22: =G22-D22 -> 0 | K22: 14 | O22: =C22*L22 -> 0 | Q22: اسم الصنف :لفة سلك 2 مم مجدول
A23: 2063 | B23: 19/1/2019 | C23: 1 | J23: =G23-D23 -> 0 | K23: 15 | M23: مشتريات موقع | Q23: اسم الصنف :لفة سلك 2 مم مجدول
E24: 14509 | F24: 20/1/2019 | I24: 2 | J24: =G24-D24 -> 0 | K24: 13 | O24: =C24*L24 -> 0 | Q24: اسم الصنف :لفة سلك 2 مم مجدول
E25: 14529 | F25: 24/1/2019 | I25: 4 | J25: 0 | K25: 9 | O25: 0 | Q25: اسم الصنف :لفة سلك 2 مم مجدول
E26: 4070ر | F26: 22/1/2019 | H26: 4 | J26: 0 | K26: 5 | M26: محول الى طب اسنان | O26: 0 | Q26: اسم الصنف :لفة سلك 2 مم مجدول
E27: 108 | F27: 31/1/2019 | I27: 1 | J27: 0 | K27: =K26+C27-I27 -> 4 | O27: 0 | Q27: اسم الصنف :لفة سلك 2 مم مجدول
E28: 118 | F28: 2019-03-02 | I28: 0.5 | J28: 0 | K28: =K27+C28-G28-H28-I28+J28 -> 3.5 | Q28: اسم الصنف :لفة سلك 2 مم مجدول
E29: 129 | F29: 43618 | I29: 2 | J29: 0 | K29: 1.5 | O29: =L29*C29 -> 0 | Q29: اسم الصنف :لفة سلك 2 مم مجدول
A30: 20227 | B30: 2019-12-02 | C30: 10 | J30: 0 | K30: 11.5 | M30: ادارة المشتريات | Q30: اسم الصنف :لفة سلك 2 مم مجدول
E31: 9244 | F31: 28/2/2019 | I31: 1 | J31: 0 | K31: 10.5 | O31: 0 | Q31: اسم الصنف :لفة سلك 2 مم مجدول
F32: 2019-10-03 | H32: 3 | J32: 0 | K32: 7.5 | M32: محول الي علوم طبية | O32: 0 | Q32: اسم الصنف :لفة سلك 2 مم مجدول
J33: 0 | K33: 7.5 | O33: 0 | Q33: اسم الصنف :لفة سلك 2 مم مجدول
J34: 0 | K34: 7.5 | O34: 0 | Q34: اسم الصنف :لفة سلك 2 مم مجدول
J35: 0 | K35: 7.5 | O35: 0 | Q35: اسم الصنف :لفة سلك 2 مم مجدول
J36: 0 | K36: 7.5 | O36: 0 | Q36: اسم الصنف :لفة سلك 2 مم مجدول
J37: 0 | K37: 7.5 | O37: 0 | Q37: اسم الصنف :لفة سلك 2 مم مجدول
J38: 0 | K38: 7.5 | O38: 0 | Q38: اسم الصنف :لفة سلك 2 مم مجدول
J39: 0 | K39: 7.5 | O39: 0 | Q39: اسم الصنف :لفة سلك 2 مم مجدول
J40: 0 | K40: 7.5 | O40: 0 | Q40: اسم الصنف :لفة سلك 2 مم مجدول
J41: 0 | K41: 7.5 | O41: 0 | Q41: اسم الصنف :لفة سلك 2 مم مجدول
J42: 0 | K42: 7.5 | O42: 0 | Q42: اسم الصنف :لفة سلك 2 مم مجدول
J43: 0 | K43: 7.5 | O43: 0 | Q43: اسم الصنف :لفة سلك 2 مم مجدول
J44: 0 | K44: 7.5 | O44: 0 | Q44: اسم الصنف :لفة سلك 2 مم مجدول
J45: 0 | K45: 7.5 | O45: 0 | Q45: اسم الصنف :لفة سلك 2 مم مجدول
J46: 0 | K46: 7.5 | O46: 0 | Q46: اسم الصنف :لفة سلك 2 مم مجدول
J47: 0 | K47: 7.5 | O47: 0 | Q47: اسم الصنف :لفة سلك 2 مم مجدول
J48: 0 | K48: 7.5 | O48: 0 | Q48: اسم الصنف :لفة سلك 2 مم مجدول
J49: 0 | K49: 7.5 | O49: 0 | Q49: اسم الصنف :لفة سلك 2 مم مجدول
J50: 0 | K50: 7.5 | O50: 0 | Q50: اسم الصنف :لفة سلك 2 مم مجدول
F51: . | J51: 0 | K51: 7.5 | O51: 0 | Q51: اسم الصنف :لفة سلك 2 مم مجدول
J52: 0 | K52: 7.5 | O52: 0 | Q52: اسم الصنف :لفة سلك 2 مم مجدول
J53: 0 | K53: 7.5 | O53: 0 | Q53: اسم الصنف :لفة سلك 2 مم مجدول
J54: 0 | K54: 7.5 | O54: 0 | Q54: اسم الصنف :لفة سلك 2 مم مجدول
J55: 0 | K55: 7.5 | O55: 0 | Q55: اسم الصنف :لفة سلك 2 مم مجدول
J56: 0 | K56: 7.5 | O56: 0
J57: 0 | K57: 7.5 | O57: 0
J58: 0 | K58: 7.5 | O58: 0
A59: الرصيد | J59: =G59-D59 -> 0 | K59: 7.5 | O59: 0
C60: =SUM(C10:C58) -> 35 | D60: =SUM(D10:D58) -> 0 | H60: =SUM(H10:H58) -> 9 | I60: =SUM(I10:I58) -> 18.5 | J60: =G60-D60 -> 0 | K60: =K59 -> 7.5 | O60: =SUM(O10:O59) ->  | P60: =SUM(G60:I60) -> 27.5

Sheet لفة سلك 3 مم مجدول
F1: بطاقة كارت صنف
A4: اسم الصنف : لفة سلك 3 مم مجدول | K4: كود الصنف | L4: رقم كارت الصنف | M4: المخزن :
A7: رقم اذن اضافة الوارد | B7: تاريخ اذن اضافة الوارد | C7: وارد مشتريات وتحويل مشروع | D7: ع من الصيانة والمامورية | E7: رقم اذن الصرف | F7: تاريخ اذن الصرف | G7: صرف صيانة | H7: صرف تحويل | I7: صرف د الموقع | J7: فرق الصيانة | K7: الرصيد | L7: سعر توريد الصنف | M7: جهه التوريد | N7: ملاحظات
L9: رصيد اول المدة | O9: ج سعر التوريد | Q9: =$A$4 -> اسم الصنف : لفة سلك 3 مم مجدول
A10: 652 | B10: 2018-01-31 | C10: 1 | J10: =G10-D10 -> 0 | K10: =K9+C10-I10 -> 1 | L10: 460 | M10: انريجيا | N10: جلال | O10: =C10*L10 -> 460 | Q10: =$A$4 -> اسم الصنف : لفة سلك 3 مم مجدول
E11: 560ر | F11: 2018-03-03 | H11: 1 | J11: =G11-D11 -> 0 | K11: =K10+C11-H11-G11+J11 -> 0 | M11: محول الي هايبر الجلالة | N11: 904 ض | O11: =L11*C11 -> 0 | Q11: اسم الصنف : لفة سلك 3 مم مجدول
J12: =G12-D12 -> 0 | K12: =K11+C12-G12-H12-I12+J12 -> 0 | O12: =C12*L12 -> 0 | Q12: اسم الصنف : لفة سلك 3 مم مجدول
J13: 0 | K13: 0 | O13: 0 | Q13: اسم الصنف : لفة سلك 3 مم مجدول
J14: 0 | K14: 0 | O14: 0 | Q14: اسم الصنف : لفة سلك 3 مم مجدول
J15: 0 | K15: 0 | O15: 0 | Q15: اسم الصنف : لفة سلك 3 مم مجدول
J16: 0 | K16: 0 | O16: 0 | Q16: اسم الصنف : لفة سلك 3 مم مجدول
J17: 0 | K17: 0 | O17: 0 | Q17: اسم الصنف : لفة سلك 3 مم مجدول
J18: 0 | K18: 0 | O18: 0 | Q18: اسم الصنف : لفة سلك 3 مم مجدول
J19: 0 | K19: 0 | O19: 0 | Q19: اسم الصنف : لفة سلك 3 مم مجدول
J20: 0 | K20: 0 | O20: 0 | Q20: اسم الصنف : لفة سلك 3 مم مجدول
J21: 0 | K21: 0 | O21: 0 | Q21: اسم الصنف : لفة سلك 3 مم مجدول
J22: 0 | K22: 0 | O22: 0 | Q22: اسم الصنف : لفة سلك 3 مم مجدول
J23: 0 | K23: 0 | O23: 0 | Q23: اسم الصنف : لفة سلك 3 مم مجدول
J24: 0 | K24: 0 | O24: 0 | Q24: اسم الصنف : لفة سلك 3 مم مجدول
J25: 0 | K25: 0 | O25: 0 | Q25: اسم الصنف : لفة سلك 3 مم مجدول
J26: 0 | K26: 0 | O26: 0 | Q26: اسم الصنف : لفة سلك 3 مم مجدول
J27: 0 | K27: 0 | O27: 0 | Q27: اسم الصنف : لفة سلك 3 مم مجدول
J28: 0 | K28: 0 | O28: 0 | Q28: اسم الصنف : لفة سلك 3 مم مجدول
J29: 0 | K29: 0 | O29: 0 | Q29: اسم الصنف : لفة سلك 3 مم مجدول
J30: 0 | K30: 0 | O30: 0 | Q30: اسم الصنف : لفة سلك 3 مم مجدول
J31: 0 | K31: 0 | O31: 0 | Q31: اسم الصنف : لفة سلك 3 مم مجدول
J32: 0 | K32: 0 | O32: 0 | Q32: اسم الصنف : لفة سلك 3 مم مجدول
J33: 0 | K33: 0 | O33: 0 | Q33: اسم الصنف : لفة سلك 3 مم مجدول
J34: 0 | K34: 0 | O34: 0 | Q34: اسم الصنف : لفة سلك 3 مم مجدول
J35: 0 | K35: 0 | O35: 0 | Q35: اسم الصنف : لفة سلك 3 مم مجدول
J36: 0 | K36: 0 | O36: 0 | Q36: اسم الصنف : لفة سلك 3 مم مجدول
J37: 0 | K37: 0 | O37: 0 | Q37: اسم الصنف : لفة سلك 3 مم مجدول
J38: 0 | K38: 0 | O38: 0 | Q38: اسم الصنف : لفة سلك 3 مم مجدول
J39: 0 | K39: 0 | O39: 0 | Q39: اسم الصنف : لفة سلك 3 مم مجدول
J40: 0 | K40: 0 | O40: 0 | Q40: اسم الصنف : لفة سلك 3 مم مجدول
J41: 0 | K41: 0 | O41: 0 | Q41: اسم الصنف : لفة سلك 3 مم مجدول
J42: 0 | K42: 0 | O42: 0 | Q42: اسم الصنف : لفة سلك 3 مم مجدول
J43: 0 | K43: 0 | O43: 0 | Q43: اسم الصنف : لفة سلك 3 مم مجدول
J44: 0 | K44: 0 | O44: 0 | Q44: اسم الصنف : لفة سلك 3 مم مجدول
J45: 0 | K45: 0 | O45: 0 | Q45: اسم الصنف : لفة سلك 3 مم مجدول
J46: 0 | K46: 0 | O46: 0 | Q46: اسم الصنف : لفة سلك 3 مم مجدول
J47: 0 | K47: 0 | O47: 0 | Q47: اسم الصنف : لفة سلك 3 مم مجدول
J48: 0 | K48: 0 | O48: 0 | Q48: اسم الصنف : لفة سلك 3 مم مجدول
J49: 0 | K49: 0 | O49: 0 | Q49: اسم الصنف : لفة سلك 3 مم مجدول
F50: . | J50: 0 | K50: 0 | O50: 0 | Q50: اسم الصنف : لفة سلك 3 مم مجدول
J51: 0 | K51: 0 | O51: 0 | Q51: اسم الصنف : لفة سلك 3 مم مجدول
J52: 0 | K52: 0 | O52: 0 | Q52: اسم الصنف : لفة سلك 3 مم مجدول
J53: 0 | K53: 0 | O53: 0 | Q53: اسم الصنف : لفة سلك 3 مم مجدول
J54: 0 | K54: 0 | O54: 0 | Q54: اسم الصنف : لفة سلك 3 مم مجدول
J55: 0 | K55: 0 | O55: 0 | Q55: اسم الصنف : لفة سلك 3 مم مجدول
J56: 0 | K56: 0 | O56: 0
J57: 0 | K57: 0 | O57: 0
A58: الرصيد | J58: =G58-D58 -> 0 | K58: 0 | O58: 0
C59: =SUM(C10:C57) -> 1 | D59: =SUM(D10:D57) -> 0 | H59: =SUM(H10:H57) -> 1 | I59: =SUM(I10:I57) -> 0 | J59: =G59-D59 -> 0 | K59: =K58 -> 0 | O59: =SUM(O10:O58) -> 460 | P59: =SUM(G59:I59) -> 1

Sheet لفة سلك 6 مم مجدول
F1: بطاقة كارت صنف
A4: اسم الصنف : لفة سلك 6 مم مجدول | K4: كود الصنف | L4: رقم كارت الصنف | M4: المخزن :
A7: رقم اذن اضافة الوارد | B7: تاريخ اذن اضافة الوارد | C7: وارد مشتريات وتحويل مشروع | D7: ع من الصيانة والمامورية | E7: رقم اذن الصرف | F7: تاريخ اذن الصرف | G7: صرف صيانة | H7: صرف تحويل | I7: صرف د الموقع | J7: فرق الصيانة | K7: الرصيد | L7: سعر توريد الصنف | M7: جهه التوريد | N7: ملاحظات
L9: رصيد اول المدة | O9: ج سعر التوريد | Q9: =$A$4 -> اسم الصنف : لفة سلك 6 مم مجدول
A10: 652 | B10: 2018-01-31 | C10: 1 | J10: =G10-D10 -> 0 | K10: =K9+C10-I10 -> 1 | L10: 912 | M10: انريجيا | N10: جلال | O10: =C10*L10 -> 912 | Q10: =$A$4 -> اسم الصنف : لفة سلك 6 مم مجدول
E11: 561ر | F11: 2018-07-03 | H11: 1 | K11: =K10+J11+C11-I11-H11 -> 0 | M11: محول الي هايبر الجلالة | Q11: اسم الصنف : لفة سلك 6 مم مجدول
J12: =G12-D12 -> 0 | K12: =K11+C12-G12-H12-I12+J12 -> 0 | O12: =C12*L12 -> 0 | Q12: اسم الصنف : لفة سلك 6 مم مجدول
J13: 0 | K13: 0 | O13: 0 | Q13: اسم الصنف : لفة سلك 6 مم مجدول
J14: 0 | K14: 0 | O14: 0 | Q14: اسم الصنف : لفة سلك 6 مم مجدول
J15: 0 | K15: 0 | O15: 0 | Q15: اسم الصنف : لفة سلك 6 مم مجدول
J16: 0 | K16: 0 | O16: 0 | Q16: اسم الصنف : لفة سلك 6 مم مجدول
J17: 0 | K17: 0 | O17: 0 | Q17: اسم الصنف : لفة سلك 6 مم مجدول
J18: 0 | K18: 0 | O18: 0 | Q18: اسم الصنف : لفة سلك 6 مم مجدول
J19: 0 | K19: 0 | O19: 0 | Q19: اسم الصنف : لفة سلك 6 مم مجدول
J20: 0 | K20: 0 | O20: 0 | Q20: اسم الصنف : لفة سلك 6 مم مجدول
J21: 0 | K21: 0 | O21: 0 | Q21: اسم الصنف : لفة سلك 6 مم مجدول
J22: 0 | K22: 0 | O22: 0 | Q22: اسم الصنف : لفة سلك 6 مم مجدول
J23: 0 | K23: 0 | O23: 0 | Q23: اسم الصنف : لفة سلك 6 مم مجدول
J24: 0 | K24: 0 | O24: 0 | Q24: اسم الصنف : لفة سلك 6 مم مجدول
J25: 0 | K25: 0 | O25: 0 | Q25: اسم الصنف : لفة سلك 6 مم مجدول
J26: 0 | K26: 0 | O26: 0 | Q26: اسم الصنف : لفة سلك 6 مم مجدول
J27: 0 | K27: 0 | O27: 0 | Q27: اسم الصنف : لفة سلك 6 مم مجدول
J28: 0 | K28: 0 | O28: 0 | Q28: اسم الصنف : لفة سلك 6 مم مجدول
J29: 0 | K29: 0 | O29: 0 | Q29: اسم الصنف : لفة سلك 6 مم مجدول
J30: 0 | K30: 0 | O30: 0 | Q30: اسم الصنف : لفة سلك 6 مم مجدول
J31: 0 | K31: 0 | O31: 0 | Q31: اسم الصنف : لفة سلك 6 مم مجدول
J32: 0 | K32: 0 | O32: 0 | Q32: اسم الصنف : لفة سلك 6 مم مجدول
J33: 0 | K33: 0 | O33: 0 | Q33: اسم الصنف : لفة سلك 6 مم مجدول
J34: 0 | K34: 0 | O34: 0 | Q34: اسم الصنف : لفة سلك 6 مم مجدول
J35: 0 | K35: 0 | O35: 0 | Q35: اسم الصنف : لفة سلك 6 مم مجدول
J36: 0 | K36: 0 | O36: 0 | Q36: اسم الصنف : لفة سلك 6 مم مجدول
J37: 0 | K37: 0 | O37: 0 | Q37: اسم الصنف : لفة سلك 6 مم مجدول
J38: 0 | K38: 0 | O38: 0 | Q38: اسم الصنف : لفة سلك 6 مم مجدول
J39: 0 | K39: 0 | O39: 0 | Q39: اسم الصنف : لفة سلك 6 مم مجدول
J40: 0 | K40: 0 | O40: 0 | Q40: اسم الصنف : لفة سلك 6 مم مجدول
J41: 0 | K41: 0 | O41: 0 | Q41: اسم الصنف : لفة سلك 6 مم مجدول
J42: 0 | K42: 0 | O42: 0 | Q42: اسم الصنف : لفة سلك 6 مم مجدول
J43: 0 | K43: 0 | O43: 0 | Q43: اسم الصنف : لفة سلك 6 مم مجدول
J44: 0 | K44: 0 | O44: 0 | Q44: اسم الصنف : لفة سلك 6 مم مجدول
J45: 0 | K45: 0 | O45: 0 | Q45: اسم الصنف : لفة سلك 6 مم مجدول
J46: 0 | K46: 0 | O46: 0 | Q46: اسم الصنف : لفة سلك 6 مم مجدول
J47: 0 | K47: 0 | O47: 0 | Q47: اسم الصنف : لفة سلك 6 مم مجدول
J48: 0 | K48: 0 | O48: 0 | Q48: اسم الصنف : لفة سلك 6 مم مجدول
J49: 0 | K49: 0 | O49: 0 | Q49: اسم الصنف : لفة سلك 6 مم مجدول
F50: . | J50: 0 | K50: 0 | O50: 0 | Q50: اسم الصنف : لفة سلك 6 مم مجدول
J51: 0 | K51: 0 | O51: 0 | Q51: اسم الصنف : لفة سلك 6 مم مجدول
J52: 0 | K52: 0 | O52: 0 | Q52: اسم الصنف : لفة سلك 6 مم مجدول
J53: 0 | K53: 0 | O53: 0 | Q53: اسم الصنف : لفة سلك 6 مم مجدول
J54: 0 | K54: 0 | O54: 0 | Q54: اسم الصنف : لفة سلك 6 مم مجدول
J55: 0 | K55: 0 | O55: 0 | Q55: اسم الصنف : لفة سلك 6 مم مجدول
J56: 0 | K56: 0 | O56: 0
J57: 0 | K57: 0 | O57: 0
A58: الرصيد | J58: =G58-D58 -> 0 | K58: 0 | O58: 0
C59: =SUM(C10:C57) -> 1 | D59: =SUM(D10:D57) -> 0 | H59: =SUM(H10:H57) -> 1 | I59: =SUM(I10:I57) -> 0 | J59: =G59-D59 -> 0 | K59: =K58 -> 0 | O59: =SUM(O10:O58) -> 912 | P59: =SUM(G59:I59) -> 1

Sheet سلك ترمو 2×2مم
F1: بطاقة كارت صنف
A4: اسم الصنف : سلك ترمو 2* 2 مم | K4: كود الصنف | L4: رقم كارت الصنف | M4: المخزن :
A7: رقم اذن اضافة الوارد | B7: تاريخ اذن اضافة الوارد | C7: وارد مشتريات وتحويل مشروع | D7: ع من الصيانة والمامورية | E7: رقم اذن الصرف | F7: تاريخ اذن الصرف | G7: صرف صيانة | H7: صرف تحويل | I7: صرف د الموقع | J7: فرق الصيانة | K7: الرصيد | L7: سعر توريد الصنف | M7: جهه التوريد | N7: ملاحظات
L9: رصيد اول المدة | O9: ج سعر التوريد | Q9: =$A$4 -> اسم الصنف : سلك ترمو 2* 2 مم
A10: 699 | B10: 2018-04-03 | C10: 2 | J10: =G10-D10 -> 0 | K10: =K9+C10-I10 -> 2 | L10: 340 | M10: مش موقع | N10: احمد حامد المحاسب | O10: =C10*L10 -> 680 | Q10: =$A$4 -> اسم الصنف : سلك ترمو 2* 2 مم
E11: 756 | F11: 2018-04-03 | I11: 2 | J11: 0 | K11: =K10+C11-H11-I11+J11 -> 0 | O11: 0 | Q11: اسم الصنف : سلك ترمو 2* 2 مم
A12: 13020 | B12: 2018-09-04 | C12: 5 | J12: 0 | K12: =K11+C12-G12-H12-I12+J12 -> 5 | M12: ادارة المشتريات | O12: 0 | Q12: اسم الصنف : سلك ترمو 2* 2 مم
A13: 13037 | B13: 2018-11-04 | C13: 3 | J13: 0 | K13: 8 | M13: ادارة المشتريات | O13: 0 | Q13: اسم الصنف : سلك ترمو 2* 2 مم
E14: 763 | F14: 2018-11-04 | I14: 3 | J14: 0 | K14: 5 | M14: خدمة موقع | O14: 0 | Q14: اسم الصنف : سلك ترمو 2* 2 مم
E15: 766 | F15: 15/2/2018 | I15: 2 | J15: 0 | K15: 3 | M15: خدمة موقع | O15: 0 | Q15: اسم الصنف : سلك ترمو 2* 2 مم
E16: 573 | F16: 16/4/2018 | H16: 1 | J16: 0 | K16: 2 | M16: محول الي هايبر الجلالة | O16: =L16*C16 -> 0 | Q16: اسم الصنف : سلك ترمو 2* 2 مم
E17: 769 | F17: 17/4/2018 | I17: 1 | J17: =G17-D17 -> 0 | K17: 1 | M17: خدمة موقع | O17: =C17*L17 -> 0 | Q17: اسم الصنف : سلك ترمو 2* 2 مم
E18: 771 | F18: 18/4/2018 | I18: 1 | J18: 0 | K18: 0 | M18: خدمة موقع | O18: =C18*L18 -> 0 | Q18: اسم الصنف : سلك ترمو 2* 2 مم
A19: 13183 | B19: 2018-01-05 | C19: 6 | J19: 0 | K19: 6 | M19: ادارة المشتريات | Q19: اسم الصنف : سلك ترمو 2* 2 مم
E20: 3013ر | F20: 2018-05-05 | H20: 1 | J20: 0 | K20: 5 | M20: تحويل الي الهايبر | O20: =C20*L20 -> 0 | Q20: اسم الصنف : سلك ترمو 2* 2 مم
E21: 790 | F21: 2018-08-05 | I21: 2 | J21: 0 | K21: 3 | M21: خدمة موقع | O21: =C21*L21 -> 0 | Q21: اسم الصنف : سلك ترمو 2* 2 مم
E22: 791 | F22: 2018-09-05 | I22: 1 | J22: 0 | K22: 2 | M22: خدمة موقع | O22: =C22*L22 -> 0 | Q22: اسم الصنف : سلك ترمو 2* 2 مم
E23: 13751 | F23: 17/5/2018 | I23: 2 | J23: 0 | K23: 0 | M23: خدمة موقع | O23: =C23*L23 -> 0 | Q23: اسم الصنف : سلك ترمو 2* 2 مم
A24: 13250 | B24: 2018-07-06 | C24: 2 | J24: 0 | K24: 2 | M24: ادارة المشتريات | O24: =L24*C24 -> 0 | Q24: اسم الصنف : سلك ترمو 2* 2 مم
E25: 13774 | F25: 23/6/2018 | I25: 1 | J25: 0 | K25: 1 | M25: خدمة موقع | Q25: اسم الصنف : سلك ترمو 2* 2 مم
E26: 13779 | F26: 26/6/2018 | I26: 1 | J26: 0 | K26: 0 | M26: خدمة موقع | O26: =C26*L26 -> 0 | Q26: اسم الصنف : سلك ترمو 2* 2 مم
A27: 8229 | B27: 2018-05-07 | C27: 4 | J27: 0 | K27: 4 | M27: ادارة المشتريات | O27: 0 | Q27: اسم الصنف : سلك ترمو 2* 2 مم
E28: 13792 | F28: 2018-09-07 | I28: 1 | J28: 0 | K28: 3 | M28: سكن عمال | O28: 0 | Q28: اسم الصنف : سلك ترمو 2* 2 مم
E29: 13795 | F29: 2018-11-07 | I29: 1 | J29: 0 | K29: 2 | M29: خدمة موقع | O29: 0 | Q29: اسم الصنف : سلك ترمو 2* 2 مم
E30: 13797 | F30: 2018-12-07 | I30: 1 | J30: 0 | K30: 1 | M30: خدمة موقع | O30: 0 | Q30: اسم الصنف : سلك ترمو 2* 2 مم
E31: 13800 | F31: 15/7/2018 | I31: 1 | J31: 0 | K31: 0 | M31: خدمة موقع | O31: 0 | Q31: اسم الصنف : سلك ترمو 2* 2 مم
E32: 1392ر | F32: 21/7/2018 | I32: -1 | J32: 0 | K32: 1 | M32: ارتجاع داخلي | O32: 0 | Q32: اسم الصنف : سلك ترمو 2* 2 مم
E33: 1393ر | F33: 21/7/2018 | H33: 1 | J33: 0 | K33: 0 | M33: محول الي كلية طب اسنان | O33: =L33*C33 -> 0 | P33: =C33*0.07*0.09*4 -> 0 | Q33: اسم الصنف : سلك ترمو 2* 2 مم
A34: 8002 | B34: 2018-08-08 | C34: 8 | J34: 0 | K34: 8 | M34: ادارة المشتريات | O34: =C34*L34 -> 0 | Q34: اسم الصنف : سلك ترمو 2* 2 مم
E35: 2822ر | F35: 2018-08-08 | H35: 1 | J35: 0 | K35: 7 | M35: محول الي كلية طب اسنان | O35: =C35*L35 -> 0 | Q35: اسم الصنف : سلك ترمو 2* 2 مم
E36: 13826 | F36: 14/8/2018 | I36: 1 | J36: 0 | K36: 6 | M36: خدمة موقع | O36: 0 | Q36: اسم الصنف : سلك ترمو 2* 2 مم
E37: 13834 | F37: 2018-03-09 | I37: 2 | J37: =G37-D37 -> 0 | K37: 4 | M37: خدمة موقع | O37: =L37*C37 -> 0 | Q37: اسم الصنف : سلك ترمو 2* 2 مم
E38: 2843ر | F38: 2018-04-09 | H38: 2 | J38: =G38-D38 -> 0 | K38: 2 | M38: محول الي كلية طب اسنان | Q38: اسم الصنف : سلك ترمو 2* 2 مم
E39: 13835 | F39: 2018-05-09 | I39: 1 | J39: =G39-D39 -> 0 | K39: 1 | M39: خدمة موقع | Q39: اسم الصنف : سلك ترمو 2* 2 مم
E40: 13837 | F40: 2018-09-09 | I40: 1 | J40: =G40-D40 -> 0 | K40: 0 | M40: خدمة موقع | Q40: اسم الصنف : سلك ترمو 2* 2 مم
A41: 10355 | B41: 16/9/2018 | C41: 1 | J41: =G41-D41 -> 0 | K41: 1 | M41: مش موقع | O41: =C41*L41 -> 0 | Q41: اسم الصنف : سلك ترمو 2* 2 مم
E42: 19857 | F42: 2018-01-10 | I42: 1 | J42: 0 | K42: 0 | M42: خدمة موقع | O42: 0 | Q42: اسم الصنف : سلك ترمو 2* 2 مم
A43: 1230 | B43: 2018-07-10 | C43: 1 | J43: =G43-D43 -> 0 | K43: 1 | M43: محول من النادي | O43: =C43*L43 -> 0 | Q43: اسم الصنف : سلك ترمو 2* 2 مم
E44: 19865 | F44: 2018-07-10 | I44: 1 | J44: 0 | K44: 0 | M44: خدمة موقع | O44: =C44*L44 -> 0 | Q44: اسم الصنف : سلك ترمو 2* 2 مم
A45: 1240 | B45: 2018-09-10 | C45: 10 | J45: 0 | K45: 10 | M45: ادارة المشتريات | O45: =C45*L45 -> 0 | Q45: اسم الصنف : سلك ترمو 2* 2 مم
E46: 19869 | F46: 2018-09-10 | I46: 1 | J46: 0 | K46: =K45+C46-H46-I46+J46 -> 9 | M46: مبني ادارة الجامعة | Q46: اسم الصنف : سلك ترمو 2* 2 مم
E47: 19870 | F47: 2018-09-01 | I47: 2 | J47: 0 | K47: =K46+C47-I47-H47+J47 -> 7 | M47: سكن عمال | Q47: اسم الصنف : سلك ترمو 2* 2 مم
E48: 19877 | F48: 14/10/2018 | I48: 2 | J48: 0 | K48: =K47+C48-I48-H48+J48 -> 5 | M48: خدمة موقع | O48: =C48*L48 -> 0 | Q48: اسم الصنف : سلك ترمو 2* 2 مم
E49: 19881 | F49: 17/10/2018 | I49: 1 | J49: 0 | K49: =K48+C49-G49-H49-I49+J49 -> 4 | M49: خدمة موقع | O49: 0 | Q49: اسم الصنف : سلك ترمو 2* 2 مم
E50: 14614 | F50: 2018-06-11 | I50: 1 | J50: 0 | K50: =K49+C50-G50-H50-I50+J50 -> 3 | M50: موقع | O50: 0 | Q50: اسم الصنف : سلك ترمو 2* 2 مم
E51: 14620 | F51: 2018-08-11 | I51: 1 | J51: 0 | K51: =K50+C51-I51 -> 2 | M51: خدمة موقع | N51: عدد 300 | O51: 0 | Q51: اسم الصنف : سلك ترمو 2* 2 مم
E52: 14624 | F52: 2018-10-11 | I52: 1 | J52: 0 | K52: =K51+C52-G52-H52-I52+J52 -> 1 | M52: خدمة موقع | O52: 0 | Q52: اسم الصنف : سلك ترمو 2* 2 مم
E53: 14638 | F53: 13/11/2018 | I53: 1 | J53: 0 | K53: =K52+C53-G53-H53-I53+J53 -> 0 | M53: خدمة موقع | O53: 0 | Q53: اسم الصنف : سلك ترمو 2* 2 مم
A54: 12238 | B54: 24/11/2018 | C54: 14 | J54: 0 | K54: =K53+C54-I54 -> 14 | M54: ادارة المشتريات | O54: 0 | Q54: اسم الصنف : سلك ترمو 2* 2 مم
E55: 3322 | F55: 25/11/2018 | I55: 1 | J55: 0 | K55: =K54+C55-G55-H55-I55+J55 -> 13 | M55: خدمة موقع | O55: 0 | Q55: اسم الصنف : سلك ترمو 2* 2 مم
E56: 3330 | F56: 26/11/2018 | I56: 2 | J56: 0 | K56: =K55+C56-I56 -> 11 | M56: خدمة موقع
E57: 3333 | F57: 27/11/2018 | I57: 2 | J57: 0 | K57: 9 | M57: خدمة موقع
E58: 3339 | F58: 28/11/2018 | I58: 1 | J58: 0 | K58: 8 | M58: خدمة موقع
E59: 3348 | F59: 29/11/2018 | I59: 3 | J59: 0 | K59: 5 | M59: خدمة موقع
E60: 3349 | F60: 29/11/2018 | I60: 3 | J60: 0 | K60: 2 | M60: خدمة موقع
E61: 11853 | F61: 2018-01-12 | I61: 2 | J61: 0 | K61: 0 | M61: خدمة موقع
A62: 14337 | B62: 29/11/2018 | C62: 10 | J62: 0 | K62: 10 | M62: ادارة المشتريات
E63: 11855 | F63: 2018-02-12 | I63: 3 | J63: 0 | K63: 7 | M63: خدمة موقع
E64: 11871 | F64: 2018-07-12 | I64: 1 | J64: 0 | K64: 6 | M64: خدمة موقع
E65: 11876 | F65: 2018-09-12 | I65: 2 | J65: 0 | K65: 4 | M65: خدمة موقع
E66: 11894 | F66: 2018-12-12 | I66: 2 | J66: 0 | K66: 2 | M66: خدمة موقع
E67: 11896 | F67: 13/1272018 | I67: 1 | J67: 0 | K67: =K66+C67-G67-H67-I67+J67 -> 1 | M67: خدمة موقع
E68: 11658 | F68: 15/12/2018 | I68: 1 | J68: 0 | K68: =K67+C68-I68 -> 0 | M68: خدمة موقع
A69: 14386 | B69: 20/12/2018 | C69: 10 | J69: 0 | K69: =K68+C69-I69 -> 10 | M69: ادارة المشتريات
E70: 11687 | F70: 22/12/2018 | I70: 2 | J70: 0 | K70: =K69+C70-G70-H70-I70+J70 -> 8 | O70: =C70*L70 -> 0
E71: 11690 | F71: 23/12/2018 | I71: 2 | J71: 0 | K71: =K70+C71-I71 -> 6 | O71: =C71*L71 -> 0
E72: 3602 | F72: 26/12/2018 | I72: 1 | J72: 0 | K72: =K71+C72-I72 -> 5 | M72: موقع | O72: =C72*L72 -> 0
E73: 3610 | F73: 29/11/2018 | I73: 1 | J73: 0 | K73: =K72+C73-I73 -> 4 | O73: =C73*L73 -> 0
E74: 3614 | F74: 30/12/2018 | I74: 1 | J74: 0 | K74: =K73+C74-I74 -> 3
E75: 3623 | F75: 2019-01-01 | I75: 2 | J75: 0 | K75: =K74+C75-G75-H75-I75+J75 -> 1 | O75: =C75*L75 -> 0
E76: 3637 | F76: 2019-05-01 | I76: 1 | J76: 0 | K76: =K75+C76-G76-H76-I76+J76 -> 0
A77: 14049 | B77: 29/1/2019 | C77: 1 | J77: =G77-D77 -> 0 | K77: 1 | M77: محول من النادى
E78: 14545 | F78: 29/1/2019 | I78: 1 | J78: 0 | K78: =K77+C78-I78 -> 0 | O78: =C78*L78 -> 0
A79: 20227 | B79: 2019-12-02 | C79: 15 | J79: 0 | K79: 15 | M79: ادارة المشتريات
E80: 9217 | F80: 20/2/2019 | I80: 2 | J80: 0 | K80: 13
E81: 9236 | F81: 26/2/2019 | I81: 1 | J81: 0 | K81: 12
E82: 4347ر | F82: 26/2/2019 | H82: 1 | J82: 0 | K82: =K81+C82-I82 -> 12 | M82: محول الى علوم طبية
E83: 9249 | F83: 2019-02-03 | I83: 1 | K83: =K82+C83-G83-H83-I83+J83 -> 11
E84: 22803 | F84: 2019-03-03 | I84: 1 | J84: =G84-D84 -> 0 | K84: =K83+C84-I84-H84+J84 -> 10
E85: 22803 | F85: 2019-03-03 | I85: 1 | J85: =G85-D85 -> 0 | K85: =K84+C85-I85-H85+J85 -> 9
E86: 22810 | F86: 2019-03-06 | I86: 1 | J86: 0 | K86: =K85+C86-G86-H86-I86+J86 -> 8 | O86: =L86*C86 -> 0
E87: 22810 | F87: 2019-03-06 | I87: 1 | J87: =G87-D87 -> 0 | K87: =K86+C87-G87-H87-I87+J87 -> 7 | O87: =L87*C87 -> 0
E88: 22828 | F88: 2019-12-03 | I88: 1 | J88: =G88-D88 -> 0 | K88: =K87+C88-G88-H88-I88+J88 -> 6
J89: 0 | K89: 6
J90: 0 | K90: 6
J91: 0 | K91: 6
J92: 0 | K92: 6
J93: 0 | K93: 6
J94: 0 | K94: 6
J95: 0 | K95: 6
J96: 0 | K96: 6
J97: 0 | K97: 6
J98: 0 | K98: 6 | O98: =C98*L98 -> 0
A99: الرصيد | J99: 0 | K99: =K98+C99-G99-H99-I99+J99 -> 6 | O99: =C99*L99 -> 0
C100: =SUM(C10:C98) -> 92 | D100: =SUM(D10:D98) -> 0 | H100: =SUM(H10:H98) -> 7 | I100: =SUM(I10:I98) -> 80 | J100: 0 | K100: =K99 -> 6 | O100: =SUM(O10:O99) -> 680 | P100: =SUM(G100:I100) -> 87

Sheet سلك ترمو 2×3مم
F1: بطاقة كارت صنف
A4: اسم الصنف : سلك ترمو 2*3 مم | K4: كود الصنف | L4: رقم كارت الصنف | M4: المخزن :
A7: رقم اذن اضافة الوارد | B7: تاريخ اذن اضافة الوارد | C7: وارد مشتريات وتحويل مشروع | D7: ع من الصيانة والمامورية | E7: رقم اذن الصرف | F7: تاريخ اذن الصرف | G7: صرف صيانة | H7: صرف تحويل | I7: صرف د الموقع | J7: فرق الصيانة | K7: الرصيد | L7: سعر توريد الصنف | M7: جهه التوريد | N7: ملاحظات
L9: رصيد اول المدة | O9: ج سعر التوريد | Q9: =$A$4 -> اسم الصنف : سلك ترمو 2*3 مم
A10: 13185 | B10: 2018-01-05 | C10: 3 | J10: =G10-D10 -> 0 | K10: =K9+C10-G10-H10-I10+J10 -> 3 | M10: ادارة المشتريات | Q10: =$A$4 -> اسم الصنف : سلك ترمو 2*3 مم
E11: 3013ر | F11: 2018-05-05 | H11: 1 | J11: 0 | K11: 2 | M11: تحويل الي الهايبر | O11: =C11*L11 -> 0 | Q11: اسم الصنف : سلك ترمو 2*3 مم
E12: 798 | F12: 15/5/2018 | I12: 1 | J12: 0 | K12: 1 | M12: خدمة موقع | O12: 0 | Q12: اسم الصنف : سلك ترمو 2*3 مم
E13: 13751 | F13: 17/5/2018 | I13: 1 | J13: 0 | K13: 0 | M13: خدمة موقع | O13: 0 | Q13: اسم الصنف : سلك ترمو 2*3 مم
A14: 13206 | B14: 24/5/2018 | C14: 3 | J14: 0 | K14: 3 | M14: ادارة المشتريات | Q14: اسم الصنف : سلك ترمو 2*3 مم
E15: 13756 | F15: 24/5/2018 | I15: 1 | J15: 0 | K15: 2 | M15: خدمة موقع | O15: =C15*L15 -> 0 | Q15: اسم الصنف : سلك ترمو 2*3 مم
E16: 13759 | F16: 28/5/2018 | I16: 1 | J16: 0 | K16: 1 | M16: خدمة موقع | O16: 0 | Q16: اسم الصنف : سلك ترمو 2*3 مم
E17: 13761 | F17: 29/5/2018 | I17: 1 | J17: 0 | K17: 0 | M17: خدمة موقع | O17: 0 | Q17: اسم الصنف : سلك ترمو 2*3 مم
A18: 8229 | B18: 2018-05-07 | C18: 4 | J18: 0 | K18: 4 | M18: ادارة المشتريات | O18: 0 | Q18: اسم الصنف : سلك ترمو 2*3 مم
E19: 13795 | F19: 2018-11-07 | I19: 1 | J19: 0 | K19: 3 | M19: خدمة موقع | O19: 0 | Q19: اسم الصنف : سلك ترمو 2*3 مم
E20: 13798 | F20: 14/7/2018 | I20: 1 | J20: 0 | K20: 2 | M20: خدمة موقع | O20: 0 | Q20: اسم الصنف : سلك ترمو 2*3 مم
E21: ر2810 | F21: 2018-01-08 | H21: 1 | J21: =G21-D21 -> 0 | K21: 1 | M21: محول الي كلية طب اسنان | O21: =C21*L21 -> 0 | Q21: اسم الصنف : سلك ترمو 2*3 مم
E22: 2815ر | F22: 2018-05-08 | H22: 1 | J22: 0 | K22: 0 | M22: محول الي كلية طب اسنان | Q22: اسم الصنف : سلك ترمو 2*3 مم
A23: 8002 | B23: 2018-08-08 | C23: 3 | J23: 0 | K23: 3 | M23: ادارة المشتريات | O23: =C23*L23 -> 0 | Q23: اسم الصنف : سلك ترمو 2*3 مم
E24: 13823 | F24: 2018-12-08 | I24: 1 | J24: 0 | K24: 2 | M24: خدمة موقع | O24: 0 | Q24: اسم الصنف : سلك ترمو 2*3 مم
E25: 2824ر | F25: 2018-12-08 | H25: 1 | J25: 0 | K25: 1 | M25: محول الي طب اسنان | Q25: اسم الصنف : سلك ترمو 2*3 مم
E26: 13828 | F26: 16/8/2018 | I26: 1 | J26: 0 | K26: 0 | M26: لزوم مبني ادارة الجامعة | Q26: اسم الصنف : سلك ترمو 2*3 مم
A27: 1240 | B27: 2018-09-10 | C27: 10 | J27: 0 | K27: 10 | M27: ادارة المشتريات | O27: =C27*L27 -> 0 | Q27: اسم الصنف : سلك ترمو 2*3 مم
E28: 19869 | F28: 2018-09-10 | I28: 1 | J28: 0 | K28: =K27+C28-H28-I28+J28 -> 9 | M28: مبني ادارة الجامعة | Q28: اسم الصنف : سلك ترمو 2*3 مم
E29: 14624 | F29: 2018-10-11 | I29: 1 | J29: 0 | K29: =K28+C29-G29-H29-I29+J29 -> 8 | M29: خدمة موقع | O29: =C29*L29 -> 0 | Q29: اسم الصنف : سلك ترمو 2*3 مم
E30: 12662 | F30: 17/11/2018 | H30: 1 | J30: 0 | K30: 7 | M30: محول الي طب اسنان | O30: =C30*L30 -> 0 | Q30: اسم الصنف : سلك ترمو 2*3 مم
E31: 14638 | F31: 13/11/2018 | I31: 1 | J31: 0 | K31: 6 | O31: 0 | Q31: اسم الصنف : سلك ترمو 2*3 مم
E32: 14639 | F32: 14/11/2018 | I32: 1 | J32: 0 | K32: 5 | O32: 0 | Q32: اسم الصنف : سلك ترمو 2*3 مم
E33: 14644 | F33: 15/11/2018 | I33: 1 | J33: 0 | K33: =K32+C33-I33 -> 4 | M33: خدمة موقع | O33: 0 | Q33: اسم الصنف : سلك ترمو 2*3 مم
E34: 14648 | F34: 18/11/2018 | I34: 1 | J34: 0 | K34: 3 | Q34: اسم الصنف : سلك ترمو 2*3 مم
E35: 3306 | F35: 20/11/2018 | I35: 2 | J35: 0 | K35: =K34+C35-I35-H35+J35 -> 1 | M35: موقع | Q35: اسم الصنف : سلك ترمو 2*3 مم
E36: 3312 | F36: 22/11/2018 | I36: 1 | J36: 0 | K36: 0 | M36: موقع | O36: 0 | Q36: اسم الصنف : سلك ترمو 2*3 مم
A37: 12238 | B37: 24/11/2018 | C37: 7 | J37: =G37-D37 -> 0 | K37: =K36+C37-I37 -> 7 | M37: ادارة المشتريات | O37: =C37*L37 -> 0 | Q37: اسم الصنف : سلك ترمو 2*3 مم
E38: 3322 | F38: 25/11/2018 | I38: 1 | J38: 0 | K38: 6 | M38: موقع | O38: 0 | Q38: اسم الصنف : سلك ترمو 2*3 مم
E39: 3333 | F39: 27/11/2018 | I39: 1 | J39: 0 | K39: =K38+C39-I39 -> 5 | M39: موقع | Q39: اسم الصنف : سلك ترمو 2*3 مم
E40: 11861 | F40: 2018-04-12 | I40: 2 | J40: 0 | K40: =K39+C40-G40-H40-I40+J40 -> 3 | M40: موقع | O40: =C40*L40 -> 0 | Q40: اسم الصنف : سلك ترمو 2*3 مم
E41: 11871 | F41: 2018-07-12 | I41: 1 | J41: 0 | K41: =K40+C41-I41 -> 2 | M41: موقع | O41: 0 | Q41: اسم الصنف : سلك ترمو 2*3 مم
E42: 12696 | F42: 2018-12-12 | H42: 1 | J42: 0 | K42: 1 | M42: محول الي النادي | O42: 0 | Q42: اسم الصنف : سلك ترمو 2*3 مم
E43: 11885 | F43: 2018-11-12 | I43: 1 | J43: 0 | K43: =K42+C43-I43 -> 0 | M43: موقع | O43: 0 | Q43: اسم الصنف : سلك ترمو 2*3 مم
A44: 7770 | B44: 24/12/2018 | C44: 10 | J44: 0 | K44: 10 | M44: ادارة المشتريات | O44: 0 | Q44: اسم الصنف : سلك ترمو 2*3 مم
E45: 11697 | F45: 25/12/2018 | I45: 1 | J45: 0 | K45: 9 | Q45: اسم الصنف : سلك ترمو 2*3 مم
E46: 3610 | F46: 29/11/2018 | I46: 1 | J46: 0 | K46: =K45+C46-I46 -> 8 | O46: =C46*L46 -> 0 | Q46: اسم الصنف : سلك ترمو 2*3 مم
E47: 3634 | F47: 2019-03-01 | I47: 2 | J47: 0 | K47: 6 | O47: 0 | Q47: اسم الصنف : سلك ترمو 2*3 مم
E48: 3638 | F48: 2019-05-01 | I48: 1 | J48: 0 | K48: 5 | O48: 0 | Q48: اسم الصنف : سلك ترمو 2*3 مم
E49: 11803 | F49: 2019-09-01 | I49: 1 | J49: 0 | K49: 4 | O49: 0 | Q49: اسم الصنف : سلك ترمو 2*3 مم
E50: 12840ر | F50: 2019-12-01 | H50: 2 | J50: 0 | K50: 2 | M50: محول الي طب اسنان | O50: 0 | Q50: اسم الصنف : سلك ترمو 2*3 مم
E51: 11837 | F51: 15/1/2019 | I51: 2 | J51: =G51-D51 -> 0 | K51: 0 | O51: =C51*L51 -> 0 | Q51: اسم الصنف : سلك ترمو 2*3 مم
A52: 20227 | B52: 2019-12-02 | C52: 10 | J52: =G52-D52 -> 0 | K52: 10 | M52: ادارة المشتريات | Q52: اسم الصنف : سلك ترمو 2*3 مم
E53: 9206 | F53: 17/2/2019 | I53: 1 | J53: 0 | K53: 9 | Q53: اسم الصنف : سلك ترمو 2*3 مم
E54: 4326ر | F54: 18/2/2019 | H54: 3 | J54: 0 | K54: =K53+C54-I54-H54+J54 -> 6 | M54: محول الى طب اسنان | Q54: اسم الصنف : سلك ترمو 2*3 مم
E55: 22803 | F55: 2019-03-03 | I55: 1 | J55: =G55-D55 -> 0 | K55: =K54+C55-I55-H55+J55 -> 5 | Q55: اسم الصنف : سلك ترمو 2*3 مم
E56: 22803 | F56: 2019-03-03 | I56: 1 | J56: 0 | K56: 4
J57: 0 | K57: 4
J58: 0 | K58: 4
J59: 0 | K59: 4
J60: 0 | K60: 4
J61: 0 | K61: 4
J62: 0 | K62: 4
J63: 0 | K63: 4
J64: 0 | K64: 4 | O64: 0
J65: 0 | K65: 4 | O65: 0
J66: 0 | K66: 4 | O66: 0
A67: الرصيد | J67: =G67-D67 -> 0 | K67: 4 | O67: 0
C68: =SUM(C10:C66) -> 50 | D68: =SUM(D10:D66) -> 0 | H68: =SUM(H10:H66) -> 11 | I68: =SUM(I10:I66) -> 35 | J68: =G68-D68 -> 0 | K68: =K67 -> 4 | O68: =SUM(O10:O67) -> 0 | P68: =SUM(G68:I68) -> 46

Sheet سلك ترمو 2×4مم
F1: بطاقة كارت صنف
A4: اسم الصنف : سلك ترمو 2* 4 مم | K4: كود الصنف | L4: رقم كارت الصنف | M4: المخزن :
A7: رقم اذن اضافة الوارد | B7: تاريخ اذن اضافة الوارد | C7: وارد مشتريات وتحويل مشروع | D7: ع من الصيانة والمامورية | E7: رقم اذن الصرف | F7: تاريخ اذن الصرف | G7: صرف صيانة | H7: صرف تحويل | I7: صرف د الموقع | J7: فرق الصيانة | K7: الرصيد | L7: سعر توريد الصنف | M7: جهه التوريد | N7: ملاحظات
L9: رصيد اول المدة | O9: ج سعر التوريد | Q9: =$A$4 -> اسم الصنف : سلك ترمو 2* 4 مم
A10: 13037 | B10: 2018-11-04 | C10: 3 | J10: =G10-D10 -> 0 | K10: =K9+C10-G10-H10-I10+J10 -> 3 | M10: ادارة المشتريات | O10: =C10*L10 -> 0 | Q10: =$A$4 -> اسم الصنف : سلك ترمو 2* 4 مم
E11: 565 | F11: 2018-11-04 | H11: 1 | J11: =G11-D11 -> 0 | K11: 2 | M11: محول الي هايبر الجلالة | O11: =C11*L11 -> 0 | Q11: اسم الصنف : سلك ترمو 2* 4 مم
E12: 771 | F12: 18/4/2018 | I12: 1 | J12: 0 | K12: 1 | M12: خدمة موقع | O12: 0 | Q12: اسم الصنف : سلك ترمو 2* 4 مم
A13: 13183 | B13: 2018-01-05 | C13: 2 | J13: =G13-D13 -> 0 | K13: 3 | M13: ادارة المشتريات | Q13: اسم الصنف : سلك ترمو 2* 4 مم
E14: 784 | F14: 2018-01-05 | I14: 1 | J14: =G14-D14 -> 0 | K14: 2 | M14: خدمة موقع | O14: =C14*L14 -> 0 | Q14: اسم الصنف : سلك ترمو 2* 4 مم
E15: 790 | F15: 2018-08-05 | I15: 1 | J15: 0 | K15: 1 | M15: خدمة موقع | O15: 0 | Q15: اسم الصنف : سلك ترمو 2* 4 مم
E16: 791 | F16: 2018-09-05 | I16: 1 | J16: 0 | K16: 0 | M16: خدمة موقع | O16: 0 | Q16: اسم الصنف : سلك ترمو 2* 4 مم
A17: 13250 | B17: 2018-07-06 | C17: 2 | J17: 0 | K17: 2 | M17: ادارة المشتريات | O17: =L17*C17 -> 0 | Q17: اسم الصنف : سلك ترمو 2* 4 مم
E18: 13779 | F18: 26/6/2018 | I18: 1 | J18: 0 | K18: 1 | M18: خدمة موقع | O18: 0 | Q18: اسم الصنف : سلك ترمو 2* 4 مم
E19: 13781 | F19: 28/6/2018 | I19: 1 | J19: 0 | K19: 0 | M19: سكن عمال | O19: =L19*C19 -> 0 | Q19: اسم الصنف : سلك ترمو 2* 4 مم
A20: 8229 | B20: 2018-05-07 | C20: 2 | J20: 0 | K20: 2 | M20: ادارة المشتريات | O20: =C20*L20 -> 0 | Q20: اسم الصنف : سلك ترمو 2* 4 مم
E21: 13795 | F21: 2018-11-07 | I21: 1 | J21: 0 | K21: 1 | M21: خدمة موقع | O21: 0 | Q21: اسم الصنف : سلك ترمو 2* 4 مم
E22: 13798 | F22: 14/7/2018 | I22: 1 | J22: 0 | K22: 0 | M22: خدمة موقع | O22: 0 | Q22: اسم الصنف : سلك ترمو 2* 4 مم
E23: 1392ر | F23: 21/7/2018 | I23: -1 | J23: =G23-D23 -> 0 | K23: 1 | M23: ارتجاع داخلي | O23: =C23*L23 -> 0 | Q23: اسم الصنف : سلك ترمو 2* 4 مم
E24: 1393ر | F24: 21/7/2018 | H24: 1 | J24: 0 | K24: 0 | M24: محول الي كلية طب اسنان | O24: 0 | Q24: اسم الصنف : سلك ترمو 2* 4 مم
A25: 8002 | B25: 2018-08-08 | C25: 3 | J25: 0 | K25: 3 | M25: ادارة المشتريات | O25: 0 | Q25: اسم الصنف : سلك ترمو 2* 4 مم
E26: 13828 | F26: 16/8/2018 | I26: 1 | J26: 0 | K26: 2 | M26: لزوم مبني ادارة الجامعة | Q26: اسم الصنف : سلك ترمو 2* 4 مم
E27: 13834 | F27: 2018-03-09 | I27: 1 | J27: 0 | K27: 1 | M27: خدمة موقع | O27: =L27*C27 -> 0 | Q27: اسم الصنف : سلك ترمو 2* 4 مم
E28: 13837 | F28: 2018-09-09 | I28: 1 | J28: 0 | K28: 0 | M28: خدمة موقع | Q28: اسم الصنف : سلك ترمو 2* 4 مم
E29: 2845ر | F29: 2018-09-09 | I29: -1 | J29: 0 | K29: 1 | M29: ارتجاع داخلي | O29: =L29*C29 -> 0 | Q29: اسم الصنف : سلك ترمو 2* 4 مم
E30: 2846 | F30: 2018-09-09 | H30: 1 | J30: 0 | K30: 0 | M30: محول الي كلية طب اسنان | O30: 0 | Q30: اسم الصنف : سلك ترمو 2* 4 مم
A31: 1240 | B31: 2018-09-10 | C31: 5 | J31: 0 | K31: 5 | M31: ادارة المشتريات | O31: 0 | Q31: اسم الصنف : سلك ترمو 2* 4 مم
E32: 19869 | F32: 2018-09-10 | I32: 1 | J32: 0 | K32: 4 | M32: مبني ادارة الجامعة | Q32: اسم الصنف : سلك ترمو 2* 4 مم
E33: 19872 | F33: 2018-11-10 | I33: 1 | J33: 0 | K33: 3 | M33: خدمة موقع | O33: 0 | Q33: اسم الصنف : سلك ترمو 2* 4 مم
E34: 2644 | F34: 31/10/2018 | H34: 2 | J34: 0 | K34: 1 | M34: محول الي فندق الجلاله | O34: 0 | Q34: اسم الصنف : سلك ترمو 2* 4 مم
E35: 14612 | F35: 2018-05-11 | I35: 1 | J35: 0 | K35: 0 | M35: خدمة موقع | O35: 0 | Q35: اسم الصنف : سلك ترمو 2* 4 مم
A36: 12238 | B36: 24/11/2018 | C36: 10 | J36: =G36-D36 -> 0 | K36: =K35+C36-I36 -> 10 | M36: ادارة المشتريات | O36: =C36*L36 -> 0 | Q36: اسم الصنف : سلك ترمو 2* 4 مم
E37: 3330 | F37: 26/11/2018 | I37: 1 | J37: =G37-D37 -> 0 | K37: =K36+C37-I37 -> 9 | Q37: اسم الصنف : سلك ترمو 2* 4 مم
E38: 11868 | F38: 2018-06-12 | I38: 1 | J38: 0 | K38: 8 | Q38: اسم الصنف : سلك ترمو 2* 4 مم
E39: 11876 | F39: 2018-09-12 | I39: 1 | J39: 0 | K39: =K38+C39-G39-H39-I39+J39 -> 7 | M39: خدمة موقع | Q39: اسم الصنف : سلك ترمو 2* 4 مم
E40: 12696 | F40: 2018-12-12 | H40: 1 | J40: 0 | K40: 6 | M40: محول الي النادي | O40: =C40*L40 -> 0 | Q40: اسم الصنف : سلك ترمو 2* 4 مم
E41: 11894 | F41: 2018-12-12 | I41: 1 | J41: 0 | K41: 5 | O41: 0 | Q41: اسم الصنف : سلك ترمو 2* 4 مم
E42: 11667 | F42: 17/12/2018 | I42: 1 | J42: 0 | K42: =K41+C42-I42 -> 4 | Q42: اسم الصنف : سلك ترمو 2* 4 مم
E43: 11667 | F43: 17/12/2018 | I43: 1 | J43: 0 | K43: 3 | Q43: اسم الصنف : سلك ترمو 2* 4 مم
E44: 11673 | F44: 20/12/2018 | I44: 1 | J44: 0 | K44: 2 | O44: =C44*L44 -> 0 | Q44: اسم الصنف : سلك ترمو 2* 4 مم
E45: 11687 | F45: 22/12/2018 | I45: 1 | J45: 0 | K45: =K44+C45-G45-H45-I45+J45 -> 1 | O45: 0 | Q45: اسم الصنف : سلك ترمو 2* 4 مم
E46: 14536 | F46: 27/1/2019 | I46: 1 | J46: 0 | K46: 0 | O46: =L46*C46 -> 0 | Q46: اسم الصنف : سلك ترمو 2* 4 مم
A47: 20227 | B47: 2019-12-02 | C47: 10 | J47: 0 | K47: 10 | M47: ادارة المشتريات | Q47: اسم الصنف : سلك ترمو 2* 4 مم
J48: 0 | K48: 10 | O48: 0 | Q48: اسم الصنف : سلك ترمو 2* 4 مم
J49: 0 | K49: 10 | O49: 0 | Q49: اسم الصنف : سلك ترمو 2* 4 مم
F50: . | J50: 0 | K50: 10 | O50: 0 | Q50: اسم الصنف : سلك ترمو 2* 4 مم
J51: 0 | K51: 10 | O51: 0 | Q51: اسم الصنف : سلك ترمو 2* 4 مم
J52: 0 | K52: 10 | O52: 0 | Q52: اسم الصنف : سلك ترمو 2* 4 مم
J53: 0 | K53: 10 | O53: 0 | Q53: اسم الصنف : سلك ترمو 2* 4 مم
J54: 0 | K54: 10 | O54: 0 | Q54: اسم الصنف : سلك ترمو 2* 4 مم
J55: 0 | K55: 10 | O55: 0 | Q55: اسم الصنف : سلك ترمو 2* 4 مم
J56: 0 | K56: 10 | O56: 0
J57: 0 | K57: 10 | O57: 0
A58: الرصيد | J58: =G58-D58 -> 0 | K58: 10 | O58: 0
C59: =SUM(C10:C57) -> 37 | D59: =SUM(D10:D57) -> 0 | H59: =SUM(H10:H57) -> 6 | I59: =SUM(I10:I57) -> 21 | J59: =G59-D59 -> 0 | K59: =K58 -> 10 | O59: =SUM(O10:O58) -> 0 | P59: =SUM(G59:I59) -> 27

Sheet سلك ترمو 4×4مم الاسبانية
F1: بطاقة كارت صنف
A4: اسم الصنف : سلك ترمو 4×4مم الاسبانية | K4: كود الصنف | L4: رقم كارت الصنف | M4: المخزن :
A7: رقم اذن اضافة الوارد | B7: تاريخ اذن اضافة الوارد | C7: وارد مشتريات وتحويل مشروع | D7: ع من الصيانة والمامورية | E7: رقم اذن الصرف | F7: تاريخ اذن الصرف | G7: صرف صيانة | H7: صرف تحويل | I7: صرف د الموقع | J7: فرق الصيانة | K7: الرصيد | L7: سعر توريد الصنف | M7: جهه التوريد | N7: ملاحظات
L9: رصيد اول المدة | O9: ج سعر التوريد | Q9: =$A$4 -> اسم الصنف : سلك ترمو 4×4مم الاسبانية
A10: 699 | B10: 2018-04-03 | C10: 0.7 | J10: =G10-D10 -> 0 | K10: =K9+C10-I10 -> 0.7 | L10: =1575/70 -> 22.5 | M10: مش موقع | N10: احمد حامد المحاسب | O10: =C10*L10 -> 15.75 | Q10: =$A$4 -> اسم الصنف : سلك ترمو 4×4مم الاسبانية
E11: 756 | F11: 2018-04-03 | I11: 0.15 | J11: =G11-D11 -> 0 | K11: =K10+C11-I11 -> 0.55 | M11: خدمة موقع | O11: =C11*L11 -> 0 | Q11: اسم الصنف : سلك ترمو 4×4مم الاسبانية
E12: 760 | F12: 2018-08-04 | I12: 0.55 | J12: =G12-D12 -> 0 | K12: 0 | M12: خدمة موقع | Q12: اسم الصنف : سلك ترمو 4×4مم الاسبانية
J13: 0 | K13: 0 | Q13: اسم الصنف : سلك ترمو 4×4مم الاسبانية
J14: 0 | K14: 0 | O14: 0 | Q14: اسم الصنف : سلك ترمو 4×4مم الاسبانية
J15: 0 | K15: =K14+C15-G15-H15-I15+J15 -> 0 | O15: 0 | Q15: اسم الصنف : سلك ترمو 4×4مم الاسبانية
J16: 0 | K16: 0 | O16: 0 | Q16: اسم الصنف : سلك ترمو 4×4مم الاسبانية
J17: 0 | K17: 0 | O17: 0 | Q17: اسم الصنف : سلك ترمو 4×4مم الاسبانية
J18: 0 | K18: 0 | O18: 0 | Q18: اسم الصنف : سلك ترمو 4×4مم الاسبانية
J19: =G19-D19 -> 0 | K19: 0 | O19: 0 | Q19: اسم الصنف : سلك ترمو 4×4مم الاسبانية
J20: 0 | K20: 0 | O20: 0 | Q20: اسم الصنف : سلك ترمو 4×4مم الاسبانية
J21: 0 | K21: 0 | O21: 0 | Q21: اسم الصنف : سلك ترمو 4×4مم الاسبانية
J22: 0 | K22: 0 | O22: 0 | Q22: اسم الصنف : سلك ترمو 4×4مم الاسبانية
J23: 0 | K23: 0 | O23: 0 | Q23: اسم الصنف : سلك ترمو 4×4مم الاسبانية
J24: 0 | K24: 0 | O24: 0 | Q24: اسم الصنف : سلك ترمو 4×4مم الاسبانية
J25: 0 | K25: 0 | O25: 0 | Q25: اسم الصنف : سلك ترمو 4×4مم الاسبانية
J26: 0 | K26: 0 | O26: 0 | Q26: اسم الصنف : سلك ترمو 4×4مم الاسبانية
J27: 0 | K27: 0 | O27: 0 | Q27: اسم الصنف : سلك ترمو 4×4مم الاسبانية
J28: 0 | K28: 0 | O28: 0 | Q28: اسم الصنف : سلك ترمو 4×4مم الاسبانية
J29: 0 | K29: 0 | O29: 0 | Q29: اسم الصنف : سلك ترمو 4×4مم الاسبانية
J30: 0 | K30: 0 | O30: 0 | Q30: اسم الصنف : سلك ترمو 4×4مم الاسبانية
J31: 0 | K31: 0 | O31: 0 | Q31: اسم الصنف : سلك ترمو 4×4مم الاسبانية
J32: 0 | K32: 0 | O32: 0 | Q32: اسم الصنف : سلك ترمو 4×4مم الاسبانية
J33: 0 | K33: 0 | O33: 0 | Q33: اسم الصنف : سلك ترمو 4×4مم الاسبانية
J34: 0 | K34: 0 | O34: 0 | Q34: اسم الصنف : سلك ترمو 4×4مم الاسبانية
J35: 0 | K35: 0 | O35: 0 | Q35: اسم الصنف : سلك ترمو 4×4مم الاسبانية
J36: 0 | K36: 0 | O36: 0 | Q36: اسم الصنف : سلك ترمو 4×4مم الاسبانية
J37: 0 | K37: 0 | O37: 0 | Q37: اسم الصنف : سلك ترمو 4×4مم الاسبانية
J38: 0 | K38: 0 | O38: 0 | Q38: اسم الصنف : سلك ترمو 4×4مم الاسبانية
J39: 0 | K39: 0 | O39: 0 | Q39: اسم الصنف : سلك ترمو 4×4مم الاسبانية
J40: 0 | K40: 0 | O40: 0 | Q40: اسم الصنف : سلك ترمو 4×4مم الاسبانية
J41: 0 | K41: 0 | O41: 0 | Q41: اسم الصنف : سلك ترمو 4×4مم الاسبانية
J42: 0 | K42: 0 | O42: 0 | Q42: اسم الصنف : سلك ترمو 4×4مم الاسبانية
J43: 0 | K43: 0 | O43: 0 | Q43: اسم الصنف : سلك ترمو 4×4مم الاسبانية
J44: 0 | K44: 0 | O44: 0 | Q44: اسم الصنف : سلك ترمو 4×4مم الاسبانية
J45: 0 | K45: 0 | O45: 0 | Q45: اسم الصنف : سلك ترمو 4×4مم الاسبانية
J46: 0 | K46: 0 | O46: 0 | Q46: اسم الصنف : سلك ترمو 4×4مم الاسبانية
J47: 0 | K47: 0 | O47: 0 | Q47: اسم الصنف : سلك ترمو 4×4مم الاسبانية
J48: 0 | K48: 0 | O48: 0 | Q48: اسم الصنف : سلك ترمو 4×4مم الاسبانية
J49: 0 | K49: 0 | O49: 0 | Q49: اسم الصنف : سلك ترمو 4×4مم الاسبانية
F50: . | J50: 0 | K50: 0 | O50: 0 | Q50: اسم الصنف : سلك ترمو 4×4مم الاسبانية
J51: 0 | K51: 0 | O51: 0 | Q51: اسم الصنف : سلك ترمو 4×4مم الاسبانية
J52: 0 | K52: 0 | O52: 0 | Q52: اسم الصنف : سلك ترمو 4×4مم الاسبانية
J53: 0 | K53: 0 | O53: 0 | Q53: اسم الصنف : سلك ترمو 4×4مم الاسبانية
J54: 0 | K54: 0 | O54: 0 | Q54: اسم الصنف : سلك ترمو 4×4مم الاسبانية
J55: 0 | K55: 0 | O55: 0 | Q55: اسم الصنف : سلك ترمو 4×4مم الاسبانية
J56: 0 | K56: 0 | O56: 0
J57: 0 | K57: 0 | O57: 0
A58: الرصيد | J58: =G58-D58 -> 0 | K58: 0 | O58: 0
C59: =SUM(C10:C57) -> 0.7 | D59: =SUM(D10:D57) -> 0 | H59: =SUM(H10:H57) -> 0 | I59: =SUM(I10:I57) -> 0.7 | J59: =G59-D59 -> 0 | K59: =K58 -> 0 | O59: =SUM(O10:O58) -> 15.75 | P59: =SUM(G59:I59) -> 0.7

Sheet سلك ترمو 2×6مم
F1: بطاقة كارت صنف
A4: اسم الصنف : سلك ترمو 2×6مم | K4: كود الصنف | L4: رقم كارت الصنف | M4: المخزن :
A7: رقم اذن اضافة الوارد | B7: تاريخ اذن اضافة الوارد | C7: وارد مشتريات وتحويل مشروع | D7: ع من الصيانة والمامورية | E7: رقم اذن الصرف | F7: تاريخ اذن الصرف | G7: صرف صيانة | H7: صرف تحويل | I7: صرف د الموقع | J7: فرق الصيانة | K7: الرصيد | L7: سعر توريد الصنف | M7: جهه التوريد | N7: ملاحظات
L9: رصيد اول المدة | O9: ج سعر التوريد | Q9: =$A$4 -> اسم الصنف : سلك ترمو 2×6مم
A10: 699 | B10: 2018-04-03 | C10: 2 | J10: =G10-D10 -> 0 | K10: =K9+C10-I10 -> 2 | L10: 1600 | M10: مش موقع | N10: احمد حامد المحاسب | O10: =C10*L10 -> 3200 | Q10: =$A$4 -> اسم الصنف : سلك ترمو 2×6مم
E11: 757 | F11: 2018-04-04 | I11: 1 | J11: =G11-D11 -> 0 | K11: =K10+C11-I11 -> 1 | M11: خدمة موقع | Q11: اسم الصنف : سلك ترمو 2×6مم
E12: 758 | F12: 2018-07-04 | I12: 1 | J12: 0 | K12: 0 | M12: خدمة موقع | Q12: اسم الصنف : سلك ترمو 2×6مم
A13: 13021 | B13: 2018-09-04 | C13: 2 | J13: 0 | K13: 2 | M13: ادارة المشتريات | O13: =C13*L13 -> 0 | Q13: اسم الصنف : سلك ترمو 2×6مم
A14: 13037 | B14: 2018-11-04 | C14: 3 | J14: =G14-D14 -> 0 | K14: 5 | M14: ادارة المشتريات | O14: =C14*L14 -> 0 | Q14: اسم الصنف : سلك ترمو 2×6مم
E15: 573 | F15: 16/4/2018 | H15: 1 | J15: 0 | K15: 4 | M15: محول الي هايبر الجلالة | O15: =L15*C15 -> 0 | Q15: اسم الصنف : سلك ترمو 2×6مم
E16: 769 | F16: 17/4/2018 | I16: 2 | J16: =G16-D16 -> 0 | K16: 2 | M16: خدمة موقع | O16: =C16*L16 -> 0 | Q16: اسم الصنف : سلك ترمو 2×6مم
E17: 771 | F17: 18/4/2018 | I17: 1 | J17: 0 | K17: 1 | M17: خدمة موقع | O17: 0 | Q17: اسم الصنف : سلك ترمو 2×6مم
E18: 596ر | F18: 24/4/2018 | I18: -1 | K18: 2 | M18: ارتجاع داخلي | Q18: اسم الصنف : سلك ترمو 2×6مم
E19: 781 | F19: 29/4/2018 | I19: 1 | J19: 0 | K19: 1 | M19: سكن عمال وكرفانات | O19: 0 | Q19: اسم الصنف : سلك ترمو 2×6مم
E20: 783 | F20: 30/4/2018 | I20: 1 | J20: =G20-D20 -> 0 | K20: 0 | M20: خدمة موقع | O20: =C20*L20 -> 0 | Q20: اسم الصنف : سلك ترمو 2×6مم
A21: 13102 | B21: 2018-06-05 | C21: 2 | J21: 0 | K21: 2 | M21: ادارة المشتريات | Q21: اسم الصنف : سلك ترمو 2×6مم
E22: 13755 | F22: 23/5/2019 | I22: 2 | J22: 0 | K22: 0 | M22: خدمة موقع | O22: 0 | Q22: اسم الصنف : سلك ترمو 2×6مم
A23: 8229 | B23: 2018-05-07 | C23: 1 | J23: 0 | K23: =K22+C23-G23-H23-I23+J23 -> 1 | M23: ادارة المشتريات | O23: 0 | Q23: اسم الصنف : سلك ترمو 2×6مم
E24: 13798 | F24: 14/7/2018 | I24: 1 | J24: 0 | K24: 0 | M24: خدمة موقع | O24: 0 | Q24: اسم الصنف : سلك ترمو 2×6مم
A25: 8002 | B25: 2018-08-08 | C25: 3 | J25: =G25-D25 -> 0 | K25: 3 | M25: ادارة المشتريات | O25: =C25*L25 -> 0 | Q25: اسم الصنف : سلك ترمو 2×6مم
E26: 2822ر | F26: 2018-08-08 | H26: 1 | J26: 0 | K26: 2 | M26: محول الي كلية طب اسنان | O26: 0 | Q26: اسم الصنف : سلك ترمو 2×6مم
E27: 2824ر | F27: 2018-12-08 | H27: 1 | J27: 0 | K27: 1 | M27: محول الي طب اسنان | Q27: اسم الصنف : سلك ترمو 2×6مم
E28: 13841 | F28: 2018-11-09 | I28: 1 | J28: 0 | K28: =K27+C28-I28-H28+J28 -> 0 | M28: خدمة موقع | O28: =L28*C28 -> 0 | Q28: اسم الصنف : سلك ترمو 2×6مم
A29: 1240 | B29: 2018-09-10 | C29: 5 | J29: 0 | K29: =K28+C29-G29-H29-I29+J29 -> 5 | M29: ادارة المشتريات | O29: =C29*L29 -> 0 | Q29: اسم الصنف : سلك ترمو 2×6مم
E30: 19869 | F30: 2018-09-10 | I30: 1 | J30: 0 | K30: 4 | M30: مبني ادارة الجامعة | Q30: اسم الصنف : سلك ترمو 2×6مم
E31: 14601 | F31: 28/10/2018 | I31: 1 | J31: 0 | K31: 3 | M31: خدمة موقع | Q31: اسم الصنف : سلك ترمو 2×6مم
E32: 2644 | F32: 31/10/2018 | H32: 1 | J32: 0 | K32: 2 | M32: محول الي فندق الجلاله | O32: =C32*L32 -> 0 | Q32: اسم الصنف : سلك ترمو 2×6مم
E33: 14605 | F33: 31/10/2018 | I33: 1 | J33: 0 | K33: 1 | M33: خدمة موقع | Q33: اسم الصنف : سلك ترمو 2×6مم
E34: 14612 | F34: 2018-05-11 | I34: 1 | J34: 0 | K34: 0 | M34: خدمة موقع | O34: =C34*L34 -> 0 | Q34: اسم الصنف : سلك ترمو 2×6مم
A35: 12238 | B35: 24/11/2018 | C35: 6 | J35: =G35-D35 -> 0 | K35: =K34+C35-I35 -> 6 | M35: ادارة المشتريات | O35: =C35*L35 -> 0 | Q35: اسم الصنف : سلك ترمو 2×6مم
E36: 11853 | F36: 2018-01-12 | I36: 1 | J36: =G36-D36 -> 0 | K36: =K35+C36-I36 -> 5 | Q36: اسم الصنف : سلك ترمو 2×6مم
E37: 11809 | F37: 2019-10-01 | I37: 1 | J37: 0 | K37: 4 | O37: 0 | Q37: اسم الصنف : سلك ترمو 2×6مم
E38: 11816 | F38: 2019-12-01 | I38: 1 | J38: 0 | K38: 3 | O38: 0 | Q38: اسم الصنف : سلك ترمو 2×6مم
E39: 11838 | F39: 15/1/2019 | I39: 1 | J39: 0 | K39: =K38+C39-I39 -> 2 | Q39: اسم الصنف : سلك ترمو 2×6مم
E40: 118 | F40: 2019-03-02 | I40: 1 | J40: 0 | K40: =K39+C40-G40-H40-I40+J40 -> 1 | Q40: اسم الصنف : سلك ترمو 2×6مم
A41: 20227 | B41: 2019-12-02 | C41: 5 | J41: 0 | K41: 6 | M41: ادارة المشتريات | Q41: اسم الصنف : سلك ترمو 2×6مم
J42: 0 | K42: 6 | O42: 0 | Q42: اسم الصنف : سلك ترمو 2×6مم
J43: 0 | K43: 6 | O43: 0 | Q43: اسم الصنف : سلك ترمو 2×6مم
J44: 0 | K44: 6 | O44: 0 | Q44: اسم الصنف : سلك ترمو 2×6مم
J45: 0 | K45: 6 | O45: 0 | Q45: اسم الصنف : سلك ترمو 2×6مم
J46: 0 | K46: 6 | O46: 0 | Q46: اسم الصنف : سلك ترمو 2×6مم
J47: 0 | K47: 6 | O47: 0 | Q47: اسم الصنف : سلك ترمو 2×6مم
J48: 0 | K48: 6 | O48: 0 | Q48: اسم الصنف : سلك ترمو 2×6مم
J49: 0 | K49: =K48+C49-G49-H49-I49+J49 -> 6 | O49: 0 | Q49: اسم الصنف : سلك ترمو 2×6مم
J50: 0 | K50: 6 | O50: 0 | Q50: اسم الصنف : سلك ترمو 2×6مم
J51: 0 | K51: 6 | O51: 0 | Q51: اسم الصنف : سلك ترمو 2×6مم
J52: 0 | K52: 6 | O52: 0 | Q52: اسم الصنف : سلك ترمو 2×6مم
F53: . | J53: 0 | K53: 6 | O53: 0 | Q53: اسم الصنف : سلك ترمو 2×6مم
J54: 0 | K54: 6 | O54: 0 | Q54: اسم الصنف : سلك ترمو 2×6مم
J55: 0 | K55: 6 | O55: 0 | Q55: اسم الصنف : سلك ترمو 2×6مم
J56: 0 | K56: 6 | O56: 0
J57: 0 | K57: 6 | O57: 0
J58: 0 | K58: 6 | O58: 0
J59: 0 | K59: 6 | O59: 0
J60: 0 | K60: 6 | O60: 0
A61: الرصيد | J61: =G61-D61 -> 0 | K61: 6 | O61: 0
C62: =SUM(C10:C60) -> 29 | D62: =SUM(D10:D60) -> 0 | H62: =SUM(H10:H60) -> 4 | I62: =SUM(I10:I60) -> 19 | J62: =G62-D62 -> 0 | K62: =K61 -> 6 | O62: =SUM(O10:O61) -> 3200 | P62: =SUM(G62:I62) -> 23

Sheet سلك ترمو 4×6مم
F1: بطاقة كارت صنف
A4: اسم الصنف : سلك ترمو 4×6مم | K4: كود الصنف | L4: رقم كارت الصنف | M4: المخزن :
A7: رقم اذن اضافة الوارد | B7: تاريخ اذن اضافة الوارد | C7: وارد مشتريات وتحويل مشروع | D7: ع من الصيانة والمامورية | E7: رقم اذن الصرف | F7: تاريخ اذن الصرف | G7: صرف صيانة | H7: صرف تحويل | I7: صرف د الموقع | J7: فرق الصيانة | K7: الرصيد | L7: سعر توريد الصنف | M7: جهه التوريد | N7: ملاحظات
L9: رصيد اول المدة | O9: ج سعر التوريد | Q9: =$A$4 -> اسم الصنف : سلك ترمو 4×6مم
A10: 13003 | B10: 2018-04-04 | C10: 1 | J10: =G10-D10 -> 0 | K10: =K9+C10-G10-H10-I10+J10 -> 1 | L10: 3950 | M10: مش موقع | N10: احمد حامد المحاسب | O10: =C10*L10 -> 3950 | Q10: =$A$4 -> اسم الصنف : سلك ترمو 4×6مم
A11: 13037 | B11: 2018-11-04 | C11: 1 | J11: 0 | K11: 2 | M11: ادارة المشتريات | N11: السويدي | O11: =C11*L11 -> 0 | Q11: اسم الصنف : سلك ترمو 4×6مم
E12: 766 | F12: 15/4/2018 | I12: 1 | J12: 0 | K12: 1 | M12: خدمة موقع | O12: 0 | Q12: اسم الصنف : سلك ترمو 4×6مم
E13: 767 | F13: 16/4/2018 | I13: 1 | J13: 0 | K13: 0 | M13: خدمة موقع عام | O13: =C13*L13 -> 0 | Q13: اسم الصنف : سلك ترمو 4×6مم
A14: 13183 | B14: 2018-01-05 | C14: 2 | J14: =G14-D14 -> 0 | K14: 2 | M14: ادارة المشتريات | Q14: اسم الصنف : سلك ترمو 4×6مم
E15: 3008ر | F15: 2018-02-05 | H15: 1 | J15: =G15-D15 -> 0 | K15: 1 | M15: محول الي النادي | O15: =L15*C15 -> 0 | Q15: اسم الصنف : سلك ترمو 4×6مم
E16: 797 | F16: 14/4/2018 | I16: 1 | J16: 0 | K16: 0 | M16: خدمة موقع | O16: =C16*L16 -> 0 | Q16: اسم الصنف : سلك ترمو 4×6مم
A17: 8002 | B17: 2018-08-08 | C17: 3 | J17: 0 | K17: 3 | M17: ادارة المشتريات | O17: 0 | Q17: اسم الصنف : سلك ترمو 4×6مم
E18: 2822ر | F18: 2018-08-08 | H18: 1 | J18: 0 | K18: 2 | M18: محول الي كلية طب اسنان | O18: 0 | Q18: اسم الصنف : سلك ترمو 4×6مم
E19: 13835 | F19: 2018-05-09 | I19: 1 | J19: 0 | K19: 1 | M19: خدمة موقع | Q19: اسم الصنف : سلك ترمو 4×6مم
E20: 13841 | F20: 2018-11-09 | I20: 1 | J20: 0 | K20: =K19+C20-I20-H20+J20 -> 0 | M20: خدمة موقع | O20: =L20*C20 -> 0 | Q20: اسم الصنف : سلك ترمو 4×6مم
A21: 12238 | B21: 24/11/2018 | C21: 1 | J21: =G21-D21 -> 0 | K21: =K20+C21-I21 -> 1 | M21: ادارة المشتريات | O21: =C21*L21 -> 0 | Q21: اسم الصنف : سلك ترمو 4×6مم
E22: 11667 | F22: 17/12/2018 | I22: 1 | J22: =G22-D22 -> 0 | K22: =K21+C22-I22 -> 0 | Q22: اسم الصنف : سلك ترمو 4×6مم
A23: 20227 | B23: 2019-12-02 | C23: 5 | J23: 0 | K23: =K22+C23-G23-H23-I23+J23 -> 5 | M23: ادارة المشتريات | Q23: اسم الصنف : سلك ترمو 4×6مم
E24: 22808 | F24: 2019-04-03 | I24: 1 | J24: 0 | K24: =K23+C24-I24 -> 4 | Q24: اسم الصنف : سلك ترمو 4×6مم
E25: 8725ر | F25: 2019-09-03 | H25: 1900-01-01 | J25: =G25-D25 -> 0 | K25: 3 | M25: محول الي علوم طبية | O25: 0 | Q25: اسم الصنف : سلك ترمو 4×6مم
J26: 0 | K26: 3 | O26: 0 | Q26: اسم الصنف : سلك ترمو 4×6مم
J27: 0 | K27: 3 | O27: 0 | Q27: اسم الصنف : سلك ترمو 4×6مم
J28: 0 | K28: 3 | O28: 0 | Q28: اسم الصنف : سلك ترمو 4×6مم
J29: 0 | K29: 3 | O29: 0 | Q29: اسم الصنف : سلك ترمو 4×6مم
J30: 0 | K30: =K29+C30-G30-H30-I30+J30 -> 3 | O30: 0 | Q30: اسم الصنف : سلك ترمو 4×6مم
J31: 0 | K31: 3 | O31: 0 | Q31: اسم الصنف : سلك ترمو 4×6مم
J32: 0 | K32: 3 | O32: 0 | Q32: اسم الصنف : سلك ترمو 4×6مم
J33: 0 | K33: 3 | O33: 0 | Q33: اسم الصنف : سلك ترمو 4×6مم
J34: 0 | K34: 3 | O34: 0 | Q34: اسم الصنف : سلك ترمو 4×6مم
J35: 0 | K35: 3 | O35: 0 | Q35: اسم الصنف : سلك ترمو 4×6مم
J36: 0 | K36: 3 | O36: 0 | Q36: اسم الصنف : سلك ترمو 4×6مم
J37: 0 | K37: 3 | O37: 0 | Q37: اسم الصنف : سلك ترمو 4×6مم
J38: 0 | K38: 3 | O38: 0 | Q38: اسم الصنف : سلك ترمو 4×6مم
J39: 0 | K39: 3 | O39: 0 | Q39: اسم الصنف : سلك ترمو 4×6مم
J40: 0 | K40: 3 | O40: 0 | Q40: اسم الصنف : سلك ترمو 4×6مم
J41: 0 | K41: 3 | O41: 0 | Q41: اسم الصنف : سلك ترمو 4×6مم
J42: 0 | K42: 3 | O42: 0 | Q42: اسم الصنف : سلك ترمو 4×6مم
J43: 0 | K43: 3 | O43: 0 | Q43: اسم الصنف : سلك ترمو 4×6مم
J44: 0 | K44: 3 | O44: 0 | Q44: اسم الصنف : سلك ترمو 4×6مم
J45: 0 | K45: 3 | O45: 0 | Q45: اسم الصنف : سلك ترمو 4×6مم
J46: 0 | K46: 3 | O46: 0 | Q46: اسم الصنف : سلك ترمو 4×6مم
J47: 0 | K47: 3 | O47: 0 | Q47: اسم الصنف : سلك ترمو 4×6مم
J48: 0 | K48: 3 | O48: 0 | Q48: اسم الصنف : سلك ترمو 4×6مم
J49: 0 | K49: 3 | O49: 0 | Q49: اسم الصنف : سلك ترمو 4×6مم
J50: 0 | K50: 3 | O50: 0 | Q50: اسم الصنف : سلك ترمو 4×6مم
J51: 0 | K51: 3 | O51: 0 | Q51: اسم الصنف : سلك ترمو 4×6مم
F52: . | J52: 0 | K52: 3 | O52: 0 | Q52: اسم الصنف : سلك ترمو 4×6مم
J53: 0 | K53: 3 | O53: 0 | Q53: اسم الصنف : سلك ترمو 4×6مم
J54: 0 | K54: 3 | O54: 0 | Q54: اسم الصنف : سلك ترمو 4×6مم
J55: 0 | K55: 3 | O55: 0 | Q55: اسم الصنف : سلك ترمو 4×6مم
J56: 0 | K56: 3 | O56: 0
J57: 0 | K57: 3 | O57: 0
J58: 0 | K58: 3 | O58: 0
J59: 0 | K59: 3 | O59: 0
A60: الرصيد | J60: =G60-D60 -> 0 | K60: 3 | O60: 0
C61: =SUM(C10:C59) -> 13 | D61: =SUM(D10:D59) -> 0 | H61: =SUM(H10:H59) -> 3 | I61: =SUM(I10:I59) -> 7 | J61: =G61-D61 -> 0 | K61: =K60 -> 3 | O61: =SUM(O10:O60) -> 3950 | P61: =SUM(G61:I61) -> 10

Sheet كشاف 200 وات ليد
F1: بطاقة كارت صنف
A4: اسم الصنف : كشاف 200 وات ليد | K4: كود الصنف | L4: رقم كارت الصنف | M4: المخزن :
A7: رقم اذن اضافة الوارد | B7: تاريخ اذن اضافة الوارد | C7: وارد مشتريات وتحويل مشروع | D7: ع من الصيانة والمامورية | E7: رقم اذن الصرف | F7: تاريخ اذن الصرف | G7: صرف صيانة | H7: صرف تحويل | I7: صرف د الموقع | J7: فرق الصيانة | K7: الرصيد | L7: سعر توريد الصنف | M7: جهه التوريد | N7: ملاحظات
L9: رصيد اول المدة | O9: ج سعر التوريد | Q9: =$A$4 -> اسم الصنف : كشاف 200 وات ليد
A10: 652 | B10: 2018-01-31 | C10: 10 | J10: =G10-D10 -> 0 | K10: =K9+C10-I10 -> 10 | L10: 700 | M10: انريجيا | N10: جلال | O10: =C10*L10 -> 7000 | Q10: =$A$4 -> اسم الصنف : كشاف 200 وات ليد
E11: 560ر | F11: 2018-03-03 | H11: 8 | J11: =G11-D11 -> 0 | K11: 2 | M11: محول الي هايبر الجلالة | N11: 904 ض | O11: =L11*C11 -> 0 | Q11: اسم الصنف : كشاف 200 وات ليد
A12: 671 | B12: 2018-03-31 | C12: 4 | E12: 1153 ر | J12: =G12-D12 -> 0 | K12: =K11+C12-I12 -> 6 | M12: مح من نادي الجلالة | O12: =C12*L12 -> 0 | Q12: اسم الصنف : كشاف 200 وات ليد
E13: 756 | F13: 2018-04-03 | I13: 4 | J13: 0 | K13: 2 | M13: خدمة موقع | O13: 0 | Q13: اسم الصنف : كشاف 200 وات ليد
E14: 760 | F14: 2018-08-04 | I14: 2 | K14: 0 | M14: خدمة موقع | Q14: اسم الصنف : كشاف 200 وات ليد
A15: 13037 | B15: 2018-11-04 | C15: 20 | J15: 0 | K15: 20 | M15: ادارة المشتريات | O15: 0 | Q15: اسم الصنف : كشاف 200 وات ليد
E16: 766 | F16: 15/2/2018 | I16: 4 | J16: =G16-D16 -> 0 | K16: 16 | M16: موقع عام | O16: 0 | Q16: اسم الصنف : كشاف 200 وات ليد
E17: 769 | F17: 17/4/2018 | I17: 9 | J17: =G17-D17 -> 0 | K17: =K16+C17-G17-H17-I17+J17 -> 7 | M17: موقع عام | O17: 0 | Q17: اسم الصنف : كشاف 200 وات ليد
E18: 771 | F18: 18/4/2018 | I18: 5 | J18: 0 | K18: 2 | M18: خدمة موقع | O18: 0 | Q18: اسم الصنف : كشاف 200 وات ليد
E19: 790 | F19: 2018-08-05 | I19: 2 | J19: 0 | K19: 0 | M19: خدمة موقع | O19: 0 | Q19: اسم الصنف : كشاف 200 وات ليد
A20: 13142 | B20: 16/5/2018 | C20: 15 | J20: 0 | K20: 15 | M20: ادارة المشتريات | O20: 0 | Q20: اسم الصنف : كشاف 200 وات ليد
E21: 13751 | F21: 17/5/2018 | I21: 15 | J21: 0 | K21: 0 | M21: كرفان الجيش | O21: 0 | Q21: اسم الصنف : كشاف 200 وات ليد
A22: 13204 | B22: 22/5/2018 | C22: 17 | J22: 0 | K22: 17 | M22: محول من نادي الجلالة | O22: 0 | Q22: اسم الصنف : كشاف 200 وات ليد
E23: 13754 | F23: 23/5/2018 | I23: 16 | J23: 0 | K23: 1 | M23: خدمة موقع | O23: 0 | Q23: اسم الصنف : كشاف 200 وات ليد
A24: 13206 | B24: 24/5/2018 | C24: 15 | J24: 0 | K24: 16 | M24: ادارة المشتريات | Q24: اسم الصنف : كشاف 200 وات ليد
E25: 13756 | F25: 24/5/2018 | I25: 4 | J25: 0 | K25: 12 | M25: خدمة موقع | O25: =C25*L25 -> 0 | Q25: اسم الصنف : كشاف 200 وات ليد
E26: 13757 | F26: 27/5/2018 | I26: 1 | J26: 0 | K26: 11 | M26: خدمة موقع | O26: 0 | Q26: اسم الصنف : كشاف 200 وات ليد
E27: 13759 | F27: 28/5/2018 | I27: 2 | J27: 0 | K27: 9 | M27: خدمة موقع | O27: 0 | Q27: اسم الصنف : كشاف 200 وات ليد
E28: 13779 | F28: 26/6/2018 | I28: 4 | J28: 0 | K28: 5 | M28: خدمة موقع | O28: 0 | Q28: اسم الصنف : كشاف 200 وات ليد
E29: 13795 | F29: 2018-11-07 | I29: 4 | J29: 0 | K29: 1 | M29: خدمة موقع | O29: 0 | Q29: اسم الصنف : كشاف 200 وات ليد
E30: 1388ر | F30: 15/7/2018 | I30: -2 | J30: 0 | K30: 3 | M30: ارتجاع داخلي | O30: =L30*C30 -> 0 | P30: =C30*0.07*0.09*3 -> 0 | Q30: اسم الصنف : كشاف 200 وات ليد
E31: 1389ر | F31: 15/7/2018 | H31: 2 | J31: 0 | K31: 1 | M31: محول الي المستشفي | O31: 0 | P31: =C31*0.07*0.09*1.5 -> 0 | Q31: اسم الصنف : كشاف 200 وات ليد
E32: 1392ر | F32: 21/7/2018 | I32: -4 | J32: 0 | K32: 5 | M32: ارتجاع داخلي | O32: 0 | Q32: اسم الصنف : كشاف 200 وات ليد
E33: 1393 | F33: 21/7/2018 | H33: 4 | J33: 0 | K33: 1 | M33: محول الي كلية طب اسنان | O33: 0 | Q33: اسم الصنف : كشاف 200 وات ليد
E34: 2811ر | F34: 2018-01-08 | I34: -6 | J34: 0 | K34: 7 | M34: ارتجاع داخلي | Q34: اسم الصنف : كشاف 200 وات ليد
E35: ر2810 | F35: 2018-01-08 | H35: 6 | J35: 0 | K35: 1 | M35: محول الي كلية طب اسنان | O35: 0 | Q35: اسم الصنف : كشاف 200 وات ليد
A36: 8019 | B36: 14/8/2018 | C36: 50 | J36: 0 | K36: 51 | M36: ادارة المشتريات | O36: 0 | Q36: اسم الصنف : كشاف 200 وات ليد
E37: 13828 | F37: 16/8/2018 | I37: 4 | J37: 0 | K37: 47 | M37: لزوم مبني ادارة الجامعة | Q37: اسم الصنف : كشاف 200 وات ليد
E38: 2843ر | F38: 2018-04-09 | H38: 10 | J38: 0 | K38: 37 | M38: محول الي كلية طب اسنان | Q38: اسم الصنف : كشاف 200 وات ليد
E39: 13836 | F39: 2018-05-09 | I39: 5 | K39: 32 | M39: لزوم مبني ادارة الجامعة | Q39: اسم الصنف : كشاف 200 وات ليد
E40: 13837 | F40: 2018-09-09 | I40: 10 | J40: =G40-D40 -> 0 | K40: 22 | M40: خدمة موقع | Q40: اسم الصنف : كشاف 200 وات ليد
E41: 2846 | F41: 2018-09-09 | H41: 6 | J41: 0 | K41: 16 | M41: محول الي كلية طب اسنان | O41: =C41*L41 -> 0 | Q41: اسم الصنف : كشاف 200 وات ليد
E42: 2847ر | F42: 2018-11-09 | H42: 4 | J42: 0 | K42: 12 | M42: محول الي الفندق | O42: 0 | Q42: اسم الصنف : كشاف 200 وات ليد
E43: 2849ر | F43: 2018-11-09 | H43: 8 | J43: 0 | K43: 4 | M43: محول الي كلية طب اسنان | O43: 0 | Q43: اسم الصنف : كشاف 200 وات ليد
E44: 19857 | F44: 2018-01-10 | I44: 4 | J44: 0 | K44: 0 | M44: خدمة موقع | O44: 0 | Q44: اسم الصنف : كشاف 200 وات ليد
A45: 11503 | B45: 2018-10-10 | C45: 15 | J45: 0 | K45: 15 | M45: ادارة المشتريات | O45: 0 | Q45: اسم الصنف : كشاف 200 وات ليد
E46: 14614 | F46: 2018-06-11 | I46: 5 | J46: 0 | K46: 10 | M46: موقع | O46: 0 | Q46: اسم الصنف : كشاف 200 وات ليد
E47: 14620 | F47: 2018-08-11 | I47: 5 | J47: 0 | K47: =K46+C47-I47 -> 5 | M47: خدمة موقع | N47: عدد 300 | O47: 0 | Q47: اسم الصنف : كشاف 200 وات ليد
E48: 14640 | F48: 14/11/2018 | I48: 5 | J48: 0 | K48: 0 | M48: خدمة موقع | Q48: اسم الصنف : كشاف 200 وات ليد
A49: 12238 | B49: 24/11/2018 | C49: 120 | J49: =G49-D49 -> 0 | K49: =K48+C49-I49 -> 120 | M49: ادارة المشتريات | O49: =C49*L49 -> 0 | Q49: اسم الصنف : كشاف 200 وات ليد
E50: 3322 | F50: 25/11/2018 | I50: 10 | J50: =G50-D50 -> 0 | K50: 110 | M50: خدمة موقع | O50: 0 | Q50: اسم الصنف : كشاف 200 وات ليد
A51: 14312 | B51: 27/11/2018 | C51: 49 | F51: . | J51: 0 | K51: 159 | M51: محول من المقر | O51: 0 | Q51: اسم الصنف : كشاف 200 وات ليد
E52: 3330 | F52: 26/11/2018 | I52: 5 | J52: 0 | K52: =K51+C52-I52 -> 154 | M52: خدمة موقع | Q52: اسم الصنف : كشاف 200 وات ليد
E53: 3333 | F53: 27/11/2018 | I53: 10 | J53: 0 | K53: 144 | M53: خدمة موقع | Q53: اسم الصنف : كشاف 200 وات ليد
E54: 3339 | F54: 28/11/2018 | I54: 10 | J54: 0 | K54: 134 | M54: خدمة موقع | Q54: اسم الصنف : كشاف 200 وات ليد
E55: 3348 | F55: 29/11/2018 | I55: 20 | J55: 0 | K55: 114 | M55: خدمة موقع | Q55: اسم الصنف : كشاف 200 وات ليد
E56: 3349 | F56: 29/11/2018 | I56: 10 | J56: 0 | K56: 104 | M56: خدمة موقع
A57: 14337 | B57: 29/11/2018 | C57: 30 | J57: 0 | K57: 134 | M57: ادارة المشتريات
E58: 11861 | F58: 2018-04-12 | I58: 20 | J58: 0 | K58: 114 | M58: خدمة موقع | O58: =C58*L58 -> 0
E59: 11876 | F59: 2018-09-12 | I59: 5 | J59: 0 | K59: 109 | M59: خدمة موقع
E60: 11885 | F60: 2018-11-12 | I60: 3 | J60: 0 | K60: 106 | M60: موقع | O60: =C60*L60 -> 0
E61: 11894 | F61: 2018-12-12 | I61: 20 | J61: 0 | K61: 86
E62: 11690 | F62: 23/12/2018 | I62: 4 | J62: 0 | K62: 82 | O62: =C62*L62 -> 0
E63: 3602 | F63: 26/12/2018 | I63: 10 | J63: 0 | K63: 72 | M63: موقع
E64: 12822 | F64: 2019-05-01 | H64: 20 | J64: 0 | K64: 52 | M64: موحول الى طب اسنان | O64: =C64*L64 -> 0
E65: 3648 | F65: 2019-07-01 | I65: 1 | J65: 0 | K65: =K64+C65-I65 -> 51 | O65: 0
E66: 11803 | F66: 2019-09-01 | I66: 10 | J66: 0 | K66: =K65+C66-G66-H66-I66+J66 -> 41 | O66: 0
E67: 11837 | F67: 15/1/2019 | I67: 10 | J67: =G67-D67 -> 0 | K67: 31 | O67: =C67*L67 -> 0
E68: 14529 | F68: 24/1/2019 | I68: 4 | J68: 0 | K68: 27
E69: 108 | F69: 31/1/2019 | I69: 2 | J69: 0 | K69: 25
E70: 109 | F70: 31/1/2019 | I70: 2 | J70: 0 | K70: 23 | O70: =C70*L70 -> 0
E71: 4323ر | F71: 17/2/2019 | H71: 13 | J71: 0 | K71: 10 | M71: موحول الى طب اسنان | O71: 0
E72: 9216 | F72: 19/2/2019 | I72: 1 | J72: 0 | K72: 9 | O72: 0
E73: 9217 | F73: 20/2/2019 | I73: 4 | J73: 0 | K73: 5
E74: 22810 | F74: 2019-03-06 | I74: 3 | J74: 0 | K74: =K73+C74-G74-H74-I74+J74 -> 2 | O74: 0
J75: 0 | K75: 2 | O75: 0
J76: 0 | K76: 2 | O76: 0
A77: الرصيد | J77: =G77-D77 -> 0 | K77: 2 | O77: 0
C78: =SUM(C10:C76) -> 345 | D78: =SUM(D10:D76) -> 0 | H78: =SUM(H10:H76) -> 81 | I78: =SUM(I10:I76) -> 262 | J78: =G78-D78 -> 0 | K78: =K77 -> 2 | O78: =SUM(O10:O77) -> 7000 | P78: =SUM(G78:I78) -> 343

Sheet كشاف بالمبات 2 120
F1: بطاقة كارت صنف
A4: اسم الصنف : كشاف باللمبات 2*120 | K4: كود الصنف | L4: رقم كارت الصنف | M4: المخزن :
A7: رقم اذن اضافة الوارد | B7: تاريخ اذن اضافة الوارد | C7: وارد مشتريات وتحويل مشروع | D7: ع من الصيانة والمامورية | E7: رقم اذن الصرف | F7: تاريخ اذن الصرف | G7: صرف صيانة | H7: صرف تحويل | I7: صرف د الموقع | J7: فرق الصيانة | K7: الرصيد | L7: سعر توريد الصنف | M7: جهه التوريد | N7: ملاحظات
L9: رصيد اول المدة | O9: ج سعر التوريد | Q9: =$A$4 -> اسم الصنف : كشاف باللمبات 2*120
A10: 652 | B10: 2018-01-31 | C10: 8 | J10: =G10-D10 -> 0 | K10: =K9+C10-I10 -> 8 | L10: 74 | M10: انريجيا | N10: جلال | O10: =C10*L10 -> 592 | Q10: =$A$4 -> اسم الصنف : كشاف باللمبات 2*120
E11: 19854 | F11: 29/9/2018 | I11: 2 | J11: =G11-D11 -> 0 | K11: =K10+C11-I11 -> 6 | M11: لزوم مبني ادارة الجامعة | Q11: اسم الصنف : كشاف باللمبات 2*120
E12: 14518 | F12: 22/1/2018 | I12: 3 | J12: 0 | K12: 3 | O12: =C12*L12 -> 0 | Q12: اسم الصنف : كشاف باللمبات 2*120
E13: 14536 | F13: 27/1/2019 | I13: 1 | J13: 0 | K13: =K12+C13-G13-H13-I13+J13 -> 2 | O13: =L13*C13 -> 0 | Q13: اسم الصنف : كشاف باللمبات 2*120
J14: 0 | K14: 2 | O14: 0 | Q14: اسم الصنف : كشاف باللمبات 2*120
J15: 0 | K15: 2 | O15: 0 | Q15: اسم الصنف : كشاف باللمبات 2*120
J16: 0 | K16: 2 | O16: 0 | Q16: اسم الصنف : كشاف باللمبات 2*120
J17: =G17-D17 -> 0 | K17: 2 | O17: 0 | Q17: اسم الصنف : كشاف باللمبات 2*120
J18: 0 | K18: 2 | O18: 0 | Q18: اسم الصنف : كشاف باللمبات 2*120
J19: 0 | K19: 2 | O19: 0 | Q19: اسم الصنف : كشاف باللمبات 2*120
J20: 0 | K20: 2 | O20: 0 | Q20: اسم الصنف : كشاف باللمبات 2*120
J21: 0 | K21: =K20+C21-I21 -> 2 | O21: 0 | Q21: اسم الصنف : كشاف باللمبات 2*120
J22: 0 | K22: =K21+C22-I22 -> 2 | O22: 0 | Q22: اسم الصنف : كشاف باللمبات 2*120
J23: 0 | K23: 2 | O23: 0 | Q23: اسم الصنف : كشاف باللمبات 2*120
J24: 0 | K24: 2 | O24: 0 | Q24: اسم الصنف : كشاف باللمبات 2*120
J25: 0 | K25: 2 | O25: 0 | Q25: اسم الصنف : كشاف باللمبات 2*120
J26: 0 | K26: 2 | O26: 0 | Q26: اسم الصنف : كشاف باللمبات 2*120
J27: 0 | K27: 2 | O27: 0 | Q27: اسم الصنف : كشاف باللمبات 2*120
J28: 0 | K28: =K27+C28-G28-H28-I28+J28 -> 2 | O28: 0 | Q28: اسم الصنف : كشاف باللمبات 2*120
J29: 0 | K29: 2 | O29: 0 | Q29: اسم الصنف : كشاف باللمبات 2*120
J30: 0 | K30: 2 | O30: 0 | Q30: اسم الصنف : كشاف باللمبات 2*120
J31: 0 | K31: 2 | O31: 0 | Q31: اسم الصنف : كشاف باللمبات 2*120
J32: 0 | K32: 2 | O32: 0 | Q32: اسم الصنف : كشاف باللمبات 2*120
J33: 0 | K33: 2 | O33: 0 | Q33: اسم الصنف : كشاف باللمبات 2*120
J34: 0 | K34: 2 | O34: 0 | Q34: اسم الصنف : كشاف باللمبات 2*120
J35: 0 | K35: 2 | O35: 0 | Q35: اسم الصنف : كشاف باللمبات 2*120
J36: 0 | K36: 2 | O36: 0 | Q36: اسم الصنف : كشاف باللمبات 2*120
J37: 0 | K37: 2 | O37: 0 | Q37: اسم الصنف : كشاف باللمبات 2*120
J38: 0 | K38: 2 | O38: 0 | Q38: اسم الصنف : كشاف باللمبات 2*120
J39: 0 | K39: 2 | O39: 0 | Q39: اسم الصنف : كشاف باللمبات 2*120
J40: 0 | K40: 2 | O40: 0 | Q40: اسم الصنف : كشاف باللمبات 2*120
J41: 0 | K41: 2 | O41: 0 | Q41: اسم الصنف : كشاف باللمبات 2*120
J42: 0 | K42: 2 | O42: 0 | Q42: اسم الصنف : كشاف باللمبات 2*120
J43: 0 | K43: 2 | O43: 0 | Q43: اسم الصنف : كشاف باللمبات 2*120
J44: 0 | K44: 2 | O44: 0 | Q44: اسم الصنف : كشاف باللمبات 2*120
J45: 0 | K45: 2 | O45: 0 | Q45: اسم الصنف : كشاف باللمبات 2*120
J46: 0 | K46: 2 | O46: 0 | Q46: اسم الصنف : كشاف باللمبات 2*120
J47: 0 | K47: 2 | O47: 0 | Q47: اسم الصنف : كشاف باللمبات 2*120
J48: 0 | K48: 2 | O48: 0 | Q48: اسم الصنف : كشاف باللمبات 2*120
F49: . | J49: 0 | K49: 2 | O49: 0 | Q49: اسم الصنف : كشاف باللمبات 2*120
J50: 0 | K50: 2 | O50: 0 | Q50: اسم الصنف : كشاف باللمبات 2*120
J51: 0 | K51: 2 | O51: 0 | Q51: اسم الصنف : كشاف باللمبات 2*120
J52: 0 | K52: 2 | O52: 0 | Q52: اسم الصنف : كشاف باللمبات 2*120
J53: 0 | K53: 2 | O53: 0 | Q53: اسم الصنف : كشاف باللمبات 2*120
J54: 0 | K54: 2 | O54: 0 | Q54: اسم الصنف : كشاف باللمبات 2*120
J55: 0 | K55: 2 | O55: 0 | Q55: اسم الصنف : كشاف باللمبات 2*120
J56: 0 | K56: 2 | O56: 0
A57: الرصيد | J57: =G57-D57 -> 0 | K57: 2 | O57: 0
C58: =SUM(C10:C56) -> 8 | D58: =SUM(D10:D56) -> 0 | H58: =SUM(H10:H56) -> 0 | I58: =SUM(I10:I56) -> 6 | J58: =G58-D58 -> 0 | K58: =K57 -> 2 | O58: =SUM(O10:O57) -> 592 | P58: =SUM(G58:I58) -> 6

Sheet كشاف اليكترو ستات60-60
F1: بطاقة كارت صنف
A4: اسم الصنف : كشاف 60سم*60سم اليكتروستات | K4: كود الصنف | L4: رقم كارت الصنف | M4: المخزن :
A7: رقم اذن اضافة الوارد | B7: تاريخ اذن اضافة الوارد | C7: وارد مشتريات وتحويل مشروع | D7: ع من الصيانة والمامورية | E7: رقم اذن الصرف | F7: تاريخ اذن الصرف | G7: صرف صيانة | H7: صرف تحويل | I7: صرف د الموقع | J7: فرق الصيانة | K7: الرصيد | L7: سعر توريد الصنف | M7: جهه التوريد | N7: ملاحظات
L9: رصيد اول المدة | O9: ج سعر التوريد | Q9: =$A$4 -> اسم الصنف : كشاف 60سم*60سم اليكتروستات
A10: 20974 | B10: 20/2/2019 | C10: 3 | J10: =G10-D10 -> 0 | K10: =K9+C10-I10 -> 3 | L10: 74 | M10: مقر الشركة | N10: جلال | O10: =C10*L10 -> 222 | Q10: =$A$4 -> اسم الصنف : كشاف 60سم*60سم اليكتروستات
E11: 9223 | F11: 23/2/2019 | I11: 3 | J11: =G11-D11 -> 0 | K11: =K10+C11-H11-I11 -> 0 | Q11: اسم الصنف : كشاف 60سم*60سم اليكتروستات
J12: =G12-D12 -> 0 | K12: =K11+C12-I12 -> 0 | O12: =C12*L12 -> 0 | Q12: اسم الصنف : كشاف 60سم*60سم اليكتروستات
J13: 0 | K13: =K12+C13-G13-H13-I13+J13 -> 0 | O13: =L13*C13 -> 0 | Q13: اسم الصنف : كشاف 60سم*60سم اليكتروستات
J14: 0 | K14: 0 | O14: 0 | Q14: اسم الصنف : كشاف 60سم*60سم اليكتروستات
J15: 0 | K15: 0 | O15: 0 | Q15: اسم الصنف : كشاف 60سم*60سم اليكتروستات
J16: 0 | K16: 0 | O16: 0 | Q16: اسم الصنف : كشاف 60سم*60سم اليكتروستات
J17: 0 | K17: 0 | O17: 0 | Q17: اسم الصنف : كشاف 60سم*60سم اليكتروستات
J18: 0 | K18: 0 | O18: 0 | Q18: اسم الصنف : كشاف 60سم*60سم اليكتروستات
J19: 0 | K19: 0 | O19: 0 | Q19: اسم الصنف : كشاف 60سم*60سم اليكتروستات
J20: 0 | K20: 0 | O20: 0 | Q20: اسم الصنف : كشاف 60سم*60سم اليكتروستات
J21: 0 | K21: 0 | O21: 0 | Q21: اسم الصنف : كشاف 60سم*60سم اليكتروستات
J22: 0 | K22: 0 | O22: 0 | Q22: اسم الصنف : كشاف 60سم*60سم اليكتروستات
J23: 0 | K23: 0 | O23: 0 | Q23: اسم الصنف : كشاف 60سم*60سم اليكتروستات
J24: 0 | K24: 0 | O24: 0 | Q24: اسم الصنف : كشاف 60سم*60سم اليكتروستات
J25: 0 | K25: 0 | O25: 0 | Q25: اسم الصنف : كشاف 60سم*60سم اليكتروستات
J26: 0 | K26: 0 | O26: 0 | Q26: اسم الصنف : كشاف 60سم*60سم اليكتروستات
J27: 0 | K27: 0 | O27: 0 | Q27: اسم الصنف : كشاف 60سم*60سم اليكتروستات
J28: 0 | K28: =K27+C28-G28-H28-I28+J28 -> 0 | O28: 0 | Q28: اسم الصنف : كشاف 60سم*60سم اليكتروستات
J29: 0 | K29: 0 | O29: 0 | Q29: اسم الصنف : كشاف 60سم*60سم اليكتروستات
J30: 0 | K30: 0 | O30: 0 | Q30: اسم الصنف : كشاف 60سم*60سم اليكتروستات
J31: 0 | K31: 0 | O31: 0 | Q31: اسم الصنف : كشاف 60سم*60سم اليكتروستات
J32: 0 | K32: 0 | O32: 0 | Q32: اسم الصنف : كشاف 60سم*60سم اليكتروستات
J33: 0 | K33: 0 | O33: 0 | Q33: اسم الصنف : كشاف 60سم*60سم اليكتروستات
J34: 0 | K34: 0 | O34: 0 | Q34: اسم الصنف : كشاف 60سم*60سم اليكتروستات
J35: 0 | K35: 0 | O35: 0 | Q35: اسم الصنف : كشاف 60سم*60سم اليكتروستات
J36: 0 | K36: 0 | O36: 0 | Q36: اسم الصنف : كشاف 60سم*60سم اليكتروستات
J37: 0 | K37: 0 | O37: 0 | Q37: اسم الصنف : كشاف 60سم*60سم اليكتروستات
J38: 0 | K38: 0 | O38: 0 | Q38: اسم الصنف : كشاف 60سم*60سم اليكتروستات
J39: 0 | K39: 0 | O39: 0 | Q39: اسم الصنف : كشاف 60سم*60سم اليكتروستات
J40: 0 | K40: 0 | O40: 0 | Q40: اسم الصنف : كشاف 60سم*60سم اليكتروستات
J41: 0 | K41: 0 | O41: 0 | Q41: اسم الصنف : كشاف 60سم*60سم اليكتروستات
J42: 0 | K42: 0 | O42: 0 | Q42: اسم الصنف : كشاف 60سم*60سم اليكتروستات
J43: 0 | K43: 0 | O43: 0 | Q43: اسم الصنف : كشاف 60سم*60سم اليكتروستات
J44: 0 | K44: 0 | O44: 0 | Q44: اسم الصنف : كشاف 60سم*60سم اليكتروستات
J45: 0 | K45: 0 | O45: 0 | Q45: اسم الصنف : كشاف 60سم*60سم اليكتروستات
J46: 0 | K46: 0 | O46: 0 | Q46: اسم الصنف : كشاف 60سم*60سم اليكتروستات
J47: 0 | K47: 0 | O47: 0 | Q47: اسم الصنف : كشاف 60سم*60سم اليكتروستات
J48: 0 | K48: 0 | O48: 0 | Q48: اسم الصنف : كشاف 60سم*60سم اليكتروستات
F49: . | J49: 0 | K49: 0 | O49: 0 | Q49: اسم الصنف : كشاف 60سم*60سم اليكتروستات
J50: 0 | K50: 0 | O50: 0 | Q50: اسم الصنف : كشاف 60سم*60سم اليكتروستات
J51: 0 | K51: 0 | O51: 0 | Q51: اسم الصنف : كشاف 60سم*60سم اليكتروستات
J52: 0 | K52: 0 | O52: 0 | Q52: اسم الصنف : كشاف 60سم*60سم اليكتروستات
J53: 0 | K53: 0 | O53: 0 | Q53: اسم الصنف : كشاف 60سم*60سم اليكتروستات
J54: 0 | K54: 0 | O54: 0 | Q54: اسم الصنف : كشاف 60سم*60سم اليكتروستات
J55: 0 | K55: 0 | O55: 0 | Q55: اسم الصنف : كشاف 60سم*60سم اليكتروستات
J56: 0 | K56: 0 | O56: 0
A57: الرصيد | J57: =G57-D57 -> 0 | K57: 0 | O57: 0
C58: =SUM(C10:C56) -> 3 | D58: =SUM(D10:D56) -> 0 | H58: =SUM(H10:H56) -> 0 | I58: =SUM(I10:I56) -> 3 | J58: =G58-D58 -> 0 | K58: =K57 -> 0 | O58: =SUM(O10:O57) -> 222 | P58: =SUM(G58:I58) -> 3

Sheet لمبة فرست 120
F1: بطاقة كارت صنف
A4: اسم الصنف : لمبة فرست 120 | K4: كود الصنف | L4: رقم كارت الصنف | M4: المخزن :
A7: رقم اذن اضافة الوارد | B7: تاريخ اذن اضافة الوارد | C7: وارد مشتريات وتحويل مشروع | D7: ع من الصيانة والمامورية | E7: رقم اذن الصرف | F7: تاريخ اذن الصرف | G7: صرف صيانة | H7: صرف تحويل | I7: صرف د الموقع | J7: فرق الصيانة | K7: الرصيد | L7: سعر توريد الصنف | M7: جهه التوريد | N7: ملاحظات
L9: رصيد اول المدة | O9: ج سعر التوريد | Q9: =$A$4 -> اسم الصنف : لمبة فرست 120
A10: 2059 | B10: 17/1/2019 | C10: 20 | J10: =G10-D10 -> 0 | K10: =K9+C10-I10 -> 20 | O10: =C10*L10 -> 0 | Q10: =$A$4 -> اسم الصنف : لمبة فرست 120
E11: 14518 | F11: 22/1/2018 | I11: 8 | J11: =G11-D11 -> 0 | K11: =K10+C11-I11 -> 12 | Q11: اسم الصنف : لمبة فرست 120
J12: =G12-D12 -> 0 | K12: =K11+C12-I12 -> 12 | O12: =C12*L12 -> 0 | Q12: اسم الصنف : لمبة فرست 120
J13: 0 | K13: 12 | O13: 0 | Q13: اسم الصنف : لمبة فرست 120
J14: 0 | K14: 12 | O14: 0 | Q14: اسم الصنف : لمبة فرست 120
J15: 0 | K15: 12 | O15: 0 | Q15: اسم الصنف : لمبة فرست 120
J16: 0 | K16: 12 | O16: 0 | Q16: اسم الصنف : لمبة فرست 120
J17: 0 | K17: 12 | O17: 0 | Q17: اسم الصنف : لمبة فرست 120
J18: 0 | K18: 12 | O18: 0 | Q18: اسم الصنف : لمبة فرست 120
J19: 0 | K19: 12 | O19: 0 | Q19: اسم الصنف : لمبة فرست 120
J20: 0 | K20: 12 | O20: 0 | Q20: اسم الصنف : لمبة فرست 120
J21: 0 | K21: 12 | O21: 0 | Q21: اسم الصنف : لمبة فرست 120
J22: 0 | K22: =K21+C22-I22 -> 12 | O22: 0 | Q22: اسم الصنف : لمبة فرست 120
J23: 0 | K23: 12 | O23: 0 | Q23: اسم الصنف : لمبة فرست 120
J24: 0 | K24: 12 | O24: 0 | Q24: اسم الصنف : لمبة فرست 120
J25: 0 | K25: 12 | O25: 0 | Q25: اسم الصنف : لمبة فرست 120
J26: 0 | K26: 12 | O26: 0 | Q26: اسم الصنف : لمبة فرست 120
J27: 0 | K27: 12 | O27: 0 | Q27: اسم الصنف : لمبة فرست 120
J28: 0 | K28: =K27+C28-G28-H28-I28+J28 -> 12 | O28: 0 | Q28: اسم الصنف : لمبة فرست 120
J29: 0 | K29: 12 | O29: 0 | Q29: اسم الصنف : لمبة فرست 120
J30: 0 | K30: 12 | O30: 0 | Q30: اسم الصنف : لمبة فرست 120
J31: 0 | K31: 12 | O31: 0 | Q31: اسم الصنف : لمبة فرست 120
J32: 0 | K32: 12 | O32: 0 | Q32: اسم الصنف : لمبة فرست 120
J33: 0 | K33: 12 | O33: 0 | Q33: اسم الصنف : لمبة فرست 120
J34: 0 | K34: 12 | O34: 0 | Q34: اسم الصنف : لمبة فرست 120
J35: 0 | K35: 12 | O35: 0 | Q35: اسم الصنف : لمبة فرست 120
J36: 0 | K36: 12 | O36: 0 | Q36: اسم الصنف : لمبة فرست 120
J37: 0 | K37: 12 | O37: 0 | Q37: اسم الصنف : لمبة فرست 120
J38: 0 | K38: 12 | O38: 0 | Q38: اسم الصنف : لمبة فرست 120
J39: 0 | K39: 12 | O39: 0 | Q39: اسم الصنف : لمبة فرست 120
J40: 0 | K40: 12 | O40: 0 | Q40: اسم الصنف : لمبة فرست 120
J41: 0 | K41: 12 | O41: 0 | Q41: اسم الصنف : لمبة فرست 120
J42: 0 | K42: 12 | O42: 0 | Q42: اسم الصنف : لمبة فرست 120
J43: 0 | K43: 12 | O43: 0 | Q43: اسم الصنف : لمبة فرست 120
J44: 0 | K44: 12 | O44: 0 | Q44: اسم الصنف : لمبة فرست 120
J45: 0 | K45: 12 | O45: 0 | Q45: اسم الصنف : لمبة فرست 120
J46: 0 | K46: 12 | O46: 0 | Q46: اسم الصنف : لمبة فرست 120
J47: 0 | K47: 12 | O47: 0 | Q47: اسم الصنف : لمبة فرست 120
J48: 0 | K48: 12 | O48: 0 | Q48: اسم الصنف : لمبة فرست 120
F49: . | J49: 0 | K49: 12 | O49: 0 | Q49: اسم الصنف : لمبة فرست 120
J50: 0 | K50: 12 | O50: 0 | Q50: اسم الصنف : لمبة فرست 120
J51: 0 | K51: 12 | O51: 0 | Q51: اسم الصنف : لمبة فرست 120
J52: 0 | K52: 12 | O52: 0 | Q52: اسم الصنف : لمبة فرست 120
J53: 0 | K53: 12 | O53: 0 | Q53: اسم الصنف : لمبة فرست 120
J54: 0 | K54: 12 | O54: 0 | Q54: اسم الصنف : لمبة فرست 120
J55: 0 | K55: 12 | O55: 0 | Q55: اسم الصنف : لمبة فرست 120
J56: 0 | K56: 12 | O56: 0
A57: الرصيد | J57: =G57-D57 -> 0 | K57: 12 | O57: 0
C58: =SUM(C10:C56) -> 20 | D58: =SUM(D10:D56) -> 0 | H58: =SUM(H10:H56) -> 0 | I58: =SUM(I10:I56) -> 8 | J58: =G58-D58 -> 0 | K58: =K57 -> 12 | O58: =SUM(O10:O57) -> 0 | P58: =SUM(G58:I58) -> 8

Sheet صاجة كشاف 120-1
F1: بطاقة كارت صنف
A4: اسم الصنف : صاجة كشاف 120*1 | K4: كود الصنف | L4: رقم كارت الصنف | M4: المخزن :
A7: رقم اذن اضافة الوارد | B7: تاريخ اذن اضافة الوارد | C7: وارد مشتريات وتحويل مشروع | D7: ع من الصيانة والمامورية | E7: رقم اذن الصرف | F7: تاريخ اذن الصرف | G7: صرف صيانة | H7: صرف تحويل | I7: صرف د الموقع | J7: فرق الصيانة | K7: الرصيد | L7: سعر توريد الصنف | M7: جهه التوريد | N7: ملاحظات
L9: رصيد اول المدة | O9: ج سعر التوريد | Q9: =$A$4 -> اسم الصنف : صاجة كشاف 120*1
A10: 12238 | B10: 24/11/2018 | C10: 10 | J10: =G10-D10 -> 0 | K10: =K9+C10-I10 -> 10 | L10: 74 | M10: انريجيا | N10: جلال | O10: =C10*L10 -> 740 | Q10: =$A$4 -> اسم الصنف : صاجة كشاف 120*1
A11: 2059 | B11: 17/1/2019 | C11: 10 | J11: 0 | K11: =K10+C11-I11 -> 20 | M11: ادارة المشتريات | Q11: اسم الصنف : صاجة كشاف 120*1
E12: 22810 | F12: 2019-03-06 | I12: 5 | J12: 0 | K12: =K11+C12-G12-H12-I12+J12 -> 15 | O12: =L12*C12 -> 0 | Q12: اسم الصنف : صاجة كشاف 120*1
J13: 0 | K13: =K12+C13-I13 -> 15 | O13: =C13*L13 -> 0 | Q13: اسم الصنف : صاجة كشاف 120*1
J14: 0 | K14: 15 | O14: 0 | Q14: اسم الصنف : صاجة كشاف 120*1
J15: 0 | K15: 15 | O15: 0 | Q15: اسم الصنف : صاجة كشاف 120*1
J16: 0 | K16: 15 | O16: 0 | Q16: اسم الصنف : صاجة كشاف 120*1
J17: 0 | K17: 15 | O17: 0 | Q17: اسم الصنف : صاجة كشاف 120*1
J18: 0 | K18: 15 | O18: 0 | Q18: اسم الصنف : صاجة كشاف 120*1
J19: 0 | K19: 15 | O19: 0 | Q19: اسم الصنف : صاجة كشاف 120*1
J20: 0 | K20: 15 | O20: 0 | Q20: اسم الصنف : صاجة كشاف 120*1
J21: 0 | K21: 15 | O21: 0 | Q21: اسم الصنف : صاجة كشاف 120*1
J22: 0 | K22: 15 | O22: 0 | Q22: اسم الصنف : صاجة كشاف 120*1
J23: 0 | K23: =K22+C23-G23-H23-I23+J23 -> 15 | O23: 0 | Q23: اسم الصنف : صاجة كشاف 120*1
J24: 0 | K24: 15 | O24: 0 | Q24: اسم الصنف : صاجة كشاف 120*1
J25: 0 | K25: 15 | O25: 0 | Q25: اسم الصنف : صاجة كشاف 120*1
J26: 0 | K26: 15 | O26: 0 | Q26: اسم الصنف : صاجة كشاف 120*1
J27: 0 | K27: 15 | O27: 0 | Q27: اسم الصنف : صاجة كشاف 120*1
J28: 0 | K28: 15 | O28: 0 | Q28: اسم الصنف : صاجة كشاف 120*1
J29: 0 | K29: 15 | O29: 0 | Q29: اسم الصنف : صاجة كشاف 120*1
J30: 0 | K30: 15 | O30: 0 | Q30: اسم الصنف : صاجة كشاف 120*1
J31: 0 | K31: 15 | O31: 0 | Q31: اسم الصنف : صاجة كشاف 120*1
J32: 0 | K32: 15 | O32: 0 | Q32: اسم الصنف : صاجة كشاف 120*1
J33: 0 | K33: 15 | O33: 0 | Q33: اسم الصنف : صاجة كشاف 120*1
J34: 0 | K34: 15 | O34: 0 | Q34: اسم الصنف : صاجة كشاف 120*1
J35: 0 | K35: 15 | O35: 0 | Q35: اسم الصنف : صاجة كشاف 120*1
J36: 0 | K36: 15 | O36: 0 | Q36: اسم الصنف : صاجة كشاف 120*1
J37: 0 | K37: 15 | O37: 0 | Q37: اسم الصنف : صاجة كشاف 120*1
J38: 0 | K38: 15 | O38: 0 | Q38: اسم الصنف : صاجة كشاف 120*1
J39: 0 | K39: 15 | O39: 0 | Q39: اسم الصنف : صاجة كشاف 120*1
J40: 0 | K40: 15 | O40: 0 | Q40: اسم الصنف : صاجة كشاف 120*1
J41: =G41-D41 -> 0 | K41: 15 | O41: 0 | Q41: اسم الصنف : صاجة كشاف 120*1
J42: 0 | K42: 15 | O42: 0 | Q42: اسم الصنف : صاجة كشاف 120*1
J43: 0 | K43: 15 | O43: 0 | Q43: اسم الصنف : صاجة كشاف 120*1
J44: 0 | K44: 15 | O44: 0 | Q44: اسم الصنف : صاجة كشاف 120*1
J45: 0 | K45: 15 | O45: 0 | Q45: اسم الصنف : صاجة كشاف 120*1
J46: 0 | K46: 15 | O46: 0 | Q46: اسم الصنف : صاجة كشاف 120*1
J47: 0 | K47: 15 | O47: 0 | Q47: اسم الصنف : صاجة كشاف 120*1
F48: . | J48: 0 | K48: 15 | O48: 0 | Q48: اسم الصنف : صاجة كشاف 120*1
J49: 0 | K49: 15 | O49: 0 | Q49: اسم الصنف : صاجة كشاف 120*1
J50: 0 | K50: 15 | O50: 0 | Q50: اسم الصنف : صاجة كشاف 120*1
J51: 0 | K51: 15 | O51: 0 | Q51: اسم الصنف : صاجة كشاف 120*1
J52: 0 | K52: 15 | O52: 0 | Q52: اسم الصنف : صاجة كشاف 120*1
J53: 0 | K53: 15 | O53: 0 | Q53: اسم الصنف : صاجة كشاف 120*1
J54: 0 | K54: 15 | O54: 0 | Q54: اسم الصنف : صاجة كشاف 120*1
J55: 0 | K55: 15 | O55: 0 | Q55: اسم الصنف : صاجة كشاف 120*1
A56: الرصيد | J56: 0 | K56: 15 | O56: 0
C57: =SUM(C10:C55) -> 20 | D57: =SUM(D10:D55) -> 0 | H57: =SUM(H10:H55) -> 0 | I57: =SUM(I10:I55) -> 5 | J57: 0 | K57: =K56 -> 15 | O57: =SUM(O10:O56) -> 740 | P57: =SUM(G57:I57) -> 5

Sheet عود دكت 2-2
F1: بطاقة كارت صنف
A4: اسم الصنف : عود دكت 2*2 | K4: كود الصنف | L4: رقم كارت الصنف | M4: المخزن :
A7: رقم اذن اضافة الوارد | B7: تاريخ اذن اضافة الوارد | C7: وارد مشتريات وتحويل مشروع | D7: ع من الصيانة والمامورية | E7: رقم اذن الصرف | F7: تاريخ اذن الصرف | G7: صرف صيانة | H7: صرف تحويل | I7: صرف د الموقع | J7: فرق الصيانة | K7: الرصيد | L7: سعر توريد الصنف | M7: جهه التوريد | N7: ملاحظات
L9: رصيد اول المدة | O9: ج سعر التوريد | Q9: =$A$4 -> اسم الصنف : عود دكت 2*2
A10: 12238 | B10: 24/11/2018 | C10: 10 | J10: =G10-D10 -> 0 | K10: =K9+C10-I10 -> 10 | L10: 74 | M10: انريجيا | N10: جلال | O10: =C10*L10 -> 740 | Q10: =$A$4 -> اسم الصنف : عود دكت 2*2
J11: =G11-D11 -> 0 | K11: =K10+C11-I11-H11+J11 -> 10 | M11: لزوم مبني ادارة الجامعة | Q11: اسم الصنف : عود دكت 2*2
J12: 0 | K12: =K11+C12-G12-H12-I12+J12 -> 10 | O12: =C12*L12 -> 0 | Q12: اسم الصنف : عود دكت 2*2
J13: 0 | K13: 10 | O13: 0 | Q13: اسم الصنف : عود دكت 2*2
J14: 0 | K14: 10 | O14: 0 | Q14: اسم الصنف : عود دكت 2*2
J15: 0 | K15: 10 | O15: 0 | Q15: اسم الصنف : عود دكت 2*2
J16: 0 | K16: 10 | O16: 0 | Q16: اسم الصنف : عود دكت 2*2
J17: 0 | K17: 10 | O17: 0 | Q17: اسم الصنف : عود دكت 2*2
J18: 0 | K18: 10 | O18: 0 | Q18: اسم الصنف : عود دكت 2*2
J19: 0 | K19: 10 | O19: 0 | Q19: اسم الصنف : عود دكت 2*2
J20: 0 | K20: 10 | O20: 0 | Q20: اسم الصنف : عود دكت 2*2
J21: 0 | K21: 10 | O21: 0 | Q21: اسم الصنف : عود دكت 2*2
J22: 0 | K22: 10 | O22: 0 | Q22: اسم الصنف : عود دكت 2*2
J23: 0 | K23: 10 | O23: 0 | Q23: اسم الصنف : عود دكت 2*2
J24: 0 | K24: 10 | O24: 0 | Q24: اسم الصنف : عود دكت 2*2
J25: 0 | K25: 10 | O25: 0 | Q25: اسم الصنف : عود دكت 2*2
J26: 0 | K26: 10 | O26: 0 | Q26: اسم الصنف : عود دكت 2*2
J27: 0 | K27: 10 | O27: 0 | Q27: اسم الصنف : عود دكت 2*2
J28: 0 | K28: 10 | O28: 0 | Q28: اسم الصنف : عود دكت 2*2
J29: 0 | K29: 10 | O29: 0 | Q29: اسم الصنف : عود دكت 2*2
J30: 0 | K30: 10 | O30: 0 | Q30: اسم الصنف : عود دكت 2*2
J31: 0 | K31: 10 | O31: 0 | Q31: اسم الصنف : عود دكت 2*2
J32: 0 | K32: 10 | O32: 0 | Q32: اسم الصنف : عود دكت 2*2
J33: 0 | K33: 10 | O33: 0 | Q33: اسم الصنف : عود دكت 2*2
J34: 0 | K34: 10 | O34: 0 | Q34: اسم الصنف : عود دكت 2*2
J35: 0 | K35: 10 | O35: 0 | Q35: اسم الصنف : عود دكت 2*2
J36: 0 | K36: 10 | O36: 0 | Q36: اسم الصنف : عود دكت 2*2
J37: 0 | K37: 10 | O37: 0 | Q37: اسم الصنف : عود دكت 2*2
J38: 0 | K38: 10 | O38: 0 | Q38: اسم الصنف : عود دكت 2*2
J39: 0 | K39: 10 | O39: 0 | Q39: اسم الصنف : عود دكت 2*2
J40: 0 | K40: 10 | O40: 0 | Q40: اسم الصنف : عود دكت 2*2
J41: 0 | K41: 10 | O41: 0 | Q41: اسم الصنف : عود دكت 2*2
J42: 0 | K42: 10 | O42: 0 | Q42: اسم الصنف : عود دكت 2*2
J43: 0 | K43: 10 | O43: 0 | Q43: اسم الصنف : عود دكت 2*2
J44: 0 | K44: 10 | O44: 0 | Q44: اسم الصنف : عود دكت 2*2
J45: 0 | K45: 10 | O45: 0 | Q45: اسم الصنف : عود دكت 2*2
J46: 0 | K46: 10 | O46: 0 | Q46: اسم الصنف : عود دكت 2*2
J47: 0 | K47: 10 | O47: 0 | Q47: اسم الصنف : عود دكت 2*2
J48: 0 | K48: 10 | O48: 0 | Q48: اسم الصنف : عود دكت 2*2
J49: 0 | K49: 10 | O49: 0 | Q49: اسم الصنف : عود دكت 2*2
F50: . | J50: 0 | K50: 10 | O50: 0 | Q50: اسم الصنف : عود دكت 2*2
J51: 0 | K51: 10 | O51: 0 | Q51: اسم الصنف : عود دكت 2*2
J52: 0 | K52: 10 | O52: 0 | Q52: اسم الصنف : عود دكت 2*2
J53: 0 | K53: 10 | O53: 0 | Q53: اسم الصنف : عود دكت 2*2
J54: 0 | K54: 10 | O54: 0 | Q54: اسم الصنف : عود دكت 2*2
J55: 0 | K55: 10 | O55: 0 | Q55: اسم الصنف : عود دكت 2*2
J56: 0 | K56: 10 | O56: 0
J57: 0 | K57: 10 | O57: 0
A58: الرصيد | J58: =G58-D58 -> 0 | K58: 10 | O58: 0
C59: =SUM(C10:C57) -> 10 | D59: =SUM(D10:D57) -> 0 | H59: =SUM(H10:H57) -> 0 | I59: =SUM(I10:I57) -> 0 | J59: =G59-D59 -> 0 | K59: =K58 -> 10 | O59: =SUM(O10:O58) -> 740 | P59: =SUM(G59:I59) -> 0

Sheet لمبة موفرة 23 وات
F1: بطاقة كارت صنف
A4: اسم الصنف : لمبة موفرة 23 وات | K4: كود الصنف | L4: رقم كارت الصنف | M4: المخزن :
A7: رقم اذن اضافة الوارد | B7: تاريخ اذن اضافة الوارد | C7: وارد مشتريات وتحويل مشروع | D7: ع من الصيانة والمامورية | E7: رقم اذن الصرف | F7: تاريخ اذن الصرف | G7: صرف صيانة | H7: صرف تحويل | I7: صرف د الموقع | J7: فرق الصيانة | K7: الرصيد | L7: سعر توريد الصنف | M7: جهه التوريد | N7: ملاحظات
L9: رصيد اول المدة | O9: ج سعر التوريد | Q9: =$A$4 -> اسم الصنف : لمبة موفرة 23 وات
A10: 652 | B10: 2018-01-31 | C10: 4 | J10: =G10-D10 -> 0 | K10: =K9+C10-I10 -> 4 | L10: =13.25-2.5 -> 10.75 | M10: انريجيا | N10: جلال | O10: =C10*L10 -> 43 | Q10: =$A$4 -> اسم الصنف : لمبة موفرة 23 وات
A11: 699 | B11: 2018-03-04 | C11: 50 | J11: =G11-D11 -> 0 | K11: =K10+C11-H11-I11+J11 -> 54 | L11: =550/50 -> 11 | M11: مش موقع | N11: احمد حامد المحاسب | O11: =C11*L11 -> 550 | Q11: اسم الصنف : لمبة موفرة 23 وات
E12: 754 | F12: 2018-04-02 | I12: 1 | J12: =G12-D12 -> 0 | K12: =K11+C12-G12-H12-I12+J12 -> 53 | M12: خدمة موقع | O12: =C12*L12 -> 0 | Q12: اسم الصنف : لمبة موفرة 23 وات
E13: 756 | F13: 2018-04-03 | I13: 3 | J13: =G13-D13 -> 0 | K13: =K12+C13-G13-H13-I13+J13 -> 50 | M13: خدمة موقع | O13: =C13*L13 -> 0 | Q13: اسم الصنف : لمبة موفرة 23 وات
E14: 758 | F14: 2018-07-04 | I14: 1 | J14: =G14-D14 -> 0 | K14: 49 | M14: خدمة موقع | O14: =C14*L14 -> 0 | Q14: اسم الصنف : لمبة موفرة 23 وات
E15: 760 | F15: 2018-08-04 | I15: 1 | K15: 48 | M15: خدمة موقع | Q15: اسم الصنف : لمبة موفرة 23 وات
E16: 763 | F16: 2018-11-04 | I16: 48 | J16: =G16-D16 -> 0 | K16: 0 | M16: خدمة موقع | O16: =C16*L16 -> 0 | Q16: اسم الصنف : لمبة موفرة 23 وات
J17: =G17-D17 -> 0 | K17: 0 | O17: =C17*L17 -> 0 | Q17: اسم الصنف : لمبة موفرة 23 وات
J18: 0 | K18: 0 | O18: 0 | Q18: اسم الصنف : لمبة موفرة 23 وات
J19: 0 | K19: 0 | O19: 0 | Q19: اسم الصنف : لمبة موفرة 23 وات
J20: 0 | K20: 0 | O20: 0 | Q20: اسم الصنف : لمبة موفرة 23 وات
J21: 0 | K21: 0 | O21: 0 | Q21: اسم الصنف : لمبة موفرة 23 وات
J22: 0 | K22: 0 | O22: 0 | Q22: اسم الصنف : لمبة موفرة 23 وات
J23: 0 | K23: 0 | O23: 0 | Q23: اسم الصنف : لمبة موفرة 23 وات
J24: 0 | K24: 0 | O24: 0 | Q24: اسم الصنف : لمبة موفرة 23 وات
J25: 0 | K25: 0 | O25: 0 | Q25: اسم الصنف : لمبة موفرة 23 وات
J26: 0 | K26: 0 | O26: 0 | Q26: اسم الصنف : لمبة موفرة 23 وات
J27: 0 | K27: 0 | O27: 0 | Q27: اسم الصنف : لمبة موفرة 23 وات
J28: 0 | K28: 0 | O28: 0 | Q28: اسم الصنف : لمبة موفرة 23 وات
J29: 0 | K29: 0 | O29: 0 | Q29: اسم الصنف : لمبة موفرة 23 وات
J30: 0 | K30: 0 | O30: 0 | Q30: اسم الصنف : لمبة موفرة 23 وات
J31: 0 | K31: 0 | O31: 0 | Q31: اسم الصنف : لمبة موفرة 23 وات
J32: 0 | K32: 0 | O32: 0 | Q32: اسم الصنف : لمبة موفرة 23 وات
J33: 0 | K33: 0 | O33: 0 | Q33: اسم الصنف : لمبة موفرة 23 وات
J34: 0 | K34: 0 | O34: 0 | Q34: اسم الصنف : لمبة موفرة 23 وات
J35: 0 | K35: 0 | O35: 0 | Q35: اسم الصنف : لمبة موفرة 23 وات
J36: 0 | K36: 0 | O36: 0 | Q36: اسم الصنف : لمبة موفرة 23 وات
J37: 0 | K37: 0 | O37: 0 | Q37: اسم الصنف : لمبة موفرة 23 وات
J38: 0 | K38: =K37+C38-G38-H38-I38+J38 -> 0 | O38: 0 | Q38: اسم الصنف : لمبة موفرة 23 وات
J39: 0 | K39: 0 | O39: 0 | Q39: اسم الصنف : لمبة موفرة 23 وات
J40: 0 | K40: 0 | O40: 0 | Q40: اسم الصنف : لمبة موفرة 23 وات
J41: 0 | K41: 0 | O41: 0 | Q41: اسم الصنف : لمبة موفرة 23 وات
J42: 0 | K42: 0 | O42: 0 | Q42: اسم الصنف : لمبة موفرة 23 وات
J43: 0 | K43: 0 | O43: 0 | Q43: اسم الصنف : لمبة موفرة 23 وات
J44: 0 | K44: 0 | O44: 0 | Q44: اسم الصنف : لمبة موفرة 23 وات
J45: 0 | K45: 0 | O45: 0 | Q45: اسم الصنف : لمبة موفرة 23 وات
F46: . | J46: 0 | K46: 0 | O46: 0 | Q46: اسم الصنف : لمبة موفرة 23 وات
J47: 0 | K47: 0 | O47: 0 | Q47: اسم الصنف : لمبة موفرة 23 وات
J48: 0 | K48: 0 | O48: 0 | Q48: اسم الصنف : لمبة موفرة 23 وات
J49: 0 | K49: 0 | O49: 0 | Q49: اسم الصنف : لمبة موفرة 23 وات
J50: 0 | K50: 0 | O50: 0 | Q50: اسم الصنف : لمبة موفرة 23 وات
J51: 0 | K51: 0 | O51: 0 | Q51: اسم الصنف : لمبة موفرة 23 وات
J52: 0 | K52: 0 | O52: 0 | Q52: اسم الصنف : لمبة موفرة 23 وات
J53: 0 | K53: 0 | O53: 0 | Q53: اسم الصنف : لمبة موفرة 23 وات
A54: الرصيد | J54: 0 | K54: 0 | O54: 0 | Q54: اسم الصنف : لمبة موفرة 23 وات
C55: =SUM(C10:C53) -> 54 | D55: =SUM(D10:D53) -> 0 | H55: =SUM(H10:H53) -> 0 | I55: =SUM(I10:I53) -> 54 | J55: 0 | K55: =K54 -> 0 | O55: =SUM(O10:O54) -> 593 | P55: =SUM(G55:I55) -> 54 | Q55: اسم الصنف : لمبة موفرة 23 وات

Sheet لمبة موفرة 26 وات
F1: بطاقة كارت صنف
A4: اسم الصنف : لمبة موفرة 26 وات | K4: كود الصنف | L4: رقم كارت الصنف | M4: المخزن :
A7: رقم اذن اضافة الوارد | B7: تاريخ اذن اضافة الوارد | C7: وارد مشتريات وتحويل مشروع | D7: ع من الصيانة والمامورية | E7: رقم اذن الصرف | F7: تاريخ اذن الصرف | G7: صرف صيانة | H7: صرف تحويل | I7: صرف د الموقع | J7: فرق الصيانة | K7: الرصيد | L7: سعر توريد الصنف | M7: جهه التوريد | N7: ملاحظات
L9: رصيد اول المدة | O9: ج سعر التوريد | Q9: =$A$4 -> اسم الصنف : لمبة موفرة 26 وات
A10: 12238 | B10: 24/11/2018 | C10: 85 | J10: =G10-D10 -> 0 | K10: =K9+C10-I10 -> 85 | M10: ادارة المشتريات | O10: =C10*L10 -> 0 | Q10: =$A$4 -> اسم الصنف : لمبة موفرة 26 وات
E11: 3322 | F11: 25/11/2018 | I11: 9 | J11: =G11-D11 -> 0 | K11: =K10+C11-I11 -> 76 | M11: موقع | O11: =C11*L11 -> 0 | Q11: اسم الصنف : لمبة موفرة 26 وات
E12: 3333 | F12: 27/11/2018 | I12: 8 | J12: =G12-D12 -> 0 | K12: 68 | M12: موقع | Q12: اسم الصنف : لمبة موفرة 26 وات
E13: 3339 | F13: 28/11/2018 | I13: 1 | J13: 0 | K13: 67 | M13: موقع | Q13: اسم الصنف : لمبة موفرة 26 وات
E14: 3349 | F14: 29/11/2018 | I14: 1 | J14: 0 | K14: 66 | M14: موقع | Q14: اسم الصنف : لمبة موفرة 26 وات
E15: 11853 | F15: 2018-01-12 | I15: 12 | J15: 0 | K15: 54 | M15: موقع | Q15: اسم الصنف : لمبة موفرة 26 وات
E16: 11861 | F16: 2018-04-12 | I16: 8 | J16: 0 | K16: 46 | M16: موقع | O16: =C16*L16 -> 0 | Q16: اسم الصنف : لمبة موفرة 26 وات
E17: 11865 | F17: 2018-05-12 | I17: 3 | J17: 0 | K17: 43 | M17: موقع | Q17: اسم الصنف : لمبة موفرة 26 وات
E18: 11868 | F18: 2018-06-12 | I18: 1 | J18: 0 | K18: 42 | M18: موقع | Q18: اسم الصنف : لمبة موفرة 26 وات
E19: 11871 | F19: 2018-07-12 | I19: 6 | J19: 0 | K19: 36 | M19: موقع | O19: =C19*L19 -> 0 | Q19: اسم الصنف : لمبة موفرة 26 وات
E20: 11876 | F20: 2018-09-12 | I20: 2 | J20: 0 | K20: 34 | M20: موقع | O20: 0 | Q20: اسم الصنف : لمبة موفرة 26 وات
E21: 11879 | F21: 2018-10-12 | I21: 2 | J21: =G21-D21 -> 0 | K21: 32 | M21: موقع | O21: 0 | Q21: اسم الصنف : لمبة موفرة 26 وات
E22: 11885 | F22: 2018-11-12 | I22: 7 | J22: 0 | K22: =K21+C22-G22-H22-I22+J22 -> 25 | M22: موقع | O22: 0 | Q22: اسم الصنف : لمبة موفرة 26 وات
E23: 11895 | F23: 13/12/2018 | I23: 6 | J23: 0 | K23: =K22+C23-I23 -> 19 | Q23: اسم الصنف : لمبة موفرة 26 وات
E24: 11896 | F24: 13/1272018 | I24: 10 | J24: 0 | K24: =K23+C24-G24-H24-I24+J24 -> 9 | M24: موقع | Q24: اسم الصنف : لمبة موفرة 26 وات
E25: 11659 | F25: 16/12/2018 | I25: 2 | J25: 0 | K25: 7 | O25: =C25*L25 -> 0 | Q25: اسم الصنف : لمبة موفرة 26 وات
E26: 11687 | F26: 22/12/2018 | I26: 7 | J26: 0 | K26: 0 | O26: 0 | Q26: اسم الصنف : لمبة موفرة 26 وات
J27: 0 | K27: 0 | O27: 0 | Q27: اسم الصنف : لمبة موفرة 26 وات
J28: 0 | K28: 0 | O28: 0 | Q28: اسم الصنف : لمبة موفرة 26 وات
J29: 0 | K29: 0 | O29: 0 | Q29: اسم الصنف : لمبة موفرة 26 وات
J30: 0 | K30: 0 | O30: 0 | Q30: اسم الصنف : لمبة موفرة 26 وات
J31: 0 | K31: 0 | O31: 0 | Q31: اسم الصنف : لمبة موفرة 26 وات
J32: 0 | K32: 0 | O32: 0 | Q32: اسم الصنف : لمبة موفرة 26 وات
J33: 0 | K33: 0 | O33: 0 | Q33: اسم الصنف : لمبة موفرة 26 وات
J34: 0 | K34: 0 | O34: 0 | Q34: اسم الصنف : لمبة موفرة 26 وات
J35: 0 | K35: 0 | O35: 0 | Q35: اسم الصنف : لمبة موفرة 26 وات
J36: 0 | K36: 0 | O36: 0 | Q36: اسم الصنف : لمبة موفرة 26 وات
J37: 0 | K37: 0 | O37: 0 | Q37: اسم الصنف : لمبة موفرة 26 وات
J38: 0 | K38: 0 | O38: 0 | Q38: اسم الصنف : لمبة موفرة 26 وات
J39: 0 | K39: 0 | O39: 0 | Q39: اسم الصنف : لمبة موفرة 26 وات
J40: 0 | K40: 0 | O40: 0 | Q40: اسم الصنف : لمبة موفرة 26 وات
J41: 0 | K41: 0 | O41: 0 | Q41: اسم الصنف : لمبة موفرة 26 وات
J42: 0 | K42: 0 | O42: 0 | Q42: اسم الصنف : لمبة موفرة 26 وات
J43: 0 | K43: 0 | O43: 0 | Q43: اسم الصنف : لمبة موفرة 26 وات
J44: 0 | K44: 0 | O44: 0 | Q44: اسم الصنف : لمبة موفرة 26 وات
J45: 0 | K45: 0 | O45: 0 | Q45: اسم الصنف : لمبة موفرة 26 وات
J46: 0 | K46: 0 | O46: 0 | Q46: اسم الصنف : لمبة موفرة 26 وات
J47: 0 | K47: 0 | O47: 0 | Q47: اسم الصنف : لمبة موفرة 26 وات
J48: 0 | K48: 0 | O48: 0 | Q48: اسم الصنف : لمبة موفرة 26 وات
F49: . | J49: 0 | K49: 0 | O49: 0 | Q49: اسم الصنف : لمبة موفرة 26 وات
J50: 0 | K50: 0 | O50: 0 | Q50: اسم الصنف : لمبة موفرة 26 وات
J51: 0 | K51: 0 | O51: 0 | Q51: اسم الصنف : لمبة موفرة 26 وات
J52: 0 | K52: 0 | O52: 0 | Q52: اسم الصنف : لمبة موفرة 26 وات
J53: 0 | K53: 0 | O53: 0 | Q53: اسم الصنف : لمبة موفرة 26 وات
J54: 0 | K54: 0 | O54: 0 | Q54: اسم الصنف : لمبة موفرة 26 وات
J55: 0 | K55: 0 | O55: 0 | Q55: اسم الصنف : لمبة موفرة 26 وات
J56: 0 | K56: 0 | O56: 0
A57: الرصيد | J57: =G57-D57 -> 0 | K57: 0 | O57: 0
C58: =SUM(C10:C56) -> 85 | D58: =SUM(D10:D56) -> 0 | H58: =SUM(H10:H56) -> 0 | I58: =SUM(I10:I56) -> 85 | J58: =G58-D58 -> 0 | K58: =K57 -> 0 | O58: =SUM(O10:O57) -> 0 | P58: =SUM(G58:I58) -> 85

Sheet لمبة موفرة 32 وات
F1: بطاقة كارت صنف
A4: اسم الصنف : لمبة موفرة 32 وات | K4: كود الصنف | L4: رقم كارت الصنف | M4: المخزن :
A7: رقم اذن اضافة الوارد | B7: تاريخ اذن اضافة الوارد | C7: وارد مشتريات وتحويل مشروع | D7: ع من الصيانة والمامورية | E7: رقم اذن الصرف | F7: تاريخ اذن الصرف | G7: صرف صيانة | H7: صرف تحويل | I7: صرف د الموقع | J7: فرق الصيانة | K7: الرصيد | L7: سعر توريد الصنف | M7: جهه التوريد | N7: ملاحظات
L9: رصيد اول المدة | O9: ج سعر التوريد | Q9: =$A$4 -> اسم الصنف : لمبة موفرة 32 وات
A10: 13021 | B10: 2018-09-04 | C10: 50 | J10: =G10-D10 -> 0 | K10: =K9+C10-G10-H10-I10+J10 -> 50 | M10: ادارة المشتريات | O10: =C10*L10 -> 0 | Q10: =$A$4 -> اسم الصنف : لمبة موفرة 32 وات
E11: 763 | F11: 2018-11-04 | I11: 10 | J11: 0 | K11: =K10+C11-G11-H11-I11+J11 -> 40 | M11: خدمة موقع | O11: 0 | Q11: اسم الصنف : لمبة موفرة 32 وات
A12: 13058 | B12: 15/4/2018 | C12: 12 | J12: =G12-D12 -> 0 | K12: =K11+C12-G12-H12-I12+J12 -> 52 | M12: وارد من سكن الشركة | O12: =C12*L12 -> 0 | Q12: اسم الصنف : لمبة موفرة 32 وات
E13: 578ر | F13: 19/4/2018 | H13: 5 | J13: 0 | K13: 47 | M13: محول الي هايبر الجلالة | O13: 0 | Q13: اسم الصنف : لمبة موفرة 32 وات
E14: 599ر | F14: 29/4/2018 | H14: 5 | J14: 0 | K14: 42 | M14: محول الي هايبر الجلالة | O14: 0 | Q14: اسم الصنف : لمبة موفرة 32 وات
E15: 795 | F15: 2018-12-05 | I15: 5 | J15: 0 | K15: 37 | M15: خدمة موقع | O15: 0 | Q15: اسم الصنف : لمبة موفرة 32 وات
E16: 798 | F16: 15/5/2018 | I16: 2 | J16: 0 | K16: 35 | M16: خدمة موقع | O16: 0 | Q16: اسم الصنف : لمبة موفرة 32 وات
E17: 13761 | F17: 29/5/2018 | I17: 17 | J17: 0 | K17: 18 | M17: خدمة موقع | O17: 0 | Q17: اسم الصنف : لمبة موفرة 32 وات
E18: 13765 | F18: 2018-03-06 | I18: 3 | J18: 0 | K18: 15 | M18: خدمة موقع | O18: 0 | Q18: اسم الصنف : لمبة موفرة 32 وات
E19: 13774 | F19: 23/6/2018 | I19: 8 | J19: 0 | K19: 7 | M19: خدمة موقع | Q19: اسم الصنف : لمبة موفرة 32 وات
E20: 13781 | F20: 28/6/2018 | I20: 5 | J20: 0 | K20: 2 | M20: سكن عمال | O20: =L20*C20 -> 0 | Q20: اسم الصنف : لمبة موفرة 32 وات
E21: 13783 | F21: 30/6/2018 | I21: 2 | J21: 0 | K21: 0 | M21: سكن عمال | O21: 0 | Q21: اسم الصنف : لمبة موفرة 32 وات
A22: 7982 | B22: 2018-02-08 | C22: 15 | J22: 0 | K22: 15 | M22: محول من نادي الجلالة | O22: 0 | Q22: اسم الصنف : لمبة موفرة 32 وات
E23: 13818 | F23: 2018-06-09 | I23: 15 | J23: 0 | K23: 0 | M23: سكن عمال | O23: 0 | Q23: اسم الصنف : لمبة موفرة 32 وات
A24: 8002 | B24: 2018-08-08 | C24: 100 | J24: 0 | K24: 100 | M24: ادارة المشتريات | O24: 0 | Q24: اسم الصنف : لمبة موفرة 32 وات
E25: 13826 | F25: 14/8/2018 | I25: 1 | J25: 0 | K25: 99 | M25: خدمة موقع | O25: 0 | Q25: اسم الصنف : لمبة موفرة 32 وات
E26: 13828 | F26: 16/8/2018 | I26: 3 | J26: =G26-D26 -> 0 | K26: 96 | M26: لزوم مبني ادارة الجامعة | Q26: اسم الصنف : لمبة موفرة 32 وات
E27: 13833 | F27: 2018-02-09 | I27: 3 | J27: 0 | K27: 93 | M27: خدمة موقع | Q27: اسم الصنف : لمبة موفرة 32 وات
E28: 13835 | F28: 2018-05-09 | I28: 10 | J28: 0 | K28: 83 | M28: خدمة موقع | Q28: اسم الصنف : لمبة موفرة 32 وات
E29: 13837 | F29: 2018-09-09 | I29: 9 | J29: 0 | K29: 74 | M29: خدمة موقع | Q29: اسم الصنف : لمبة موفرة 32 وات
E30: 2847ر | F30: 2018-11-09 | H30: 21 | J30: 0 | K30: 53 | M30: محول الي الفندق | O30: 0 | Q30: اسم الصنف : لمبة موفرة 32 وات
E31: 13841 | F31: 2018-11-09 | I31: 3 | J31: 0 | K31: 50 | M31: خدمة موقع | O31: =L31*C31 -> 0 | Q31: اسم الصنف : لمبة موفرة 32 وات
E32: 13846 | F32: 15/9/2018 | I32: 1 | J32: 0 | K32: 49 | M32: كمر رخام | O32: 0 | Q32: اسم الصنف : لمبة موفرة 32 وات
E33: 13847 | F33: 16/4/2018 | I33: 8 | J33: 0 | K33: 41 | M33: سكن عمال | Q33: اسم الصنف : لمبة موفرة 32 وات
E34: 19854 | F34: 29/9/2018 | I34: 2 | J34: 0 | K34: 39 | M34: لزوم مبني ادارة الجامعة | Q34: اسم الصنف : لمبة موفرة 32 وات
E35: 19857 | F35: 2018-01-10 | I35: 15 | J35: 0 | K35: 24 | M35: خدمة موقع | O35: 0 | Q35: اسم الصنف : لمبة موفرة 32 وات
E36: 19865 | F36: 2018-07-10 | I36: 12 | J36: =G36-D36 -> 0 | K36: 12 | M36: خدمة موقع | O36: =C36*L36 -> 0 | Q36: اسم الصنف : لمبة موفرة 32 وات
E37: 19869 | F37: 2018-09-10 | I37: 3 | J37: 0 | K37: 9 | M37: مبني ادارة الجامعة | Q37: اسم الصنف : لمبة موفرة 32 وات
E38: 19872 | F38: 2018-11-10 | I38: 6 | J38: 0 | K38: 3 | M38: خدمة موقع | O38: 0 | Q38: اسم الصنف : لمبة موفرة 32 وات
E39: 19874 | F39: 2018-11-10 | I39: 3 | J39: 0 | K39: 0 | M39: خدمة موقع | O39: 0 | Q39: اسم الصنف : لمبة موفرة 32 وات
A40: 11988 | B40: 2018-10-11 | C40: 20 | J40: 0 | K40: 20 | M40: محول من كلية طب اسنان | O40: 0 | Q40: اسم الصنف : لمبة موفرة 32 وات
E41: 14622 | F41: 2018-10-11 | I41: 1 | J41: 0 | K41: 19 | M41: خدمة موقع | O41: 0 | Q41: اسم الصنف : لمبة موفرة 32 وات
E42: 14624 | F42: 2018-10-11 | I42: 2 | J42: 0 | K42: 17 | M42: خدمة موقع | O42: 0 | Q42: اسم الصنف : لمبة موفرة 32 وات
E43: 3310 | F43: 21/11/2018 | I43: 1 | J43: 0 | K43: =K42+C43-I43 -> 16 | M43: خدمة موقع | Q43: اسم الصنف : لمبة موفرة 32 وات
E44: 3312 | F44: 22/11/2018 | I44: 13 | J44: 0 | K44: =K43+C44-G44-H44-I44+J44 -> 3 | M44: موقع | O44: =C44*L44 -> 0 | Q44: اسم الصنف : لمبة موفرة 32 وات
E45: 11855 | F45: 2018-02-12 | I45: 3 | J45: 0 | K45: 0 | M45: خدمة موقع | Q45: اسم الصنف : لمبة موفرة 32 وات
A46: 7766 | B46: 23/12/2018 | C46: 150 | J46: 0 | K46: 150 | M46: ادارة المشتريات | O46: 0 | Q46: اسم الصنف : لمبة موفرة 32 وات
E47: 11690 | F47: 23/12/2018 | I47: 4 | J47: 0 | K47: 146 | M47: موقع | O47: 0 | Q47: اسم الصنف : لمبة موفرة 32 وات
E48: 11694 | F48: 24/12/2018 | I48: 5 | J48: 0 | K48: 141 | M48: موقع | O48: 0 | Q48: اسم الصنف : لمبة موفرة 32 وات
A49: 7778 | B49: 24/12/2018 | C49: 150 | J49: 0 | K49: 291 | M49: ادارة المشتريات | O49: 0 | Q49: اسم الصنف : لمبة موفرة 32 وات
E50: 3602 | F50: 26/12/2018 | I50: 32 | J50: 0 | K50: 259 | M50: موقع | Q50: اسم الصنف : لمبة موفرة 32 وات
E51: 3610 | F51: 29/12/2018 | I51: 14 | J51: 0 | K51: 245 | M51: موقع | Q51: اسم الصنف : لمبة موفرة 32 وات
E52: 3623 | F52: 2019-01-01 | I52: 20 | J52: 0 | K52: 225 | O52: =C52*L52 -> 0 | Q52: اسم الصنف : لمبة موفرة 32 وات
E53: 3648 | F53: 2019-07-01 | I53: 15 | J53: 0 | K53: 210 | Q53: اسم الصنف : لمبة موفرة 32 وات
E54: 3649 | F54: 2019-07-01 | I54: 2 | J54: =G54-D54 -> 0 | K54: 208 | O54: =C54*L54 -> 0 | Q54: اسم الصنف : لمبة موفرة 32 وات
E55: 11809 | F55: 2019-10-01 | I55: 5 | J55: =G55-D55 -> 0 | K55: 203 | Q55: اسم الصنف : لمبة موفرة 32 وات
E56: 3648 | F56: 2019-07-01 | I56: 15 | J56: =G56-D56 -> 0 | K56: 188 | O56: =C56*L56 -> 0
E57: 11837 | F57: 15/1/2019 | I57: 10 | J57: =G57-D57 -> 0 | K57: 178 | O57: =C57*L57 -> 0
E58: 11833 | F58: 14/1/2019 | I58: 10 | J58: =G58-D58 -> 0 | K58: =K57+C58-I58 -> 168 | O58: =C58*L58 -> 0
A59: 7936 | B59: 15/1/2019 | C59: 550 | J59: 0 | K59: 718 | M59: ادارة المشتريات | O59: 0
E60: 14509 | F60: 20/1/2019 | I60: 5 | J60: 0 | K60: 713 | O60: 0
E61: 14529 | F61: 24/1/2019 | I61: 100 | J61: 0 | K61: 613 | O61: 0
E62: 14531 | F62: 26/1/2019 | I62: 3 | J62: 0 | K62: 610 | O62: 0
E63: 108 | F63: 31/1/2019 | I63: 20 | J63: 0 | K63: 590 | O63: 0
E64: 129 | F64: 2019-06-02 | I64: 20 | J64: 0 | K64: 570 | O64: =L64*C64 -> 0
E65: 138 | F65: 2019-10-02 | I65: 1 | K65: =K64+C65-G65-H65-I65+J65 -> 569
E66: 141 | F66: 2019-11-02 | I66: 1 | K66: 568
E67: 146 | F67: 13/2/2019 | I67: 1 | J67: =G67-D67 -> 0 | K67: =K66+C67-G67-H67-I67+J67 -> 567 | O67: =C67*L67 -> 0
E68: 9206 | F68: 17/2/2019 | I68: 10 | J68: 0 | K68: 557
K69: 557
K70: 557
K71: 557
K72: 557
K73: 557
K74: 557
K75: 557
K76: 557
K77: 557
K78: 557
K79: 557
K80: 557
K81: 557
K82: 557
K83: 557
K84: 557
K85: 557
K86: 557
K87: 557
K88: 557
K89: 557
K90: 557
K91: 557
K92: 557
K93: 557
K94: 557
K95: 557
K96: 557
K97: 557
K98: 557
K99: 557
K100: 557
K101: 557
K102: 557
K103: 557
K104: 557
K105: 557
K106: 557
K107: 557
K108: 557
K109: 557
K110: 557
K111: 557
K112: 557
K113: 557
K114: 557
K115: 557
K116: 557
K117: 557
K118: 557
K119: 557
K120: 557
K121: 557
J122: 0 | K122: =K121+C122-I122 -> 557 | O122: 0
A123: الرصيد | J123: =G123-D123 -> 0 | K123: 557 | O123: 0
C124: =SUM(C10:C122) -> 1047 | D124: =SUM(D10:D122) -> 0 | H124: =SUM(H10:H122) -> 31 | I124: =SUM(I10:I122) -> 459 | J124: =G124-D124 -> 0 | K124: =K123 -> 557 | O124: =SUM(O10:O123) -> 0 | P124: =SUM(G124:I124) -> 490

Sheet لمبة ليد 10 وات
F1: بطاقة كارت صنف
A4: اسم الصنف : لمبة ليد10 وات السويدي | K4: كود الصنف | L4: رقم كارت الصنف | M4: المخزن :
A7: رقم اذن اضافة الوارد | B7: تاريخ اذن اضافة الوارد | C7: وارد مشتريات وتحويل مشروع | D7: ع من الصيانة والمامورية | E7: رقم اذن الصرف | F7: تاريخ اذن الصرف | G7: صرف صيانة | H7: صرف تحويل | I7: صرف د الموقع | J7: فرق الصيانة | K7: الرصيد | L7: سعر توريد الصنف | M7: جهه التوريد | N7: ملاحظات
L9: رصيد اول المدة | O9: ج سعر التوريد | Q9: =$A$4 -> اسم الصنف : لمبة ليد10 وات السويدي
A10: 13058 | B10: 15/4/2018 | C10: 30 | J10: =G10-D10 -> 0 | K10: =K9+C10-G10-H10-I10+J10 -> 30 | M10: وارد من سكن الشركة | O10: =C10*L10 -> 0 | Q10: =$A$4 -> اسم الصنف : لمبة ليد10 وات السويدي
E11: 788 | F11: 2018-05-05 | I11: 2 | J11: 0 | K11: 28 | M11: خدمة موقع | O11: 0 | Q11: اسم الصنف : لمبة ليد10 وات السويدي
E12: 13751 | F12: 17/5/2018 | I12: 2 | J12: 0 | K12: 26 | M12: كرفان الجيش | O12: 0 | Q12: اسم الصنف : لمبة ليد10 وات السويدي
E13: 13761 | F13: 29/5/2018 | I13: 9 | J13: 0 | K13: 17 | M13: سكن موظفين | O13: =C13*L13 -> 0 | Q13: اسم الصنف : لمبة ليد10 وات السويدي
E14: 13781 | F14: 28/6/2018 | I14: 5 | J14: 0 | K14: 12 | M14: سكن عمال | O14: =L14*C14 -> 0 | Q14: اسم الصنف : لمبة ليد10 وات السويدي
E15: 13792 | F15: 2018-09-07 | I15: 2 | J15: =G15-D15 -> 0 | K15: 10 | M15: سكن عمال | O15: 0 | Q15: اسم الصنف : لمبة ليد10 وات السويدي
E16: 13795 | F16: 2018-11-07 | I16: 2 | J16: 0 | K16: 8 | M16: خدمة موقع | O16: 0 | Q16: اسم الصنف : لمبة ليد10 وات السويدي
E17: 13797 | F17: 2018-12-07 | I17: 1 | J17: 0 | K17: 7 | M17: خدمة موقع | O17: 0 | Q17: اسم الصنف : لمبة ليد10 وات السويدي
E18: 13800 | F18: 15/7/2018 | I18: 1 | J18: 0 | K18: 6 | M18: خدمة موقع | O18: 0 | Q18: اسم الصنف : لمبة ليد10 وات السويدي
E19: 13801 | F19: 16/7/2018 | I19: 1 | J19: 0 | K19: 5 | M19: خدمة موقع | Q19: اسم الصنف : لمبة ليد10 وات السويدي
E20: 13813 | F20: 30/7/2018 | I20: 1 | J20: 0 | K20: 4 | M20: غرفة امن | O20: 0 | Q20: اسم الصنف : لمبة ليد10 وات السويدي
E21: 13816 | F21: 2018-01-08 | I21: 1 | J21: 0 | K21: 3 | M21: لزوم مبني ادارة الجامعة | Q21: اسم الصنف : لمبة ليد10 وات السويدي
E22: 13826 | F22: 14/8/2018 | I22: 1 | J22: 0 | K22: 2 | M22: خدمة موقع | O22: 0 | Q22: اسم الصنف : لمبة ليد10 وات السويدي
E23: 19857 | F23: 2018-01-10 | I23: 1 | J23: 0 | K23: 1 | M23: خدمة موقع | O23: 0 | Q23: اسم الصنف : لمبة ليد10 وات السويدي
E24: 11855 | F24: 2018-02-12 | I24: 1 | J24: =G24-D24 -> 0 | K24: =K23+C24-I24 -> 0 | M24: خدمة موقع | Q24: اسم الصنف : لمبة ليد10 وات السويدي
J25: 0 | K25: 0 | O25: 0 | Q25: اسم الصنف : لمبة ليد10 وات السويدي
J26: 0 | K26: 0 | O26: 0 | Q26: اسم الصنف : لمبة ليد10 وات السويدي
J27: 0 | K27: 0 | O27: 0 | Q27: اسم الصنف : لمبة ليد10 وات السويدي
J28: 0 | K28: 0 | O28: 0 | Q28: اسم الصنف : لمبة ليد10 وات السويدي
J29: 0 | K29: 0 | O29: 0 | Q29: اسم الصنف : لمبة ليد10 وات السويدي
J30: 0 | K30: 0 | O30: 0 | Q30: اسم الصنف : لمبة ليد10 وات السويدي
J31: 0 | K31: 0 | O31: 0 | Q31: اسم الصنف : لمبة ليد10 وات السويدي
J32: 0 | K32: 0 | O32: 0 | Q32: اسم الصنف : لمبة ليد10 وات السويدي
J33: 0 | K33: 0 | O33: 0 | Q33: اسم الصنف : لمبة ليد10 وات السويدي
J34: 0 | K34: 0 | O34: 0 | Q34: اسم الصنف : لمبة ليد10 وات السويدي
J35: 0 | K35: 0 | O35: 0 | Q35: اسم الصنف : لمبة ليد10 وات السويدي
J36: 0 | K36: 0 | O36: 0 | Q36: اسم الصنف : لمبة ليد10 وات السويدي
J37: 0 | K37: 0 | O37: 0 | Q37: اسم الصنف : لمبة ليد10 وات السويدي
J38: 0 | K38: 0 | O38: 0 | Q38: اسم الصنف : لمبة ليد10 وات السويدي
J39: 0 | K39: 0 | O39: 0 | Q39: اسم الصنف : لمبة ليد10 وات السويدي
J40: 0 | K40: 0 | O40: 0 | Q40: اسم الصنف : لمبة ليد10 وات السويدي
J41: 0 | K41: 0 | O41: 0 | Q41: اسم الصنف : لمبة ليد10 وات السويدي
J42: 0 | K42: 0 | O42: 0 | Q42: اسم الصنف : لمبة ليد10 وات السويدي
J43: 0 | K43: 0 | O43: 0 | Q43: اسم الصنف : لمبة ليد10 وات السويدي
J44: 0 | K44: 0 | O44: 0 | Q44: اسم الصنف : لمبة ليد10 وات السويدي
J45: 0 | K45: 0 | O45: 0 | Q45: اسم الصنف : لمبة ليد10 وات السويدي
J46: 0 | K46: 0 | O46: 0 | Q46: اسم الصنف : لمبة ليد10 وات السويدي
J47: 0 | K47: 0 | O47: 0 | Q47: اسم الصنف : لمبة ليد10 وات السويدي
J48: 0 | K48: 0 | O48: 0 | Q48: اسم الصنف : لمبة ليد10 وات السويدي
J49: 0 | K49: 0 | O49: 0 | Q49: اسم الصنف : لمبة ليد10 وات السويدي
F50: . | J50: 0 | K50: 0 | O50: 0 | Q50: اسم الصنف : لمبة ليد10 وات السويدي
J51: 0 | K51: 0 | O51: 0 | Q51: اسم الصنف : لمبة ليد10 وات السويدي
J52: 0 | K52: 0 | O52: 0 | Q52: اسم الصنف : لمبة ليد10 وات السويدي
J53: 0 | K53: 0 | O53: 0 | Q53: اسم الصنف : لمبة ليد10 وات السويدي
J54: 0 | K54: 0 | O54: 0 | Q54: اسم الصنف : لمبة ليد10 وات السويدي
J55: 0 | K55: 0 | O55: 0 | Q55: اسم الصنف : لمبة ليد10 وات السويدي
J56: 0 | K56: 0 | O56: 0
J57: 0 | K57: 0 | O57: 0
A58: الرصيد | J58: =G58-D58 -> 0 | K58: 0 | O58: 0
C59: =SUM(C10:C57) -> 30 | D59: =SUM(D10:D57) -> 0 | H59: =SUM(H10:H57) -> 0 | I59: =SUM(I10:I57) -> 30 | J59: =G59-D59 -> 0 | K59: =K58 -> 0 | O59: =SUM(O10:O58) -> 0 | P59: =SUM(G59:I59) -> 30

Sheet دواية قلاووظ
F1: بطاقة كارت صنف
A4: اسم الصنف : دواية قلاووظ | K4: كود الصنف | L4: رقم كارت الصنف | M4: المخزن :
A7: رقم اذن اضافة الوارد | B7: تاريخ اذن اضافة الوارد | C7: وارد مشتريات وتحويل مشروع | D7: ع من الصيانة والمامورية | E7: رقم اذن الصرف | F7: تاريخ اذن الصرف | G7: صرف صيانة | H7: صرف تحويل | I7: صرف د الموقع | J7: فرق الصيانة | K7: الرصيد | L7: سعر توريد الصنف | M7: جهه التوريد | N7: ملاحظات
L9: رصيد اول المدة | O9: ج سعر التوريد | Q9: =$A$4 -> اسم الصنف : دواية قلاووظ
A10: 652 | B10: 2018-01-31 | C10: 4 | J10: =G10-D10 -> 0 | K10: =K9+C10-I10 -> 4 | L10: 2.5 | M10: انرجيا | N10: جلال | O10: =C10*L10 -> 10 | Q10: =$A$4 -> اسم الصنف : دواية قلاووظ
A11: 699 | B11: 2018-04-03 | C11: 50 | J11: =G11-D11 -> 0 | K11: =K10+C11-H11-I11+J11 -> 54 | L11: =130/50 -> 2.6 | M11: مش موقع | N11: احمد حامد المحاسب | O11: =C11*L11 -> 130 | Q11: اسم الصنف : دواية قلاووظ
E12: 754 | F12: 2018-04-02 | I12: 1 | J12: =G12-D12 -> 0 | K12: =K11+C12-G12-H12-I12+J12 -> 53 | M12: خدمة موقع | O12: 0 | Q12: اسم الصنف : دواية قلاووظ
E13: 756 | F13: 2018-04-03 | I13: 8 | J13: 0 | K13: 45 | M13: خدمة موقع | O13: 0 | Q13: اسم الصنف : دواية قلاووظ
E14: 760 | F14: 2018-08-04 | I14: 1 | K14: 44 | M14: خدمة موقع | Q14: اسم الصنف : دواية قلاووظ
A15: 13021 | B15: 2018-09-04 | C15: 50 | J15: 0 | K15: 94 | M15: ادارة المشتريات | O15: 0 | Q15: اسم الصنف : دواية قلاووظ
E16: 763 | F16: 2018-11-04 | I16: 60 | J16: 0 | K16: 34 | M16: خدمة موقع | O16: 0 | Q16: اسم الصنف : دواية قلاووظ
E17: 568 | F17: 2018-12-04 | H17: 24 | J17: 0 | K17: 10 | M17: محول الي نادي الجلالة | Q17: اسم الصنف : دواية قلاووظ
E18: 578ر | F18: 19/4/2018 | H18: 5 | J18: 0 | K18: 5 | M18: محول الي هايبر الجلالة | O18: 0 | Q18: اسم الصنف : دواية قلاووظ
E19: 599ر | F19: 29/4/2018 | H19: 5 | J19: 0 | K19: 0 | M19: محول الي هايبر الجلالة | O19: 0 | Q19: اسم الصنف : دواية قلاووظ
A20: 13102 | B20: 2018-06-05 | C20: 50 | J20: 0 | K20: 50 | M20: ادارة المشتريات | Q20: اسم الصنف : دواية قلاووظ
E21: 798 | F21: 15/5/2018 | I21: 4 | J21: 0 | K21: 46 | M21: خدمة موقع | O21: =C21*L21 -> 0 | Q21: اسم الصنف : دواية قلاووظ
E22: 13761 | F22: 29/5/2018 | I22: 17 | J22: 0 | K22: 29 | M22: خدمة موقع | O22: 0 | Q22: اسم الصنف : دواية قلاووظ
E23: 13765 | F23: 2018-03-06 | I23: 2 | J23: 0 | K23: 27 | M23: خدمة موقع | O23: 0 | Q23: اسم الصنف : دواية قلاووظ
E24: 13781 | F24: 28/6/2018 | I24: 5 | J24: 0 | K24: 22 | M24: سكن عمال | O24: =L24*C24 -> 0 | Q24: اسم الصنف : دواية قلاووظ
E25: 13784 | F25: 2018-01-07 | I25: 10 | J25: 0 | K25: 12 | M25: خدمة موقع | Q25: اسم الصنف : دواية قلاووظ
E26: 13792 | F26: 2018-09-07 | I26: 2 | J26: 0 | K26: 10 | M26: سكن عمال | O26: =C26*L26 -> 0 | Q26: اسم الصنف : دواية قلاووظ
E27: 13797 | F27: 2018-12-07 | I27: 10 | J27: 0 | K27: 0 | M27: خدمة موقع | O27: 0 | Q27: اسم الصنف : دواية قلاووظ
A28: 8051 | B28: 2018-03-09 | C28: 10 | J28: 0 | K28: 10 | M28: محول من النادي | O28: 0 | Q28: اسم الصنف : دواية قلاووظ
E29: 13834 | F29: 2018-03-09 | I29: 10 | J29: 0 | K29: 0 | M29: خدمة موقع | O29: =L29*C29 -> 0 | Q29: اسم الصنف : دواية قلاووظ
A30: 8069 | B30: 2018-06-09 | C30: 50 | J30: 0 | K30: 50 | M30: ادارة المشتريات | O30: 0 | Q30: اسم الصنف : دواية قلاووظ
E31: 13846 | F31: 15/9/2018 | I31: 1 | J31: 0 | K31: 49 | M31: كمر رخام | O31: 0 | Q31: اسم الصنف : دواية قلاووظ
E32: 13847 | F32: 16/4/2018 | I32: 6 | J32: 0 | K32: 43 | M32: سكن عمال | Q32: اسم الصنف : دواية قلاووظ
E33: 19854 | F33: 29/9/2018 | I33: 2 | J33: 0 | K33: 41 | M33: لزوم مبني ادارة الجامعة | Q33: اسم الصنف : دواية قلاووظ
E34: 19857 | F34: 2018-01-10 | I34: 11 | J34: 0 | K34: 30 | M34: خدمة موقع | O34: 0 | Q34: اسم الصنف : دواية قلاووظ
E35: 19865 | F35: 2018-07-10 | I35: 12 | J35: =G35-D35 -> 0 | K35: 18 | M35: خدمة موقع | O35: =C35*L35 -> 0 | Q35: اسم الصنف : دواية قلاووظ
E36: 19869 | F36: 2018-09-10 | I36: 3 | J36: 0 | K36: =K35+C36-H36-I36+J36 -> 15 | M36: مبني ادارة الجامعة | Q36: اسم الصنف : دواية قلاووظ
E37: 19872 | F37: 2018-11-10 | I37: 6 | J37: 0 | K37: 9 | M37: خدمة موقع | O37: 0 | Q37: اسم الصنف : دواية قلاووظ
E38: 19874 | F38: 2018-11-10 | I38: 4 | J38: 0 | K38: 5 | M38: خدمة موقع | O38: 0 | Q38: اسم الصنف : دواية قلاووظ
E39: 14624 | F39: 2018-10-11 | I39: 2 | J39: 0 | K39: 3 | M39: خدمة موقع | O39: 0 | Q39: اسم الصنف : دواية قلاووظ
E40: 3310 | F40: 21/11/2018 | I40: 1 | J40: 0 | K40: =K39+C40-I40 -> 2 | Q40: اسم الصنف : دواية قلاووظ
A41: 12215 | B41: 22/11/2018 | C41: 50 | J41: 0 | K41: 52 | M41: محول من طب اسنان | Q41: اسم الصنف : دواية قلاووظ
E42: 3312 | F42: 22/11/2018 | I42: 6 | J42: 0 | K42: 46 | M42: موقع | O42: =C42*L42 -> 0 | Q42: اسم الصنف : دواية قلاووظ
E43: 3322 | F43: 25/11/2018 | I43: 9 | J43: 0 | K43: =K42+C43-G43-H43-I43+J43 -> 37 | M43: موقع | O43: 0 | Q43: اسم الصنف : دواية قلاووظ
A44: 12238 | B44: 24/11/2018 | C44: 85 | J44: =G44-D44 -> 0 | K44: =K43+C44-I44 -> 122 | M44: ادارة المشتريات | O44: =C44*L44 -> 0 | Q44: اسم الصنف : دواية قلاووظ
E45: 3330 | F45: 26/11/2018 | I45: 6 | J45: =G45-D45 -> 0 | K45: =K44+C45-I45 -> 116 | M45: موقع | Q45: اسم الصنف : دواية قلاووظ
E46: 3333 | F46: 27/11/2018 | I46: 8 | J46: 0 | K46: 108 | M46: موقع | Q46: اسم الصنف : دواية قلاووظ
E47: 3339 | F47: 28/11/2018 | I47: 1 | J47: 0 | K47: 107 | M47: موقع | Q47: اسم الصنف : دواية قلاووظ
E48: 3349 | F48: 29/11/2018 | I48: 1 | J48: 0 | K48: 106 | M48: موقع | Q48: اسم الصنف : دواية قلاووظ
E49: 11853 | F49: 2018-01-12 | I49: 12 | J49: 0 | K49: 94 | M49: موقع | Q49: اسم الصنف : دواية قلاووظ
E50: 11861 | F50: 2018-04-12 | I50: 8 | J50: 0 | K50: 86 | M50: موقع | O50: =C50*L50 -> 0 | Q50: اسم الصنف : دواية قلاووظ
E51: 11865 | F51: 2018-05-12 | I51: 3 | J51: 0 | K51: 83 | M51: موقع | Q51: اسم الصنف : دواية قلاووظ
E52: 11871 | F52: 2018-07-12 | I52: 6 | J52: 0 | K52: 77 | M52: موقع | O52: =C52*L52 -> 0 | Q52: اسم الصنف : دواية قلاووظ
E53: 11876 | F53: 2018-09-12 | I53: 2 | J53: 0 | K53: 75 | M53: موقع | O53: 0 | Q53: اسم الصنف : دواية قلاووظ
E54: 11885 | F54: 2018-11-12 | I54: 5 | J54: 0 | K54: 70 | M54: موقع | O54: 0 | Q54: اسم الصنف : دواية قلاووظ
E55: 11895 | F55: 13/12/2018 | I55: 6 | J55: 0 | K55: 64 | M55: موقع | Q55: اسم الصنف : دواية قلاووظ
E56: 11896 | F56: 13/1272018 | I56: 10 | J56: 0 | K56: 54 | M56: موقع
E57: 11659 | F57: 16/12/2018 | I57: 10 | J57: 0 | K57: 44 | M57: خدمة موقع
E58: 11687 | F58: 22/12/2018 | I58: 15 | J58: 0 | K58: 29 | O58: =C58*L58 -> 0
E59: 11690 | F59: 23/12/2018 | I59: 4 | J59: 0 | K59: 25 | O59: 0
E60: 3602 | F60: 26/12/2018 | I60: 20 | J60: 0 | K60: 5 | M60: موقع | O60: 0
A61: 2231 | B61: 23/12/2018 | C61: 10 | J61: =G61-D61 -> 0 | K61: =K60+C61-I61-H61+J61 -> 15 | M61: محول من طب اسنان
E62: 3610 | F62: 29/12/2018 | I62: 14 | J62: 0 | K62: 1 | M62: موقع
A63: 2161 | B63: 2019-06-01 | C63: 15 | J63: 0 | K63: 16 | M63: محول من النادي
E64: 3643 | F64: 2019-06-01 | I64: 15 | J64: 0 | K64: =K63+C64-I64 -> 1 | O64: =C64*L64 -> 0
A65: 7936 | B65: 15/1/2019 | C65: 360 | J65: 0 | K65: =K64+C65-G65-H65-I65+J65 -> 361 | M65: ادارة المشتريات | O65: 0
E66: 11841 | F66: 16/1/2019 | I66: 30 | J66: 0 | K66: 331 | O66: 0
A67: 2063 | B67: 19/1/2019 | C67: 100 | J67: 0 | K67: 431 | M67: مشتريات موقع
E68: 14509 | F68: 20/1/2019 | I68: 5 | J68: 0 | K68: 426
E69: 14529 | F69: 24/1/2019 | I69: 100 | J69: 0 | K69: 326
E70: 108 | F70: 31/1/2019 | I70: 20 | J70: 0 | K70: 306 | O70: =C70*L70 -> 0
E71: 129 | F71: 43618 | I71: 20 | J71: 0 | K71: 286 | O71: =L71*C71 -> 0
E72: 141 | F72: 2019-11-02 | I72: 1 | J72: 0 | K72: 285
E73: 4347ر | F73: 26/2/2019 | H73: 50 | J73: 0 | K73: 235 | M73: محول الى علوم طبية
J74: 0 | K74: 235 | O74: 0
A75: الرصيد | J75: =G75-D75 -> 0 | K75: 235 | O75: 0
C76: =SUM(C10:C74) -> 834 | D76: =SUM(D10:D74) -> 0 | H76: =SUM(H10:H74) -> 84 | I76: =SUM(I10:I74) -> 515 | J76: =G76-D76 -> 0 | K76: =K75 -> 235 | O76: =SUM(O10:O75) -> 140 | P76: =SUM(G76:I76) -> 599

Sheet دواية قلاووظ ديكور
F1: بطاقة كارت صنف
A4: 'ديكور'اسم الصنف : دواية قلاوظ ديكور | K4: كود الصنف | L4: رقم كارت الصنف | M4: المخزن :
A7: رقم اذن اضافة الوارد | B7: تاريخ اذن اضافة الوارد | C7: وارد مشتريات وتحويل مشروع | D7: ع من الصيانة والمامورية | E7: رقم اذن الصرف | F7: تاريخ اذن الصرف | G7: صرف صيانة | H7: صرف تحويل | I7: صرف د الموقع | J7: فرق الصيانة | K7: الرصيد | L7: سعر توريد الصنف | M7: جهه التوريد | N7: ملاحظات
L9: رصيد اول المدة | O9: ج سعر التوريد | Q9: =$A$4 -> 'ديكور'اسم الصنف : دواية قلاوظ ديكور
A10: 7936 | B10: 15/1/2019 | C10: 200 | J10: =G10-D10 -> 0 | K10: =K9+C10-G10-H10-I10+J10 -> 200 | M10: ادارة المشتريات | O10: =C10*L10 -> 0 | Q10: =$A$4 -> 'ديكور'اسم الصنف : دواية قلاوظ ديكور
J11: 0 | K11: =K10+C11-I11 -> 200 | Q11: 'ديكور'اسم الصنف : دواية قلاوظ ديكور
J12: =G12-D12 -> 0 | K12: =K11+C12-G12-H12-I12+J12 -> 200 | O12: =C12*L12 -> 0 | Q12: 'ديكور'اسم الصنف : دواية قلاوظ ديكور
J13: 0 | K13: 200 | O13: 0 | Q13: 'ديكور'اسم الصنف : دواية قلاوظ ديكور
K14: 200 | Q14: 'ديكور'اسم الصنف : دواية قلاوظ ديكور
J15: 0 | K15: 200 | O15: 0 | Q15: 'ديكور'اسم الصنف : دواية قلاوظ ديكور
J16: 0 | K16: 200 | O16: 0 | Q16: 'ديكور'اسم الصنف : دواية قلاوظ ديكور
J17: 0 | K17: 200 | Q17: 'ديكور'اسم الصنف : دواية قلاوظ ديكور
J18: 0 | K18: 200 | O18: 0 | Q18: 'ديكور'اسم الصنف : دواية قلاوظ ديكور
J19: 0 | K19: 200 | O19: 0 | Q19: 'ديكور'اسم الصنف : دواية قلاوظ ديكور
J20: 0 | K20: 200 | Q20: 'ديكور'اسم الصنف : دواية قلاوظ ديكور
J21: 0 | K21: 200 | O21: =C21*L21 -> 0 | Q21: 'ديكور'اسم الصنف : دواية قلاوظ ديكور
J22: 0 | K22: 200 | O22: 0 | Q22: 'ديكور'اسم الصنف : دواية قلاوظ ديكور
J23: 0 | K23: 200 | O23: 0 | Q23: 'ديكور'اسم الصنف : دواية قلاوظ ديكور
J24: 0 | K24: 200 | O24: =L24*C24 -> 0 | Q24: 'ديكور'اسم الصنف : دواية قلاوظ ديكور
J25: 0 | K25: 200 | Q25: 'ديكور'اسم الصنف : دواية قلاوظ ديكور
J26: 0 | K26: 200 | O26: =C26*L26 -> 0 | Q26: 'ديكور'اسم الصنف : دواية قلاوظ ديكور
J27: 0 | K27: 200 | O27: 0 | Q27: 'ديكور'اسم الصنف : دواية قلاوظ ديكور
J28: 0 | K28: 200 | O28: 0 | Q28: 'ديكور'اسم الصنف : دواية قلاوظ ديكور
J29: 0 | K29: 200 | O29: =L29*C29 -> 0 | Q29: 'ديكور'اسم الصنف : دواية قلاوظ ديكور
J30: 0 | K30: 200 | O30: 0 | Q30: 'ديكور'اسم الصنف : دواية قلاوظ ديكور
J31: 0 | K31: 200 | O31: 0 | Q31: 'ديكور'اسم الصنف : دواية قلاوظ ديكور
J32: 0 | K32: 200 | Q32: 'ديكور'اسم الصنف : دواية قلاوظ ديكور
J33: 0 | K33: 200 | Q33: 'ديكور'اسم الصنف : دواية قلاوظ ديكور
J34: 0 | K34: 200 | O34: 0 | Q34: 'ديكور'اسم الصنف : دواية قلاوظ ديكور
J35: =G35-D35 -> 0 | K35: 200 | O35: =C35*L35 -> 0 | Q35: 'ديكور'اسم الصنف : دواية قلاوظ ديكور
J36: 0 | K36: =K35+C36-H36-I36+J36 -> 200 | Q36: 'ديكور'اسم الصنف : دواية قلاوظ ديكور
J37: 0 | K37: 200 | O37: 0 | Q37: 'ديكور'اسم الصنف : دواية قلاوظ ديكور
J38: 0 | K38: 200 | O38: 0 | Q38: 'ديكور'اسم الصنف : دواية قلاوظ ديكور
J39: 0 | K39: 200 | O39: 0 | Q39: 'ديكور'اسم الصنف : دواية قلاوظ ديكور
J40: 0 | K40: =K39+C40-I40 -> 200 | Q40: 'ديكور'اسم الصنف : دواية قلاوظ ديكور
J41: 0 | K41: 200 | Q41: 'ديكور'اسم الصنف : دواية قلاوظ ديكور
J42: 0 | K42: 200 | O42: =C42*L42 -> 0 | Q42: 'ديكور'اسم الصنف : دواية قلاوظ ديكور
J43: 0 | K43: =K42+C43-G43-H43-I43+J43 -> 200 | O43: 0 | Q43: 'ديكور'اسم الصنف : دواية قلاوظ ديكور
J44: =G44-D44 -> 0 | K44: =K43+C44-I44 -> 200 | O44: =C44*L44 -> 0 | Q44: 'ديكور'اسم الصنف : دواية قلاوظ ديكور
J45: =G45-D45 -> 0 | K45: =K44+C45-I45 -> 200 | Q45: 'ديكور'اسم الصنف : دواية قلاوظ ديكور
J46: 0 | K46: 200 | Q46: 'ديكور'اسم الصنف : دواية قلاوظ ديكور
J47: 0 | K47: 200 | Q47: 'ديكور'اسم الصنف : دواية قلاوظ ديكور
J48: 0 | K48: 200 | Q48: 'ديكور'اسم الصنف : دواية قلاوظ ديكور
J49: 0 | K49: 200 | Q49: 'ديكور'اسم الصنف : دواية قلاوظ ديكور
J50: 0 | K50: 200 | O50: =C50*L50 -> 0 | Q50: 'ديكور'اسم الصنف : دواية قلاوظ ديكور
J51: 0 | K51: 200 | Q51: 'ديكور'اسم الصنف : دواية قلاوظ ديكور
J52: 0 | K52: 200 | O52: =C52*L52 -> 0 | Q52: 'ديكور'اسم الصنف : دواية قلاوظ ديكور
J53: 0 | K53: 200 | O53: 0 | Q53: 'ديكور'اسم الصنف : دواية قلاوظ ديكور
J54: 0 | K54: 200 | O54: 0 | Q54: 'ديكور'اسم الصنف : دواية قلاوظ ديكور
J55: 0 | K55: 200 | Q55: 'ديكور'اسم الصنف : دواية قلاوظ ديكور
J56: 0 | K56: 200
J57: 0 | K57: 200
J58: 0 | K58: 200 | O58: =C58*L58 -> 0
J59: 0 | K59: 200 | O59: 0
J60: 0 | K60: 200 | O60: 0
J61: 0 | K61: =K60+C61-I61-H61+J61 -> 200
J62: 0 | K62: 200
J63: 0 | K63: 200
J64: 0 | K64: =K63+C64-I64 -> 200 | O64: =C64*L64 -> 0
J65: 0 | K65: =K64+C65-G65-H65-I65+J65 -> 200 | O65: 0
J66: 0 | K66: 200
J67: 0 | K67: 200
J68: 0 | K68: 200
J69: 0 | K69: 200
J70: 0 | K70: 200
J71: 0 | K71: 200
J72: 0 | K72: 200
J73: 0 | K73: 200 | O73: 0
J74: 0 | K74: 200 | O74: 0
A75: الرصيد | J75: =G75-D75 -> 0 | K75: 200 | O75: 0
C76: =SUM(C10:C74) -> 200 | D76: =SUM(D10:D74) -> 0 | H76: =SUM(H10:H74) -> 0 | I76: =SUM(I10:I74) -> 0 | J76: =G76-D76 -> 0 | K76: =K75 -> 200 | O76: =SUM(O10:O75) -> 0 | P76: =SUM(G76:I76) -> 0

Sheet بريزة خارج الحائط
F1: بطاقة كارت صنف
A4: اسم الصنف : بريزة خارج الحائط | K4: كود الصنف | L4: رقم كارت الصنف | M4: المخزن :
A7: رقم اذن اضافة الوارد | B7: تاريخ اذن اضافة الوارد | C7: وارد مشتريات وتحويل مشروع | D7: ع من الصيانة والمامورية | E7: رقم اذن الصرف | F7: تاريخ اذن الصرف | G7: صرف صيانة | H7: صرف تحويل | I7: صرف د الموقع | J7: فرق الصيانة | K7: الرصيد | L7: سعر توريد الصنف | M7: جهه التوريد | N7: ملاحظات
L9: رصيد اول المدة | O9: ج سعر التوريد | Q9: =$A$4 -> اسم الصنف : بريزة خارج الحائط
A10: 652 | B10: 2018-01-31 | C10: 30 | J10: =G10-D10 -> 0 | K10: =K9+C10-I10 -> 30 | L10: 4 | M10: انريجيا | N10: جلال | O10: =C10*L10 -> 120 | Q10: =$A$4 -> اسم الصنف : بريزة خارج الحائط
C11: 6 | J11: =G11-D11 -> 0 | K11: =K10+C11-I11 -> 36 | N11: بدون تقرير | O11: =C11*L11 -> 0 | Q11: اسم الصنف : بريزة خارج الحائط
E12: 763 | F12: 2018-11-04 | I12: 35 | J12: =G12-D12 -> 0 | K12: 1 | M12: خدمة موقع | O12: 0 | Q12: اسم الصنف : بريزة خارج الحائط
E13: 779 | F13: 25/4/2018 | I13: 1 | J13: 0 | K13: 0 | M13: خدمة موقع | O13: 0 | Q13: اسم الصنف : بريزة خارج الحائط
A14: 13183 | B14: 2018-01-05 | C14: 8 | J14: =G14-D14 -> 0 | K14: 8 | M14: ادارة المشتريات | O14: 0 | Q14: اسم الصنف : بريزة خارج الحائط
E15: 787 | F15: 2018-03-05 | I15: 8 | J15: 0 | K15: =K14+C15-I15-H15+J15 -> 0 | M15: خدمة موقع | O15: 0 | Q15: اسم الصنف : بريزة خارج الحائط
A16: 8247 | B16: 2018-10-07 | C16: 50 | J16: 0 | K16: =K15+C16-G16-H16-I16+J16 -> 50 | M16: ادارة المشتريات | O16: 0 | Q16: اسم الصنف : بريزة خارج الحائط
E17: 13793 | F17: 2018-10-07 | I17: 4 | J17: 0 | K17: 46 | M17: خدمة موقع | O17: 0 | Q17: اسم الصنف : بريزة خارج الحائط
E18: 13795 | F18: 2018-11-07 | I18: 1 | J18: 0 | K18: 45 | M18: خدمة موقع | O18: 0 | Q18: اسم الصنف : بريزة خارج الحائط
E19: 13797 | F19: 2018-12-07 | I19: 10 | J19: 0 | K19: 35 | M19: خدمة موقع | O19: 0 | Q19: اسم الصنف : بريزة خارج الحائط
E20: 13800 | F20: 15/7/2018 | I20: 10 | J20: 0 | K20: 25 | M20: خدمة موقع | O20: 0 | Q20: اسم الصنف : بريزة خارج الحائط
E21: 13801 | F21: 16/7/2018 | I21: 3 | J21: 0 | K21: 22 | M21: خدمة موقع | Q21: اسم الصنف : بريزة خارج الحائط
E22: 1393 | F22: 21/7/2018 | H22: 1 | J22: 0 | K22: 21 | M22: محول الي كلية طب اسنان | O22: 0 | Q22: اسم الصنف : بريزة خارج الحائط
E23: 13805 | F23: 21/7/2018 | I23: 7 | J23: 0 | K23: 14 | M23: خدمة موقع | Q23: اسم الصنف : بريزة خارج الحائط
E24: 13807 | F24: 23/7/2018 | I24: 7 | J24: 0 | K24: 7 | M24: خدمة موقع | Q24: اسم الصنف : بريزة خارج الحائط
E25: 13808 | F25: 24/7/2018 | I25: 2 | J25: 0 | K25: 5 | M25: خدمة موقع | O25: 0 | Q25: اسم الصنف : بريزة خارج الحائط
E26: 2807ر | F26: 29/7/2018 | H26: 4 | J26: 0 | K26: 1 | M26: محول الي كلية طب اسنان | O26: 0 | Q26: اسم الصنف : بريزة خارج الحائط
E27: 13819 | F27: 2018-07-08 | I27: 1 | J27: 0 | K27: =K26+C27-I27-H27+J27 -> 0 | M27: خدمة موقع | Q27: اسم الصنف : بريزة خارج الحائط
A28: 8002 | B28: 2018-08-08 | C28: 100 | J28: 0 | K28: 100 | M28: ادارة المشتريات | O28: 0 | Q28: اسم الصنف : بريزة خارج الحائط
E29: 2823ر | F29: 2018-08-08 | H29: 5 | J29: 0 | K29: 95 | M29: محول الي طب اسنان | O29: =L29*C29 -> 0 | Q29: اسم الصنف : بريزة خارج الحائط
E30: 2824ر | F30: 2018-12-08 | H30: 7 | J30: 0 | K30: 88 | M30: محول الي طب اسنان | Q30: اسم الصنف : بريزة خارج الحائط
E31: 13826 | F31: 14/8/2018 | I31: 6 | J31: 0 | K31: 82 | M31: خدمة موقع | O31: 0 | Q31: اسم الصنف : بريزة خارج الحائط
E32: 2828ر | F32: 14/4/2018 | H32: 3 | J32: 0 | K32: 79 | M32: محول الي طب اسنان | O32: 0 | Q32: اسم الصنف : بريزة خارج الحائط
E33: 13828 | F33: 16/8/2018 | I33: 6 | J33: 0 | K33: 73 | M33: لزوم مبني ادارة الجامعة | Q33: اسم الصنف : بريزة خارج الحائط
E34: 13829 | F34: 17/8/2018 | I34: 3 | J34: 0 | K34: 70 | M34: لزوم مبني ادارة الجامعة | Q34: اسم الصنف : بريزة خارج الحائط
E35: 13831 | F35: 28/8/2018 | I35: 1 | J35: 0 | K35: 69 | M35: خدمة موقع | Q35: اسم الصنف : بريزة خارج الحائط
E36: ر2839 | F36: 2018-02-09 | H36: 10 | J36: 0 | K36: 59 | M36: محول الي النادي | O36: 0 | Q36: اسم الصنف : بريزة خارج الحائط
E37: 13834 | F37: 2018-03-09 | I37: 20 | J37: 0 | K37: 39 | M37: خدمة موقع | O37: =L37*C37 -> 0 | Q37: اسم الصنف : بريزة خارج الحائط
E38: 13835 | F38: 2018-05-09 | I38: 5 | J38: 0 | K38: 34 | M38: خدمة موقع | Q38: اسم الصنف : بريزة خارج الحائط
E39: 13841 | F39: 2018-11-09 | I39: 3 | J39: 0 | K39: 31 | M39: خدمة موقع | O39: =L39*C39 -> 0 | Q39: اسم الصنف : بريزة خارج الحائط
E40: 13847 | F40: 16/4/2018 | I40: 6 | J40: 0 | K40: 25 | M40: سكن عمال | Q40: اسم الصنف : بريزة خارج الحائط
E41: 19854 | F41: 29/9/2018 | I41: 3 | J41: 0 | K41: 22 | M41: لزوم مبني ادارة الجامعة | Q41: اسم الصنف : بريزة خارج الحائط
E42: 19857 | F42: 2018-01-10 | I42: 22 | J42: 0 | K42: 0 | M42: خدمة موقع | O42: 0 | Q42: اسم الصنف : بريزة خارج الحائط
A43: 1240 | B43: 2018-09-10 | C43: 20 | J43: 0 | K43: 20 | M43: ادارة المشتريات | O43: 0 | Q43: اسم الصنف : بريزة خارج الحائط
E44: 19869 | F44: 2018-09-10 | I44: 3 | J44: 0 | K44: 15 | M44: مبني ادارة الجامعة | Q44: اسم الصنف : بريزة خارج الحائط
E45: 19872 | F45: 2018-11-10 | I45: 6 | J45: =G45-D45 -> 0 | K45: =K44+C45-G45-H45-I45+J45 -> 9 | M45: خدمة موقع | O45: =C45*L45 -> 0 | Q45: اسم الصنف : بريزة خارج الحائط
E46: 19874 | F46: 2018-11-10 | I46: 6 | J46: 0 | K46: 3 | M46: خدمة موقع | O46: 0 | Q46: اسم الصنف : بريزة خارج الحائط
E47: 14602 | F47: 29/10/2018 | I47: 3 | J47: 0 | K47: 0 | M47: خدمة موقع | O47: 0 | Q47: اسم الصنف : بريزة خارج الحائط
A48: 11988 | B48: 2018-10-11 | C48: 20 | J48: =G48-D48 -> 0 | K48: 20 | M48: محول من كلية طب اسنان | O48: =C48*L48 -> 0 | Q48: اسم الصنف : بريزة خارج الحائط
E49: 14622 | F49: 2018-10-11 | I49: 1 | J49: 0 | K49: 19 | M49: خدمة موقع | O49: 0 | Q49: اسم الصنف : بريزة خارج الحائط
E50: 14624 | F50: 2018-10-11 | I50: 7 | J50: 0 | K50: 12 | M50: خدمة موقع | O50: 0 | Q50: اسم الصنف : بريزة خارج الحائط
E51: 3310 | F51: 21/11/2018 | I51: 2 | J51: 0 | K51: =K50+C51-I51 -> 10 | Q51: اسم الصنف : بريزة خارج الحائط
E52: 3312 | F52: 22/11/2018 | I52: 8 | J52: 0 | K52: =K51+C52-G52-H52-I52+J52 -> 2 | M52: موقع | O52: =C52*L52 -> 0 | Q52: اسم الصنف : بريزة خارج الحائط
A53: 12215 | B53: 22/11/2018 | C53: 2 | J53: 0 | K53: 4 | M53: محول من طب اسنان | Q53: اسم الصنف : بريزة خارج الحائط
A54: 12238 | B54: 24/11/2018 | C54: 140 | J54: =G54-D54 -> 0 | K54: =K53+C54-I54 -> 144 | M54: ادارة المشتريات | O54: =C54*L54 -> 0 | Q54: اسم الصنف : بريزة خارج الحائط
E55: 3322 | F55: 25/11/2018 | I55: 10 | J55: 0 | K55: 134 | O55: =C55*L55 -> 0 | Q55: اسم الصنف : بريزة خارج الحائط
E56: 3330 | F56: 26/11/2018 | I56: 6 | J56: 0 | K56: =K55+C56-I56 -> 128
E57: 3333 | F57: 27/11/2018 | I57: 8 | J57: 0 | K57: 120
E58: 3339 | F58: 28/11/2018 | I58: 1 | J58: 0 | K58: 119
E59: 3349 | F59: 29/11/2018 | I59: 1 | J59: 0 | K59: 118
E60: 11853 | F60: 2018-01-12 | I60: 12 | J60: 0 | K60: 106
E61: 11855 | F61: 2018-02-12 | I61: 2 | J61: 0 | K61: 104
E62: 11861 | F62: 2018-04-12 | I62: 13 | J62: 0 | K62: =K61+C62-G62-H62-I62+J62 -> 91 | O62: =C62*L62 -> 0
E63: 11865 | F63: 2018-05-12 | I63: 6 | J63: 0 | K63: =K62+C63-I63 -> 85
E64: 11868 | F64: 2018-06-12 | I64: 1 | J64: 0 | K64: 84
E65: 11871 | F65: 2018-07-12 | I65: 10 | J65: 0 | K65: 74 | O65: =C65*L65 -> 0
E66: 11876 | F66: 2018-09-12 | I66: 2 | J66: 0 | K66: 72 | M66: موقع | O66: 0
E67: 11880 | F67: 2018-10-12 | I67: 1 | J67: 0 | K67: =K66+C67-G67-H67-I67+J67 -> 71 | M67: خدمة موقع
E68: 11885 | F68: 2018-11-12 | I68: 5 | J68: 0 | K68: 66 | M68: موقع | O68: =C68*L68 -> 0
E69: 11895 | F69: 13/12/2018 | I69: 6 | J69: 0 | K69: 60
E70: 11896 | F70: 13/1272018 | I70: 10 | J70: 0 | K70: 50 | M70: موقع
E71: 11658 | F71: 15/12/2018 | I71: 1 | J71: 0 | K71: =K70+C71-I71 -> 49
E72: 11687 | F72: 22/12/2018 | I72: 20 | J72: 0 | K72: =K71+C72-G72-H72-I72+J72 -> 29 | O72: =C72*L72 -> 0
A73: 7766 | B73: 23/12/2018 | C73: 100 | J73: 0 | K73: 129 | M73: ادارة المشتريات | O73: 0
E74: 11690 | F74: 23/12/2018 | I74: 2 | J74: 0 | K74: =K73+C74-I74 -> 127 | O74: 0
A75: 7778 | B75: 24/12/2018 | C75: 100 | J75: 0 | K75: =K74+C75-G75-H75-I75+J75 -> 227 | M75: ادارة المشتريات | O75: 0
E76: 3602 | F76: 26/12/2018 | I76: 1 | J76: 0 | K76: 226 | M76: موقع
E77: 3610 | F77: 29/12/2018 | I77: 14 | J77: 0 | K77: 212 | M77: موقع
E78: 3614 | F78: 30/12/2018 | I78: 5 | J78: 0 | K78: =K77+C78-I78 -> 207
E79: 3623 | F79: 2019-01-01 | I79: 12 | J79: 0 | K79: =K78+C79-G79-H79-I79+J79 -> 195 | O79: =C79*L79 -> 0
E80: 3638 | F80: 2019-05-01 | I80: 10 | J80: 0 | K80: 185 | O80: 0
E81: 3648 | F81: 2019-07-01 | I81: 3 | J81: 0 | K81: =K80+C81-I81 -> 182 | O81: 0
E82: 3649 | F82: 2019-07-01 | I82: 3 | J82: 0 | K82: 179 | O82: 0
E83: 11837 | F83: 15/1/2019 | I83: 15 | J83: =G83-D83 -> 0 | K83: =K82+C83-G83-H83-I83+J83 -> 164 | O83: =C83*L83 -> 0
E84: 11833 | F84: 14/1/2019 | I84: 10 | J84: =G84-D84 -> 0 | K84: =K83+C84-I84 -> 154 | O84: =C84*L84 -> 0
E85: 14509 | F85: 20/1/2019 | I85: 10 | J85: 0 | K85: 144
E86: 4070ر | F86: 22/1/2019 | H86: 44 | J86: 0 | K86: =K85+C86-G86-H86-I86+J86 -> 100 | M86: محول الى طب اسنان | O86: =C86*L86 -> 0
E87: 14540 | F87: 28/1/2019 | I87: 25 | K87: 75
E88: 108 | F88: 31/1/2019 | I88: 10 | J88: =G88-D88 -> 0 | K88: =K87+C88-G88-H88-I88+J88 -> 65 | O88: =C88*L88 -> 0
E89: 129 | F89: 43618 | I89: 25 | J89: 0 | K89: 40 | O89: =L89*C89 -> 0
E90: 141 | F90: 2019-11-02 | I90: 1 | J90: 0 | K90: =K89+C90-G90-H90-I90+J90 -> 39 | O90: =C90*L90 -> 0
E91: 9236 | F91: 26/2/2019 | I91: 2 | J91: 0 | K91: =K90+C91-G91-H91-I91+J91 -> 37
E92: 22803 | F92: 2019-03-03 | I92: 25 | J92: 0 | K92: =K91+C92-I92-H92+J92 -> 12
K93: 12
J94: 0 | K94: 12 | O94: 0
A95: الرصيد | J95: =G95-D95 -> 0 | K95: 12 | O95: 0
C96: =SUM(C10:C94) -> 576 | D96: =SUM(D10:D94) -> 0 | H96: =SUM(H10:H94) -> 74 | I96: =SUM(I10:I94) -> 488 | J96: =G96-D96 -> 0 | K96: 182 | O96: =SUM(O10:O95) -> 120 | P96: =SUM(G96:I96) -> 562

Sheet بريزة خارج الحائط ووتر بروف
F1: بطاقة كارت صنف
A4: اسم الصنف : بريزة خارج الحائط ووتر بروف | K4: كود الصنف | L4: رقم كارت الصنف | M4: المخزن :
A7: رقم اذن اضافة الوارد | B7: تاريخ اذن اضافة الوارد | C7: وارد مشتريات وتحويل مشروع | D7: ع من الصيانة والمامورية | E7: رقم اذن الصرف | F7: تاريخ اذن الصرف | G7: صرف صيانة | H7: صرف تحويل | I7: صرف د الموقع | J7: فرق الصيانة | K7: الرصيد | L7: سعر توريد الصنف | M7: جهه التوريد | N7: ملاحظات
L9: رصيد اول المدة | O9: ج سعر التوريد | Q9: =$A$4 -> اسم الصنف : بريزة خارج الحائط ووتر بروف
A10: 699 | B10: 2018-04-03 | C10: 20 | J10: =G10-D10 -> 0 | K10: =K9+C10-I10 -> 20 | L10: =260/20 -> 13 | M10: مش موقع | N10: احمد حامد المحاسب | O10: =C10*L10 -> 260 | Q10: =$A$4 -> اسم الصنف : بريزة خارج الحائط ووتر بروف
E11: 756 | F11: 2018-04-03 | I11: 2 | J11: =G11-D11 -> 0 | K11: =K10+C11-I11 -> 18 | O11: =C11*L11 -> 0 | Q11: اسم الصنف : بريزة خارج الحائط ووتر بروف
E12: 763 | F12: 2018-11-04 | I12: 1 | J12: =G12-D12 -> 0 | K12: 17 | M12: خدمة موقع | O12: 0 | Q12: اسم الصنف : بريزة خارج الحائط ووتر بروف
E13: 769 | F13: 17/4/2018 | I13: 2 | J13: 0 | K13: 15 | M13: خدمة موقع | O13: 0 | Q13: اسم الصنف : بريزة خارج الحائط ووتر بروف
E14: 785 | F14: 2018-01-05 | I14: 1 | J14: 0 | K14: 14 | M14: كرفان الجيش | O14: 0 | Q14: اسم الصنف : بريزة خارج الحائط ووتر بروف
E15: 788 | F15: 2018-05-05 | I15: 14 | J15: =G15-D15 -> 0 | K15: 0 | M15: خدمة موقع | O15: 0 | Q15: اسم الصنف : بريزة خارج الحائط ووتر بروف
J16: 0 | K16: 0 | O16: 0 | Q16: اسم الصنف : بريزة خارج الحائط ووتر بروف
J17: 0 | K17: 0 | O17: 0 | Q17: اسم الصنف : بريزة خارج الحائط ووتر بروف
J18: 0 | K18: 0 | O18: 0 | Q18: اسم الصنف : بريزة خارج الحائط ووتر بروف
J19: 0 | K19: 0 | O19: 0 | Q19: اسم الصنف : بريزة خارج الحائط ووتر بروف
J20: 0 | K20: 0 | O20: 0 | Q20: اسم الصنف : بريزة خارج الحائط ووتر بروف
J21: 0 | K21: 0 | O21: 0 | Q21: اسم الصنف : بريزة خارج الحائط ووتر بروف
J22: 0 | K22: 0 | O22: 0 | Q22: اسم الصنف : بريزة خارج الحائط ووتر بروف
J23: 0 | K23: 0 | O23: 0 | Q23: اسم الصنف : بريزة خارج الحائط ووتر بروف
J24: 0 | K24: 0 | O24: 0 | Q24: اسم الصنف : بريزة خارج الحائط ووتر بروف
J25: 0 | K25: 0 | O25: 0 | Q25: اسم الصنف : بريزة خارج الحائط ووتر بروف
J26: 0 | K26: 0 | O26: 0 | Q26: اسم الصنف : بريزة خارج الحائط ووتر بروف
J27: 0 | K27: 0 | O27: 0 | Q27: اسم الصنف : بريزة خارج الحائط ووتر بروف
J28: 0 | K28: 0 | O28: 0 | Q28: اسم الصنف : بريزة خارج الحائط ووتر بروف
J29: 0 | K29: 0 | O29: 0 | Q29: اسم الصنف : بريزة خارج الحائط ووتر بروف
J30: 0 | K30: 0 | O30: 0 | Q30: اسم الصنف : بريزة خارج الحائط ووتر بروف
J31: 0 | K31: 0 | O31: 0 | Q31: اسم الصنف : بريزة خارج الحائط ووتر بروف
J32: 0 | K32: 0 | O32: 0 | Q32: اسم الصنف : بريزة خارج الحائط ووتر بروف
J33: 0 | K33: 0 | O33: 0 | Q33: اسم الصنف : بريزة خارج الحائط ووتر بروف
J34: 0 | K34: 0 | O34: 0 | Q34: اسم الصنف : بريزة خارج الحائط ووتر بروف
J35: 0 | K35: 0 | O35: 0 | Q35: اسم الصنف : بريزة خارج الحائط ووتر بروف
J36: 0 | K36: 0 | O36: 0 | Q36: اسم الصنف : بريزة خارج الحائط ووتر بروف
J37: 0 | K37: 0 | O37: 0 | Q37: اسم الصنف : بريزة خارج الحائط ووتر بروف
J38: 0 | K38: 0 | O38: 0 | Q38: اسم الصنف : بريزة خارج الحائط ووتر بروف
J39: 0 | K39: 0 | O39: 0 | Q39: اسم الصنف : بريزة خارج الحائط ووتر بروف
J40: 0 | K40: 0 | O40: 0 | Q40: اسم الصنف : بريزة خارج الحائط ووتر بروف
J41: 0 | K41: 0 | O41: 0 | Q41: اسم الصنف : بريزة خارج الحائط ووتر بروف
J42: 0 | K42: 0 | O42: 0 | Q42: اسم الصنف : بريزة خارج الحائط ووتر بروف
J43: 0 | K43: 0 | O43: 0 | Q43: اسم الصنف : بريزة خارج الحائط ووتر بروف
J44: 0 | K44: 0 | O44: 0 | Q44: اسم الصنف : بريزة خارج الحائط ووتر بروف
J45: 0 | K45: 0 | O45: 0 | Q45: اسم الصنف : بريزة خارج الحائط ووتر بروف
J46: 0 | K46: 0 | O46: 0 | Q46: اسم الصنف : بريزة خارج الحائط ووتر بروف
J47: 0 | K47: 0 | O47: 0 | Q47: اسم الصنف : بريزة خارج الحائط ووتر بروف
J48: 0 | K48: 0 | O48: 0 | Q48: اسم الصنف : بريزة خارج الحائط ووتر بروف
F49: . | J49: 0 | K49: 0 | O49: 0 | Q49: اسم الصنف : بريزة خارج الحائط ووتر بروف
J50: 0 | K50: 0 | O50: 0 | Q50: اسم الصنف : بريزة خارج الحائط ووتر بروف
J51: 0 | K51: 0 | O51: 0 | Q51: اسم الصنف : بريزة خارج الحائط ووتر بروف
J52: 0 | K52: 0 | O52: 0 | Q52: اسم الصنف : بريزة خارج الحائط ووتر بروف
J53: 0 | K53: 0 | O53: 0 | Q53: اسم الصنف : بريزة خارج الحائط ووتر بروف
J54: 0 | K54: 0 | O54: 0 | Q54: اسم الصنف : بريزة خارج الحائط ووتر بروف
J55: 0 | K55: 0 | O55: 0 | Q55: اسم الصنف : بريزة خارج الحائط ووتر بروف
J56: 0 | K56: 0 | O56: 0
A57: الرصيد | J57: =G57-D57 -> 0 | K57: =K56+C57-G57-H57-I57+J57 -> 0 | O57: 0
C58: =SUM(C10:C56) -> 20 | D58: =SUM(D10:D56) -> 0 | H58: =SUM(H10:H56) -> 0 | I58: =SUM(I10:I56) -> 20 | J58: =G58-D58 -> 0 | K58: =K57 -> 0 | O58: =SUM(O10:O57) -> 260 | P58: =SUM(G58:I58) -> 20

Sheet مفتاح اليوس خارج الحائط (انارة)
F1: بطاقة كارت صنف
A4: اسم الصنف : مفتاح اليوس خارج الحائط (انارة) | K4: كود الصنف | L4: رقم كارت الصنف | M4: المخزن :
A7: رقم اذن اضافة الوارد | B7: تاريخ اذن اضافة الوارد | C7: وارد مشتريات وتحويل مشروع | D7: ع من الصيانة والمامورية | E7: رقم اذن الصرف | F7: تاريخ اذن الصرف | G7: صرف صيانة | H7: صرف تحويل | I7: صرف د الموقع | J7: فرق الصيانة | K7: الرصيد | L7: سعر توريد الصنف | M7: جهه التوريد | N7: ملاحظات
L9: رصيد اول المدة | O9: ج سعر التوريد | Q9: =$A$4 -> اسم الصنف : مفتاح اليوس خارج الحائط (انارة)
A10: 652 | B10: 2018-01-31 | C10: 10 | J10: =G10-D10 -> 0 | K10: =K9+C10-I10 -> 10 | L10: 5 | M10: انريجيا | N10: جلال | O10: =C10*L10 -> 50 | Q10: =$A$4 -> اسم الصنف : مفتاح اليوس خارج الحائط (انارة)
A11: 699 | B11: 2018-04-03 | C11: 20 | J11: =G11-D11 -> 0 | K11: =K10+C11-H11-I11+J11 -> 30 | L11: =70/20 -> 3.5 | M11: مش موقع | N11: احمد حامد المحاسب | O11: =C11*L11 -> 70 | Q11: اسم الصنف : مفتاح اليوس خارج الحائط (انارة)
E12: 760 | F12: 2018-08-04 | I12: 1 | J12: 0 | K12: =K11+C12-H12-I12+J12 -> 29 | M12: خدمة موقع | Q12: اسم الصنف : مفتاح اليوس خارج الحائط (انارة)
E13: 567 | F13: 2018-11-04 | H13: 16 | J13: 0 | K13: 13 | M13: محول الي نادي الجلالة | O13: =C13*L13 -> 0 | Q13: اسم الصنف : مفتاح اليوس خارج الحائط (انارة)
A14: 13021 | B14: 2018-09-04 | C14: 100 | J14: 0 | K14: 113 | M14: ادارة المشتريات | O14: 0 | Q14: اسم الصنف : مفتاح اليوس خارج الحائط (انارة)
E15: 763 | F15: 2018-11-04 | I15: 20 | J15: 0 | K15: 93 | M15: خدمة موقع | O15: 0 | Q15: اسم الصنف : مفتاح اليوس خارج الحائط (انارة)
E16: 784 | F16: 2018-01-05 | I16: 1 | J16: 0 | K16: =K15+C16-I16-H16+J16 -> 92 | M16: خدمة موقع | O16: 0 | Q16: اسم الصنف : مفتاح اليوس خارج الحائط (انارة)
E17: 785 | F17: 2018-01-05 | I17: 1 | J17: 0 | K17: 91 | M17: خدمة موقع | O17: 0 | Q17: اسم الصنف : مفتاح اليوس خارج الحائط (انارة)
E18: 787 | F18: 2018-03-05 | I18: 5 | J18: 0 | K18: 86 | M18: خدمة موقع | O18: 0 | Q18: اسم الصنف : مفتاح اليوس خارج الحائط (انارة)
E19: 13761 | F19: 29/5/2018 | I19: 26 | J19: =G19-D19 -> 0 | K19: 60 | M19: خدمة موقع | O19: 0 | Q19: اسم الصنف : مفتاح اليوس خارج الحائط (انارة)
E20: 13782 | F20: 30/6/2018 | I20: 6 | J20: 0 | K20: =K19+C20-G20-H20-I20+J20 -> 54 | M20: خدمة موقع | O20: 0 | Q20: اسم الصنف : مفتاح اليوس خارج الحائط (انارة)
E21: 13792 | F21: 2018-09-07 | I21: 1 | J21: 0 | K21: 53 | M21: سكن عمال | O21: 0 | Q21: اسم الصنف : مفتاح اليوس خارج الحائط (انارة)
E22: 13800 | F22: 15/7/2018 | I22: 3 | J22: 0 | K22: 50 | M22: خدمة موقع | O22: 0 | Q22: اسم الصنف : مفتاح اليوس خارج الحائط (انارة)
E23: 1393 | F23: 21/7/2018 | H23: 1 | J23: 0 | K23: 49 | M23: محول الي كلية طب اسنان | O23: 0 | Q23: اسم الصنف : مفتاح اليوس خارج الحائط (انارة)
E24: 13804 | F24: 19/7/2018 | I24: 1 | J24: 0 | K24: 48 | M24: سقف الدور الرابع | Q24: اسم الصنف : مفتاح اليوس خارج الحائط (انارة)
E25: 2807ر | F25: 29/7/2018 | H25: 1 | J25: 0 | K25: 47 | M25: محول الي كلية طب اسنان | O25: =C25*L25 -> 0 | Q25: اسم الصنف : مفتاح اليوس خارج الحائط (انارة)
E26: 13813 | F26: 30/7/2018 | I26: 1 | J26: 0 | K26: 46 | M26: غرفة امن | O26: 0 | Q26: اسم الصنف : مفتاح اليوس خارج الحائط (انارة)
E27: 2815ر | F27: 2018-05-08 | H27: 1 | J27: 0 | K27: 45 | M27: محول الي كلية طب اسنان | Q27: اسم الصنف : مفتاح اليوس خارج الحائط (انارة)
E28: 13834 | F28: 2018-03-09 | I28: 8 | J28: 0 | K28: 37 | M28: خدمة موقع | O28: =L28*C28 -> 0 | Q28: اسم الصنف : مفتاح اليوس خارج الحائط (انارة)
E29: 13846 | F29: 15/9/2018 | I29: 1 | J29: 0 | K29: 36 | M29: كمر رخام | O29: 0 | Q29: اسم الصنف : مفتاح اليوس خارج الحائط (انارة)
E30: 13847 | F30: 16/4/2018 | I30: 3 | J30: 0 | K30: 33 | M30: سكن عمال | Q30: اسم الصنف : مفتاح اليوس خارج الحائط (انارة)
E31: 13848 | F31: 22/9/2018 | I31: 4 | J31: 0 | K31: 29 | M31: سكن عمال | Q31: اسم الصنف : مفتاح اليوس خارج الحائط (انارة)
E32: 19852 | F32: 26/9/2018 | I32: 10 | J32: 0 | K32: 19 | M32: لزوم مبني ادارة الجامعة | O32: 0 | Q32: اسم الصنف : مفتاح اليوس خارج الحائط (انارة)
E33: 19854 | F33: 29/9/2018 | I33: 1 | J33: =G33-D33 -> 0 | K33: 18 | M33: لزوم مبني ادارة الجامعة | Q33: اسم الصنف : مفتاح اليوس خارج الحائط (انارة)
E34: 19857 | F34: 2018-01-10 | I34: 9 | J34: 0 | K34: 9 | M34: خدمة موقع | O34: 0 | Q34: اسم الصنف : مفتاح اليوس خارج الحائط (انارة)
E35: 19865 | F35: 2018-07-10 | I35: 9 | J35: =G35-D35 -> 0 | K35: 0 | M35: خدمة موقع | O35: =C35*L35 -> 0 | Q35: اسم الصنف : مفتاح اليوس خارج الحائط (انارة)
A36: 12238 | B36: 24/11/2018 | C36: 40 | J36: 0 | K36: =K35+C36-I36 -> 40 | M36: ادارة المشتريات | O36: 0 | Q36: اسم الصنف : مفتاح اليوس خارج الحائط (انارة)
E37: 3333 | F37: 27/11/2018 | I37: 4 | J37: 0 | K37: 36 | Q37: اسم الصنف : مفتاح اليوس خارج الحائط (انارة)
E38: 3339 | F38: 28/11/2018 | I38: 1 | J38: 0 | K38: 35 | Q38: اسم الصنف : مفتاح اليوس خارج الحائط (انارة)
E39: 11861 | F39: 2018-04-12 | I39: 9 | J39: 0 | K39: =K38+C39-G39-H39-I39+J39 -> 26 | O39: =C39*L39 -> 0 | Q39: اسم الصنف : مفتاح اليوس خارج الحائط (انارة)
E40: 11865 | F40: 2018-05-12 | I40: 3 | J40: 0 | K40: =K39+C40-I40 -> 23 | Q40: اسم الصنف : مفتاح اليوس خارج الحائط (انارة)
E41: 11871 | F41: 2018-07-12 | I41: 6 | J41: 0 | K41: 17 | O41: =C41*L41 -> 0 | Q41: اسم الصنف : مفتاح اليوس خارج الحائط (انارة)
E42: 11876 | F42: 2018-09-12 | I42: 2 | J42: 0 | K42: 15 | M42: موقع | O42: 0 | Q42: اسم الصنف : مفتاح اليوس خارج الحائط (انارة)
E43: 11885 | F43: 2018-11-12 | I43: 5 | J43: 0 | K43: =K42+C43-G43-H43-I43+J43 -> 10 | M43: موقع | O43: 0 | Q43: اسم الصنف : مفتاح اليوس خارج الحائط (انارة)
E44: 11895 | F44: 13/12/2018 | I44: 6 | J44: 0 | K44: 4 | Q44: اسم الصنف : مفتاح اليوس خارج الحائط (انارة)
E45: 11687 | F45: 22/12/2018 | I45: 4 | J45: 0 | K45: 0 | O45: =C45*L45 -> 0 | Q45: اسم الصنف : مفتاح اليوس خارج الحائط (انارة)
A46: 7766 | B46: 23/12/2018 | C46: 100 | J46: 0 | K46: 100 | M46: ادارة المشتريات | O46: 0 | Q46: اسم الصنف : مفتاح اليوس خارج الحائط (انارة)
E47: 11690 | F47: 23/12/2018 | I47: 1 | J47: 0 | K47: =K46+C47-I47 -> 99 | O47: 0 | Q47: اسم الصنف : مفتاح اليوس خارج الحائط (انارة)
A48: 7778 | B48: 24/12/2018 | C48: 100 | J48: 0 | K48: =K47+C48-G48-H48-I48+J48 -> 199 | M48: ادارة المشتريات | O48: 0 | Q48: اسم الصنف : مفتاح اليوس خارج الحائط (انارة)
E49: 3610 | F49: 29/12/2018 | I49: 14 | J49: 0 | K49: 185 | M49: موقع | Q49: اسم الصنف : مفتاح اليوس خارج الحائط (انارة)
E50: 3638 | F50: 5/1/20198 | I50: 10 | J50: 0 | K50: 175 | O50: 0 | Q50: اسم الصنف : مفتاح اليوس خارج الحائط (انارة)
E51: 3648 | F51: 2019-07-01 | I51: 2 | J51: 0 | K51: =K50+C51-I51 -> 173 | O51: 0 | Q51: اسم الصنف : مفتاح اليوس خارج الحائط (انارة)
E52: 3649 | F52: 2019-07-01 | I52: 10 | J52: 0 | K52: =K51+C52-G52-H52-I52+J52 -> 163 | O52: 0 | Q52: اسم الصنف : مفتاح اليوس خارج الحائط (انارة)
E53: 11837 | F53: 15/1/2019 | I53: 15 | J53: =G53-D53 -> 0 | K53: 148 | O53: =C53*L53 -> 0 | Q53: اسم الصنف : مفتاح اليوس خارج الحائط (انارة)
E54: 11833 | F54: 14/1/2019 | I54: 10 | J54: =G54-D54 -> 0 | K54: 138 | O54: =C54*L54 -> 0 | Q54: اسم الصنف : مفتاح اليوس خارج الحائط (انارة)
A55: 7936 | B55: 15/1/2019 | C55: 200 | K55: 338 | M55: ادارة المشتريات | Q55: اسم الصنف : مفتاح اليوس خارج الحائط (انارة)
E56: 14509 | F56: 20/1/2019 | I56: 1 | J56: =G56-D56 -> 0 | K56: 337 | O56: =C56*L56 -> 0
E57: 14540 | F57: 28/1/2019 | I57: 20 | K57: =K56+C57-I57 -> 317
E58: 108 | F58: 31/1/2019 | I58: 7 | J58: =G58-D58 -> 0 | K58: =K57+C58-G58-H58-I58+J58 -> 310 | O58: =C58*L58 -> 0
E59: 129 | F59: 2019-06-02 | I59: 10 | J59: 0 | K59: 300 | O59: =L59*C59 -> 0
E60: 141 | F60: 2019-11-02 | I60: 1 | K60: 299
E61: 9206 | F61: 17/2/2019 | I61: 15 | J61: =G61-D61 -> 0 | K61: 284
E62: 22803 | F62: 2019-03-03 | I62: 10 | J62: 0 | K62: =K61+C62-I62-H62+J62 -> 274
K63: 274
K64: 274
K65: 274
K66: 274
K67: 274
K68: 274
K69: 274
K70: 274
K71: 274
K72: 274
K73: 274
K74: 274
K75: 274
K76: 274
K77: 274
J78: 0 | K78: 274 | O78: 0
J79: 0 | K79: 274 | O79: 0
J80: 0 | K80: 274 | O80: 0
A81: الرصيد | J81: =G81-D81 -> 0 | K81: 274 | O81: 0
C82: =SUM(C10:C80) -> 570 | D82: =SUM(D10:D80) -> 0 | H82: =SUM(H10:H80) -> 19 | I82: =SUM(I10:I80) -> 277 | J82: =G82-D82 -> 0 | K82: =K81 -> 274 | O82: =SUM(O10:O81) -> 120 | P82: =SUM(G82:I82) -> 296

Sheet بريزة اليوس خارج الحائط
F1: بطاقة كارت صنف
A4: اسم الصنف : بريزة اليوس خارج الحائط | K4: كود الصنف | L4: رقم كارت الصنف | M4: المخزن :
A7: رقم اذن اضافة الوارد | B7: تاريخ اذن اضافة الوارد | C7: وارد مشتريات وتحويل مشروع | D7: ع من الصيانة والمامورية | E7: رقم اذن الصرف | F7: تاريخ اذن الصرف | G7: صرف صيانة | H7: صرف تحويل | I7: صرف د الموقع | J7: فرق الصيانة | K7: الرصيد | L7: سعر توريد الصنف | M7: جهه التوريد | N7: ملاحظات
L9: رصيد اول المدة | O9: ج سعر التوريد | Q9: =$A$4 -> اسم الصنف : بريزة اليوس خارج الحائط
C10: 4 | J10: =G10-D10 -> 0 | K10: =K9+C10-G10-H10-I10+J10 -> 4 | M10: بدون اذن | O10: =C10*L10 -> 0 | Q10: =$A$4 -> اسم الصنف : بريزة اليوس خارج الحائط
A11: 699 | B11: 2018-03-04 | C11: 20 | J11: =G11-D11 -> 0 | K11: =K10+C11-G11-H11-I11+J11 -> 24 | M11: مشتريات الموقع | O11: =C11*L11 -> 0 | Q11: اسم الصنف : بريزة اليوس خارج الحائط
E12: 568 | F12: 2018-12-04 | H12: 24 | J12: =G12-D12 -> 0 | K12: =K11+C12-G12-H12-I12+J12 -> 0 | M12: محول الي نادي الجلالة | Q12: اسم الصنف : بريزة اليوس خارج الحائط
J13: =G13-D13 -> 0 | K13: ='سلك ترمو 2×3مم '!K51+C13-G13-H13-I13+J13 -> 0 | O13: =C13*L13 -> 0 | Q13: اسم الصنف : بريزة اليوس خارج الحائط
J14: 0 | K14: =K13+C14-G14-H14-I14+J14 -> 0 | O14: 0 | Q14: اسم الصنف : بريزة اليوس خارج الحائط
J15: 0 | K15: =K14+C15-G15-H15-I15+J15 -> 0 | O15: 0 | Q15: اسم الصنف : بريزة اليوس خارج الحائط
J16: 0 | K16: =K15+C16-G16-H16-I16+J16 -> 0 | O16: 0 | Q16: اسم الصنف : بريزة اليوس خارج الحائط
J17: 0 | K17: 0 | O17: 0 | Q17: اسم الصنف : بريزة اليوس خارج الحائط
J18: 0 | K18: 0 | O18: 0 | Q18: اسم الصنف : بريزة اليوس خارج الحائط
J19: 0 | K19: 0 | O19: 0 | Q19: اسم الصنف : بريزة اليوس خارج الحائط
J20: 0 | K20: 0 | O20: 0 | Q20: اسم الصنف : بريزة اليوس خارج الحائط
J21: 0 | K21: 0 | O21: 0 | Q21: اسم الصنف : بريزة اليوس خارج الحائط
J22: 0 | K22: 0 | O22: 0 | Q22: اسم الصنف : بريزة اليوس خارج الحائط
J23: 0 | K23: 0 | O23: 0 | Q23: اسم الصنف : بريزة اليوس خارج الحائط
J24: 0 | K24: 0 | O24: 0 | Q24: اسم الصنف : بريزة اليوس خارج الحائط
J25: 0 | K25: 0 | O25: 0 | Q25: اسم الصنف : بريزة اليوس خارج الحائط
J26: 0 | K26: 0 | O26: 0 | Q26: اسم الصنف : بريزة اليوس خارج الحائط
J27: 0 | K27: 0 | O27: 0 | Q27: اسم الصنف : بريزة اليوس خارج الحائط
J28: 0 | K28: 0 | O28: 0 | Q28: اسم الصنف : بريزة اليوس خارج الحائط
J29: 0 | K29: 0 | O29: 0 | Q29: اسم الصنف : بريزة اليوس خارج الحائط
J30: 0 | K30: 0 | O30: 0 | Q30: اسم الصنف : بريزة اليوس خارج الحائط
J31: 0 | K31: 0 | O31: 0 | Q31: اسم الصنف : بريزة اليوس خارج الحائط
J32: 0 | K32: 0 | O32: 0 | Q32: اسم الصنف : بريزة اليوس خارج الحائط
J33: 0 | K33: 0 | O33: 0 | Q33: اسم الصنف : بريزة اليوس خارج الحائط
J34: 0 | K34: 0 | O34: 0 | Q34: اسم الصنف : بريزة اليوس خارج الحائط
J35: 0 | K35: 0 | O35: 0 | Q35: اسم الصنف : بريزة اليوس خارج الحائط
J36: 0 | K36: 0 | O36: 0 | Q36: اسم الصنف : بريزة اليوس خارج الحائط
J37: 0 | K37: 0 | O37: 0 | Q37: اسم الصنف : بريزة اليوس خارج الحائط
J38: 0 | K38: 0 | O38: 0 | Q38: اسم الصنف : بريزة اليوس خارج الحائط
J39: 0 | K39: 0 | O39: 0 | Q39: اسم الصنف : بريزة اليوس خارج الحائط
J40: 0 | K40: 0 | O40: 0 | Q40: اسم الصنف : بريزة اليوس خارج الحائط
J41: 0 | K41: 0 | O41: 0 | Q41: اسم الصنف : بريزة اليوس خارج الحائط
J42: 0 | K42: 0 | O42: 0 | Q42: اسم الصنف : بريزة اليوس خارج الحائط
J43: 0 | K43: 0 | O43: 0 | Q43: اسم الصنف : بريزة اليوس خارج الحائط
J44: 0 | K44: 0 | O44: 0 | Q44: اسم الصنف : بريزة اليوس خارج الحائط
J45: 0 | K45: 0 | O45: 0 | Q45: اسم الصنف : بريزة اليوس خارج الحائط
J46: 0 | K46: 0 | O46: 0 | Q46: اسم الصنف : بريزة اليوس خارج الحائط
J47: 0 | K47: 0 | O47: 0 | Q47: اسم الصنف : بريزة اليوس خارج الحائط
J48: 0 | K48: 0 | O48: 0 | Q48: اسم الصنف : بريزة اليوس خارج الحائط
J49: 0 | K49: 0 | O49: 0 | Q49: اسم الصنف : بريزة اليوس خارج الحائط
J50: 0 | K50: 0 | O50: 0 | Q50: اسم الصنف : بريزة اليوس خارج الحائط
F51: . | J51: 0 | K51: 0 | O51: 0 | Q51: اسم الصنف : بريزة اليوس خارج الحائط
J52: 0 | K52: 0 | O52: 0 | Q52: اسم الصنف : بريزة اليوس خارج الحائط
J53: 0 | K53: 0 | O53: 0 | Q53: اسم الصنف : بريزة اليوس خارج الحائط
J54: 0 | K54: 0 | O54: 0 | Q54: اسم الصنف : بريزة اليوس خارج الحائط
J55: 0 | K55: 0 | O55: 0 | Q55: اسم الصنف : بريزة اليوس خارج الحائط
J56: 0 | K56: 0 | O56: 0
J57: 0 | K57: 0 | O57: 0
J58: 0 | K58: 0 | O58: 0
A59: الرصيد | J59: 0 | K59: 0 | O59: 0
C60: =SUM(C10:C58) -> 24 | D60: =SUM(D10:D58) -> 0 | H60: =SUM(H10:H58) -> 24 | I60: =SUM(I10:I58) -> 0 | J60: 0 | K60: =K59 -> 0 | O60: =SUM(O10:O59) -> 0 | P60: =SUM(G60:I60) -> 24

Sheet قاطع عمومي A250 ABB
F1: بطاقة كارت صنف
A4: اسم الصنف : قاطع عمومي ABB 250 | K4: كود الصنف | L4: رقم كارت الصنف | M4: المخزن :
A7: رقم اذن اضافة الوارد | B7: تاريخ اذن اضافة الوارد | C7: وارد مشتريات وتحويل مشروع | D7: ع من الصيانة والمامورية | E7: رقم اذن الصرف | F7: تاريخ اذن الصرف | G7: صرف صيانة | H7: صرف تحويل | I7: صرف د الموقع | J7: فرق الصيانة | K7: الرصيد | L7: سعر توريد الصنف | M7: جهه التوريد | N7: ملاحظات
L9: رصيد اول المدة | O9: ج سعر التوريد | Q9: =$A$4 -> اسم الصنف : قاطع عمومي ABB 250
A10: 13055 | B10: 14/4/2018 | C10: 1 | J10: =G10-D10 -> 0 | K10: =K9+C10-H10-I10+J10 -> 1 | M10: ادارة المشتريات | N10: ABB | O10: =C10*L10 -> 0 | Q10: =$A$4 -> اسم الصنف : قاطع عمومي ABB 250
E11: 788 | F11: 2018-05-05 | I11: 1 | J11: 0 | K11: =K10+C11-G11-H11-I11+J11 -> 0 | M11: خدمة موقع | O11: 0 | Q11: اسم الصنف : قاطع عمومي ABB 250
J12: =G12-D12 -> 0 | K12: =K11+C12-H12-I12+J12 -> 0 | O12: =C12*L12 -> 0 | Q12: اسم الصنف : قاطع عمومي ABB 250
J13: 0 | K13: 0 | O13: 0 | Q13: اسم الصنف : قاطع عمومي ABB 250
J14: 0 | K14: 0 | O14: 0 | Q14: اسم الصنف : قاطع عمومي ABB 250
J15: 0 | K15: 0 | O15: 0 | Q15: اسم الصنف : قاطع عمومي ABB 250
J16: 0 | K16: =K15+C16-G16-H16-I16+J16 -> 0 | O16: 0 | Q16: اسم الصنف : قاطع عمومي ABB 250
J17: 0 | K17: 0 | O17: 0 | Q17: اسم الصنف : قاطع عمومي ABB 250
J18: 0 | K18: 0 | O18: 0 | Q18: اسم الصنف : قاطع عمومي ABB 250
J19: 0 | K19: 0 | O19: 0 | Q19: اسم الصنف : قاطع عمومي ABB 250
J20: 0 | K20: 0 | O20: 0 | Q20: اسم الصنف : قاطع عمومي ABB 250
J21: 0 | K21: 0 | O21: 0 | Q21: اسم الصنف : قاطع عمومي ABB 250
J22: 0 | K22: 0 | O22: 0 | Q22: اسم الصنف : قاطع عمومي ABB 250
J23: 0 | K23: 0 | O23: 0 | Q23: اسم الصنف : قاطع عمومي ABB 250
J24: 0 | K24: 0 | O24: 0 | Q24: اسم الصنف : قاطع عمومي ABB 250
J25: 0 | K25: 0 | O25: 0 | Q25: اسم الصنف : قاطع عمومي ABB 250
J26: 0 | K26: 0 | O26: 0 | Q26: اسم الصنف : قاطع عمومي ABB 250
J27: 0 | K27: 0 | O27: 0 | Q27: اسم الصنف : قاطع عمومي ABB 250
J28: 0 | K28: 0 | O28: 0 | Q28: اسم الصنف : قاطع عمومي ABB 250
J29: 0 | K29: 0 | O29: 0 | Q29: اسم الصنف : قاطع عمومي ABB 250
J30: 0 | K30: 0 | O30: 0 | Q30: اسم الصنف : قاطع عمومي ABB 250
J31: 0 | K31: 0 | O31: 0 | Q31: اسم الصنف : قاطع عمومي ABB 250
J32: 0 | K32: 0 | O32: 0 | Q32: اسم الصنف : قاطع عمومي ABB 250
J33: 0 | K33: 0 | O33: 0 | Q33: اسم الصنف : قاطع عمومي ABB 250
J34: 0 | K34: 0 | O34: 0 | Q34: اسم الصنف : قاطع عمومي ABB 250
J35: 0 | K35: 0 | O35: 0 | Q35: اسم الصنف : قاطع عمومي ABB 250
J36: 0 | K36: 0 | O36: 0 | Q36: اسم الصنف : قاطع عمومي ABB 250
J37: 0 | K37: 0 | O37: 0 | Q37: اسم الصنف : قاطع عمومي ABB 250
J38: 0 | K38: 0 | O38: 0 | Q38: اسم الصنف : قاطع عمومي ABB 250
J39: 0 | K39: 0 | O39: 0 | Q39: اسم الصنف : قاطع عمومي ABB 250
J40: 0 | K40: 0 | O40: 0 | Q40: اسم الصنف : قاطع عمومي ABB 250
J41: 0 | K41: 0 | O41: 0 | Q41: اسم الصنف : قاطع عمومي ABB 250
J42: 0 | K42: 0 | O42: 0 | Q42: اسم الصنف : قاطع عمومي ABB 250
J43: 0 | K43: 0 | O43: 0 | Q43: اسم الصنف : قاطع عمومي ABB 250
J44: 0 | K44: 0 | O44: 0 | Q44: اسم الصنف : قاطع عمومي ABB 250
J45: 0 | K45: 0 | O45: 0 | Q45: اسم الصنف : قاطع عمومي ABB 250
J46: 0 | K46: 0 | O46: 0 | Q46: اسم الصنف : قاطع عمومي ABB 250
J47: 0 | K47: 0 | O47: 0 | Q47: اسم الصنف : قاطع عمومي ABB 250
J48: 0 | K48: 0 | O48: 0 | Q48: اسم الصنف : قاطع عمومي ABB 250
J49: 0 | K49: 0 | O49: 0 | Q49: اسم الصنف : قاطع عمومي ABB 250
J50: 0 | K50: 0 | O50: 0 | Q50: اسم الصنف : قاطع عمومي ABB 250
F51: . | J51: 0 | K51: 0 | O51: 0 | Q51: اسم الصنف : قاطع عمومي ABB 250
J52: 0 | K52: 0 | O52: 0 | Q52: اسم الصنف : قاطع عمومي ABB 250
J53: 0 | K53: 0 | O53: 0 | Q53: اسم الصنف : قاطع عمومي ABB 250
J54: 0 | K54: 0 | O54: 0 | Q54: اسم الصنف : قاطع عمومي ABB 250
J55: 0 | K55: 0 | O55: 0 | Q55: اسم الصنف : قاطع عمومي ABB 250
J56: 0 | K56: 0 | O56: 0
J57: 0 | K57: 0 | O57: 0
J58: 0 | K58: 0 | O58: 0
A59: الرصيد | J59: =G59-D59 -> 0 | K59: 0 | O59: 0
C60: =SUM(C10:C58) -> 1 | D60: =SUM(D10:D58) -> 0 | H60: =SUM(H10:H58) -> 0 | I60: =SUM(I10:I58) -> 1 | J60: =G60-D60 -> 0 | K60: =K59 -> 0 | O60: =SUM(O10:O59) -> 0 | P60: =SUM(G60:I60) -> 1

Sheet قاطع عمومي A200 ABB
F1: بطاقة كارت صنف
A4: اسم الصنف : قاطع عمومي ABB 200 | K4: كود الصنف | L4: رقم كارت الصنف | M4: المخزن :
A7: رقم اذن اضافة الوارد | B7: تاريخ اذن اضافة الوارد | C7: وارد مشتريات وتحويل مشروع | D7: ع من الصيانة والمامورية | E7: رقم اذن الصرف | F7: تاريخ اذن الصرف | G7: صرف صيانة | H7: صرف تحويل | I7: صرف د الموقع | J7: فرق الصيانة | K7: الرصيد | L7: سعر توريد الصنف | M7: جهه التوريد | N7: ملاحظات
L9: رصيد اول المدة | O9: ج سعر التوريد | Q9: =$A$4 -> اسم الصنف : قاطع عمومي ABB 200
A10: 14340 | B10: 29/11/2018 | C10: 2 | J10: =G10-D10 -> 0 | K10: =K9+C10-H10-I10+J10 -> 2 | M10: ادارة المشتريات | N10: ABB | O10: =C10*L10 -> 0 | Q10: =$A$4 -> اسم الصنف : قاطع عمومي ABB 200
J11: =G11-D11 -> 0 | K11: 2 | M11: خدمة موقع | O11: =C11*L11 -> 0 | Q11: اسم الصنف : قاطع عمومي ABB 200
J12: 0 | K12: 2 | O12: 0 | Q12: اسم الصنف : قاطع عمومي ABB 200
J13: 0 | K13: 2 | O13: 0 | Q13: اسم الصنف : قاطع عمومي ABB 200
J14: 0 | K14: 2 | O14: 0 | Q14: اسم الصنف : قاطع عمومي ABB 200
J15: 0 | K15: 2 | O15: 0 | Q15: اسم الصنف : قاطع عمومي ABB 200
J16: 0 | K16: =K15+C16-G16-H16-I16+J16 -> 2 | O16: 0 | Q16: اسم الصنف : قاطع عمومي ABB 200
J17: 0 | K17: 2 | O17: 0 | Q17: اسم الصنف : قاطع عمومي ABB 200
J18: 0 | K18: 2 | O18: 0 | Q18: اسم الصنف : قاطع عمومي ABB 200
J19: 0 | K19: 2 | O19: 0 | Q19: اسم الصنف : قاطع عمومي ABB 200
J20: 0 | K20: 2 | O20: 0 | Q20: اسم الصنف : قاطع عمومي ABB 200
J21: 0 | K21: 2 | O21: 0 | Q21: اسم الصنف : قاطع عمومي ABB 200
J22: 0 | K22: 2 | O22: 0 | Q22: اسم الصنف : قاطع عمومي ABB 200
J23: 0 | K23: 2 | O23: 0 | Q23: اسم الصنف : قاطع عمومي ABB 200
J24: 0 | K24: 2 | O24: 0 | Q24: اسم الصنف : قاطع عمومي ABB 200
J25: 0 | K25: 2 | O25: 0 | Q25: اسم الصنف : قاطع عمومي ABB 200
J26: 0 | K26: 2 | O26: 0 | Q26: اسم الصنف : قاطع عمومي ABB 200
J27: 0 | K27: 2 | O27: 0 | Q27: اسم الصنف : قاطع عمومي ABB 200
J28: 0 | K28: 2 | O28: 0 | Q28: اسم الصنف : قاطع عمومي ABB 200
J29: 0 | K29: 2 | O29: 0 | Q29: اسم الصنف : قاطع عمومي ABB 200
J30: 0 | K30: 2 | O30: 0 | Q30: اسم الصنف : قاطع عمومي ABB 200
J31: 0 | K31: 2 | O31: 0 | Q31: اسم الصنف : قاطع عمومي ABB 200
J32: 0 | K32: 2 | O32: 0 | Q32: اسم الصنف : قاطع عمومي ABB 200
J33: 0 | K33: 2 | O33: 0 | Q33: اسم الصنف : قاطع عمومي ABB 200
J34: 0 | K34: 2 | O34: 0 | Q34: اسم الصنف : قاطع عمومي ABB 200
J35: 0 | K35: 2 | O35: 0 | Q35: اسم الصنف : قاطع عمومي ABB 200
J36: 0 | K36: 2 | O36: 0 | Q36: اسم الصنف : قاطع عمومي ABB 200
J37: 0 | K37: 2 | O37: 0 | Q37: اسم الصنف : قاطع عمومي ABB 200
J38: 0 | K38: 2 | O38: 0 | Q38: اسم الصنف : قاطع عمومي ABB 200
J39: 0 | K39: 2 | O39: 0 | Q39: اسم الصنف : قاطع عمومي ABB 200
J40: 0 | K40: 2 | O40: 0 | Q40: اسم الصنف : قاطع عمومي ABB 200
J41: 0 | K41: 2 | O41: 0 | Q41: اسم الصنف : قاطع عمومي ABB 200
J42: 0 | K42: 2 | O42: 0 | Q42: اسم الصنف : قاطع عمومي ABB 200
J43: 0 | K43: 2 | O43: 0 | Q43: اسم الصنف : قاطع عمومي ABB 200
J44: 0 | K44: 2 | O44: 0 | Q44: اسم الصنف : قاطع عمومي ABB 200
J45: 0 | K45: 2 | O45: 0 | Q45: اسم الصنف : قاطع عمومي ABB 200
J46: 0 | K46: 2 | O46: 0 | Q46: اسم الصنف : قاطع عمومي ABB 200
J47: 0 | K47: 2 | O47: 0 | Q47: اسم الصنف : قاطع عمومي ABB 200
J48: 0 | K48: 2 | O48: 0 | Q48: اسم الصنف : قاطع عمومي ABB 200
J49: 0 | K49: 2 | O49: 0 | Q49: اسم الصنف : قاطع عمومي ABB 200
J50: 0 | K50: 2 | O50: 0 | Q50: اسم الصنف : قاطع عمومي ABB 200
F51: . | J51: 0 | K51: 2 | O51: 0 | Q51: اسم الصنف : قاطع عمومي ABB 200
J52: 0 | K52: 2 | O52: 0 | Q52: اسم الصنف : قاطع عمومي ABB 200
J53: 0 | K53: 2 | O53: 0 | Q53: اسم الصنف : قاطع عمومي ABB 200
J54: 0 | K54: 2 | O54: 0 | Q54: اسم الصنف : قاطع عمومي ABB 200
J55: 0 | K55: 2 | O55: 0 | Q55: اسم الصنف : قاطع عمومي ABB 200
J56: 0 | K56: 2 | O56: 0
J57: 0 | K57: 2 | O57: 0
J58: 0 | K58: 2 | O58: 0
A59: الرصيد | J59: =G59-D59 -> 0 | K59: 2 | O59: 0
C60: =SUM(C10:C58) -> 2 | D60: =SUM(D10:D58) -> 0 | H60: =SUM(H10:H58) -> 0 | I60: =SUM(I10:I58) -> 0 | J60: =G60-D60 -> 0 | K60: =K59 -> 2 | O60: =SUM(O10:O59) -> 0 | P60: =SUM(G60:I60) -> 0

Sheet قاطع عمومي A160 ABB
F1: بطاقة كارت صنف
A4: اسم الصنف : قاطع عمومي ABB 160 | K4: كود الصنف | L4: رقم كارت الصنف | M4: المخزن :
A7: رقم اذن اضافة الوارد | B7: تاريخ اذن اضافة الوارد | C7: وارد مشتريات وتحويل مشروع | D7: ع من الصيانة والمامورية | E7: رقم اذن الصرف | F7: تاريخ اذن الصرف | G7: صرف صيانة | H7: صرف تحويل | I7: صرف د الموقع | J7: فرق الصيانة | K7: الرصيد | L7: سعر توريد الصنف | M7: جهه التوريد | N7: ملاحظات
L9: رصيد اول المدة | O9: ج سعر التوريد | Q9: =$A$4 -> اسم الصنف : قاطع عمومي ABB 160
A10: 14340 | B10: 29/11/2018 | C10: 8 | J10: =G10-D10 -> 0 | K10: =K9+C10-H10-I10+J10 -> 8 | M10: ادارة المشتريات | N10: ABB | O10: =C10*L10 -> 0 | Q10: =$A$4 -> اسم الصنف : قاطع عمومي ABB 160
E11: 3349 | F11: 29/11/2018 | I11: 1 | J11: 0 | K11: =K10+C11-I11 -> 7 | O11: 0 | Q11: اسم الصنف : قاطع عمومي ABB 160
J12: 0 | K12: 7 | O12: 0 | Q12: اسم الصنف : قاطع عمومي ABB 160
J13: 0 | K13: 7 | O13: 0 | Q13: اسم الصنف : قاطع عمومي ABB 160
J14: 0 | K14: 7 | O14: 0 | Q14: اسم الصنف : قاطع عمومي ABB 160
J15: 0 | K15: 7 | O15: 0 | Q15: اسم الصنف : قاطع عمومي ABB 160
J16: 0 | K16: =K15+C16-G16-H16-I16+J16 -> 7 | O16: 0 | Q16: اسم الصنف : قاطع عمومي ABB 160
J17: 0 | K17: 7 | O17: 0 | Q17: اسم الصنف : قاطع عمومي ABB 160
J18: 0 | K18: 7 | O18: 0 | Q18: اسم الصنف : قاطع عمومي ABB 160
J19: 0 | K19: 7 | O19: 0 | Q19: اسم الصنف : قاطع عمومي ABB 160
J20: 0 | K20: 7 | O20: 0 | Q20: اسم الصنف : قاطع عمومي ABB 160
J21: 0 | K21: 7 | O21: 0 | Q21: اسم الصنف : قاطع عمومي ABB 160
J22: 0 | K22: 7 | O22: 0 | Q22: اسم الصنف : قاطع عمومي ABB 160
J23: 0 | K23: 7 | O23: 0 | Q23: اسم الصنف : قاطع عمومي ABB 160
J24: 0 | K24: 7 | O24: 0 | Q24: اسم الصنف : قاطع عمومي ABB 160
J25: 0 | K25: 7 | O25: 0 | Q25: اسم الصنف : قاطع عمومي ABB 160
J26: 0 | K26: 7 | O26: 0 | Q26: اسم الصنف : قاطع عمومي ABB 160
J27: 0 | K27: 7 | O27: 0 | Q27: اسم الصنف : قاطع عمومي ABB 160
J28: 0 | K28: 7 | O28: 0 | Q28: اسم الصنف : قاطع عمومي ABB 160
J29: 0 | K29: 7 | O29: 0 | Q29: اسم الصنف : قاطع عمومي ABB 160
J30: 0 | K30: 7 | O30: 0 | Q30: اسم الصنف : قاطع عمومي ABB 160
J31: 0 | K31: 7 | O31: 0 | Q31: اسم الصنف : قاطع عمومي ABB 160
J32: 0 | K32: 7 | O32: 0 | Q32: اسم الصنف : قاطع عمومي ABB 160
J33: 0 | K33: 7 | O33: 0 | Q33: اسم الصنف : قاطع عمومي ABB 160
J34: 0 | K34: 7 | O34: 0 | Q34: اسم الصنف : قاطع عمومي ABB 160
J35: 0 | K35: 7 | O35: 0 | Q35: اسم الصنف : قاطع عمومي ABB 160
J36: 0 | K36: 7 | O36: 0 | Q36: اسم الصنف : قاطع عمومي ABB 160
J37: 0 | K37: 7 | O37: 0 | Q37: اسم الصنف : قاطع عمومي ABB 160
J38: 0 | K38: 7 | O38: 0 | Q38: اسم الصنف : قاطع عمومي ABB 160
J39: 0 | K39: 7 | O39: 0 | Q39: اسم الصنف : قاطع عمومي ABB 160
J40: 0 | K40: 7 | O40: 0 | Q40: اسم الصنف : قاطع عمومي ABB 160
J41: 0 | K41: 7 | O41: 0 | Q41: اسم الصنف : قاطع عمومي ABB 160
J42: 0 | K42: 7 | O42: 0 | Q42: اسم الصنف : قاطع عمومي ABB 160
J43: 0 | K43: 7 | O43: 0 | Q43: اسم الصنف : قاطع عمومي ABB 160
J44: 0 | K44: 7 | O44: 0 | Q44: اسم الصنف : قاطع عمومي ABB 160
J45: 0 | K45: 7 | O45: 0 | Q45: اسم الصنف : قاطع عمومي ABB 160
J46: 0 | K46: 7 | O46: 0 | Q46: اسم الصنف : قاطع عمومي ABB 160
J47: 0 | K47: 7 | O47: 0 | Q47: اسم الصنف : قاطع عمومي ABB 160
J48: 0 | K48: 7 | O48: 0 | Q48: اسم الصنف : قاطع عمومي ABB 160
J49: 0 | K49: 7 | O49: 0 | Q49: اسم الصنف : قاطع عمومي ABB 160
J50: 0 | K50: 7 | O50: 0 | Q50: اسم الصنف : قاطع عمومي ABB 160
F51: . | J51: 0 | K51: 7 | O51: 0 | Q51: اسم الصنف : قاطع عمومي ABB 160
J52: 0 | K52: 7 | O52: 0 | Q52: اسم الصنف : قاطع عمومي ABB 160
J53: 0 | K53: 7 | O53: 0 | Q53: اسم الصنف : قاطع عمومي ABB 160
J54: 0 | K54: 7 | O54: 0 | Q54: اسم الصنف : قاطع عمومي ABB 160
J55: 0 | K55: 7 | O55: 0 | Q55: اسم الصنف : قاطع عمومي ABB 160
J56: 0 | K56: 7 | O56: 0
J57: 0 | K57: 7 | O57: 0
J58: 0 | K58: 7 | O58: 0
A59: الرصيد | J59: =G59-D59 -> 0 | K59: 7 | O59: 0
C60: =SUM(C10:C58) -> 8 | D60: =SUM(D10:D58) -> 0 | H60: =SUM(H10:H58) -> 0 | I60: =SUM(I10:I58) -> 1 | J60: =G60-D60 -> 0 | K60: =K59 -> 7 | O60: =SUM(O10:O59) -> 0 | P60: =SUM(G60:I60) -> 1

Sheet قاطع عمومي A63 ABB
F1: بطاقة كارت صنف
A4: اسم الصنف : قاطع عمومي ثلاثي A63 | K4: كود الصنف | L4: رقم كارت الصنف | M4: المخزن :
A7: رقم اذن اضافة الوارد | B7: تاريخ اذن اضافة الوارد | C7: وارد مشتريات وتحويل مشروع | D7: ع من الصيانة والمامورية | E7: رقم اذن الصرف | F7: تاريخ اذن الصرف | G7: صرف صيانة | H7: صرف تحويل | I7: صرف د الموقع | J7: فرق الصيانة | K7: الرصيد | L7: سعر توريد الصنف | M7: جهه التوريد | N7: ملاحظات
L9: رصيد اول المدة | O9: ج سعر التوريد | Q9: =$A$4 -> اسم الصنف : قاطع عمومي ثلاثي A63
A10: 652 | B10: 2018-01-31 | C10: 1 | J10: =G10-D10 -> 0 | K10: =K9+C10-I10 -> 1 | L10: 357 | M10: انريجيا | N10: جلال | O10: =C10*L10 -> 357 | Q10: =$A$4 -> اسم الصنف : قاطع عمومي ثلاثي A63
A11: 699 | B11: 2018-04-03 | C11: 2 | J11: =G11-D11 -> 0 | K11: =K10+C11-H11-I11+J11 -> 3 | L11: 100 | M11: مش موقع(فينوس) | N11: احمد حامد المحاسب | O11: =C11*L11 -> 200 | Q11: اسم الصنف : قاطع عمومي ثلاثي A63
E12: 756 | F12: 2018-04-03 | I12: 2 | J12: =G12-D12 -> 0 | K12: =K11+C12-H12-I12+J12 -> 1 | O12: 0 | Q12: اسم الصنف : قاطع عمومي ثلاثي A63
A13: 13003 | B13: 2018-04-04 | C13: 1 | J13: 0 | K13: 2 | L13: 125 | M13: مش موقع | N13: احمد حامد المحاسب | O13: 125 | Q13: اسم الصنف : قاطع عمومي ثلاثي A63
A14: 13055 | B14: 14/4/2018 | C14: 10 | J14: 0 | K14: 12 | M14: ادارة المشتريات | N14: ABB | O14: 0 | Q14: اسم الصنف : قاطع عمومي ثلاثي A63
E15: 769 | F15: 17/4/2018 | I15: 1 | J15: 0 | K15: =K14+C15-G15-H15-I15+J15 -> 11 | O15: 0 | Q15: اسم الصنف : قاطع عمومي ثلاثي A63
E16: 771 | F16: 18/4/2018 | I16: 1 | J16: 0 | K16: 10 | M16: خدمة موقع | O16: 0 | Q16: اسم الصنف : قاطع عمومي ثلاثي A63
E17: 788 | F17: 2018-05-05 | I17: 4 | J17: 0 | K17: 6 | M17: خدمة موقع | O17: 0 | Q17: اسم الصنف : قاطع عمومي ثلاثي A63
E18: 3028ر | F18: 23/5/2018 | H18: 1 | J18: =G18-D18 -> 0 | K18: 5 | M18: محول الي الهايبر | O18: 0 | Q18: اسم الصنف : قاطع عمومي ثلاثي A63
E19: 3041ر | F19: 2018-04-06 | I19: -1 | J19: 0 | K19: 6 | M19: ارتجاع داخلي | O19: 0 | Q19: اسم الصنف : قاطع عمومي ثلاثي A63
E20: 2815ر | F20: 2018-05-08 | H20: 2 | J20: 0 | K20: 4 | M20: محول الي كلية طب اسنان | Q20: اسم الصنف : قاطع عمومي ثلاثي A63
E21: 13838 | F21: 2018-09-09 | I21: 1 | J21: 0 | K21: 3 | M21: خدمة موقع | O21: =C21*L21 -> 0 | Q21: اسم الصنف : قاطع عمومي ثلاثي A63
E22: 19857 | F22: 2018-01-10 | I22: 3 | J22: 0 | K22: 0 | M22: خدمة موقع | O22: 0 | Q22: اسم الصنف : قاطع عمومي ثلاثي A63
A23: 1240 | B23: 2018-09-10 | C23: 10 | J23: 0 | K23: 10 | M23: ادارة المشتريات | O23: 0 | Q23: اسم الصنف : قاطع عمومي ثلاثي A63
E24: 19885 | F24: 18/10/2018 | I24: 1 | J24: 0 | K24: 9 | M24: خدمة موقع | O24: 0 | Q24: اسم الصنف : قاطع عمومي ثلاثي A63
E25: 19889 | F25: 22/10/2018 | I25: 1 | J25: 0 | K25: 8 | M25: خدمة موقع | O25: 0 | Q25: اسم الصنف : قاطع عمومي ثلاثي A63
E26: 14602 | F26: 29/10/2018 | I26: 1 | J26: 0 | K26: 7 | M26: خدمة موقع | O26: 0 | Q26: اسم الصنف : قاطع عمومي ثلاثي A63
E27: 3349 | F27: 29/11/2018 | I27: 5 | J27: =G27-D27 -> 0 | K27: =K26+C27-I27 -> 2 | O27: =C27*L27 -> 0 | Q27: اسم الصنف : قاطع عمومي ثلاثي A63
A28: 14340 | B28: 29/11/2018 | C28: 16 | J28: 0 | K28: =K27+C28-H28-I28+J28 -> 18 | M28: ادارة المشتريات | N28: ABB | O28: 0 | Q28: اسم الصنف : قاطع عمومي ثلاثي A63
A29: 14397 | B29: 20/12/2018 | C29: 2 | J29: 0 | K29: 20 | M29: ادارة المشتريات | O29: 0 | Q29: اسم الصنف : قاطع عمومي ثلاثي A63
A30: 42101 | B30: 2019-03-14 | C30: 2 | J30: =G30-D30 -> 0 | K30: =K29+C30-G30-H30-I30+J30 -> 22 | M30: ادارة المشتريات | O30: =C30*L30 -> 0 | Q30: اسم الصنف : قاطع عمومي ثلاثي A63
J31: 0 | K31: 22 | O31: 0 | Q31: اسم الصنف : قاطع عمومي ثلاثي A63
J32: 0 | K32: 22 | O32: 0 | Q32: اسم الصنف : قاطع عمومي ثلاثي A63
J33: 0 | K33: 22 | O33: 0 | Q33: اسم الصنف : قاطع عمومي ثلاثي A63
J34: 0 | K34: 22 | O34: 0 | Q34: اسم الصنف : قاطع عمومي ثلاثي A63
J35: 0 | K35: 22 | O35: 0 | Q35: اسم الصنف : قاطع عمومي ثلاثي A63
J36: 0 | K36: 22 | O36: 0 | Q36: اسم الصنف : قاطع عمومي ثلاثي A63
J37: 0 | K37: 22 | O37: 0 | Q37: اسم الصنف : قاطع عمومي ثلاثي A63
J38: 0 | K38: 22 | O38: 0 | Q38: اسم الصنف : قاطع عمومي ثلاثي A63
J39: 0 | K39: 22 | O39: 0 | Q39: اسم الصنف : قاطع عمومي ثلاثي A63
J40: 0 | K40: 22 | O40: 0 | Q40: اسم الصنف : قاطع عمومي ثلاثي A63
J41: 0 | K41: 22 | O41: 0 | Q41: اسم الصنف : قاطع عمومي ثلاثي A63
J42: 0 | K42: 22 | O42: 0 | Q42: اسم الصنف : قاطع عمومي ثلاثي A63
J43: 0 | K43: 22 | O43: 0 | Q43: اسم الصنف : قاطع عمومي ثلاثي A63
J44: 0 | K44: 22 | O44: 0 | Q44: اسم الصنف : قاطع عمومي ثلاثي A63
J45: 0 | K45: 22 | O45: 0 | Q45: اسم الصنف : قاطع عمومي ثلاثي A63
J46: 0 | K46: 22 | O46: 0 | Q46: اسم الصنف : قاطع عمومي ثلاثي A63
J47: 0 | K47: 22 | O47: 0 | Q47: اسم الصنف : قاطع عمومي ثلاثي A63
J48: 0 | K48: 22 | O48: 0 | Q48: اسم الصنف : قاطع عمومي ثلاثي A63
J49: 0 | K49: 22 | O49: 0 | Q49: اسم الصنف : قاطع عمومي ثلاثي A63
J50: 0 | K50: 22 | O50: 0 | Q50: اسم الصنف : قاطع عمومي ثلاثي A63
F51: . | J51: 0 | K51: 22 | O51: 0 | Q51: اسم الصنف : قاطع عمومي ثلاثي A63
J52: 0 | K52: 22 | O52: 0 | Q52: اسم الصنف : قاطع عمومي ثلاثي A63
J53: 0 | K53: 22 | O53: 0 | Q53: اسم الصنف : قاطع عمومي ثلاثي A63
J54: 0 | K54: 22 | O54: 0 | Q54: اسم الصنف : قاطع عمومي ثلاثي A63
J55: 0 | K55: 22 | O55: 0 | Q55: اسم الصنف : قاطع عمومي ثلاثي A63
J56: 0 | K56: 22 | O56: 0
J57: 0 | K57: 22 | O57: 0
J58: 0 | K58: 22 | O58: 0
A59: الرصيد | J59: =G59-D59 -> 0 | K59: 22 | O59: 0
C60: =SUM(C10:C58) -> 44 | D60: =SUM(D10:D58) -> 0 | H60: =SUM(H10:H58) -> 3 | I60: =SUM(I10:I58) -> 19 | J60: =G60-D60 -> 0 | K60: 44 | O60: =SUM(O10:O59) -> 682 | P60: =SUM(G60:I60) -> 22

Sheet قاطع عمومي A40 ABB
F1: بطاقة كارت صنف
A4: اسم الصنف : قاطع عمومي ثلاثي A40 | K4: كود الصنف | L4: رقم كارت الصنف | M4: المخزن :
A7: رقم اذن اضافة الوارد | B7: تاريخ اذن اضافة الوارد | C7: وارد مشتريات وتحويل مشروع | D7: ع من الصيانة والمامورية | E7: رقم اذن الصرف | F7: تاريخ اذن الصرف | G7: صرف صيانة | H7: صرف تحويل | I7: صرف د الموقع | J7: فرق الصيانة | K7: الرصيد | L7: سعر توريد الصنف | M7: جهه التوريد | N7: ملاحظات
L9: رصيد اول المدة | O9: ج سعر التوريد | Q9: =$A$4 -> اسم الصنف : قاطع عمومي ثلاثي A40
A10: 13055 | B10: 14/4/2018 | C10: 2 | J10: =G10-D10 -> 0 | K10: =K9+C10-H10-I10+J10 -> 2 | M10: ادارة المشتريات | N10: ABB | O10: =C10*L10 -> 0 | Q10: =$A$4 -> اسم الصنف : قاطع عمومي ثلاثي A40
E11: 788 | F11: 2018-05-05 | I11: 1 | J11: 0 | K11: 1 | M11: خدمة موقع | O11: 0 | Q11: اسم الصنف : قاطع عمومي ثلاثي A40
E12: 799 | F12: 15/5/2018 | I12: 1 | J12: 0 | K12: 0 | M12: خدمة موقع | Q12: اسم الصنف : قاطع عمومي ثلاثي A40
A13: 1243 | B13: 2018-09-10 | C13: 1 | K13: 1 | M13: محول من طب اسنان | Q13: اسم الصنف : قاطع عمومي ثلاثي A40
E14: 19869 | F14: 2018-09-10 | I14: 1 | J14: 0 | K14: 0 | M14: مبني ادارة الجامعة | Q14: اسم الصنف : قاطع عمومي ثلاثي A40
J15: 0 | K15: 0 | M15: خدمة موقع | O15: 0 | Q15: اسم الصنف : قاطع عمومي ثلاثي A40
J16: =G16-D16 -> 0 | K16: 0 | O16: =C16*L16 -> 0 | Q16: اسم الصنف : قاطع عمومي ثلاثي A40
J17: 0 | K17: 0 | O17: 0 | Q17: اسم الصنف : قاطع عمومي ثلاثي A40
J18: 0 | K18: 0 | O18: 0 | Q18: اسم الصنف : قاطع عمومي ثلاثي A40
J19: 0 | K19: 0 | O19: 0 | Q19: اسم الصنف : قاطع عمومي ثلاثي A40
J20: 0 | K20: 0 | O20: 0 | Q20: اسم الصنف : قاطع عمومي ثلاثي A40
J21: 0 | K21: 0 | O21: 0 | Q21: اسم الصنف : قاطع عمومي ثلاثي A40
J22: 0 | K22: 0 | O22: 0 | Q22: اسم الصنف : قاطع عمومي ثلاثي A40
J23: 0 | K23: 0 | O23: 0 | Q23: اسم الصنف : قاطع عمومي ثلاثي A40
J24: 0 | K24: 0 | O24: 0 | Q24: اسم الصنف : قاطع عمومي ثلاثي A40
J25: 0 | K25: 0 | O25: 0 | Q25: اسم الصنف : قاطع عمومي ثلاثي A40
J26: 0 | K26: 0 | O26: 0 | Q26: اسم الصنف : قاطع عمومي ثلاثي A40
J27: 0 | K27: 0 | O27: 0 | Q27: اسم الصنف : قاطع عمومي ثلاثي A40
J28: 0 | K28: 0 | O28: 0 | Q28: اسم الصنف : قاطع عمومي ثلاثي A40
J29: 0 | K29: 0 | O29: 0 | Q29: اسم الصنف : قاطع عمومي ثلاثي A40
J30: 0 | K30: 0 | O30: 0 | Q30: اسم الصنف : قاطع عمومي ثلاثي A40
J31: 0 | K31: 0 | O31: 0 | Q31: اسم الصنف : قاطع عمومي ثلاثي A40
J32: 0 | K32: 0 | O32: 0 | Q32: اسم الصنف : قاطع عمومي ثلاثي A40
J33: 0 | K33: 0 | O33: 0 | Q33: اسم الصنف : قاطع عمومي ثلاثي A40
J34: 0 | K34: 0 | O34: 0 | Q34: اسم الصنف : قاطع عمومي ثلاثي A40
J35: 0 | K35: 0 | O35: 0 | Q35: اسم الصنف : قاطع عمومي ثلاثي A40
J36: 0 | K36: 0 | O36: 0 | Q36: اسم الصنف : قاطع عمومي ثلاثي A40
J37: 0 | K37: 0 | O37: 0 | Q37: اسم الصنف : قاطع عمومي ثلاثي A40
J38: 0 | K38: 0 | O38: 0 | Q38: اسم الصنف : قاطع عمومي ثلاثي A40
J39: 0 | K39: 0 | O39: 0 | Q39: اسم الصنف : قاطع عمومي ثلاثي A40
J40: 0 | K40: 0 | O40: 0 | Q40: اسم الصنف : قاطع عمومي ثلاثي A40
J41: 0 | K41: 0 | O41: 0 | Q41: اسم الصنف : قاطع عمومي ثلاثي A40
J42: 0 | K42: 0 | O42: 0 | Q42: اسم الصنف : قاطع عمومي ثلاثي A40
J43: 0 | K43: 0 | O43: 0 | Q43: اسم الصنف : قاطع عمومي ثلاثي A40
J44: 0 | K44: 0 | O44: 0 | Q44: اسم الصنف : قاطع عمومي ثلاثي A40
J45: 0 | K45: 0 | O45: 0 | Q45: اسم الصنف : قاطع عمومي ثلاثي A40
J46: 0 | K46: 0 | O46: 0 | Q46: اسم الصنف : قاطع عمومي ثلاثي A40
J47: 0 | K47: 0 | O47: 0 | Q47: اسم الصنف : قاطع عمومي ثلاثي A40
J48: 0 | K48: 0 | O48: 0 | Q48: اسم الصنف : قاطع عمومي ثلاثي A40
J49: 0 | K49: 0 | O49: 0 | Q49: اسم الصنف : قاطع عمومي ثلاثي A40
J50: 0 | K50: 0 | O50: 0 | Q50: اسم الصنف : قاطع عمومي ثلاثي A40
J51: 0 | K51: 0 | O51: 0 | Q51: اسم الصنف : قاطع عمومي ثلاثي A40
F52: . | J52: 0 | K52: 0 | O52: 0 | Q52: اسم الصنف : قاطع عمومي ثلاثي A40
J53: 0 | K53: 0 | O53: 0 | Q53: اسم الصنف : قاطع عمومي ثلاثي A40
J54: 0 | K54: 0 | O54: 0 | Q54: اسم الصنف : قاطع عمومي ثلاثي A40
J55: 0 | K55: 0 | O55: 0 | Q55: اسم الصنف : قاطع عمومي ثلاثي A40
J56: 0 | K56: 0 | O56: 0
J57: 0 | K57: 0 | O57: 0
J58: 0 | K58: 0 | O58: 0
J59: 0 | K59: 0 | O59: 0
A60: الرصيد | J60: =G60-D60 -> 0 | K60: 0 | O60: 0
C61: =SUM(C10:C59) -> 3 | D61: =SUM(D10:D59) -> 0 | H61: =SUM(H10:H59) -> 0 | I61: =SUM(I10:I59) -> 3 | J61: =G61-D61 -> 0 | K61: 0 | O61: =SUM(O10:O60) -> 0 | P61: =SUM(G61:I61) -> 3

Sheet قاطع ثلاثى 50A
F1: بطاقة كارت صنف
A4: اسم الصنف : قاطع عمومي ثلاثي A50 | K4: كود الصنف | L4: رقم كارت الصنف | M4: المخزن :
A7: رقم اذن اضافة الوارد | B7: تاريخ اذن اضافة الوارد | C7: وارد مشتريات وتحويل مشروع | D7: ع من الصيانة والمامورية | E7: رقم اذن الصرف | F7: تاريخ اذن الصرف | G7: صرف صيانة | H7: صرف تحويل | I7: صرف د الموقع | J7: فرق الصيانة | K7: الرصيد | L7: سعر توريد الصنف | M7: جهه التوريد | N7: ملاحظات
L9: رصيد اول المدة | O9: ج سعر التوريد | Q9: =$A$4 -> اسم الصنف : قاطع عمومي ثلاثي A50
A10: 7936 | B10: 15/1/2019 | C10: 2 | J10: =G10-D10 -> 0 | K10: =K9+C10-H10-I10+J10 -> 2 | M10: ادارة المشتريات | O10: =C10*L10 -> 0 | Q10: =$A$4 -> اسم الصنف : قاطع عمومي ثلاثي A50
J11: 0 | K11: 2 | O11: 0 | Q11: اسم الصنف : قاطع عمومي ثلاثي A50
J12: 0 | K12: 2 | Q12: اسم الصنف : قاطع عمومي ثلاثي A50
K13: 2 | Q13: اسم الصنف : قاطع عمومي ثلاثي A50
J14: 0 | K14: 2 | Q14: اسم الصنف : قاطع عمومي ثلاثي A50
J15: 0 | K15: 2 | O15: 0 | Q15: اسم الصنف : قاطع عمومي ثلاثي A50
J16: =G16-D16 -> 0 | K16: 2 | O16: =C16*L16 -> 0 | Q16: اسم الصنف : قاطع عمومي ثلاثي A50
J17: 0 | K17: 2 | O17: 0 | Q17: اسم الصنف : قاطع عمومي ثلاثي A50
J18: 0 | K18: 2 | O18: 0 | Q18: اسم الصنف : قاطع عمومي ثلاثي A50
J19: 0 | K19: 2 | O19: 0 | Q19: اسم الصنف : قاطع عمومي ثلاثي A50
J20: 0 | K20: 2 | O20: 0 | Q20: اسم الصنف : قاطع عمومي ثلاثي A50
J21: 0 | K21: 2 | O21: 0 | Q21: اسم الصنف : قاطع عمومي ثلاثي A50
J22: 0 | K22: 2 | O22: 0 | Q22: اسم الصنف : قاطع عمومي ثلاثي A50
J23: 0 | K23: 2 | O23: 0 | Q23: اسم الصنف : قاطع عمومي ثلاثي A50
J24: 0 | K24: 2 | O24: 0 | Q24: اسم الصنف : قاطع عمومي ثلاثي A50
J25: 0 | K25: 2 | O25: 0 | Q25: اسم الصنف : قاطع عمومي ثلاثي A50
J26: 0 | K26: 2 | O26: 0 | Q26: اسم الصنف : قاطع عمومي ثلاثي A50
J27: 0 | K27: 2 | O27: 0 | Q27: اسم الصنف : قاطع عمومي ثلاثي A50
J28: 0 | K28: 2 | O28: 0 | Q28: اسم الصنف : قاطع عمومي ثلاثي A50
J29: 0 | K29: 2 | O29: 0 | Q29: اسم الصنف : قاطع عمومي ثلاثي A50
J30: 0 | K30: 2 | O30: 0 | Q30: اسم الصنف : قاطع عمومي ثلاثي A50
J31: 0 | K31: 2 | O31: 0 | Q31: اسم الصنف : قاطع عمومي ثلاثي A50
J32: 0 | K32: 2 | O32: 0 | Q32: اسم الصنف : قاطع عمومي ثلاثي A50
J33: 0 | K33: 2 | O33: 0 | Q33: اسم الصنف : قاطع عمومي ثلاثي A50
J34: 0 | K34: 2 | O34: 0 | Q34: اسم الصنف : قاطع عمومي ثلاثي A50
J35: 0 | K35: 2 | O35: 0 | Q35: اسم الصنف : قاطع عمومي ثلاثي A50
J36: 0 | K36: 2 | O36: 0 | Q36: اسم الصنف : قاطع عمومي ثلاثي A50
J37: 0 | K37: 2 | O37: 0 | Q37: اسم الصنف : قاطع عمومي ثلاثي A50
J38: 0 | K38: 2 | O38: 0 | Q38: اسم الصنف : قاطع عمومي ثلاثي A50
J39: 0 | K39: 2 | O39: 0 | Q39: اسم الصنف : قاطع عمومي ثلاثي A50
J40: 0 | K40: 2 | O40: 0 | Q40: اسم الصنف : قاطع عمومي ثلاثي A50
J41: 0 | K41: 2 | O41: 0 | Q41: اسم الصنف : قاطع عمومي ثلاثي A50
J42: 0 | K42: 2 | O42: 0 | Q42: اسم الصنف : قاطع عمومي ثلاثي A50
J43: 0 | K43: 2 | O43: 0 | Q43: اسم الصنف : قاطع عمومي ثلاثي A50
J44: 0 | K44: 2 | O44: 0 | Q44: اسم الصنف : قاطع عمومي ثلاثي A50
J45: 0 | K45: 2 | O45: 0 | Q45: اسم الصنف : قاطع عمومي ثلاثي A50
J46: 0 | K46: 2 | O46: 0 | Q46: اسم الصنف : قاطع عمومي ثلاثي A50
J47: 0 | K47: 2 | O47: 0 | Q47: اسم الصنف : قاطع عمومي ثلاثي A50
J48: 0 | K48: 2 | O48: 0 | Q48: اسم الصنف : قاطع عمومي ثلاثي A50
J49: 0 | K49: 2 | O49: 0 | Q49: اسم الصنف : قاطع عمومي ثلاثي A50
J50: 0 | K50: 2 | O50: 0 | Q50: اسم الصنف : قاطع عمومي ثلاثي A50
J51: 0 | K51: 2 | O51: 0 | Q51: اسم الصنف : قاطع عمومي ثلاثي A50
F52: . | J52: 0 | K52: 2 | O52: 0 | Q52: اسم الصنف : قاطع عمومي ثلاثي A50
J53: 0 | K53: 2 | O53: 0 | Q53: اسم الصنف : قاطع عمومي ثلاثي A50
J54: 0 | K54: 2 | O54: 0 | Q54: اسم الصنف : قاطع عمومي ثلاثي A50
J55: 0 | K55: 2 | O55: 0 | Q55: اسم الصنف : قاطع عمومي ثلاثي A50
J56: 0 | K56: 2 | O56: 0
J57: 0 | K57: 2 | O57: 0
J58: 0 | K58: 2 | O58: 0
J59: 0 | K59: 2 | O59: 0
A60: الرصيد | J60: =G60-D60 -> 0 | K60: 2 | O60: 0
C61: =SUM(C10:C59) -> 2 | D61: =SUM(D10:D59) -> 0 | H61: =SUM(H10:H59) -> 0 | I61: =SUM(I10:I59) -> 0 | J61: =G61-D61 -> 0 | K61: 2 | O61: =SUM(O10:O60) -> 0 | P61: =SUM(G61:I61) -> 0

Sheet قاطع عمومي A32 ABB
F1: بطاقة كارت صنف
A4: اسم الصنف : قاطع عمومي ثلاثي A32 | K4: كود الصنف | L4: رقم كارت الصنف | M4: المخزن :
A7: رقم اذن اضافة الوارد | B7: تاريخ اذن اضافة الوارد | C7: وارد مشتريات وتحويل مشروع | D7: ع من الصيانة والمامورية | E7: رقم اذن الصرف | F7: تاريخ اذن الصرف | G7: صرف صيانة | H7: صرف تحويل | I7: صرف د الموقع | J7: فرق الصيانة | K7: الرصيد | L7: سعر توريد الصنف | M7: جهه التوريد | N7: ملاحظات
L9: رصيد اول المدة | O9: ج سعر التوريد | Q9: =$A$4 -> اسم الصنف : قاطع عمومي ثلاثي A32
A10: 13055 | B10: 14/4/2018 | C10: 1 | J10: =G10-D10 -> 0 | K10: =K9+C10-H10-I10+J10 -> 1 | M10: ادارة المشتريات | N10: ABB | O10: =C10*L10 -> 0 | Q10: =$A$4 -> اسم الصنف : قاطع عمومي ثلاثي A32
A11: 13183 | B11: 2018-01-05 | C11: 9 | J11: 0 | K11: 10 | M11: ادارة المشتريات | O11: 0 | Q11: اسم الصنف : قاطع عمومي ثلاثي A32
E12: 788 | F12: 2018-05-05 | I12: 5 | J12: 0 | K12: 5 | M12: خدمة موقع | O12: 0 | Q12: اسم الصنف : قاطع عمومي ثلاثي A32
E13: 3022ر | F13: 13/5/2018 | H13: 1 | J13: =G13-D13 -> 0 | K13: =K12+C13-H13-I13+J13 -> 4 | M13: محول الي نادي الجلالة | O13: 0 | Q13: اسم الصنف : قاطع عمومي ثلاثي A32
E14: 13751 | F14: 17/5/2018 | I14: 2 | J14: 0 | K14: 2 | M14: خدمة موقع | O14: 0 | Q14: اسم الصنف : قاطع عمومي ثلاثي A32
A15: 13206 | B15: 24/5/2018 | C15: 5 | J15: 0 | K15: =K14+C15-G15-H15-I15+J15 -> 7 | M15: ادارة المشتريات | O15: 0 | Q15: اسم الصنف : قاطع عمومي ثلاثي A32
E16: 13781 | F16: 28/6/2018 | I16: 1 | J16: 0 | K16: 6 | M16: سكن عمال | O16: 0 | Q16: اسم الصنف : قاطع عمومي ثلاثي A32
E17: 13798 | F17: 14/7/2018 | I17: 3 | J17: 0 | K17: 3 | M17: خدمة موقع | O17: 0 | Q17: اسم الصنف : قاطع عمومي ثلاثي A32
E18: 2821ر | F18: 2018-07-08 | H18: 1 | J18: =G18-D18 -> 0 | K18: 2 | M18: محول الي طب اسنان | Q18: اسم الصنف : قاطع عمومي ثلاثي A32
E19: 19857 | F19: 2018-01-10 | I19: 2 | J19: 0 | K19: 0 | M19: خدمة موقع | O19: 0 | Q19: اسم الصنف : قاطع عمومي ثلاثي A32
A20: 1240 | B20: 2018-09-10 | C20: 10 | J20: 0 | K20: 10 | M20: ادارة المشتريات | O20: 0 | Q20: اسم الصنف : قاطع عمومي ثلاثي A32
E21: 19891 | F21: 23/10/2018 | I21: 1 | J21: =G21-D21 -> 0 | K21: 9 | M21: خدمة موقع | O21: =C21*L21 -> 0 | Q21: اسم الصنف : قاطع عمومي ثلاثي A32
E22: 14602 | F22: 29/10/2018 | I22: 1 | J22: 0 | K22: 8 | M22: خدمة موقع | O22: 0 | Q22: اسم الصنف : قاطع عمومي ثلاثي A32
E23: 14628 | F23: 2018-11-11 | I23: 2 | J23: =G23-D23 -> 0 | K23: 6 | M23: موقع | N23: 4عين | O23: =C23*L23 -> 0 | Q23: اسم الصنف : قاطع عمومي ثلاثي A32
E24: 14640 | F24: 14/11/2018 | I24: 1 | J24: 0 | K24: 5 | M24: خدمة موقع | Q24: اسم الصنف : قاطع عمومي ثلاثي A32
E25: 14648 | F25: 18/11/2018 | I25: 1 | J25: 0 | K25: 4 | M25: خدمة موقع | Q25: اسم الصنف : قاطع عمومي ثلاثي A32
E26: 11855 | F26: 2018-02-12 | I26: 1 | J26: 0 | K26: 3 | M26: خدمة موقع | O26: 0 | Q26: اسم الصنف : قاطع عمومي ثلاثي A32
E27: 14536 | F27: 27/1/2019 | I27: 2 | J27: 0 | K27: 1 | O27: =L27*C27 -> 0 | Q27: اسم الصنف : قاطع عمومي ثلاثي A32
J28: 0 | K28: 1 | O28: 0 | Q28: اسم الصنف : قاطع عمومي ثلاثي A32
J29: 0 | K29: 1 | O29: 0 | Q29: اسم الصنف : قاطع عمومي ثلاثي A32
J30: 0 | K30: 1 | O30: 0 | Q30: اسم الصنف : قاطع عمومي ثلاثي A32
J31: 0 | K31: 1 | O31: 0 | Q31: اسم الصنف : قاطع عمومي ثلاثي A32
J32: 0 | K32: 1 | O32: 0 | Q32: اسم الصنف : قاطع عمومي ثلاثي A32
J33: 0 | K33: 1 | O33: 0 | Q33: اسم الصنف : قاطع عمومي ثلاثي A32
J34: 0 | K34: 1 | O34: 0 | Q34: اسم الصنف : قاطع عمومي ثلاثي A32
J35: 0 | K35: 1 | O35: 0 | Q35: اسم الصنف : قاطع عمومي ثلاثي A32
J36: 0 | K36: 1 | O36: 0 | Q36: اسم الصنف : قاطع عمومي ثلاثي A32
J37: 0 | K37: 1 | O37: 0 | Q37: اسم الصنف : قاطع عمومي ثلاثي A32
J38: 0 | K38: 1 | O38: 0 | Q38: اسم الصنف : قاطع عمومي ثلاثي A32
J39: 0 | K39: 1 | O39: 0 | Q39: اسم الصنف : قاطع عمومي ثلاثي A32
J40: 0 | K40: 1 | O40: 0 | Q40: اسم الصنف : قاطع عمومي ثلاثي A32
J41: 0 | K41: 1 | O41: 0 | Q41: اسم الصنف : قاطع عمومي ثلاثي A32
J42: 0 | K42: 1 | O42: 0 | Q42: اسم الصنف : قاطع عمومي ثلاثي A32
J43: 0 | K43: 1 | O43: 0 | Q43: اسم الصنف : قاطع عمومي ثلاثي A32
J44: 0 | K44: 1 | O44: 0 | Q44: اسم الصنف : قاطع عمومي ثلاثي A32
J45: 0 | K45: 1 | O45: 0 | Q45: اسم الصنف : قاطع عمومي ثلاثي A32
J46: 0 | K46: 1 | O46: 0 | Q46: اسم الصنف : قاطع عمومي ثلاثي A32
J47: 0 | K47: 1 | O47: 0 | Q47: اسم الصنف : قاطع عمومي ثلاثي A32
J48: 0 | K48: 1 | O48: 0 | Q48: اسم الصنف : قاطع عمومي ثلاثي A32
J49: 0 | K49: 1 | O49: 0 | Q49: اسم الصنف : قاطع عمومي ثلاثي A32
J50: 0 | K50: 1 | O50: 0 | Q50: اسم الصنف : قاطع عمومي ثلاثي A32
F51: . | J51: 0 | K51: 1 | O51: 0 | Q51: اسم الصنف : قاطع عمومي ثلاثي A32
J52: 0 | K52: 1 | O52: 0 | Q52: اسم الصنف : قاطع عمومي ثلاثي A32
J53: 0 | K53: 1 | O53: 0 | Q53: اسم الصنف : قاطع عمومي ثلاثي A32
J54: 0 | K54: 1 | O54: 0 | Q54: اسم الصنف : قاطع عمومي ثلاثي A32
J55: 0 | K55: 1 | O55: 0 | Q55: اسم الصنف : قاطع عمومي ثلاثي A32
J56: 0 | K56: 1 | O56: 0
J57: 0 | K57: 1 | O57: 0
J58: 0 | K58: 1 | O58: 0
A59: الرصيد | J59: =G59-D59 -> 0 | K59: 1 | O59: 0
C60: =SUM(C10:C58) -> 25 | D60: =SUM(D10:D58) -> 0 | H60: =SUM(H10:H58) -> 2 | I60: =SUM(I10:I58) -> 22 | J60: =G60-D60 -> 0 | K60: 2 | O60: =SUM(O10:O59) -> 0 | P60: =SUM(G60:I60) -> 24

Sheet قاطع احادي A40 ABB
F1: بطاقة كارت صنف
A4: اسم الصنف : قاطع احادي 40 A | K4: كود الصنف | L4: رقم كارت الصنف | M4: المخزن :
A7: رقم اذن اضافة الوارد | B7: تاريخ اذن اضافة الوارد | C7: وارد مشتريات وتحويل مشروع | D7: ع من الصيانة والمامورية | E7: رقم اذن الصرف | F7: تاريخ اذن الصرف | G7: صرف صيانة | H7: صرف تحويل | I7: صرف د الموقع | J7: فرق الصيانة | K7: الرصيد | L7: سعر توريد الصنف | M7: جهه التوريد | N7: ملاحظات
L9: رصيد اول المدة | O9: ج سعر التوريد | Q9: =$A$4 -> اسم الصنف : قاطع احادي 40 A
A10: 13183 | B10: 2018-01-05 | C10: 4 | J10: =G10-D10 -> 0 | K10: =K9+C10-H10-I10+J10 -> 4 | M10: ادارة المشتريات | O10: =C10*L10 -> 0 | Q10: =$A$4 -> اسم الصنف : قاطع احادي 40 A
A11: 13102 | B11: 2018-06-05 | C11: 1 | J11: 0 | K11: =K10+C11-I11 -> 5 | M11: ادارة المشتريات | Q11: اسم الصنف : قاطع احادي 40 A
E12: 13762 | F12: 31/5/2018 | I12: 5 | J12: 0 | K12: =K11+C12-G12-H12-I12+J12 -> 0 | M12: كرفان الجيش | O12: =L12*C12 -> 0 | Q12: اسم الصنف : قاطع احادي 40 A
A13: 1240 | B13: 2018-09-10 | C13: 20 | J13: 0 | K13: 20 | M13: ادارة المشتريات | O13: 0 | Q13: اسم الصنف : قاطع احادي 40 A
E14: 19869 | F14: 2018-09-10 | I14: 1 | J14: =G14-D14 -> 0 | K14: 19 | M14: مبني ادارة الجامعة | Q14: اسم الصنف : قاطع احادي 40 A
J15: =G15-D15 -> 0 | K15: 19 | O15: =C15*L15 -> 0 | Q15: اسم الصنف : قاطع احادي 40 A
J16: 0 | K16: 19 | O16: 0 | Q16: اسم الصنف : قاطع احادي 40 A
J17: 0 | K17: 19 | O17: 0 | Q17: اسم الصنف : قاطع احادي 40 A
J18: 0 | K18: 19 | O18: 0 | Q18: اسم الصنف : قاطع احادي 40 A
J19: 0 | K19: 19 | O19: 0 | Q19: اسم الصنف : قاطع احادي 40 A
J20: 0 | K20: 19 | O20: 0 | Q20: اسم الصنف : قاطع احادي 40 A
J21: 0 | K21: 19 | O21: 0 | Q21: اسم الصنف : قاطع احادي 40 A
J22: 0 | K22: 19 | O22: 0 | Q22: اسم الصنف : قاطع احادي 40 A
J23: 0 | K23: 19 | O23: 0 | Q23: اسم الصنف : قاطع احادي 40 A
J24: 0 | K24: 19 | O24: 0 | Q24: اسم الصنف : قاطع احادي 40 A
J25: 0 | K25: 19 | O25: 0 | Q25: اسم الصنف : قاطع احادي 40 A
J26: 0 | K26: 19 | O26: 0 | Q26: اسم الصنف : قاطع احادي 40 A
J27: 0 | K27: 19 | O27: 0 | Q27: اسم الصنف : قاطع احادي 40 A
J28: 0 | K28: 19 | O28: 0 | Q28: اسم الصنف : قاطع احادي 40 A
J29: 0 | K29: 19 | O29: 0 | Q29: اسم الصنف : قاطع احادي 40 A
J30: 0 | K30: 19 | O30: 0 | Q30: اسم الصنف : قاطع احادي 40 A
J31: 0 | K31: 19 | O31: 0 | Q31: اسم الصنف : قاطع احادي 40 A
J32: 0 | K32: 19 | O32: 0 | Q32: اسم الصنف : قاطع احادي 40 A
J33: 0 | K33: 19 | O33: 0 | Q33: اسم الصنف : قاطع احادي 40 A
J34: 0 | K34: 19 | O34: 0 | Q34: اسم الصنف : قاطع احادي 40 A
J35: 0 | K35: 19 | O35: 0 | Q35: اسم الصنف : قاطع احادي 40 A
J36: 0 | K36: 19 | O36: 0 | Q36: اسم الصنف : قاطع احادي 40 A
J37: 0 | K37: 19 | O37: 0 | Q37: اسم الصنف : قاطع احادي 40 A
J38: 0 | K38: 19 | O38: 0 | Q38: اسم الصنف : قاطع احادي 40 A
J39: 0 | K39: 19 | O39: 0 | Q39: اسم الصنف : قاطع احادي 40 A
J40: 0 | K40: 19 | O40: 0 | Q40: اسم الصنف : قاطع احادي 40 A
J41: 0 | K41: 19 | O41: 0 | Q41: اسم الصنف : قاطع احادي 40 A
J42: 0 | K42: 19 | O42: 0 | Q42: اسم الصنف : قاطع احادي 40 A
J43: 0 | K43: 19 | O43: 0 | Q43: اسم الصنف : قاطع احادي 40 A
J44: 0 | K44: 19 | O44: 0 | Q44: اسم الصنف : قاطع احادي 40 A
J45: 0 | K45: 19 | O45: 0 | Q45: اسم الصنف : قاطع احادي 40 A
J46: 0 | K46: 19 | O46: 0 | Q46: اسم الصنف : قاطع احادي 40 A
J47: 0 | K47: 19 | O47: 0 | Q47: اسم الصنف : قاطع احادي 40 A
J48: 0 | K48: 19 | O48: 0 | Q48: اسم الصنف : قاطع احادي 40 A
J49: 0 | K49: 19 | O49: 0 | Q49: اسم الصنف : قاطع احادي 40 A
J50: 0 | K50: 19 | O50: 0 | Q50: اسم الصنف : قاطع احادي 40 A
F51: . | J51: 0 | K51: 19 | O51: 0 | Q51: اسم الصنف : قاطع احادي 40 A
J52: 0 | K52: 19 | O52: 0 | Q52: اسم الصنف : قاطع احادي 40 A
J53: 0 | K53: 19 | O53: 0 | Q53: اسم الصنف : قاطع احادي 40 A
J54: 0 | K54: 19 | O54: 0 | Q54: اسم الصنف : قاطع احادي 40 A
J55: 0 | K55: 19 | O55: 0 | Q55: اسم الصنف : قاطع احادي 40 A
J56: 0 | K56: 19 | O56: 0
J57: 0 | K57: 19 | O57: 0
J58: 0 | K58: 19 | O58: 0
A59: الرصيد | J59: =G59-D59 -> 0 | K59: 19 | O59: 0
C60: =SUM(C10:C58) -> 25 | D60: =SUM(D10:D58) -> 0 | H60: =SUM(H10:H58) -> 0 | I60: =SUM(I10:I58) -> 6 | J60: =G60-D60 -> 0 | K60: 20 | O60: =SUM(O10:O59) -> 0 | P60: =SUM(G60:I60) -> 6

Sheet قاطع احادي A32 ABB
F1: بطاقة كارت صنف
A4: اسم الصنف : قاطع احادي A32 ABB | K4: كود الصنف | L4: رقم كارت الصنف | M4: المخزن :
A7: رقم اذن اضافة الوارد | B7: تاريخ اذن اضافة الوارد | C7: وارد مشتريات وتحويل مشروع | D7: ع من الصيانة والمامورية | E7: رقم اذن الصرف | F7: تاريخ اذن الصرف | G7: صرف صيانة | H7: صرف تحويل | I7: صرف د الموقع | J7: فرق الصيانة | K7: الرصيد | L7: سعر توريد الصنف | M7: جهه التوريد | N7: ملاحظات
L9: رصيد اول المدة | O9: ج سعر التوريد | Q9: =$A$4 -> اسم الصنف : قاطع احادي A32 ABB
A10: 652 | B10: 2018-01-31 | C10: 4 | J10: =G10-D10 -> 0 | K10: =K9+C10-I10 -> 4 | L10: 35 | M10: انريجيا | N10: جلال | O10: =C10*L10 -> 140 | Q10: =$A$4 -> اسم الصنف : قاطع احادي A32 ABB
A11: 699 | B11: 2018-04-03 | C11: 1 | J11: =G11-D11 -> 0 | K11: =K10+C11-H11-I11+J11 -> 5 | L11: 30 | M11: مش موقع(فينوس) | N11: احمد حامد المحاسب | O11: =C11*L11 -> 30 | Q11: اسم الصنف : قاطع احادي A32 ABB
E12: 756 | F12: 2018-04-03 | I12: 4 | J12: =G12-D12 -> 0 | K12: =K11+C12-H12-I12+J12 -> 1 | O12: 0 | Q12: اسم الصنف : قاطع احادي A32 ABB
A13: 13055 | B13: 14/4/2018 | C13: 4 | J13: 0 | K13: 5 | M13: ادارة المشتريات | N13: ABB | O13: 0 | Q13: اسم الصنف : قاطع احادي A32 ABB
E14: 771 | F14: 18/4/2018 | I14: 4 | J14: 0 | K14: 1 | M14: خدمة موقع | O14: 0 | Q14: اسم الصنف : قاطع احادي A32 ABB
A15: 13183 | B15: 2018-01-05 | C15: 5 | J15: 0 | K15: 6 | M15: ادارة المشتريات | O15: 0 | Q15: اسم الصنف : قاطع احادي A32 ABB
E16: 784 | F16: 2018-01-05 | I16: 1 | J16: 0 | K16: 5 | M16: خدمة موقع | O16: 0 | Q16: اسم الصنف : قاطع احادي A32 ABB
E17: 3012ر | F17: 2018-05-05 | H17: 1 | J17: 0 | K17: 4 | M17: تحويل الي الهايبر | O17: 0 | Q17: اسم الصنف : قاطع احادي A32 ABB
A18: 13102 | B18: 2018-06-05 | C18: 1 | J18: 0 | K18: =K17+C18-I18 -> 5 | M18: ادارة المشتريات | Q18: اسم الصنف : قاطع احادي A32 ABB
E19: 3022ر | F19: 13/5/2018 | H19: 1 | J19: 0 | K19: =K18+C19-G19-H19-I19+J19 -> 4 | M19: محول الي النادي | O19: 0 | Q19: اسم الصنف : قاطع احادي A32 ABB
E20: 13754 | F20: 23/5/2018 | I20: 1 | J20: 0 | K20: 3 | M20: خدمة موقع | O20: 0 | Q20: اسم الصنف : قاطع احادي A32 ABB
A21: 13206 | B21: 24/5/2018 | C21: 15 | J21: 0 | K21: 18 | M21: ادارة المشتريات | Q21: اسم الصنف : قاطع احادي A32 ABB
E22: 13762 | F22: 31/5/2018 | I22: 8 | J22: 0 | K22: 10 | M22: كرفان الجيش | O22: =L22*C22 -> 0 | Q22: اسم الصنف : قاطع احادي A32 ABB
E23: 13795 | F23: 2018-11-07 | I23: 1 | J23: 0 | K23: 9 | M23: خدمة موقع | O23: =C23*L23 -> 0 | Q23: اسم الصنف : قاطع احادي A32 ABB
E24: 13798 | F24: 14/7/2018 | I24: 3 | J24: 0 | K24: 6 | M24: خدمة موقع | O24: 0 | Q24: اسم الصنف : قاطع احادي A32 ABB
E25: 13813 | F25: 30/7/2018 | I25: 1 | J25: 0 | K25: 5 | M25: خدمة موقع | O25: 0 | Q25: اسم الصنف : قاطع احادي A32 ABB
E26: 13838 | F26: 2018-09-09 | I26: 5 | J26: 0 | K26: 0 | M26: خدمة موقع | O26: 0 | Q26: اسم الصنف : قاطع احادي A32 ABB
A27: 1240 | B27: 2018-09-10 | C27: 20 | J27: 0 | K27: 20 | M27: ادارة المشتريات | O27: 0 | Q27: اسم الصنف : قاطع احادي A32 ABB
E28: 19872 | F28: 2018-11-10 | I28: 1 | J28: =G28-D28 -> 0 | K28: 19 | M28: خدمة موقع | O28: =C28*L28 -> 0 | Q28: اسم الصنف : قاطع احادي A32 ABB
E29: 19874 | F29: 2018-11-10 | I29: 2 | J29: 0 | K29: 17 | M29: خدمة موقع | O29: 0 | Q29: اسم الصنف : قاطع احادي A32 ABB
E30: 14624 | F30: 2018-10-11 | I30: 2 | J30: 0 | K30: 15 | M30: خدمة موقع | O30: 0 | Q30: اسم الصنف : قاطع احادي A32 ABB
E31: 14645 | F31: 17/11/2018 | I31: 2 | J31: 0 | K31: =K30+C31-I31 -> 13 | Q31: اسم الصنف : قاطع احادي A32 ABB
E32: 14649 | F32: 18/11/2018 | I32: 5 | J32: 0 | K32: 8 | O32: 0 | Q32: اسم الصنف : قاطع احادي A32 ABB
E33: 12690ر | F33: 2018-09-12 | I33: -5 | J33: 0 | K33: 13 | M33: ارتجاع داخلي | O33: 0 | Q33: اسم الصنف : قاطع احادي A32 ABB
A34: 3 | E34: 3638 | F34: 5/1/20198 | I34: 3 | J34: 0 | K34: 10 | O34: 0 | Q34: اسم الصنف : قاطع احادي A32 ABB
A35: 7936 | B35: 15/1/2019 | C35: 22 | J35: 0 | K35: =K34+C35-I35 -> 32 | M35: ادارة المشتريات | Q35: اسم الصنف : قاطع احادي A32 ABB
E36: 11849 | F36: 18/1/2019 | I36: 5 | J36: 0 | K36: =K35+C36-G36-H36-I36+J36 -> 27 | O36: =C36*L36 -> 0 | Q36: اسم الصنف : قاطع احادي A32 ABB
E37: 14536 | F37: 27/1/2019 | I37: 3 | J37: 0 | K37: 24 | O37: =L37*C37 -> 0 | Q37: اسم الصنف : قاطع احادي A32 ABB
J38: 0 | K38: 24 | O38: 0 | Q38: اسم الصنف : قاطع احادي A32 ABB
J39: 0 | K39: 24 | O39: 0 | Q39: اسم الصنف : قاطع احادي A32 ABB
J40: 0 | K40: 24 | O40: 0 | Q40: اسم الصنف : قاطع احادي A32 ABB
J41: 0 | K41: 24 | O41: 0 | Q41: اسم الصنف : قاطع احادي A32 ABB
J42: 0 | K42: 24 | O42: 0 | Q42: اسم الصنف : قاطع احادي A32 ABB
J43: 0 | K43: 24 | O43: 0 | Q43: اسم الصنف : قاطع احادي A32 ABB
J44: 0 | K44: 24 | O44: 0 | Q44: اسم الصنف : قاطع احادي A32 ABB
J45: 0 | K45: 24 | O45: 0 | Q45: اسم الصنف : قاطع احادي A32 ABB
J46: 0 | K46: 24 | O46: 0 | Q46: اسم الصنف : قاطع احادي A32 ABB
J47: 0 | K47: 24 | O47: 0 | Q47: اسم الصنف : قاطع احادي A32 ABB
J48: 0 | K48: 24 | O48: 0 | Q48: اسم الصنف : قاطع احادي A32 ABB
J49: 0 | K49: 24 | O49: 0 | Q49: اسم الصنف : قاطع احادي A32 ABB
F50: . | J50: 0 | K50: 24 | O50: 0 | Q50: اسم الصنف : قاطع احادي A32 ABB
J51: 0 | K51: 24 | O51: 0 | Q51: اسم الصنف : قاطع احادي A32 ABB
J52: 0 | K52: 24 | O52: 0 | Q52: اسم الصنف : قاطع احادي A32 ABB
J53: 0 | K53: 24 | O53: 0 | Q53: اسم الصنف : قاطع احادي A32 ABB
J54: 0 | K54: 24 | O54: 0 | Q54: اسم الصنف : قاطع احادي A32 ABB
J55: 0 | K55: 24 | O55: 0 | Q55: اسم الصنف : قاطع احادي A32 ABB
J56: 0 | K56: 24 | O56: 0
J57: 0 | K57: 24 | O57: 0
A58: الرصيد | J58: =G58-D58 -> 0 | K58: 24 | O58: 0
C59: =SUM(C10:C57) -> 72 | D59: =SUM(D10:D57) -> 0 | H59: =SUM(H10:H57) -> 2 | I59: =SUM(I10:I57) -> 46 | J59: =G59-D59 -> 0 | K59: 20 | O59: =SUM(O10:O58) -> 170 | P59: =SUM(G59:I59) -> 48

Sheet قاطع احادي A25 ABB
F1: بطاقة كارت صنف
A4: اسم الصنف : قاطع احادي A25 ABB | K4: كود الصنف | L4: رقم كارت الصنف | M4: المخزن :
A7: رقم اذن اضافة الوارد | B7: تاريخ اذن اضافة الوارد | C7: وارد مشتريات وتحويل مشروع | D7: ع من الصيانة والمامورية | E7: رقم اذن الصرف | F7: تاريخ اذن الصرف | G7: صرف صيانة | H7: صرف تحويل | I7: صرف د الموقع | J7: فرق الصيانة | K7: الرصيد | L7: سعر توريد الصنف | M7: جهه التوريد | N7: ملاحظات
L9: رصيد اول المدة | O9: ج سعر التوريد | Q9: =$A$4 -> اسم الصنف : قاطع احادي A25 ABB
A10: 652 | B10: 2018-01-31 | C10: 6 | J10: =G10-D10 -> 0 | K10: =K9+C10-I10 -> 6 | L10: 35 | M10: انريجيا | N10: جلال | O10: =C10*L10 -> 210 | Q10: =$A$4 -> اسم الصنف : قاطع احادي A25 ABB
A11: 699 | B11: 2018-03-04 | C11: 1 | J11: =G11-D11 -> 0 | K11: =K10+C11-H11-I11+J11 -> 7 | L11: 30 | M11: مش موقع(فينوس) | N11: احمد حامد المحاسب | O11: =C11*L11 -> 30 | Q11: اسم الصنف : قاطع احادي A25 ABB
E12: 756 | F12: 2018-04-03 | I12: 6 | J12: =G12-D12 -> 0 | K12: =K11+C12-G12-H12-I12+J12 -> 1 | M12: خدمة موقع | O12: 0 | Q12: اسم الصنف : قاطع احادي A25 ABB
E13: 757 | F13: 2018-04-04 | I13: 1 | K13: =K12+C13-I13 -> 0 | M13: خدمة موقع | Q13: اسم الصنف : قاطع احادي A25 ABB
A14: 13055 | B14: 14/4/2018 | C14: 7 | J14: 0 | K14: 7 | M14: ادارة المشتريات | N14: ABB | O14: 0 | Q14: اسم الصنف : قاطع احادي A25 ABB
A15: 13183 | B15: 2018-01-05 | C15: 5 | J15: 0 | K15: 12 | M15: ادارة المشتريات | O15: 0 | Q15: اسم الصنف : قاطع احادي A25 ABB
E16: 785 | F16: 2018-01-05 | I16: 2 | J16: 0 | K16: 10 | M16: خدمة موقع | O16: 0 | Q16: اسم الصنف : قاطع احادي A25 ABB
E17: 788 | F17: 2018-05-05 | I17: 2 | J17: 0 | K17: 8 | M17: خدمة موقع | O17: 0 | Q17: اسم الصنف : قاطع احادي A25 ABB
E18: 13754 | F18: 23/5/2018 | I18: 3 | J18: 0 | K18: 5 | M18: خدمة موقع | O18: 0 | Q18: اسم الصنف : قاطع احادي A25 ABB
A19: 13206 | B19: 24/5/2018 | C19: 15 | J19: 0 | K19: 20 | M19: ادارة المشتريات | Q19: اسم الصنف : قاطع احادي A25 ABB
E20: 13795 | F20: 2018-11-07 | I20: 2 | J20: 0 | K20: 18 | M20: خدمة موقع | O20: =C20*L20 -> 0 | Q20: اسم الصنف : قاطع احادي A25 ABB
E21: 13798 | F21: 14/7/2018 | I21: 3 | J21: 0 | K21: 15 | M21: خدمة موقع | O21: 0 | Q21: اسم الصنف : قاطع احادي A25 ABB
F22: 2018-09-09 | I22: 2 | J22: 0 | K22: 13 | O22: 0 | Q22: اسم الصنف : قاطع احادي A25 ABB
E23: 2606 | F23: 12/9/2018ر | H23: 3 | J23: 0 | K23: 10 | M23: محولالي كلية طب اسنان | O23: 0 | Q23: اسم الصنف : قاطع احادي A25 ABB
E24: 19857 | F24: 2018-01-10 | I24: 10 | J24: 0 | K24: 0 | M24: خدمة موقع | O24: 0 | Q24: اسم الصنف : قاطع احادي A25 ABB
A25: 1240 | B25: 2018-09-10 | C25: 20 | J25: 0 | K25: 20 | M25: ادارة المشتريات | O25: 0 | Q25: اسم الصنف : قاطع احادي A25 ABB
E26: 14602 | F26: 29/10/2018 | I26: 1 | J26: 0 | K26: 19 | M26: خدمة موقع | O26: 0 | Q26: اسم الصنف : قاطع احادي A25 ABB
E27: 3648 | F27: 2019-07-01 | I27: 1 | J27: =G27-D27 -> 0 | K27: =K26+C27-I27 -> 18 | O27: =C27*L27 -> 0 | Q27: اسم الصنف : قاطع احادي A25 ABB
E28: 11849 | F28: 18/1/2019 | I28: 5 | J28: 0 | K28: =K27+C28-G28-H28-I28+J28 -> 13 | O28: 0 | Q28: اسم الصنف : قاطع احادي A25 ABB
E29: 14536 | F29: 27/1/2019 | I29: 5 | J29: 0 | K29: 8 | O29: =L29*C29 -> 0 | Q29: اسم الصنف : قاطع احادي A25 ABB
E30: 144 | F30: 13/1/2019 | I30: 5 | J30: 0 | K30: 3 | O30: 0 | Q30: اسم الصنف : قاطع احادي A25 ABB
J31: 0 | K31: 3 | O31: 0 | Q31: اسم الصنف : قاطع احادي A25 ABB
J32: 0 | K32: 3 | O32: 0 | Q32: اسم الصنف : قاطع احادي A25 ABB
J33: 0 | K33: 3 | O33: 0 | Q33: اسم الصنف : قاطع احادي A25 ABB
J34: 0 | K34: 3 | O34: 0 | Q34: اسم الصنف : قاطع احادي A25 ABB
J35: 0 | K35: 3 | O35: 0 | Q35: اسم الصنف : قاطع احادي A25 ABB
J36: 0 | K36: 3 | O36: 0 | Q36: اسم الصنف : قاطع احادي A25 ABB
J37: 0 | K37: 3 | O37: 0 | Q37: اسم الصنف : قاطع احادي A25 ABB
J38: 0 | K38: 3 | O38: 0 | Q38: اسم الصنف : قاطع احادي A25 ABB
J39: 0 | K39: 3 | O39: 0 | Q39: اسم الصنف : قاطع احادي A25 ABB
J40: 0 | K40: 3 | O40: 0 | Q40: اسم الصنف : قاطع احادي A25 ABB
J41: 0 | K41: 3 | O41: 0 | Q41: اسم الصنف : قاطع احادي A25 ABB
J42: 0 | K42: 3 | O42: 0 | Q42: اسم الصنف : قاطع احادي A25 ABB
J43: 0 | K43: 3 | O43: 0 | Q43: اسم الصنف : قاطع احادي A25 ABB
J44: 0 | K44: 3 | O44: 0 | Q44: اسم الصنف : قاطع احادي A25 ABB
J45: 0 | K45: 3 | O45: 0 | Q45: اسم الصنف : قاطع احادي A25 ABB
J46: 0 | K46: 3 | O46: 0 | Q46: اسم الصنف : قاطع احادي A25 ABB
J47: 0 | K47: 3 | O47: 0 | Q47: اسم الصنف : قاطع احادي A25 ABB
J48: 0 | K48: 3 | O48: 0 | Q48: اسم الصنف : قاطع احادي A25 ABB
J49: 0 | K49: 3 | O49: 0 | Q49: اسم الصنف : قاطع احادي A25 ABB
F50: . | J50: 0 | K50: 3 | O50: 0 | Q50: اسم الصنف : قاطع احادي A25 ABB
J51: 0 | K51: 3 | O51: 0 | Q51: اسم الصنف : قاطع احادي A25 ABB
J52: 0 | K52: 3 | O52: 0 | Q52: اسم الصنف : قاطع احادي A25 ABB
J53: 0 | K53: 3 | O53: 0 | Q53: اسم الصنف : قاطع احادي A25 ABB
J54: 0 | K54: 3 | O54: 0 | Q54: اسم الصنف : قاطع احادي A25 ABB
J55: 0 | K55: 3 | O55: 0 | Q55: اسم الصنف : قاطع احادي A25 ABB
J56: 0 | K56: 3 | O56: 0
J57: 0 | K57: 3 | O57: 0
A58: الرصيد | J58: =G58-D58 -> 0 | K58: 3 | O58: 0
C59: =SUM(C10:C57) -> 54 | D59: =SUM(D10:D57) -> 0 | H59: =SUM(H10:H57) -> 3 | I59: =SUM(I10:I57) -> 48 | J59: =G59-D59 -> 0 | K59: 20 | O59: =SUM(O10:O58) -> 240 | P59: =SUM(G59:I59) -> 51

Sheet قاطع احادي A20 ABB
F1: بطاقة كارت صنف
A4: اسم الصنف : قاطع احادي A20 ABB | K4: كود الصنف | L4: رقم كارت الصنف | M4: المخزن :
A7: رقم اذن اضافة الوارد | B7: تاريخ اذن اضافة الوارد | C7: وارد مشتريات وتحويل مشروع | D7: ع من الصيانة والمامورية | E7: رقم اذن الصرف | F7: تاريخ اذن الصرف | G7: صرف صيانة | H7: صرف تحويل | I7: صرف د الموقع | J7: فرق الصيانة | K7: الرصيد | L7: سعر توريد الصنف | M7: جهه التوريد | N7: ملاحظات
L9: رصيد اول المدة | O9: ج سعر التوريد | Q9: =$A$4 -> اسم الصنف : قاطع احادي A20 ABB
A10: 652 | B10: 2018-01-31 | C10: 6 | J10: =G10-D10 -> 0 | K10: =K9+C10-I10 -> 6 | L10: 35 | M10: انريجيا | N10: جلال | O10: =C10*L10 -> 210 | Q10: =$A$4 -> اسم الصنف : قاطع احادي A20 ABB
E11: 756 | F11: 2018-04-03 | I11: 6 | J11: =G11-D11 -> 0 | K11: =K10+C11-H11-I11+J11 -> 0 | O11: =C11*L11 -> 0 | Q11: اسم الصنف : قاطع احادي A20 ABB
A12: 13055 | B12: 14/4/2018 | C12: 20 | J12: 0 | K12: =K11+C12-H12-I12+J12 -> 20 | M12: ادارة المشتريات | N12: ABB | O12: 0 | Q12: اسم الصنف : قاطع احادي A20 ABB
E13: 771 | F13: 18/4/2018 | I13: 3 | J13: =G13-D13 -> 0 | K13: 17 | M13: خدمة موقع | O13: =C13*L13 -> 0 | Q13: اسم الصنف : قاطع احادي A20 ABB
E14: 788 | F14: 2018-05-05 | I14: 2 | J14: 0 | K14: =K13+C14-G14-H14-I14+J14 -> 15 | M14: خدمة موقع | O14: 0 | Q14: اسم الصنف : قاطع احادي A20 ABB
E15: 13754 | F15: 23/5/2018 | I15: 1 | J15: 0 | K15: 14 | M15: خدمة موقع | O15: 0 | Q15: اسم الصنف : قاطع احادي A20 ABB
A16: 13206 | B16: 24/5/2018 | C16: 15 | J16: 0 | K16: 29 | M16: ادارة المشتريات | Q16: اسم الصنف : قاطع احادي A20 ABB
E17: 13756 | F17: 24/5/2018 | I17: 1 | J17: =G17-D17 -> 0 | K17: =K16+C17-G17-H17-I17+J17 -> 28 | M17: خدمة موقع | O17: 0 | Q17: اسم الصنف : قاطع احادي A20 ABB
E18: 13781 | F18: 28/6/2018 | I18: 8 | J18: 0 | K18: 20 | M18: سكن عمال | O18: =L18*C18 -> 0 | Q18: اسم الصنف : قاطع احادي A20 ABB
E19: 1383ر | F19: 2018-11-07 | I19: -3 | J19: 0 | K19: 23 | M19: ارتجاع داخلي | O19: 0 | Q19: اسم الصنف : قاطع احادي A20 ABB
E20: 13798 | F20: 14/7/2018 | I20: 4 | J20: 0 | K20: 19 | M20: خدمة موقع | O20: 0 | Q20: اسم الصنف : قاطع احادي A20 ABB
E21: 13800 | F21: 15/7/2018 | I21: 1 | J21: =G21-D21 -> 0 | K21: 18 | M21: خدمة موقع | O21: =C21*L21 -> 0 | Q21: اسم الصنف : قاطع احادي A20 ABB
E22: 2815ر | F22: 2018-05-08 | H22: 2 | J22: 0 | K22: 16 | M22: محول الي كلية طب اسنان | Q22: اسم الصنف : قاطع احادي A20 ABB
E23: 13823 | F23: 2018-12-08 | I23: 1 | J23: 0 | K23: 15 | M23: خدمة موقع | O23: =C23*L23 -> 0 | Q23: اسم الصنف : قاطع احادي A20 ABB
E24: 13828 | F24: 16/8/2018 | I24: 1 | J24: 0 | K24: 14 | M24: لزوم مبني ادارة الجامعة | Q24: اسم الصنف : قاطع احادي A20 ABB
E25: 2606 | F25: 12/9/2018ر | H25: 14 | J25: 0 | K25: 0 | M25: محولالي كلية طب اسنان | O25: =C25*L25 -> 0 | Q25: اسم الصنف : قاطع احادي A20 ABB
A26: 1240 | B26: 2018-09-10 | C26: 20 | J26: 0 | K26: 20 | M26: ادارة المشتريات | O26: 0 | Q26: اسم الصنف : قاطع احادي A20 ABB
E27: 19869 | F27: 2018-09-10 | I27: 1 | J27: =G27-D27 -> 0 | K27: 19 | M27: مبني ادارة الجامعة | Q27: اسم الصنف : قاطع احادي A20 ABB
E28: 2644 | F28: 31/10/2018 | H28: 2 | J28: 0 | K28: 17 | M28: محول الي فندق الجلاله | O28: =C28*L28 -> 0 | Q28: اسم الصنف : قاطع احادي A20 ABB
E29: 14624 | F29: 2018-10-11 | I29: 4 | J29: 0 | K29: 13 | M29: خدمة موقع | O29: 0 | Q29: اسم الصنف : قاطع احادي A20 ABB
E30: 14628 | F30: 2018-11-11 | I30: 6 | J30: 0 | K30: =K29+C30-I30 -> 7 | M30: موقع | N30: 4عين | O30: 0 | Q30: اسم الصنف : قاطع احادي A20 ABB
E31: 12690ر | F31: 2018-09-12 | I31: -4 | J31: 0 | K31: =K30+C31-G31-H31-I31+J31 -> 11 | M31: ارتجاع داخلي | O31: 0 | Q31: اسم الصنف : قاطع احادي A20 ABB
J32: 0 | K32: 11 | O32: 0 | Q32: اسم الصنف : قاطع احادي A20 ABB
J33: 0 | K33: 11 | O33: 0 | Q33: اسم الصنف : قاطع احادي A20 ABB
J34: 0 | K34: 11 | O34: 0 | Q34: اسم الصنف : قاطع احادي A20 ABB
J35: 0 | K35: 11 | O35: 0 | Q35: اسم الصنف : قاطع احادي A20 ABB
J36: 0 | K36: 11 | O36: 0 | Q36: اسم الصنف : قاطع احادي A20 ABB
J37: 0 | K37: 11 | O37: 0 | Q37: اسم الصنف : قاطع احادي A20 ABB
J38: 0 | K38: 11 | O38: 0 | Q38: اسم الصنف : قاطع احادي A20 ABB
J39: 0 | K39: 11 | O39: 0 | Q39: اسم الصنف : قاطع احادي A20 ABB
J40: 0 | K40: 11 | O40: 0 | Q40: اسم الصنف : قاطع احادي A20 ABB
J41: 0 | K41: 11 | O41: 0 | Q41: اسم الصنف : قاطع احادي A20 ABB
J42: 0 | K42: 11 | O42: 0 | Q42: اسم الصنف : قاطع احادي A20 ABB
J43: 0 | K43: 11 | O43: 0 | Q43: اسم الصنف : قاطع احادي A20 ABB
J44: 0 | K44: 11 | O44: 0 | Q44: اسم الصنف : قاطع احادي A20 ABB
J45: 0 | K45: 11 | O45: 0 | Q45: اسم الصنف : قاطع احادي A20 ABB
J46: 0 | K46: 11 | O46: 0 | Q46: اسم الصنف : قاطع احادي A20 ABB
J47: 0 | K47: 11 | O47: 0 | Q47: اسم الصنف : قاطع احادي A20 ABB
J48: 0 | K48: 11 | O48: 0 | Q48: اسم الصنف : قاطع احادي A20 ABB
J49: 0 | K49: 11 | O49: 0 | Q49: اسم الصنف : قاطع احادي A20 ABB
F50: . | J50: 0 | K50: 11 | O50: 0 | Q50: اسم الصنف : قاطع احادي A20 ABB
J51: 0 | K51: 11 | O51: 0 | Q51: اسم الصنف : قاطع احادي A20 ABB
J52: 0 | K52: 11 | O52: 0 | Q52: اسم الصنف : قاطع احادي A20 ABB
J53: 0 | K53: 11 | O53: 0 | Q53: اسم الصنف : قاطع احادي A20 ABB
J54: 0 | K54: 11 | O54: 0 | Q54: اسم الصنف : قاطع احادي A20 ABB
J55: 0 | K55: 11 | O55: 0 | Q55: اسم الصنف : قاطع احادي A20 ABB
J56: 0 | K56: 11 | O56: 0
J57: 0 | K57: 11 | O57: 0
A58: الرصيد | J58: =G58-D58 -> 0 | K58: 11 | O58: 0
C59: =SUM(C10:C57) -> 61 | D59: =SUM(D10:D57) -> 0 | H59: =SUM(H10:H57) -> 18 | I59: =SUM(I10:I57) -> 32 | J59: =G59-D59 -> 0 | K59: 20 | O59: =SUM(O10:O58) -> 210 | P59: =SUM(G59:I59) -> 50

Sheet قاطع احادي A16 ABB
F1: بطاقة كارت صنف
A4: اسم الصنف : قاطع احادي A16 ABB | K4: كود الصنف | L4: رقم كارت الصنف | M4: المخزن :
A7: رقم اذن اضافة الوارد | B7: تاريخ اذن اضافة الوارد | C7: وارد مشتريات وتحويل مشروع | D7: ع من الصيانة والمامورية | E7: رقم اذن الصرف | F7: تاريخ اذن الصرف | G7: صرف صيانة | H7: صرف تحويل | I7: صرف د الموقع | J7: فرق الصيانة | K7: الرصيد | L7: سعر توريد الصنف | M7: جهه التوريد | N7: ملاحظات
L9: رصيد اول المدة | O9: ج سعر التوريد | Q9: =$A$4 -> اسم الصنف : قاطع احادي A16 ABB
A10: 699 | B10: 2018-04-03 | C10: 1 | J10: =G10-D10 -> 0 | K10: =K9+C10-I10 -> 1 | L10: 30 | M10: مش موقع (فينوس) | N10: احمد حامد المحاسب | O10: =C10*L10 -> 30 | Q10: =$A$4 -> اسم الصنف : قاطع احادي A16 ABB
E11: 756 | F11: 2018-04-03 | I11: 1 | J11: =G11-D11 -> 0 | K11: =K10+C11-I11 -> 0 | O11: =C11*L11 -> 0 | Q11: اسم الصنف : قاطع احادي A16 ABB
A12: 13055 | B12: 14/4/2018 | C12: 8 | J12: 0 | K12: 8 | M12: ادارة المشتريات | N12: ABB | O12: 0 | Q12: اسم الصنف : قاطع احادي A16 ABB
E13: 771 | F13: 18/4/2018 | I13: 2 | J13: =G13-D13 -> 0 | K13: 6 | M13: خدمة موقع | O13: =C13*L13 -> 0 | Q13: اسم الصنف : قاطع احادي A16 ABB
E14: 788 | F14: 2018-05-05 | I14: 2 | J14: 0 | K14: 4 | M14: خدمة موقع | O14: 0 | Q14: اسم الصنف : قاطع احادي A16 ABB
E15: 3012ر | F15: 2018-05-05 | H15: 1 | J15: 0 | K15: 3 | M15: تحويل الي الهايبر | O15: 0 | Q15: اسم الصنف : قاطع احادي A16 ABB
E16: 13751 | F16: 17/5/2018 | I16: 1 | J16: 0 | K16: 2 | M16: خدمة موقع | O16: 0 | Q16: اسم الصنف : قاطع احادي A16 ABB
E17: 13753 | F17: 22/5/2018 | I17: 1 | J17: =G17-D17 -> 0 | K17: 1 | M17: خدمة موقع | O17: 0 | Q17: اسم الصنف : قاطع احادي A16 ABB
E18: 13754 | F18: 23/5/2018 | I18: 1 | J18: 0 | K18: =K17+C18-G18-H18-I18+J18 -> 0 | M18: خدمة موقع | O18: 0 | Q18: اسم الصنف : قاطع احادي A16 ABB
A19: 8002 | B19: 2018-08-08 | C19: 10 | J19: 0 | K19: 10 | M19: ادارة المشتريات | O19: 0 | Q19: اسم الصنف : قاطع احادي A16 ABB
E20: 2823ر | F20: 2018-08-08 | H20: 3 | J20: 0 | K20: 7 | M20: محول الي طب اسنان | O20: =L20*C20 -> 0 | Q20: اسم الصنف : قاطع احادي A16 ABB
E21: 13831 | F21: 28/8/2018 | I21: 1 | J21: 0 | K21: 6 | M21: خدمة موقع | Q21: اسم الصنف : قاطع احادي A16 ABB
E22: 19857 | F22: 2018-01-10 | I22: 2 | J22: 0 | K22: 4 | M22: خدمة موقع | O22: 0 | Q22: اسم الصنف : قاطع احادي A16 ABB
E23: 19862 | F23: 2018-03-10 | I23: 4 | J23: 0 | K23: 0 | M23: خدمة موقع | O23: 0 | Q23: اسم الصنف : قاطع احادي A16 ABB
A24: 1240 | B24: 2018-09-10 | C24: 20 | J24: 0 | K24: 20 | M24: ادارة المشتريات | O24: 0 | Q24: اسم الصنف : قاطع احادي A16 ABB
E25: 19872 | F25: 2018-10-10 | I25: 1 | J25: 0 | K25: 19 | M25: خدمة موقع | O25: 0 | Q25: اسم الصنف : قاطع احادي A16 ABB
E26: 19874 | F26: 2018-11-10 | I26: 1 | J26: 0 | K26: 18 | M26: خدمة موقع | O26: 0 | Q26: اسم الصنف : قاطع احادي A16 ABB
E27: 14624 | F27: 2018-10-11 | I27: 2 | J27: 0 | K27: 16 | M27: خدمة موقع | O27: 0 | Q27: اسم الصنف : قاطع احادي A16 ABB
E28: 14640 | F28: 14/11/2018 | I28: 5 | J28: 0 | K28: 11 | M28: خدمة موقع | Q28: اسم الصنف : قاطع احادي A16 ABB
E29: 14645 | F29: 17/11/2018 | I29: 3 | J29: 0 | K29: =K28+C29-I29 -> 8 | Q29: اسم الصنف : قاطع احادي A16 ABB
E30: 14648 | F30: 18/11/2018 | I30: 2 | J30: 0 | K30: 6 | Q30: اسم الصنف : قاطع احادي A16 ABB
E31: 3306 | F31: 20/11/2018 | I31: 1 | J31: 0 | K31: =K30+C31-I31-H31+J31 -> 5 | M31: موقع | Q31: اسم الصنف : قاطع احادي A16 ABB
A32: 7936 | B32: 15/1/2019 | C32: 31 | K32: 36 | M32: ادارة المشتريات | Q32: اسم الصنف : قاطع احادي A16 ABB
E33: 11849 | F33: 18/1/2019 | I33: 5 | J33: =G33-D33 -> 0 | K33: =K32+C33-G33-H33-I33+J33 -> 31 | O33: =C33*L33 -> 0 | Q33: اسم الصنف : قاطع احادي A16 ABB
E34: 14509 | F34: 20/1/2019 | I34: 2 | J34: 0 | K34: 29 | O34: 0 | Q34: اسم الصنف : قاطع احادي A16 ABB
E35: 14529 | F35: 24/1/2019 | I35: 4 | J35: 0 | K35: 25 | O35: 0 | Q35: اسم الصنف : قاطع احادي A16 ABB
J36: 0 | K36: 25 | O36: 0 | Q36: اسم الصنف : قاطع احادي A16 ABB
J37: 0 | K37: 25 | O37: 0 | Q37: اسم الصنف : قاطع احادي A16 ABB
J38: 0 | K38: 25 | O38: 0 | Q38: اسم الصنف : قاطع احادي A16 ABB
J39: 0 | K39: 25 | O39: 0 | Q39: اسم الصنف : قاطع احادي A16 ABB
J40: 0 | K40: 25 | O40: 0 | Q40: اسم الصنف : قاطع احادي A16 ABB
J41: 0 | K41: 25 | O41: 0 | Q41: اسم الصنف : قاطع احادي A16 ABB
J42: 0 | K42: 25 | O42: 0 | Q42: اسم الصنف : قاطع احادي A16 ABB
J43: 0 | K43: 25 | O43: 0 | Q43: اسم الصنف : قاطع احادي A16 ABB
J44: 0 | K44: 25 | O44: 0 | Q44: اسم الصنف : قاطع احادي A16 ABB
J45: 0 | K45: 25 | O45: 0 | Q45: اسم الصنف : قاطع احادي A16 ABB
J46: 0 | K46: 25 | O46: 0 | Q46: اسم الصنف : قاطع احادي A16 ABB
J47: 0 | K47: 25 | O47: 0 | Q47: اسم الصنف : قاطع احادي A16 ABB
J48: 0 | K48: 25 | O48: 0 | Q48: اسم الصنف : قاطع احادي A16 ABB
J49: 0 | K49: 25 | O49: 0 | Q49: اسم الصنف : قاطع احادي A16 ABB
F50: . | J50: 0 | K50: 25 | O50: 0 | Q50: اسم الصنف : قاطع احادي A16 ABB
J51: 0 | K51: 25 | O51: 0 | Q51: اسم الصنف : قاطع احادي A16 ABB
J52: 0 | K52: 25 | O52: 0 | Q52: اسم الصنف : قاطع احادي A16 ABB
J53: 0 | K53: 25 | O53: 0 | Q53: اسم الصنف : قاطع احادي A16 ABB
J54: 0 | K54: 25 | O54: 0 | Q54: اسم الصنف : قاطع احادي A16 ABB
J55: 0 | K55: 25 | O55: 0 | Q55: اسم الصنف : قاطع احادي A16 ABB
J56: 0 | K56: 25 | O56: 0
J57: 0 | K57: 25 | O57: 0
A58: الرصيد | J58: =G58-D58 -> 0 | K58: 25 | O58: 0
C59: =SUM(C10:C57) -> 70 | D59: =SUM(D10:D57) -> 0 | H59: =SUM(H10:H57) -> 4 | I59: =SUM(I10:I57) -> 41 | J59: =G59-D59 -> 0 | K59: 20 | O59: =SUM(O10:O58) -> 30 | P59: =SUM(G59:I59) -> 45

Sheet مفتاح بتشينو 20 A
F1: بطاقة كارت صنف
A4: اسم الصنف : مفتاح بتشينو 26 A | K4: كود الصنف | L4: رقم كارت الصنف | M4: المخزن :
A7: رقم اذن اضافة الوارد | B7: تاريخ اذن اضافة الوارد | C7: وارد مشتريات وتحويل مشروع | D7: ع من الصيانة والمامورية | E7: رقم اذن الصرف | F7: تاريخ اذن الصرف | G7: صرف صيانة | H7: صرف تحويل | I7: صرف د الموقع | J7: فرق الصيانة | K7: الرصيد | L7: سعر توريد الصنف | M7: جهه التوريد | N7: ملاحظات
L9: رصيد اول المدة | O9: ج سعر التوريد | Q9: =$A$4 -> اسم الصنف : مفتاح بتشينو 26 A
A10: 652 | B10: 2018-01-31 | C10: 3 | J10: =G10-D10 -> 0 | K10: =K9+C10-I10 -> 3 | L10: 65 | M10: انريجيا | N10: جلال | O10: =C10*L10 -> 195 | Q10: =$A$4 -> اسم الصنف : مفتاح بتشينو 26 A
E11: 763 | F11: 2018-11-04 | I11: 1 | J11: =G11-D11 -> 0 | K11: =K10+C11-G11-H11-I11+J11 -> 2 | M11: خدمة موقع | O11: =C11*L11 -> 0 | Q11: اسم الصنف : مفتاح بتشينو 26 A
E12: 13751 | F12: 17/5/2018 | I12: 1 | J12: 0 | K12: 1 | M12: كرفان جيش | O12: 0 | Q12: اسم الصنف : مفتاح بتشينو 26 A
E13: 3041ر | F13: 2018-04-06 | I13: -1 | J13: 0 | K13: 2 | M13: ارتجاع داخلي | O13: 0 | Q13: اسم الصنف : مفتاح بتشينو 26 A
E14: 13815 | F14: 31/7/2018 | I14: 1 | J14: =G14-D14 -> 0 | K14: =K13+C14-G14-H14-I14+J14 -> 1 | M14: استشاري | O14: =C14*L14 -> 0 | Q14: اسم الصنف : مفتاح بتشينو 26 A
E15: 19857 | F15: 2018-01-10 | I15: 1 | J15: 0 | K15: 0 | M15: خدمة موقع | O15: 0 | Q15: اسم الصنف : مفتاح بتشينو 26 A
J16: 0 | K16: 0 | O16: 0 | Q16: اسم الصنف : مفتاح بتشينو 26 A
J17: 0 | K17: 0 | O17: 0 | Q17: اسم الصنف : مفتاح بتشينو 26 A
J18: 0 | K18: 0 | O18: 0 | Q18: اسم الصنف : مفتاح بتشينو 26 A
J19: 0 | K19: 0 | O19: 0 | Q19: اسم الصنف : مفتاح بتشينو 26 A
J20: 0 | K20: 0 | O20: 0 | Q20: اسم الصنف : مفتاح بتشينو 26 A
J21: 0 | K21: 0 | O21: 0 | Q21: اسم الصنف : مفتاح بتشينو 26 A
J22: 0 | K22: 0 | O22: 0 | Q22: اسم الصنف : مفتاح بتشينو 26 A
J23: 0 | K23: 0 | O23: 0 | Q23: اسم الصنف : مفتاح بتشينو 26 A
J24: 0 | K24: 0 | O24: 0 | Q24: اسم الصنف : مفتاح بتشينو 26 A
J25: 0 | K25: 0 | O25: 0 | Q25: اسم الصنف : مفتاح بتشينو 26 A
J26: 0 | K26: 0 | O26: 0 | Q26: اسم الصنف : مفتاح بتشينو 26 A
J27: 0 | K27: 0 | O27: 0 | Q27: اسم الصنف : مفتاح بتشينو 26 A
J28: 0 | K28: 0 | O28: 0 | Q28: اسم الصنف : مفتاح بتشينو 26 A
J29: 0 | K29: 0 | O29: 0 | Q29: اسم الصنف : مفتاح بتشينو 26 A
J30: 0 | K30: 0 | O30: 0 | Q30: اسم الصنف : مفتاح بتشينو 26 A
J31: 0 | K31: 0 | O31: 0 | Q31: اسم الصنف : مفتاح بتشينو 26 A
J32: 0 | K32: 0 | O32: 0 | Q32: اسم الصنف : مفتاح بتشينو 26 A
J33: 0 | K33: 0 | O33: 0 | Q33: اسم الصنف : مفتاح بتشينو 26 A
J34: 0 | K34: 0 | O34: 0 | Q34: اسم الصنف : مفتاح بتشينو 26 A
J35: 0 | K35: 0 | O35: 0 | Q35: اسم الصنف : مفتاح بتشينو 26 A
J36: 0 | K36: 0 | O36: 0 | Q36: اسم الصنف : مفتاح بتشينو 26 A
J37: 0 | K37: 0 | O37: 0 | Q37: اسم الصنف : مفتاح بتشينو 26 A
J38: 0 | K38: 0 | O38: 0 | Q38: اسم الصنف : مفتاح بتشينو 26 A
J39: 0 | K39: 0 | O39: 0 | Q39: اسم الصنف : مفتاح بتشينو 26 A
J40: 0 | K40: 0 | O40: 0 | Q40: اسم الصنف : مفتاح بتشينو 26 A
J41: 0 | K41: 0 | O41: 0 | Q41: اسم الصنف : مفتاح بتشينو 26 A
J42: 0 | K42: 0 | O42: 0 | Q42: اسم الصنف : مفتاح بتشينو 26 A
J43: 0 | K43: 0 | O43: 0 | Q43: اسم الصنف : مفتاح بتشينو 26 A
J44: 0 | K44: 0 | O44: 0 | Q44: اسم الصنف : مفتاح بتشينو 26 A
J45: 0 | K45: 0 | O45: 0 | Q45: اسم الصنف : مفتاح بتشينو 26 A
J46: 0 | K46: 0 | O46: 0 | Q46: اسم الصنف : مفتاح بتشينو 26 A
J47: 0 | K47: 0 | O47: 0 | Q47: اسم الصنف : مفتاح بتشينو 26 A
J48: 0 | K48: 0 | O48: 0 | Q48: اسم الصنف : مفتاح بتشينو 26 A
J49: 0 | K49: 0 | O49: 0 | Q49: اسم الصنف : مفتاح بتشينو 26 A
F50: . | J50: 0 | K50: 0 | O50: 0 | Q50: اسم الصنف : مفتاح بتشينو 26 A
J51: 0 | K51: 0 | O51: 0 | Q51: اسم الصنف : مفتاح بتشينو 26 A
J52: 0 | K52: 0 | O52: 0 | Q52: اسم الصنف : مفتاح بتشينو 26 A
J53: 0 | K53: 0 | O53: 0 | Q53: اسم الصنف : مفتاح بتشينو 26 A
J54: 0 | K54: 0 | O54: 0 | Q54: اسم الصنف : مفتاح بتشينو 26 A
J55: 0 | K55: 0 | O55: 0 | Q55: اسم الصنف : مفتاح بتشينو 26 A
J56: 0 | K56: 0 | O56: 0
J57: 0 | K57: 0 | O57: 0
A58: الرصيد | J58: =G58-D58 -> 0 | K58: 0 | O58: 0
C59: =SUM(C10:C57) -> 3 | D59: =SUM(D10:D57) -> 0 | H59: =SUM(H10:H57) -> 0 | I59: =SUM(I10:I57) -> 3 | J59: =G59-D59 -> 0 | K59: =K58 -> 0 | O59: =SUM(O10:O58) -> 195 | P59: =SUM(G59:I59) -> 3

Sheet كشاف ميتالايت 400 وات
F1: بطاقة كارت صنف
A4: اسم الصنف : كشاف ميتالايت 400 وات | K4: كود الصنف | L4: رقم كارت الصنف | M4: المخزن :
A7: رقم اذن اضافة الوارد | B7: تاريخ اذن اضافة الوارد | C7: وارد مشتريات وتحويل مشروع | D7: ع من الصيانة والمامورية | E7: رقم اذن الصرف | F7: تاريخ اذن الصرف | G7: صرف صيانة | H7: صرف تحويل | I7: صرف د الموقع | J7: فرق الصيانة | K7: الرصيد | L7: سعر توريد الصنف | M7: جهه التوريد | N7: ملاحظات
L9: رصيد اول المدة | O9: ج سعر التوريد | Q9: =$A$4 -> اسم الصنف : كشاف ميتالايت 400 وات
A10: 672 | B10: 2018-03-31 | C10: 8 | J10: =G10-D10 -> 0 | K10: =K9+C10-I10 -> 8 | M10: مح من المقر | O10: =C10*L10 -> 0 | Q10: =$A$4 -> اسم الصنف : كشاف ميتالايت 400 وات
E11: 3014ر | F11: 2018-07-05 | H11: 4 | J11: =G11-D11 -> 0 | K11: =K10+C11-H11-I11+J11 -> 4 | M11: محول الي الهايبر | O11: =C11*L11 -> 0 | Q11: اسم الصنف : كشاف ميتالايت 400 وات
E12: 792 | F12: 2018-09-05 | I12: 3 | J12: 0 | K12: =K11+C12-H12-I12+J12 -> 1 | M12: خدمة الموقع | O12: 0 | Q12: اسم الصنف : كشاف ميتالايت 400 وات
E13: 19870 | F13: 2018-09-10 | I13: 1 | J13: =G13-D13 -> 0 | K13: =K12+C13-I13-H13+J13 -> 0 | M13: خدمة الموقع | Q13: اسم الصنف : كشاف ميتالايت 400 وات
J14: =G14-D14 -> 0 | K14: =K13+C14-G14-H14-I14+J14 -> 0 | O14: 0 | Q14: اسم الصنف : كشاف ميتالايت 400 وات
J15: 0 | K15: 0 | O15: 0 | Q15: اسم الصنف : كشاف ميتالايت 400 وات
J16: 0 | K16: 0 | O16: 0 | Q16: اسم الصنف : كشاف ميتالايت 400 وات
J17: 0 | K17: 0 | O17: 0 | Q17: اسم الصنف : كشاف ميتالايت 400 وات
J18: 0 | K18: 0 | O18: 0 | Q18: اسم الصنف : كشاف ميتالايت 400 وات
J19: 0 | K19: 0 | O19: 0 | Q19: اسم الصنف : كشاف ميتالايت 400 وات
J20: 0 | K20: 0 | O20: 0 | Q20: اسم الصنف : كشاف ميتالايت 400 وات
J21: 0 | K21: 0 | O21: 0 | Q21: اسم الصنف : كشاف ميتالايت 400 وات
J22: 0 | K22: 0 | O22: 0 | Q22: اسم الصنف : كشاف ميتالايت 400 وات
J23: 0 | K23: 0 | O23: 0 | Q23: اسم الصنف : كشاف ميتالايت 400 وات
J24: 0 | K24: 0 | O24: 0 | Q24: اسم الصنف : كشاف ميتالايت 400 وات
J25: 0 | K25: 0 | O25: 0 | Q25: اسم الصنف : كشاف ميتالايت 400 وات
J26: 0 | K26: 0 | O26: 0 | Q26: اسم الصنف : كشاف ميتالايت 400 وات
J27: 0 | K27: 0 | O27: 0 | Q27: اسم الصنف : كشاف ميتالايت 400 وات
J28: 0 | K28: 0 | O28: 0 | Q28: اسم الصنف : كشاف ميتالايت 400 وات
J29: 0 | K29: 0 | O29: 0 | Q29: اسم الصنف : كشاف ميتالايت 400 وات
J30: 0 | K30: 0 | O30: 0 | Q30: اسم الصنف : كشاف ميتالايت 400 وات
J31: 0 | K31: 0 | O31: 0 | Q31: اسم الصنف : كشاف ميتالايت 400 وات
J32: 0 | K32: 0 | O32: 0 | Q32: اسم الصنف : كشاف ميتالايت 400 وات
J33: 0 | K33: 0 | O33: 0 | Q33: اسم الصنف : كشاف ميتالايت 400 وات
J34: 0 | K34: 0 | O34: 0 | Q34: اسم الصنف : كشاف ميتالايت 400 وات
J35: 0 | K35: 0 | O35: 0 | Q35: اسم الصنف : كشاف ميتالايت 400 وات
J36: 0 | K36: 0 | O36: 0 | Q36: اسم الصنف : كشاف ميتالايت 400 وات
J37: 0 | K37: 0 | O37: 0 | Q37: اسم الصنف : كشاف ميتالايت 400 وات
J38: 0 | K38: 0 | O38: 0 | Q38: اسم الصنف : كشاف ميتالايت 400 وات
J39: 0 | K39: 0 | O39: 0 | Q39: اسم الصنف : كشاف ميتالايت 400 وات
J40: 0 | K40: 0 | O40: 0 | Q40: اسم الصنف : كشاف ميتالايت 400 وات
J41: 0 | K41: 0 | O41: 0 | Q41: اسم الصنف : كشاف ميتالايت 400 وات
J42: 0 | K42: 0 | O42: 0 | Q42: اسم الصنف : كشاف ميتالايت 400 وات
J43: 0 | K43: 0 | O43: 0 | Q43: اسم الصنف : كشاف ميتالايت 400 وات
J44: 0 | K44: 0 | O44: 0 | Q44: اسم الصنف : كشاف ميتالايت 400 وات
J45: 0 | K45: 0 | O45: 0 | Q45: اسم الصنف : كشاف ميتالايت 400 وات
J46: 0 | K46: 0 | O46: 0 | Q46: اسم الصنف : كشاف ميتالايت 400 وات
J47: 0 | K47: 0 | O47: 0 | Q47: اسم الصنف : كشاف ميتالايت 400 وات
J48: 0 | K48: 0 | O48: 0 | Q48: اسم الصنف : كشاف ميتالايت 400 وات
J49: 0 | K49: 0 | O49: 0 | Q49: اسم الصنف : كشاف ميتالايت 400 وات
F50: . | J50: 0 | K50: 0 | O50: 0 | Q50: اسم الصنف : كشاف ميتالايت 400 وات
J51: 0 | K51: 0 | O51: 0 | Q51: اسم الصنف : كشاف ميتالايت 400 وات
J52: 0 | K52: 0 | O52: 0 | Q52: اسم الصنف : كشاف ميتالايت 400 وات
J53: 0 | K53: 0 | O53: 0 | Q53: اسم الصنف : كشاف ميتالايت 400 وات
J54: 0 | K54: 0 | O54: 0 | Q54: اسم الصنف : كشاف ميتالايت 400 وات
J55: 0 | K55: 0 | O55: 0 | Q55: اسم الصنف : كشاف ميتالايت 400 وات
J56: 0 | K56: 0 | O56: 0
J57: 0 | K57: 0 | O57: 0
A58: الرصيد | J58: =G58-D58 -> 0 | K58: 0 | O58: 0
C59: =SUM(C10:C57) -> 8 | D59: =SUM(D10:D57) -> 0 | H59: =SUM(H10:H57) -> 4 | I59: =SUM(I10:I57) -> 4 | J59: =G59-D59 -> 0 | K59: =K58 -> 0 | O59: =SUM(O10:O58) -> 0 | P59: =SUM(G59:I59) -> 8

Sheet فيشة ذكر
F1: بطاقة كارت صنف
A4: اسم الصنف : فيشة ذكر | K4: كود الصنف | L4: رقم كارت الصنف | M4: المخزن :
A7: رقم اذن اضافة الوارد | B7: تاريخ اذن اضافة الوارد | C7: وارد مشتريات وتحويل مشروع | D7: ع من الصيانة والمامورية | E7: رقم اذن الصرف | F7: تاريخ اذن الصرف | G7: صرف صيانة | H7: صرف تحويل | I7: صرف د الموقع | J7: فرق الصيانة | K7: الرصيد | L7: سعر توريد الصنف | M7: جهه التوريد | N7: ملاحظات
L9: رصيد اول المدة | O9: ج سعر التوريد | Q9: =$A$4 -> اسم الصنف : فيشة ذكر
A10: 699 | B10: 2018-04-03 | C10: 20 | J10: =G10-D10 -> 0 | K10: =K9+C10-I10 -> 20 | L10: =45/20 -> 2.25 | M10: مش موقع | N10: احمد حامد المحاسب | O10: =C10*L10 -> 45 | Q10: =$A$4 -> اسم الصنف : فيشة ذكر
E11: 756 | F11: 2018-04-03 | I11: 1 | J11: =G11-D11 -> 0 | K11: =K10+C11-I11 -> 19 | M11: خدمة موقع | O11: =C11*L11 -> 0 | Q11: اسم الصنف : فيشة ذكر
E12: 757 | F12: 2018-04-04 | I12: 1 | K12: 18 | M12: خدمة موقع | Q12: اسم الصنف : فيشة ذكر
E13: 781 | F13: 29/4/2018 | I13: 1 | J13: 0 | K13: =K12+C13-I13-H13+J13 -> 17 | M13: كرفان جيش | O13: 0 | Q13: اسم الصنف : فيشة ذكر
E14: 784 | F14: 2018-01-05 | I14: 3 | J14: =G14-D14 -> 0 | K14: 14 | M14: خدمة موقع | O14: =C14*L14 -> 0 | Q14: اسم الصنف : فيشة ذكر
E15: 796 | F15: 13/5/2018 | I15: 1 | J15: 0 | K15: 13 | M15: خدمة موقع | O15: 0 | Q15: اسم الصنف : فيشة ذكر
E16: 13751 | F16: 17/5/2018 | I16: 2 | J16: =G16-D16 -> 0 | K16: 11 | M16: خدمة موقع | O16: 0 | Q16: اسم الصنف : فيشة ذكر
E17: 13761 | F17: 29/5/2018 | I17: 1 | J17: 0 | K17: =K16+C17-G17-H17-I17+J17 -> 10 | M17: خدمة موقع | O17: 0 | Q17: اسم الصنف : فيشة ذكر
E18: 13765 | F18: 2018-03-06 | I18: 1 | J18: 0 | K18: =K17+C18-G18-H18-I18+J18 -> 9 | M18: خدمة موقع | O18: 0 | Q18: اسم الصنف : فيشة ذكر
E19: 13787 | F19: 2018-04-07 | I19: 1 | J19: 0 | K19: 8 | M19: خدمة موقع | Q19: اسم الصنف : فيشة ذكر
E20: 13792 | F20: 2018-09-07 | I20: 1 | J20: 0 | K20: 7 | M20: سكن عمال | O20: =C20*L20 -> 0 | Q20: اسم الصنف : فيشة ذكر
E21: 13793 | F21: 2018-10-07 | I21: 1 | J21: 0 | K21: 6 | M21: خدمة موقع | O21: 0 | Q21: اسم الصنف : فيشة ذكر
E22: 13797 | F22: 2018-12-07 | I22: 1 | J22: 0 | K22: 5 | M22: خدمة موقع | O22: 0 | Q22: اسم الصنف : فيشة ذكر
E23: 13800 | F23: 15/7/2018 | I23: 2 | J23: 0 | K23: 3 | M23: خدمة موقع | O23: 0 | Q23: اسم الصنف : فيشة ذكر
E24: 13804 | F24: 19/7/2018 | I24: 1 | J24: 0 | K24: 2 | M24: خدمة موقع | Q24: اسم الصنف : فيشة ذكر
E25: 13805 | F25: 21/7/2018 | I25: 2 | J25: 0 | K25: 0 | M25: خدمة موقع | Q25: اسم الصنف : فيشة ذكر
A26: 8002 | B26: 2018-08-08 | C26: 50 | J26: 0 | K26: 50 | M26: ادارة المشتريات | O26: =C26*L26 -> 0 | Q26: اسم الصنف : فيشة ذكر
E27: 2823ر | F27: 2018-08-08 | H27: 4 | J27: 0 | K27: =K26+C27-I27-H27+J27 -> 46 | M27: محول الي طب اسنان | O27: =L27*C27 -> 0 | Q27: اسم الصنف : فيشة ذكر
E28: 2828ر | F28: 14/4/2018 | H28: 2 | J28: 0 | K28: 44 | M28: محول الي طب اسنان | O28: =C28*L28 -> 0 | Q28: اسم الصنف : فيشة ذكر
E29: 13828 | F29: 16/8/2018 | I29: 1 | J29: 0 | K29: =K28+C29-G29-H29-I29+J29 -> 43 | M29: لزوم مبني ادارة الجامعة | Q29: اسم الصنف : فيشة ذكر
E30: 13831 | F30: 28/8/2018 | I30: 1 | J30: 0 | K30: 42 | M30: خدمة موقع | Q30: اسم الصنف : فيشة ذكر
E31: 13835 | F31: 2018-05-09 | I31: 2 | J31: 0 | K31: 40 | M31: خدمة موقع | Q31: اسم الصنف : فيشة ذكر
E32: 2606 | F32: 12/9/2018ر | H32: 2 | J32: 0 | K32: 38 | M32: محولالي كلية طب اسنان | O32: =C32*L32 -> 0 | Q32: اسم الصنف : فيشة ذكر
E33: 19854 | F33: 29/9/2018 | I33: 1 | J33: 0 | K33: 37 | M33: لزوم مبني ادارة الجامعة | Q33: اسم الصنف : فيشة ذكر
E34: 19857 | F34: 2018-01-10 | I34: 8 | J34: 0 | K34: 29 | M34: خدمة موقع | O34: 0 | Q34: اسم الصنف : فيشة ذكر
E35: 19885 | F35: 18/10/2018 | I35: 10 | J35: =G35-D35 -> 0 | K35: 19 | M35: خدمة موقع | O35: =C35*L35 -> 0 | Q35: اسم الصنف : فيشة ذكر
E36: 19890 | F36: 22/10/2018 | I36: 1 | J36: 0 | K36: 18 | M36: خدمة موقع | O36: 0 | Q36: اسم الصنف : فيشة ذكر
E37: 2644 | F37: 31/10/2018 | H37: 4 | J37: 0 | K37: 14 | M37: محول الي فندق الجلاله | O37: 0 | Q37: اسم الصنف : فيشة ذكر
E38: 14622 | F38: 2018-10-11 | I38: 1 | J38: 0 | K38: =K37+C38-I38 -> 13 | M38: خدمة موقع | O38: 0 | Q38: اسم الصنف : فيشة ذكر
E39: 14628 | F39: 2018-11-11 | I39: 4 | J39: 0 | K39: 9 | M39: موقع | O39: 0 | Q39: اسم الصنف : فيشة ذكر
E40: 11871 | F40: 2018-07-12 | I40: 1 | J40: 0 | K40: 8 | O40: 0 | Q40: اسم الصنف : فيشة ذكر
A41: 11881 | B41: 13/12/2018 | C41: 6 | J41: 0 | K41: 14 | M41: ادارة المشتريات | O41: 0 | Q41: اسم الصنف : فيشة ذكر
A42: 7766 | B42: 23/12/2018 | C42: 50 | J42: 0 | K42: 64 | M42: ادارة المشتريات | O42: 0 | Q42: اسم الصنف : فيشة ذكر
E43: 11694 | F43: 24/12/2018 | I43: 2 | J43: 0 | K43: 62 | O43: 0 | Q43: اسم الصنف : فيشة ذكر
A44: 7778 | B44: 24/12/2018 | C44: 48 | J44: 0 | K44: 110 | M44: ادارة المشتريات | O44: 0 | Q44: اسم الصنف : فيشة ذكر
E45: 3614 | F45: 30/12/2018 | I45: 4 | J45: 0 | K45: =K44+C45-I45 -> 106 | Q45: اسم الصنف : فيشة ذكر
E46: 3648 | F46: 2019-07-01 | I46: 4 | J46: 0 | K46: =K45+C46-G46-H46-I46+J46 -> 102 | Q46: اسم الصنف : فيشة ذكر
E47: 3649 | F47: 2019-07-01 | I47: 11 | J47: =G47-D47 -> 0 | K47: 91 | O47: =C47*L47 -> 0 | Q47: اسم الصنف : فيشة ذكر
E48: 11837 | F48: 15/1/2019 | I48: 10 | J48: =G48-D48 -> 0 | K48: 81 | O48: =C48*L48 -> 0 | Q48: اسم الصنف : فيشة ذكر
E49: 9217 | F49: 20/2/2019 | I49: 4 | J49: =G49-D49 -> 0 | K49: 77 | Q49: اسم الصنف : فيشة ذكر
E50: 22803 | F50: 2019-03-03 | I50: 2 | J50: 0 | K50: =K49+C50-I50-H50+J50 -> 75 | Q50: اسم الصنف : فيشة ذكر
E51: 22803 | F51: 2019-03-03 | I51: 3 | J51: 0 | K51: 72 | Q51: اسم الصنف : فيشة ذكر
E52: 22803 | F52: 2019-03-03 | I52: 10 | J52: 0 | K52: 62 | Q52: اسم الصنف : فيشة ذكر
A53: 41072 | B53: 2019-03-10 | C53: 10 | J53: =G53-D53 -> 0 | K53: =K52+C53-I53-H53+J53 -> 72 | M53: ادارة المشتريات | N53: تركى | Q53: اسم الصنف : فيشة ذكر
E54: 22830 | F54: 13/3/2019 | I54: 4 | J54: 0 | K54: 68 | Q54: اسم الصنف : فيشة ذكر
J55: 0 | K55: 68 | Q55: اسم الصنف : فيشة ذكر
J56: 0 | K56: 68
J57: 0 | K57: 68
J58: 0 | K58: 68
J59: 0 | K59: 68
J60: 0 | K60: 68
J61: 0 | K61: 68
J62: 0 | K62: 68
J63: 0 | K63: 68
J64: 0 | K64: 68
J65: 0 | K65: 68
J66: 0 | K66: 68
J67: 0 | K67: 68
J68: 0 | K68: 68
J69: 0 | K69: 68
J70: 0 | K70: 68
J71: 0 | K71: 68
J72: 0 | K72: 68
J73: 0 | K73: 68
J74: 0 | K74: 68
J75: 0 | K75: 68
J76: 0 | K76: 68
J77: 0 | K77: 68
J78: 0 | K78: 68
J79: 0 | K79: 68
J80: 0 | K80: 68
J81: 0 | K81: 68
J82: 0 | K82: 68
J83: 0 | K83: 68
J84: 0 | K84: 68
J85: 0 | K85: 68
J86: 0 | K86: 68
J87: 0 | K87: 68 | O87: 0
J88: 0 | K88: 68 | O88: 0
J89: 0 | K89: 68 | O89: 0
J90: 0 | K90: 68 | O90: 0
J91: 0 | K91: 68 | O91: 0
A92: الرصيد | J92: =G92-D92 -> 0 | K92: 68 | O92: 0
C93: =SUM(C10:C91) -> 184 | D93: =SUM(D10:D91) -> 0 | H93: =SUM(H10:H91) -> 12 | I93: =SUM(I10:I91) -> 104 | J93: =G93-D93 -> 0 | K93: =K92 -> 68 | O93: =SUM(O10:O92) -> 45 | P93: =SUM(G93:I93) -> 116

Sheet فيشة نتاية
F1: بطاقة كارت صنف
A4: اسم الصنف : فيشة نتاية | K4: كود الصنف | L4: رقم كارت الصنف | M4: المخزن :
A7: رقم اذن اضافة الوارد | B7: تاريخ اذن اضافة الوارد | C7: وارد مشتريات وتحويل مشروع | D7: ع من الصيانة والمامورية | E7: رقم اذن الصرف | F7: تاريخ اذن الصرف | G7: صرف صيانة | H7: صرف تحويل | I7: صرف د الموقع | J7: فرق الصيانة | K7: الرصيد | L7: سعر توريد الصنف | M7: جهه التوريد | N7: ملاحظات
L9: رصيد اول المدة | O9: ج سعر التوريد | Q9: =$A$4 -> اسم الصنف : فيشة نتاية
A10: 699 | B10: 2018-04-03 | C10: 20 | J10: =G10-D10 -> 0 | K10: =K9+C10-I10 -> 20 | L10: =45/20 -> 2.25 | M10: مش موقع | N10: احمد حامد المحاسب | O10: =C10*L10 -> 45 | Q10: =$A$4 -> اسم الصنف : فيشة نتاية
E11: 756 | F11: 2018-04-03 | I11: 1 | J11: =G11-D11 -> 0 | K11: =K10+C11-I11 -> 19 | O11: =C11*L11 -> 0 | Q11: اسم الصنف : فيشة نتاية
E12: 758 | F12: 2018-07-04 | I12: 1 | K12: 18 | M12: خدمة موقع | Q12: اسم الصنف : فيشة نتاية
E13: 760 | F13: 2018-08-04 | I13: 1 | K13: 17 | M13: خدمة موقع | Q13: اسم الصنف : فيشة نتاية
E14: 769 | F14: 17/4/2018 | I14: 4 | J14: =G14-D14 -> 0 | K14: 13 | M14: خدمة موقع | O14: =C14*L14 -> 0 | Q14: اسم الصنف : فيشة نتاية
E15: 784 | F15: 2018-01-05 | I15: 1 | J15: 0 | K15: 12 | M15: خدمة موقع | O15: 0 | Q15: اسم الصنف : فيشة نتاية
E16: 789 | F16: 2018-06-05 | I16: 11 | J16: 0 | K16: 1 | M16: خدمة موقع | O16: 0 | Q16: اسم الصنف : فيشة نتاية
E17: 792 | F17: 2018-09-05 | I17: 1 | J17: 0 | K17: 0 | M17: عمال | O17: 0 | Q17: اسم الصنف : فيشة نتاية
A18: 8002 | B18: 2018-08-08 | C18: 50 | J18: =G18-D18 -> 0 | K18: =K17+C18-G18-H18-I18+J18 -> 50 | M18: ادارة المشتريات | O18: =C18*L18 -> 0 | Q18: اسم الصنف : فيشة نتاية
E19: 2823ر | F19: 2018-08-08 | H19: 4 | J19: 0 | K19: =K18+C19-I19-H19+J19 -> 46 | M19: محول الي طب اسنان | O19: =L19*C19 -> 0 | Q19: اسم الصنف : فيشة نتاية
E20: 13822 | F20: 2018-11-08 | I20: 4 | J20: 0 | K20: 42 | M20: لزوم مبني ادارة الجامعة | Q20: اسم الصنف : فيشة نتاية
E21: 13823 | F21: 2018-12-08 | I21: 1 | J21: =G21-D21 -> 0 | K21: 41 | M21: خدمة موقع | O21: 0 | Q21: اسم الصنف : فيشة نتاية
E22: 2828ر | F22: 14/4/2018 | H22: 2 | J22: 0 | K22: =K21+C22-G22-H22-I22+J22 -> 39 | M22: محول الي طب اسنان | O22: 0 | Q22: اسم الصنف : فيشة نتاية
E23: 13828 | F23: 16/8/2018 | I23: 1 | J23: 0 | K23: 38 | M23: لزوم مبني ادارة الجامعة | Q23: اسم الصنف : فيشة نتاية
E24: 13831 | F24: 28/8/2018 | I24: 1 | J24: 0 | K24: 37 | M24: خدمة موقع | Q24: اسم الصنف : فيشة نتاية
E25: 13835 | F25: 2018-05-09 | I25: 2 | J25: 0 | K25: 35 | M25: خدمة موقع | Q25: اسم الصنف : فيشة نتاية
E26: 2606 | F26: 12/9/2018ر | H26: 2 | J26: 0 | K26: 33 | M26: محولالي كلية طب اسنان | O26: =C26*L26 -> 0 | Q26: اسم الصنف : فيشة نتاية
E27: 19854 | F27: 29/9/2018 | I27: 1 | J27: 0 | K27: 32 | M27: لزوم مبني ادارة الجامعة | Q27: اسم الصنف : فيشة نتاية
E28: 19857 | F28: 2018-01-10 | I28: 10 | J28: 0 | K28: 22 | M28: خدمة موقع | O28: 0 | Q28: اسم الصنف : فيشة نتاية
E29: 19870 | F29: 2018-09-01 | I29: 2 | J29: =G29-D29 -> 0 | K29: =K28+C29-I29-H29+J29 -> 20 | M29: سكن عمال | Q29: اسم الصنف : فيشة نتاية
E30: 19881 | F30: 16/10/2018 | I30: 2 | J30: 0 | K30: =K29+C30-G30-H30-I30+J30 -> 18 | M30: خدمة موقع | O30: =C30*L30 -> 0 | Q30: اسم الصنف : فيشة نتاية
E31: 19883 | F31: 17/10/2018 | I31: 6 | J31: 0 | K31: 12 | M31: خدمة موقع | O31: 0 | Q31: اسم الصنف : فيشة نتاية
E32: 19885 | F32: 18/10/2018 | I32: 12 | J32: 0 | K32: 0 | M32: خدمة موقع | O32: 0 | Q32: اسم الصنف : فيشة نتاية
A33: 11881 | B33: 13/12/2018 | C33: 6 | J33: 0 | K33: 6 | M33: ادارة المشتريات | O33: 0 | Q33: اسم الصنف : فيشة نتاية
E34: 11660 | F34: 16/12/2018 | I34: 2 | J34: 0 | K34: 4 | O34: 0 | Q34: اسم الصنف : فيشة نتاية
E35: 11687 | F35: 22/12/2018 | I35: 4 | J35: 0 | K35: 0 | O35: 0 | Q35: اسم الصنف : فيشة نتاية
A36: 7766 | B36: 23/12/2018 | C36: 50 | J36: 0 | K36: 50 | M36: ادارة المشتريات | O36: 0 | Q36: اسم الصنف : فيشة نتاية
A37: 7778 | B37: 24/12/2018 | C37: 48 | J37: 0 | K37: 98 | M37: ادارة المشتريات | O37: 0 | Q37: اسم الصنف : فيشة نتاية
E38: 3648 | F38: 2019-07-01 | I38: 4 | J38: 0 | K38: 94 | Q38: اسم الصنف : فيشة نتاية
E39: 3649 | F39: 2019-07-01 | I39: 15 | J39: 0 | K39: 79 | O39: =C39*L39 -> 0 | Q39: اسم الصنف : فيشة نتاية
E40: 11837 | F40: 15/1/2019 | I40: 10 | J40: =G40-D40 -> 0 | K40: 69 | O40: =C40*L40 -> 0 | Q40: اسم الصنف : فيشة نتاية
E41: 108 | F41: 31/1/2019 | I41: 10 | J41: =G41-D41 -> 0 | K41: 59 | O41: =C41*L41 -> 0 | Q41: اسم الصنف : فيشة نتاية
E42: 9217 | F42: 20/2/2019 | I42: 2 | J42: 0 | K42: 57 | Q42: اسم الصنف : فيشة نتاية
E43: 22803 | F43: 2019-03-03 | I43: 2 | J43: 0 | K43: =K42+C43-I43-H43+J43 -> 55 | Q43: اسم الصنف : فيشة نتاية
E44: 22803 | F44: 2019-03-03 | I44: 3 | J44: 0 | K44: 52 | Q44: اسم الصنف : فيشة نتاية
E45: 22803 | F45: 2019-03-03 | I45: 10 | J45: =G45-D45 -> 0 | K45: =K44+C45-I45-H45+J45 -> 42 | Q45: اسم الصنف : فيشة نتاية
A46: 41072 | B46: 2019-03-10 | C46: 10 | J46: 0 | K46: 52 | M46: ادارة المشتريات | N46: تركى | Q46: اسم الصنف : فيشة نتاية
E47: 22830 | F47: 13/3/2019 | I47: 4 | J47: 0 | K47: 48 | Q47: اسم الصنف : فيشة نتاية
J48: 0 | K48: =K47+C48-G48-H48-I48+J48 -> 48 | O48: 0 | Q48: اسم الصنف : فيشة نتاية
J49: 0 | K49: 48 | O49: 0 | Q49: اسم الصنف : فيشة نتاية
J50: 0 | K50: 48 | O50: 0 | Q50: اسم الصنف : فيشة نتاية
F51: . | J51: 0 | K51: 48 | O51: 0 | Q51: اسم الصنف : فيشة نتاية
J52: 0 | K52: 48 | O52: 0 | Q52: اسم الصنف : فيشة نتاية
J53: 0 | K53: 48 | O53: 0 | Q53: اسم الصنف : فيشة نتاية
J54: 0 | K54: 48 | O54: 0 | Q54: اسم الصنف : فيشة نتاية
J55: 0 | K55: 48 | O55: 0 | Q55: اسم الصنف : فيشة نتاية
J56: 0 | K56: 48 | O56: 0
J57: 0 | K57: 48 | O57: 0
J58: 0 | K58: 48 | O58: 0
A59: الرصيد | J59: =G59-D59 -> 0 | K59: 48 | O59: 0
C60: =SUM(C10:C58) -> 184 | D60: =SUM(D10:D58) -> 0 | H60: =SUM(H10:H58) -> 8 | I60: =SUM(I10:I58) -> 128 | J60: =G60-D60 -> 0 | K60: =K59 -> 48 | O60: =SUM(O10:O59) -> 45 | P60: =SUM(G60:I60) -> 136

Sheet فيشة ذكر 4بول 32 A
F1: بطاقة كارت صنف
A4: اسم الصنف : فيشة ذكر 4 بول 32 A(بلجة) | K4: كود الصنف | L4: رقم كارت الصنف | M4: المخزن :
A7: رقم اذن اضافة الوارد | B7: تاريخ اذن اضافة الوارد | C7: وارد مشتريات وتحويل مشروع | D7: ع من الصيانة والمامورية | E7: رقم اذن الصرف | F7: تاريخ اذن الصرف | G7: صرف صيانة | H7: صرف تحويل | I7: صرف د الموقع | J7: فرق الصيانة | K7: الرصيد | L7: سعر توريد الصنف | M7: جهه التوريد | N7: ملاحظات
L9: رصيد اول المدة | O9: ج سعر التوريد | Q9: =$A$4 -> اسم الصنف : فيشة ذكر 4 بول 32 A(بلجة)
A10: 699 | B10: 2018-04-03 | C10: 1 | J10: =G10-D10 -> 0 | K10: =K9+C10-I10 -> 1 | L10: 70 | M10: مش موقع | N10: احمد حامد المحاسب | O10: =C10*L10 -> 70 | Q10: =$A$4 -> اسم الصنف : فيشة ذكر 4 بول 32 A(بلجة)
J11: =G11-D11 -> 0 | K11: =K10+C11-H11-I11+J11 -> 1 | O11: =C11*L11 -> 0 | Q11: اسم الصنف : فيشة ذكر 4 بول 32 A(بلجة)
J12: =G12-D12 -> 0 | K12: =K11+C12-G12-H12-I12+J12 -> 1 | O12: 0 | Q12: اسم الصنف : فيشة ذكر 4 بول 32 A(بلجة)
J13: 0 | K13: 1 | O13: 0 | Q13: اسم الصنف : فيشة ذكر 4 بول 32 A(بلجة)
J14: 0 | K14: 1 | O14: 0 | Q14: اسم الصنف : فيشة ذكر 4 بول 32 A(بلجة)
J15: 0 | K15: 1 | O15: 0 | Q15: اسم الصنف : فيشة ذكر 4 بول 32 A(بلجة)
J16: 0 | K16: 1 | O16: 0 | Q16: اسم الصنف : فيشة ذكر 4 بول 32 A(بلجة)
J17: 0 | K17: 1 | O17: 0 | Q17: اسم الصنف : فيشة ذكر 4 بول 32 A(بلجة)
J18: 0 | K18: 1 | O18: 0 | Q18: اسم الصنف : فيشة ذكر 4 بول 32 A(بلجة)
J19: 0 | K19: 1 | O19: 0 | Q19: اسم الصنف : فيشة ذكر 4 بول 32 A(بلجة)
J20: 0 | K20: 1 | O20: 0 | Q20: اسم الصنف : فيشة ذكر 4 بول 32 A(بلجة)
J21: 0 | K21: 1 | O21: 0 | Q21: اسم الصنف : فيشة ذكر 4 بول 32 A(بلجة)
J22: 0 | K22: 1 | O22: 0 | Q22: اسم الصنف : فيشة ذكر 4 بول 32 A(بلجة)
J23: 0 | K23: 1 | O23: 0 | Q23: اسم الصنف : فيشة ذكر 4 بول 32 A(بلجة)
J24: 0 | K24: 1 | O24: 0 | Q24: اسم الصنف : فيشة ذكر 4 بول 32 A(بلجة)
J25: 0 | K25: 1 | O25: 0 | Q25: اسم الصنف : فيشة ذكر 4 بول 32 A(بلجة)
J26: 0 | K26: 1 | O26: 0 | Q26: اسم الصنف : فيشة ذكر 4 بول 32 A(بلجة)
J27: 0 | K27: 1 | O27: 0 | Q27: اسم الصنف : فيشة ذكر 4 بول 32 A(بلجة)
J28: 0 | K28: 1 | O28: 0 | Q28: اسم الصنف : فيشة ذكر 4 بول 32 A(بلجة)
J29: 0 | K29: 1 | O29: 0 | Q29: اسم الصنف : فيشة ذكر 4 بول 32 A(بلجة)
J30: 0 | K30: 1 | O30: 0 | Q30: اسم الصنف : فيشة ذكر 4 بول 32 A(بلجة)
J31: 0 | K31: 1 | O31: 0 | Q31: اسم الصنف : فيشة ذكر 4 بول 32 A(بلجة)
J32: 0 | K32: 1 | O32: 0 | Q32: اسم الصنف : فيشة ذكر 4 بول 32 A(بلجة)
J33: 0 | K33: 1 | O33: 0 | Q33: اسم الصنف : فيشة ذكر 4 بول 32 A(بلجة)
J34: 0 | K34: 1 | O34: 0 | Q34: اسم الصنف : فيشة ذكر 4 بول 32 A(بلجة)
J35: 0 | K35: 1 | O35: 0 | Q35: اسم الصنف : فيشة ذكر 4 بول 32 A(بلجة)
J36: 0 | K36: 1 | O36: 0 | Q36: اسم الصنف : فيشة ذكر 4 بول 32 A(بلجة)
J37: 0 | K37: 1 | O37: 0 | Q37: اسم الصنف : فيشة ذكر 4 بول 32 A(بلجة)
J38: 0 | K38: 1 | O38: 0 | Q38: اسم الصنف : فيشة ذكر 4 بول 32 A(بلجة)
J39: 0 | K39: 1 | O39: 0 | Q39: اسم الصنف : فيشة ذكر 4 بول 32 A(بلجة)
J40: 0 | K40: 1 | O40: 0 | Q40: اسم الصنف : فيشة ذكر 4 بول 32 A(بلجة)
J41: 0 | K41: 1 | O41: 0 | Q41: اسم الصنف : فيشة ذكر 4 بول 32 A(بلجة)
J42: 0 | K42: 1 | O42: 0 | Q42: اسم الصنف : فيشة ذكر 4 بول 32 A(بلجة)
J43: 0 | K43: 1 | O43: 0 | Q43: اسم الصنف : فيشة ذكر 4 بول 32 A(بلجة)
J44: 0 | K44: 1 | O44: 0 | Q44: اسم الصنف : فيشة ذكر 4 بول 32 A(بلجة)
J45: 0 | K45: 1 | O45: 0 | Q45: اسم الصنف : فيشة ذكر 4 بول 32 A(بلجة)
J46: 0 | K46: 1 | O46: 0 | Q46: اسم الصنف : فيشة ذكر 4 بول 32 A(بلجة)
J47: 0 | K47: 1 | O47: 0 | Q47: اسم الصنف : فيشة ذكر 4 بول 32 A(بلجة)
J48: 0 | K48: 1 | O48: 0 | Q48: اسم الصنف : فيشة ذكر 4 بول 32 A(بلجة)
J49: 0 | K49: 1 | O49: 0 | Q49: اسم الصنف : فيشة ذكر 4 بول 32 A(بلجة)
F50: . | J50: 0 | K50: 1 | O50: 0 | Q50: اسم الصنف : فيشة ذكر 4 بول 32 A(بلجة)
J51: 0 | K51: 1 | O51: 0 | Q51: اسم الصنف : فيشة ذكر 4 بول 32 A(بلجة)
J52: 0 | K52: 1 | O52: 0 | Q52: اسم الصنف : فيشة ذكر 4 بول 32 A(بلجة)
J53: 0 | K53: 1 | O53: 0 | Q53: اسم الصنف : فيشة ذكر 4 بول 32 A(بلجة)
J54: 0 | K54: 1 | O54: 0 | Q54: اسم الصنف : فيشة ذكر 4 بول 32 A(بلجة)
J55: 0 | K55: 1 | O55: 0 | Q55: اسم الصنف : فيشة ذكر 4 بول 32 A(بلجة)
J56: 0 | K56: 1 | O56: 0
J57: 0 | K57: 1 | O57: 0
A58: الرصيد | J58: =G58-D58 -> 0 | K58: 1 | O58: 0
C59: =SUM(C10:C57) -> 1 | D59: =SUM(D10:D57) -> 0 | H59: =SUM(H10:H57) -> 0 | I59: =SUM(I10:I57) -> 0 | J59: =G59-D59 -> 0 | K59: =K58 -> 1 | O59: =SUM(O10:O58) -> 70 | P59: =SUM(G59:I59) -> 0

Sheet فيشة انثي 4بول 32 A
F1: بطاقة كارت صنف
A4: اسم الصنف : فيشة انثي بول 4 فاز 32 A (بلجة) | K4: كود الصنف | L4: رقم كارت الصنف | M4: المخزن :
A7: رقم اذن اضافة الوارد | B7: تاريخ اذن اضافة الوارد | C7: وارد مشتريات وتحويل مشروع | D7: ع من الصيانة والمامورية | E7: رقم اذن الصرف | F7: تاريخ اذن الصرف | G7: صرف صيانة | H7: صرف تحويل | I7: صرف د الموقع | J7: فرق الصيانة | K7: الرصيد | L7: سعر توريد الصنف | M7: جهه التوريد | N7: ملاحظات
L9: رصيد اول المدة | O9: ج سعر التوريد | Q9: =$A$4 -> اسم الصنف : فيشة انثي بول 4 فاز 32 A (بلجة)
A10: 699 | B10: 2018-04-03 | C10: 1 | J10: =G10-D10 -> 0 | K10: =K9+C10-I10 -> 1 | L10: 70 | M10: مش موقع | N10: احمد حامد المحاسب | O10: =C10*L10 -> 70 | Q10: =$A$4 -> اسم الصنف : فيشة انثي بول 4 فاز 32 A (بلجة)
E11: 13849 | F11: 23/9/2018 | I11: 1 | K11: =K10+C11-G11-H11-I11+J11 -> 0 | M11: كمر رخام | Q11: اسم الصنف : فيشة انثي بول 4 فاز 32 A (بلجة)
J12: =G12-D12 -> 0 | K12: =K11+C12-G12-H12-I12+J12 -> 0 | O12: =C12*L12 -> 0 | Q12: اسم الصنف : فيشة انثي بول 4 فاز 32 A (بلجة)
J13: 0 | K13: 0 | O13: 0 | Q13: اسم الصنف : فيشة انثي بول 4 فاز 32 A (بلجة)
J14: 0 | K14: 0 | O14: 0 | Q14: اسم الصنف : فيشة انثي بول 4 فاز 32 A (بلجة)
J15: 0 | K15: 0 | O15: 0 | Q15: اسم الصنف : فيشة انثي بول 4 فاز 32 A (بلجة)
J16: 0 | K16: 0 | O16: 0 | Q16: اسم الصنف : فيشة انثي بول 4 فاز 32 A (بلجة)
J17: 0 | K17: 0 | O17: 0 | Q17: اسم الصنف : فيشة انثي بول 4 فاز 32 A (بلجة)
J18: 0 | K18: 0 | O18: 0 | Q18: اسم الصنف : فيشة انثي بول 4 فاز 32 A (بلجة)
J19: 0 | K19: 0 | O19: 0 | Q19: اسم الصنف : فيشة انثي بول 4 فاز 32 A (بلجة)
J20: 0 | K20: 0 | O20: 0 | Q20: اسم الصنف : فيشة انثي بول 4 فاز 32 A (بلجة)
J21: 0 | K21: 0 | O21: 0 | Q21: اسم الصنف : فيشة انثي بول 4 فاز 32 A (بلجة)
J22: 0 | K22: 0 | O22: 0 | Q22: اسم الصنف : فيشة انثي بول 4 فاز 32 A (بلجة)
J23: 0 | K23: 0 | O23: 0 | Q23: اسم الصنف : فيشة انثي بول 4 فاز 32 A (بلجة)
J24: 0 | K24: 0 | O24: 0 | Q24: اسم الصنف : فيشة انثي بول 4 فاز 32 A (بلجة)
J25: 0 | K25: 0 | O25: 0 | Q25: اسم الصنف : فيشة انثي بول 4 فاز 32 A (بلجة)
J26: 0 | K26: 0 | O26: 0 | Q26: اسم الصنف : فيشة انثي بول 4 فاز 32 A (بلجة)
J27: 0 | K27: 0 | O27: 0 | Q27: اسم الصنف : فيشة انثي بول 4 فاز 32 A (بلجة)
J28: 0 | K28: 0 | O28: 0 | Q28: اسم الصنف : فيشة انثي بول 4 فاز 32 A (بلجة)
J29: 0 | K29: 0 | O29: 0 | Q29: اسم الصنف : فيشة انثي بول 4 فاز 32 A (بلجة)
J30: 0 | K30: 0 | O30: 0 | Q30: اسم الصنف : فيشة انثي بول 4 فاز 32 A (بلجة)
J31: 0 | K31: 0 | O31: 0 | Q31: اسم الصنف : فيشة انثي بول 4 فاز 32 A (بلجة)
J32: 0 | K32: 0 | O32: 0 | Q32: اسم الصنف : فيشة انثي بول 4 فاز 32 A (بلجة)
J33: 0 | K33: 0 | O33: 0 | Q33: اسم الصنف : فيشة انثي بول 4 فاز 32 A (بلجة)
J34: 0 | K34: 0 | O34: 0 | Q34: اسم الصنف : فيشة انثي بول 4 فاز 32 A (بلجة)
J35: 0 | K35: 0 | O35: 0 | Q35: اسم الصنف : فيشة انثي بول 4 فاز 32 A (بلجة)
J36: 0 | K36: 0 | O36: 0 | Q36: اسم الصنف : فيشة انثي بول 4 فاز 32 A (بلجة)
J37: 0 | K37: 0 | O37: 0 | Q37: اسم الصنف : فيشة انثي بول 4 فاز 32 A (بلجة)
J38: 0 | K38: 0 | O38: 0 | Q38: اسم الصنف : فيشة انثي بول 4 فاز 32 A (بلجة)
J39: 0 | K39: 0 | O39: 0 | Q39: اسم الصنف : فيشة انثي بول 4 فاز 32 A (بلجة)
J40: 0 | K40: 0 | O40: 0 | Q40: اسم الصنف : فيشة انثي بول 4 فاز 32 A (بلجة)
J41: 0 | K41: 0 | O41: 0 | Q41: اسم الصنف : فيشة انثي بول 4 فاز 32 A (بلجة)
J42: 0 | K42: 0 | O42: 0 | Q42: اسم الصنف : فيشة انثي بول 4 فاز 32 A (بلجة)
J43: 0 | K43: 0 | O43: 0 | Q43: اسم الصنف : فيشة انثي بول 4 فاز 32 A (بلجة)
J44: 0 | K44: 0 | O44: 0 | Q44: اسم الصنف : فيشة انثي بول 4 فاز 32 A (بلجة)
J45: 0 | K45: 0 | O45: 0 | Q45: اسم الصنف : فيشة انثي بول 4 فاز 32 A (بلجة)
J46: 0 | K46: 0 | O46: 0 | Q46: اسم الصنف : فيشة انثي بول 4 فاز 32 A (بلجة)
J47: 0 | K47: 0 | O47: 0 | Q47: اسم الصنف : فيشة انثي بول 4 فاز 32 A (بلجة)
J48: 0 | K48: 0 | O48: 0 | Q48: اسم الصنف : فيشة انثي بول 4 فاز 32 A (بلجة)
J49: 0 | K49: 0 | O49: 0 | Q49: اسم الصنف : فيشة انثي بول 4 فاز 32 A (بلجة)
F50: . | J50: 0 | K50: 0 | O50: 0 | Q50: اسم الصنف : فيشة انثي بول 4 فاز 32 A (بلجة)
J51: 0 | K51: 0 | O51: 0 | Q51: اسم الصنف : فيشة انثي بول 4 فاز 32 A (بلجة)
J52: 0 | K52: 0 | O52: 0 | Q52: اسم الصنف : فيشة انثي بول 4 فاز 32 A (بلجة)
J53: 0 | K53: 0 | O53: 0 | Q53: اسم الصنف : فيشة انثي بول 4 فاز 32 A (بلجة)
J54: 0 | K54: 0 | O54: 0 | Q54: اسم الصنف : فيشة انثي بول 4 فاز 32 A (بلجة)
J55: 0 | K55: 0 | O55: 0 | Q55: اسم الصنف : فيشة انثي بول 4 فاز 32 A (بلجة)
J56: 0 | K56: 0 | O56: 0
J57: 0 | K57: 0 | O57: 0
A58: الرصيد | J58: =G58-D58 -> 0 | K58: 0 | O58: 0
C59: =SUM(C10:C57) -> 1 | D59: =SUM(D10:D57) -> 0 | H59: =SUM(H10:H57) -> 0 | I59: =SUM(I10:I57) -> 1 | J59: =G59-D59 -> 0 | K59: =K58 -> 0 | O59: =SUM(O10:O58) -> 70 | P59: =SUM(G59:I59) -> 1

Sheet فيشة ذكر 5بول A32
F1: بطاقة كارت صنف
A4: اسم الصنف : فيشة ذكر 5 بول 32 A(بلجة) | K4: كود الصنف | L4: رقم كارت الصنف | M4: المخزن :
A7: رقم اذن اضافة الوارد | B7: تاريخ اذن اضافة الوارد | C7: وارد مشتريات وتحويل مشروع | D7: ع من الصيانة والمامورية | E7: رقم اذن الصرف | F7: تاريخ اذن الصرف | G7: صرف صيانة | H7: صرف تحويل | I7: صرف د الموقع | J7: فرق الصيانة | K7: الرصيد | L7: سعر توريد الصنف | M7: جهه التوريد | N7: ملاحظات
L9: رصيد اول المدة | O9: ج سعر التوريد | Q9: =$A$4 -> اسم الصنف : فيشة ذكر 5 بول 32 A(بلجة)
A10: 13183 | B10: 2018-01-05 | C10: 5 | J10: =G10-D10 -> 0 | K10: =K9+C10-I10 -> 5 | M10: ادارة المشتريات | Q10: =$A$4 -> اسم الصنف : فيشة ذكر 5 بول 32 A(بلجة)
E11: 3011 | F11: 2018-03-05 | H11: 2 | J11: =G11-D11 -> 0 | K11: =K10+C11-H11-I11+J11 -> 3 | M11: تحويل الي النادي | O11: =C11*L11 -> 0 | Q11: اسم الصنف : فيشة ذكر 5 بول 32 A(بلجة)
E12: 3012ر | F12: 2018-05-05 | H12: 1 | J12: =G12-D12 -> 0 | K12: =K11+C12-G12-H12-I12+J12 -> 2 | M12: تحويل الي الهايبر | O12: 0 | Q12: اسم الصنف : فيشة ذكر 5 بول 32 A(بلجة)
E13: 13761 | F13: 29/5/2018 | I13: 1 | J13: 0 | K13: 1 | M13: خدمة موقع | O13: 0 | Q13: اسم الصنف : فيشة ذكر 5 بول 32 A(بلجة)
E14: 13849 | F14: 23/9/2018 | I14: 1 | K14: 0 | M14: كمر رخام | Q14: اسم الصنف : فيشة ذكر 5 بول 32 A(بلجة)
J15: 0 | K15: 0 | O15: 0 | Q15: اسم الصنف : فيشة ذكر 5 بول 32 A(بلجة)
J16: 0 | K16: 0 | O16: 0 | Q16: اسم الصنف : فيشة ذكر 5 بول 32 A(بلجة)
J17: 0 | K17: 0 | O17: 0 | Q17: اسم الصنف : فيشة ذكر 5 بول 32 A(بلجة)
J18: 0 | K18: 0 | O18: 0 | Q18: اسم الصنف : فيشة ذكر 5 بول 32 A(بلجة)
J19: 0 | K19: 0 | O19: 0 | Q19: اسم الصنف : فيشة ذكر 5 بول 32 A(بلجة)
J20: 0 | K20: 0 | O20: 0 | Q20: اسم الصنف : فيشة ذكر 5 بول 32 A(بلجة)
J21: 0 | K21: 0 | O21: 0 | Q21: اسم الصنف : فيشة ذكر 5 بول 32 A(بلجة)
J22: 0 | K22: 0 | O22: 0 | Q22: اسم الصنف : فيشة ذكر 5 بول 32 A(بلجة)
J23: 0 | K23: 0 | O23: 0 | Q23: اسم الصنف : فيشة ذكر 5 بول 32 A(بلجة)
J24: 0 | K24: 0 | O24: 0 | Q24: اسم الصنف : فيشة ذكر 5 بول 32 A(بلجة)
J25: 0 | K25: 0 | O25: 0 | Q25: اسم الصنف : فيشة ذكر 5 بول 32 A(بلجة)
J26: 0 | K26: 0 | O26: 0 | Q26: اسم الصنف : فيشة ذكر 5 بول 32 A(بلجة)
J27: 0 | K27: 0 | O27: 0 | Q27: اسم الصنف : فيشة ذكر 5 بول 32 A(بلجة)
J28: 0 | K28: 0 | O28: 0 | Q28: اسم الصنف : فيشة ذكر 5 بول 32 A(بلجة)
J29: 0 | K29: 0 | O29: 0 | Q29: اسم الصنف : فيشة ذكر 5 بول 32 A(بلجة)
J30: 0 | K30: 0 | O30: 0 | Q30: اسم الصنف : فيشة ذكر 5 بول 32 A(بلجة)
J31: 0 | K31: 0 | O31: 0 | Q31: اسم الصنف : فيشة ذكر 5 بول 32 A(بلجة)
J32: 0 | K32: 0 | O32: 0 | Q32: اسم الصنف : فيشة ذكر 5 بول 32 A(بلجة)
J33: 0 | K33: 0 | O33: 0 | Q33: اسم الصنف : فيشة ذكر 5 بول 32 A(بلجة)
J34: 0 | K34: 0 | O34: 0 | Q34: اسم الصنف : فيشة ذكر 5 بول 32 A(بلجة)
J35: 0 | K35: 0 | O35: 0 | Q35: اسم الصنف : فيشة ذكر 5 بول 32 A(بلجة)
J36: 0 | K36: 0 | O36: 0 | Q36: اسم الصنف : فيشة ذكر 5 بول 32 A(بلجة)
J37: 0 | K37: 0 | O37: 0 | Q37: اسم الصنف : فيشة ذكر 5 بول 32 A(بلجة)
J38: 0 | K38: 0 | O38: 0 | Q38: اسم الصنف : فيشة ذكر 5 بول 32 A(بلجة)
J39: 0 | K39: 0 | O39: 0 | Q39: اسم الصنف : فيشة ذكر 5 بول 32 A(بلجة)
J40: 0 | K40: 0 | O40: 0 | Q40: اسم الصنف : فيشة ذكر 5 بول 32 A(بلجة)
J41: 0 | K41: 0 | O41: 0 | Q41: اسم الصنف : فيشة ذكر 5 بول 32 A(بلجة)
J42: 0 | K42: 0 | O42: 0 | Q42: اسم الصنف : فيشة ذكر 5 بول 32 A(بلجة)
J43: 0 | K43: 0 | O43: 0 | Q43: اسم الصنف : فيشة ذكر 5 بول 32 A(بلجة)
J44: 0 | K44: 0 | O44: 0 | Q44: اسم الصنف : فيشة ذكر 5 بول 32 A(بلجة)
J45: 0 | K45: 0 | O45: 0 | Q45: اسم الصنف : فيشة ذكر 5 بول 32 A(بلجة)
J46: 0 | K46: 0 | O46: 0 | Q46: اسم الصنف : فيشة ذكر 5 بول 32 A(بلجة)
J47: 0 | K47: 0 | O47: 0 | Q47: اسم الصنف : فيشة ذكر 5 بول 32 A(بلجة)
J48: 0 | K48: 0 | O48: 0 | Q48: اسم الصنف : فيشة ذكر 5 بول 32 A(بلجة)
J49: 0 | K49: 0 | O49: 0 | Q49: اسم الصنف : فيشة ذكر 5 بول 32 A(بلجة)
F50: . | J50: 0 | K50: 0 | O50: 0 | Q50: اسم الصنف : فيشة ذكر 5 بول 32 A(بلجة)
J51: 0 | K51: 0 | O51: 0 | Q51: اسم الصنف : فيشة ذكر 5 بول 32 A(بلجة)
J52: 0 | K52: 0 | O52: 0 | Q52: اسم الصنف : فيشة ذكر 5 بول 32 A(بلجة)
J53: 0 | K53: 0 | O53: 0 | Q53: اسم الصنف : فيشة ذكر 5 بول 32 A(بلجة)
J54: 0 | K54: 0 | O54: 0 | Q54: اسم الصنف : فيشة ذكر 5 بول 32 A(بلجة)
J55: 0 | K55: 0 | O55: 0 | Q55: اسم الصنف : فيشة ذكر 5 بول 32 A(بلجة)
J56: 0 | K56: 0 | O56: 0
J57: 0 | K57: 0 | O57: 0
A58: الرصيد | J58: =G58-D58 -> 0 | K58: 0 | O58: 0
C59: =SUM(C10:C57) -> 5 | D59: =SUM(D10:D57) -> 0 | H59: =SUM(H10:H57) -> 3 | I59: =SUM(I10:I57) -> 2 | J59: =G59-D59 -> 0 | K59: =K58 -> 0 | O59: =SUM(O10:O58) -> 0 | P59: =SUM(G59:I59) -> 5

Sheet فيشة انثي 5بول 32 A
F1: بطاقة كارت صنف
A4: اسم الصنف : فيشة انثي 5بول 32 A (بلجة) | K4: كود الصنف | L4: رقم كارت الصنف | M4: المخزن :
A7: رقم اذن اضافة الوارد | B7: تاريخ اذن اضافة الوارد | C7: وارد مشتريات وتحويل مشروع | D7: ع من الصيانة والمامورية | E7: رقم اذن الصرف | F7: تاريخ اذن الصرف | G7: صرف صيانة | H7: صرف تحويل | I7: صرف د الموقع | J7: فرق الصيانة | K7: الرصيد | L7: سعر توريد الصنف | M7: جهه التوريد | N7: ملاحظات
L9: رصيد اول المدة | Q9: =$A$4 -> اسم الصنف : فيشة انثي 5بول 32 A (بلجة)
A10: 13183 | B10: 2018-01-05 | C10: 5 | J10: =G10-D10 -> 0 | K10: =K9+C10-I10 -> 5 | L10: 70 | M10: ادارة المشتريات | Q10: =$A$4 -> اسم الصنف : فيشة انثي 5بول 32 A (بلجة)
E11: 3011 | F11: 2018-03-05 | H11: 2 | J11: =G11-D11 -> 0 | K11: =K10+C11-H11-I11+J11 -> 3 | M11: تحويل الي النادي | O11: =C11*L11 -> 0 | Q11: اسم الصنف : فيشة انثي 5بول 32 A (بلجة)
E12: 3012ر | F12: 2018-05-05 | H12: 1 | J12: =G12-D12 -> 0 | K12: =K11+C12-G12-H12-I12+J12 -> 2 | M12: تحويل الي الهايبر | O12: 0 | Q12: اسم الصنف : فيشة انثي 5بول 32 A (بلجة)
J13: =G13-D13 -> 0 | K13: =K12+C13-G13-H13-I13+J13 -> 2 | O13: =C13*L13 -> 0 | Q13: اسم الصنف : فيشة انثي 5بول 32 A (بلجة)
J14: 0 | K14: 2 | O14: 0 | Q14: اسم الصنف : فيشة انثي 5بول 32 A (بلجة)
J15: 0 | K15: 2 | O15: 0 | Q15: اسم الصنف : فيشة انثي 5بول 32 A (بلجة)
J16: 0 | K16: 2 | O16: 0 | Q16: اسم الصنف : فيشة انثي 5بول 32 A (بلجة)
J17: 0 | K17: 2 | O17: 0 | Q17: اسم الصنف : فيشة انثي 5بول 32 A (بلجة)
J18: 0 | K18: 2 | O18: 0 | Q18: اسم الصنف : فيشة انثي 5بول 32 A (بلجة)
J19: 0 | K19: 2 | O19: 0 | Q19: اسم الصنف : فيشة انثي 5بول 32 A (بلجة)
J20: 0 | K20: 2 | O20: 0 | Q20: اسم الصنف : فيشة انثي 5بول 32 A (بلجة)
J21: 0 | K21: 2 | O21: 0 | Q21: اسم الصنف : فيشة انثي 5بول 32 A (بلجة)
J22: 0 | K22: 2 | O22: 0 | Q22: اسم الصنف : فيشة انثي 5بول 32 A (بلجة)
J23: 0 | K23: 2 | O23: 0 | Q23: اسم الصنف : فيشة انثي 5بول 32 A (بلجة)
J24: 0 | K24: 2 | O24: 0 | Q24: اسم الصنف : فيشة انثي 5بول 32 A (بلجة)
J25: 0 | K25: 2 | O25: 0 | Q25: اسم الصنف : فيشة انثي 5بول 32 A (بلجة)
J26: 0 | K26: 2 | O26: 0 | Q26: اسم الصنف : فيشة انثي 5بول 32 A (بلجة)
J27: 0 | K27: 2 | O27: 0 | Q27: اسم الصنف : فيشة انثي 5بول 32 A (بلجة)
J28: 0 | K28: 2 | O28: 0 | Q28: اسم الصنف : فيشة انثي 5بول 32 A (بلجة)
J29: 0 | K29: 2 | O29: 0 | Q29: اسم الصنف : فيشة انثي 5بول 32 A (بلجة)
J30: 0 | K30: 2 | O30: 0 | Q30: اسم الصنف : فيشة انثي 5بول 32 A (بلجة)
J31: 0 | K31: 2 | O31: 0 | Q31: اسم الصنف : فيشة انثي 5بول 32 A (بلجة)
J32: 0 | K32: 2 | O32: 0 | Q32: اسم الصنف : فيشة انثي 5بول 32 A (بلجة)
J33: 0 | K33: 2 | O33: 0 | Q33: اسم الصنف : فيشة انثي 5بول 32 A (بلجة)
J34: 0 | K34: 2 | O34: 0 | Q34: اسم الصنف : فيشة انثي 5بول 32 A (بلجة)
J35: 0 | K35: 2 | O35: 0 | Q35: اسم الصنف : فيشة انثي 5بول 32 A (بلجة)
J36: 0 | K36: 2 | O36: 0 | Q36: اسم الصنف : فيشة انثي 5بول 32 A (بلجة)
J37: 0 | K37: 2 | O37: 0 | Q37: اسم الصنف : فيشة انثي 5بول 32 A (بلجة)
J38: 0 | K38: 2 | O38: 0 | Q38: اسم الصنف : فيشة انثي 5بول 32 A (بلجة)
J39: 0 | K39: 2 | O39: 0 | Q39: اسم الصنف : فيشة انثي 5بول 32 A (بلجة)
J40: 0 | K40: 2 | O40: 0 | Q40: اسم الصنف : فيشة انثي 5بول 32 A (بلجة)
J41: 0 | K41: 2 | O41: 0 | Q41: اسم الصنف : فيشة انثي 5بول 32 A (بلجة)
J42: 0 | K42: 2 | O42: 0 | Q42: اسم الصنف : فيشة انثي 5بول 32 A (بلجة)
J43: 0 | K43: 2 | O43: 0 | Q43: اسم الصنف : فيشة انثي 5بول 32 A (بلجة)
J44: 0 | K44: 2 | O44: 0 | Q44: اسم الصنف : فيشة انثي 5بول 32 A (بلجة)
J45: 0 | K45: 2 | O45: 0 | Q45: اسم الصنف : فيشة انثي 5بول 32 A (بلجة)
J46: 0 | K46: 2 | O46: 0 | Q46: اسم الصنف : فيشة انثي 5بول 32 A (بلجة)
J47: 0 | K47: 2 | O47: 0 | Q47: اسم الصنف : فيشة انثي 5بول 32 A (بلجة)
J48: 0 | K48: 2 | O48: 0 | Q48: اسم الصنف : فيشة انثي 5بول 32 A (بلجة)
J49: 0 | K49: 2 | O49: 0 | Q49: اسم الصنف : فيشة انثي 5بول 32 A (بلجة)
F50: . | J50: 0 | K50: 2 | O50: 0 | Q50: اسم الصنف : فيشة انثي 5بول 32 A (بلجة)
J51: 0 | K51: 2 | O51: 0 | Q51: اسم الصنف : فيشة انثي 5بول 32 A (بلجة)
J52: 0 | K52: 2 | O52: 0 | Q52: اسم الصنف : فيشة انثي 5بول 32 A (بلجة)
J53: 0 | K53: 2 | O53: 0 | Q53: اسم الصنف : فيشة انثي 5بول 32 A (بلجة)
J54: 0 | K54: 2 | O54: 0 | Q54: اسم الصنف : فيشة انثي 5بول 32 A (بلجة)
J55: 0 | K55: 2 | O55: 0 | Q55: اسم الصنف : فيشة انثي 5بول 32 A (بلجة)
J56: 0 | K56: 2 | O56: 0
J57: 0 | K57: 2 | O57: 0
A58: الرصيد | J58: =G58-D58 -> 0 | K58: 2 | O58: 0
C59: =SUM(C10:C57) -> 5 | D59: =SUM(D10:D57) -> 0 | H59: =SUM(H10:H57) -> 3 | I59: =SUM(I10:I57) -> 0 | J59: =G59-D59 -> 0 | K59: =K58 -> 2 | O59: =SUM(O10:O58) -> 0 | P59: =SUM(G59:I59) -> 3

Sheet لوحة كهرباء 12 خط بلاستيك
F1: بطاقة كارت صنف
A4: اسم الصنف : لوحة كهرباء 12 خط بلاستيك | K4: كود الصنف | L4: رقم كارت الصنف | M4: المخزن :
A7: رقم اذن اضافة الوارد | B7: تاريخ اذن اضافة الوارد | C7: وارد مشتريات وتحويل مشروع | D7: ع من الصيانة والمامورية | E7: رقم اذن الصرف | F7: تاريخ اذن الصرف | G7: صرف صيانة | H7: صرف تحويل | I7: صرف د الموقع | J7: فرق الصيانة | K7: الرصيد | L7: سعر توريد الصنف | M7: جهه التوريد | N7: ملاحظات
L9: رصيد اول المدة | O9: ج سعر التوريد | Q9: =$A$4 -> اسم الصنف : لوحة كهرباء 12 خط بلاستيك
A10: 699 | B10: 2018-04-03 | C10: 1 | J10: =G10-D10 -> 0 | K10: =K9+C10-I10 -> 1 | L10: 120 | M10: مش موقع | N10: احمد حامد المحاسب | O10: =C10*L10 -> 120 | Q10: =$A$4 -> اسم الصنف : لوحة كهرباء 12 خط بلاستيك
E11: 756 | F11: 2018-03-04 | I11: 1 | J11: =G11-D11 -> 0 | K11: =K10+C11-H11-I11+J11 -> 0 | M11: خدمة موقع | O11: =C11*L11 -> 0 | Q11: اسم الصنف : لوحة كهرباء 12 خط بلاستيك
A12: 13074 | B12: 16/4/2018 | C12: 1 | J12: =G12-D12 -> 0 | K12: =K11+C12-G12-H12-I12+J12 -> 1 | M12: محول من نادي الجلالة | O12: 0 | Q12: اسم الصنف : لوحة كهرباء 12 خط بلاستيك
E13: 771 | F13: 18/4/2018 | I13: 1 | J13: 0 | K13: 0 | M13: خدمة موقع | O13: 0 | Q13: اسم الصنف : لوحة كهرباء 12 خط بلاستيك
A14: 13183 | B14: 2018-01-05 | C14: 3 | J14: =G14-D14 -> 0 | K14: 3 | M14: ادارة المشتريات | Q14: اسم الصنف : لوحة كهرباء 12 خط بلاستيك
E15: 13753 | F15: 22/5/2018 | I15: 1 | J15: =G15-D15 -> 0 | K15: 2 | M15: خدمة موقع | O15: =C15*L15 -> 0 | Q15: اسم الصنف : لوحة كهرباء 12 خط بلاستيك
A16: 13206 | B16: 24/5/2018 | C16: 5 | J16: 0 | K16: 7 | M16: ادارة المشتريات | O16: 0 | Q16: اسم الصنف : لوحة كهرباء 12 خط بلاستيك
E17: 13781 | F17: 28/6/2018 | I17: 2 | J17: 0 | K17: 5 | M17: سكن عمال | O17: =L17*C17 -> 0 | Q17: اسم الصنف : لوحة كهرباء 12 خط بلاستيك
E18: 13798 | F18: 14/7/2018 | I18: 2 | J18: 0 | K18: 3 | M18: خدمة موقع | O18: 0 | Q18: اسم الصنف : لوحة كهرباء 12 خط بلاستيك
E19: 13838 | F19: 2018-09-09 | I19: 1 | J19: 0 | K19: 2 | M19: خدمة موقع | O19: 0 | Q19: اسم الصنف : لوحة كهرباء 12 خط بلاستيك
E20: 2606 | F20: 12/9/2018ر | H20: 1 | J20: 0 | K20: 1 | M20: محولالي كلية طب اسنان | O20: 0 | Q20: اسم الصنف : لوحة كهرباء 12 خط بلاستيك
E21: 19857 | F21: 2018-01-10 | I21: 1 | J21: 0 | K21: 0 | M21: خدمة موقع | O21: 0 | Q21: اسم الصنف : لوحة كهرباء 12 خط بلاستيك
A22: 7936 | B22: 15/1/2019 | C22: 2 | K22: =K21+C22-I22-H22+J22 -> 2 | M22: ادارة المشتريات | Q22: اسم الصنف : لوحة كهرباء 12 خط بلاستيك
J23: =G23-D23 -> 0 | K23: =K22+C23-G23-H23-I23+J23 -> 2 | O23: =C23*L23 -> 0 | Q23: اسم الصنف : لوحة كهرباء 12 خط بلاستيك
J24: 0 | K24: 2 | O24: 0 | Q24: اسم الصنف : لوحة كهرباء 12 خط بلاستيك
J25: 0 | K25: 2 | O25: 0 | Q25: اسم الصنف : لوحة كهرباء 12 خط بلاستيك
J26: 0 | K26: 2 | O26: 0 | Q26: اسم الصنف : لوحة كهرباء 12 خط بلاستيك
J27: 0 | K27: 2 | O27: 0 | Q27: اسم الصنف : لوحة كهرباء 12 خط بلاستيك
J28: 0 | K28: 2 | O28: 0 | Q28: اسم الصنف : لوحة كهرباء 12 خط بلاستيك
J29: 0 | K29: 2 | O29: 0 | Q29: اسم الصنف : لوحة كهرباء 12 خط بلاستيك
J30: 0 | K30: 2 | O30: 0 | Q30: اسم الصنف : لوحة كهرباء 12 خط بلاستيك
J31: 0 | K31: 2 | O31: 0 | Q31: اسم الصنف : لوحة كهرباء 12 خط بلاستيك
J32: 0 | K32: 2 | O32: 0 | Q32: اسم الصنف : لوحة كهرباء 12 خط بلاستيك
J33: 0 | K33: 2 | O33: 0 | Q33: اسم الصنف : لوحة كهرباء 12 خط بلاستيك
J34: 0 | K34: 2 | O34: 0 | Q34: اسم الصنف : لوحة كهرباء 12 خط بلاستيك
J35: 0 | K35: 2 | O35: 0 | Q35: اسم الصنف : لوحة كهرباء 12 خط بلاستيك
J36: 0 | K36: 2 | O36: 0 | Q36: اسم الصنف : لوحة كهرباء 12 خط بلاستيك
J37: 0 | K37: 2 | O37: 0 | Q37: اسم الصنف : لوحة كهرباء 12 خط بلاستيك
J38: 0 | K38: 2 | O38: 0 | Q38: اسم الصنف : لوحة كهرباء 12 خط بلاستيك
J39: 0 | K39: 2 | O39: 0 | Q39: اسم الصنف : لوحة كهرباء 12 خط بلاستيك
J40: 0 | K40: 2 | O40: 0 | Q40: اسم الصنف : لوحة كهرباء 12 خط بلاستيك
J41: 0 | K41: 2 | O41: 0 | Q41: اسم الصنف : لوحة كهرباء 12 خط بلاستيك
J42: 0 | K42: 2 | O42: 0 | Q42: اسم الصنف : لوحة كهرباء 12 خط بلاستيك
J43: 0 | K43: 2 | O43: 0 | Q43: اسم الصنف : لوحة كهرباء 12 خط بلاستيك
J44: 0 | K44: 2 | O44: 0 | Q44: اسم الصنف : لوحة كهرباء 12 خط بلاستيك
J45: 0 | K45: 2 | O45: 0 | Q45: اسم الصنف : لوحة كهرباء 12 خط بلاستيك
J46: 0 | K46: 2 | O46: 0 | Q46: اسم الصنف : لوحة كهرباء 12 خط بلاستيك
J47: 0 | K47: 2 | O47: 0 | Q47: اسم الصنف : لوحة كهرباء 12 خط بلاستيك
J48: 0 | K48: 2 | O48: 0 | Q48: اسم الصنف : لوحة كهرباء 12 خط بلاستيك
J49: 0 | K49: 2 | O49: 0 | Q49: اسم الصنف : لوحة كهرباء 12 خط بلاستيك
F50: . | J50: 0 | K50: 2 | O50: 0 | Q50: اسم الصنف : لوحة كهرباء 12 خط بلاستيك
J51: 0 | K51: 2 | O51: 0 | Q51: اسم الصنف : لوحة كهرباء 12 خط بلاستيك
J52: 0 | K52: 2 | O52: 0 | Q52: اسم الصنف : لوحة كهرباء 12 خط بلاستيك
J53: 0 | K53: 2 | O53: 0 | Q53: اسم الصنف : لوحة كهرباء 12 خط بلاستيك
J54: 0 | K54: 2 | O54: 0 | Q54: اسم الصنف : لوحة كهرباء 12 خط بلاستيك
J55: 0 | K55: 2 | O55: 0 | Q55: اسم الصنف : لوحة كهرباء 12 خط بلاستيك
J56: 0 | K56: 2 | O56: 0
J57: 0 | K57: 2 | O57: 0
A58: الرصيد | J58: =G58-D58 -> 0 | K58: 2 | O58: 0
C59: =SUM(C10:C57) -> 12 | D59: =SUM(D10:D57) -> 0 | H59: =SUM(H10:H57) -> 1 | I59: =SUM(I10:I57) -> 9 | J59: =G59-D59 -> 0 | K59: =K58 -> 2 | O59: =SUM(O10:O58) -> 120 | P59: =SUM(G59:I59) -> 10

Sheet لوحة كهرباء بلاستك8 خط
F1: بطاقة كارت صنف
A4: اسم الصنف : لوحة كهرباء 8 خط بلاستيك | K4: كود الصنف | L4: رقم كارت الصنف | M4: المخزن :
A7: رقم اذن اضافة الوارد | B7: تاريخ اذن اضافة الوارد | C7: وارد مشتريات وتحويل مشروع | D7: ع من الصيانة والمامورية | E7: رقم اذن الصرف | F7: تاريخ اذن الصرف | G7: صرف صيانة | H7: صرف تحويل | I7: صرف د الموقع | J7: فرق الصيانة | K7: الرصيد | L7: سعر توريد الصنف | M7: جهه التوريد | N7: ملاحظات
L9: رصيد اول المدة | O9: ج سعر التوريد | Q9: =$A$4 -> اسم الصنف : لوحة كهرباء 8 خط بلاستيك
A10: 7936 | B10: 15/1/2019 | C10: 6 | K10: =K9+C10-I10-H10+J10 -> 6 | M10: ادارة المشتريات | Q10: =$A$4 -> اسم الصنف : لوحة كهرباء 8 خط بلاستيك
E11: 11841 | F11: 16/1/2019 | I11: 2 | J11: =G11-D11 -> 0 | K11: =K10+C11-H11-I11+J11 -> 4 | O11: =C11*L11 -> 0 | Q11: اسم الصنف : لوحة كهرباء 8 خط بلاستيك
E12: 144 | F12: 13/2/2019 | I12: 2 | J12: =G12-D12 -> 0 | K12: =K11+C12-G12-H12-I12+J12 -> 2 | O12: 0 | Q12: اسم الصنف : لوحة كهرباء 8 خط بلاستيك
J13: 0 | K13: 2 | O13: 0 | Q13: اسم الصنف : لوحة كهرباء 8 خط بلاستيك
J14: =G14-D14 -> 0 | K14: 2 | Q14: اسم الصنف : لوحة كهرباء 8 خط بلاستيك
J15: =G15-D15 -> 0 | K15: 2 | O15: =C15*L15 -> 0 | Q15: اسم الصنف : لوحة كهرباء 8 خط بلاستيك
J16: 0 | K16: 2 | O16: 0 | Q16: اسم الصنف : لوحة كهرباء 8 خط بلاستيك
J17: 0 | K17: 2 | O17: =L17*C17 -> 0 | Q17: اسم الصنف : لوحة كهرباء 8 خط بلاستيك
J18: 0 | K18: 2 | O18: 0 | Q18: اسم الصنف : لوحة كهرباء 8 خط بلاستيك
J19: 0 | K19: 2 | O19: 0 | Q19: اسم الصنف : لوحة كهرباء 8 خط بلاستيك
J20: 0 | K20: 2 | O20: 0 | Q20: اسم الصنف : لوحة كهرباء 8 خط بلاستيك
J21: 0 | K21: 2 | O21: 0 | Q21: اسم الصنف : لوحة كهرباء 8 خط بلاستيك
K22: =K21+C22-I22-H22+J22 -> 2 | Q22: اسم الصنف : لوحة كهرباء 8 خط بلاستيك
J23: 0 | K23: 2 | O23: 0 | Q23: اسم الصنف : لوحة كهرباء 8 خط بلاستيك
J24: 0 | K24: 2 | O24: 0 | Q24: اسم الصنف : لوحة كهرباء 8 خط بلاستيك
J25: 0 | K25: 2 | O25: 0 | Q25: اسم الصنف : لوحة كهرباء 8 خط بلاستيك
J26: 0 | K26: 2 | O26: 0 | Q26: اسم الصنف : لوحة كهرباء 8 خط بلاستيك
J27: 0 | K27: 2 | O27: 0 | Q27: اسم الصنف : لوحة كهرباء 8 خط بلاستيك
J28: 0 | K28: 2 | O28: 0 | Q28: اسم الصنف : لوحة كهرباء 8 خط بلاستيك
J29: 0 | K29: 2 | O29: 0 | Q29: اسم الصنف : لوحة كهرباء 8 خط بلاستيك
J30: 0 | K30: 2 | O30: 0 | Q30: اسم الصنف : لوحة كهرباء 8 خط بلاستيك
J31: 0 | K31: 2 | O31: 0 | Q31: اسم الصنف : لوحة كهرباء 8 خط بلاستيك
J32: 0 | K32: 2 | O32: 0 | Q32: اسم الصنف : لوحة كهرباء 8 خط بلاستيك
J33: 0 | K33: 2 | O33: 0 | Q33: اسم الصنف : لوحة كهرباء 8 خط بلاستيك
J34: 0 | K34: 2 | O34: 0 | Q34: اسم الصنف : لوحة كهرباء 8 خط بلاستيك
J35: 0 | K35: 2 | O35: 0 | Q35: اسم الصنف : لوحة كهرباء 8 خط بلاستيك
J36: 0 | K36: 2 | O36: 0 | Q36: اسم الصنف : لوحة كهرباء 8 خط بلاستيك
J37: 0 | K37: 2 | O37: 0 | Q37: اسم الصنف : لوحة كهرباء 8 خط بلاستيك
J38: 0 | K38: 2 | O38: 0 | Q38: اسم الصنف : لوحة كهرباء 8 خط بلاستيك
J39: 0 | K39: 2 | O39: 0 | Q39: اسم الصنف : لوحة كهرباء 8 خط بلاستيك
J40: 0 | K40: 2 | O40: 0 | Q40: اسم الصنف : لوحة كهرباء 8 خط بلاستيك
J41: 0 | K41: 2 | O41: 0 | Q41: اسم الصنف : لوحة كهرباء 8 خط بلاستيك
J42: 0 | K42: 2 | O42: 0 | Q42: اسم الصنف : لوحة كهرباء 8 خط بلاستيك
J43: 0 | K43: 2 | O43: 0 | Q43: اسم الصنف : لوحة كهرباء 8 خط بلاستيك
J44: 0 | K44: 2 | O44: 0 | Q44: اسم الصنف : لوحة كهرباء 8 خط بلاستيك
J45: 0 | K45: 2 | O45: 0 | Q45: اسم الصنف : لوحة كهرباء 8 خط بلاستيك
J46: 0 | K46: 2 | O46: 0 | Q46: اسم الصنف : لوحة كهرباء 8 خط بلاستيك
J47: 0 | K47: 2 | O47: 0 | Q47: اسم الصنف : لوحة كهرباء 8 خط بلاستيك
J48: 0 | K48: 2 | O48: 0 | Q48: اسم الصنف : لوحة كهرباء 8 خط بلاستيك
J49: 0 | K49: 2 | O49: 0 | Q49: اسم الصنف : لوحة كهرباء 8 خط بلاستيك
F50: . | J50: 0 | K50: 2 | O50: 0 | Q50: اسم الصنف : لوحة كهرباء 8 خط بلاستيك
J51: 0 | K51: 2 | O51: 0 | Q51: اسم الصنف : لوحة كهرباء 8 خط بلاستيك
J52: 0 | K52: 2 | O52: 0 | Q52: اسم الصنف : لوحة كهرباء 8 خط بلاستيك
J53: 0 | K53: 2 | O53: 0 | Q53: اسم الصنف : لوحة كهرباء 8 خط بلاستيك
J54: 0 | K54: 2 | O54: 0 | Q54: اسم الصنف : لوحة كهرباء 8 خط بلاستيك
J55: 0 | K55: 2 | O55: 0 | Q55: اسم الصنف : لوحة كهرباء 8 خط بلاستيك
J56: 0 | K56: 2 | O56: 0
J57: 0 | K57: 2 | O57: 0
A58: الرصيد | J58: =G58-D58 -> 0 | K58: 2 | O58: 0
C59: =SUM(C10:C57) -> 6 | D59: =SUM(D10:D57) -> 0 | H59: =SUM(H10:H57) -> 0 | I59: =SUM(I10:I57) -> 4 | J59: =G59-D59 -> 0 | K59: =K58 -> 2 | O59: =SUM(O10:O58) -> 0 | P59: =SUM(G59:I59) -> 4

Sheet لوحة كهرباء فارغة النور 24 خط
F1: بطاقة كارت صنف
A4: اسم الصنف : لوحة كهرباء فارغة النور 24 خط | K4: كود الصنف | L4: رقم كارت الصنف | M4: المخزن :
A7: رقم اذن اضافة الوارد | B7: تاريخ اذن اضافة الوارد | C7: وارد مشتريات وتحويل مشروع | D7: ع من الصيانة والمامورية | E7: رقم اذن الصرف | F7: تاريخ اذن الصرف | G7: صرف صيانة | H7: صرف تحويل | I7: صرف د الموقع | J7: فرق الصيانة | K7: الرصيد | L7: سعر توريد الصنف | M7: جهه التوريد | N7: ملاحظات
L9: رصيد اول المدة | O9: ج سعر التوريد | Q9: =$A$4 -> اسم الصنف : لوحة كهرباء فارغة النور 24 خط
B10: 2018-01-31 | C10: 1 | J10: =G10-D10 -> 0 | K10: =K9+C10-I10 -> 1 | L10: 155 | M10: انريجيا | N10: جلال | O10: =C10*L10 -> 155 | Q10: =$A$4 -> اسم الصنف : لوحة كهرباء فارغة النور 24 خط
E11: 756 | F11: 2018-04-03 | I11: 1 | J11: =G11-D11 -> 0 | K11: =K10+C11-H11-I11+J11 -> 0 | O11: =C11*L11 -> 0 | Q11: اسم الصنف : لوحة كهرباء فارغة النور 24 خط
J12: =G12-D12 -> 0 | K12: =K11+C12-G12-H12-I12+J12 -> 0 | O12: 0 | Q12: اسم الصنف : لوحة كهرباء فارغة النور 24 خط
J13: 0 | K13: 0 | O13: 0 | Q13: اسم الصنف : لوحة كهرباء فارغة النور 24 خط
J14: 0 | K14: 0 | O14: 0 | Q14: اسم الصنف : لوحة كهرباء فارغة النور 24 خط
J15: 0 | K15: 0 | O15: 0 | Q15: اسم الصنف : لوحة كهرباء فارغة النور 24 خط
J16: 0 | K16: 0 | O16: 0 | Q16: اسم الصنف : لوحة كهرباء فارغة النور 24 خط
J17: 0 | K17: 0 | O17: 0 | Q17: اسم الصنف : لوحة كهرباء فارغة النور 24 خط
J18: 0 | K18: 0 | O18: 0 | Q18: اسم الصنف : لوحة كهرباء فارغة النور 24 خط
J19: 0 | K19: 0 | O19: 0 | Q19: اسم الصنف : لوحة كهرباء فارغة النور 24 خط
J20: 0 | K20: 0 | O20: 0 | Q20: اسم الصنف : لوحة كهرباء فارغة النور 24 خط
J21: 0 | K21: 0 | O21: 0 | Q21: اسم الصنف : لوحة كهرباء فارغة النور 24 خط
J22: 0 | K22: 0 | O22: 0 | Q22: اسم الصنف : لوحة كهرباء فارغة النور 24 خط
J23: 0 | K23: 0 | O23: 0 | Q23: اسم الصنف : لوحة كهرباء فارغة النور 24 خط
J24: 0 | K24: 0 | O24: 0 | Q24: اسم الصنف : لوحة كهرباء فارغة النور 24 خط
J25: 0 | K25: 0 | O25: 0 | Q25: اسم الصنف : لوحة كهرباء فارغة النور 24 خط
J26: 0 | K26: 0 | O26: 0 | Q26: اسم الصنف : لوحة كهرباء فارغة النور 24 خط
J27: 0 | K27: 0 | O27: 0 | Q27: اسم الصنف : لوحة كهرباء فارغة النور 24 خط
J28: 0 | K28: 0 | O28: 0 | Q28: اسم الصنف : لوحة كهرباء فارغة النور 24 خط
J29: 0 | K29: 0 | O29: 0 | Q29: اسم الصنف : لوحة كهرباء فارغة النور 24 خط
J30: 0 | K30: 0 | O30: 0 | Q30: اسم الصنف : لوحة كهرباء فارغة النور 24 خط
J31: 0 | K31: 0 | O31: 0 | Q31: اسم الصنف : لوحة كهرباء فارغة النور 24 خط
J32: 0 | K32: 0 | O32: 0 | Q32: اسم الصنف : لوحة كهرباء فارغة النور 24 خط
J33: 0 | K33: 0 | O33: 0 | Q33: اسم الصنف : لوحة كهرباء فارغة النور 24 خط
J34: 0 | K34: 0 | O34: 0 | Q34: اسم الصنف : لوحة كهرباء فارغة النور 24 خط
J35: 0 | K35: 0 | O35: 0 | Q35: اسم الصنف : لوحة كهرباء فارغة النور 24 خط
J36: 0 | K36: 0 | O36: 0 | Q36: اسم الصنف : لوحة كهرباء فارغة النور 24 خط
J37: 0 | K37: 0 | O37: 0 | Q37: اسم الصنف : لوحة كهرباء فارغة النور 24 خط
J38: 0 | K38: 0 | O38: 0 | Q38: اسم الصنف : لوحة كهرباء فارغة النور 24 خط
J39: 0 | K39: 0 | O39: 0 | Q39: اسم الصنف : لوحة كهرباء فارغة النور 24 خط
J40: 0 | K40: 0 | O40: 0 | Q40: اسم الصنف : لوحة كهرباء فارغة النور 24 خط
J41: 0 | K41: 0 | O41: 0 | Q41: اسم الصنف : لوحة كهرباء فارغة النور 24 خط
J42: 0 | K42: 0 | O42: 0 | Q42: اسم الصنف : لوحة كهرباء فارغة النور 24 خط
J43: 0 | K43: 0 | O43: 0 | Q43: اسم الصنف : لوحة كهرباء فارغة النور 24 خط
J44: 0 | K44: 0 | O44: 0 | Q44: اسم الصنف : لوحة كهرباء فارغة النور 24 خط
J45: 0 | K45: 0 | O45: 0 | Q45: اسم الصنف : لوحة كهرباء فارغة النور 24 خط
J46: 0 | K46: 0 | O46: 0 | Q46: اسم الصنف : لوحة كهرباء فارغة النور 24 خط
J47: 0 | K47: 0 | O47: 0 | Q47: اسم الصنف : لوحة كهرباء فارغة النور 24 خط
J48: 0 | K48: 0 | O48: 0 | Q48: اسم الصنف : لوحة كهرباء فارغة النور 24 خط
J49: 0 | K49: 0 | O49: 0 | Q49: اسم الصنف : لوحة كهرباء فارغة النور 24 خط
F50: . | J50: 0 | K50: 0 | O50: 0 | Q50: اسم الصنف : لوحة كهرباء فارغة النور 24 خط
J51: 0 | K51: 0 | O51: 0 | Q51: اسم الصنف : لوحة كهرباء فارغة النور 24 خط
J52: 0 | K52: 0 | O52: 0 | Q52: اسم الصنف : لوحة كهرباء فارغة النور 24 خط
J53: 0 | K53: 0 | O53: 0 | Q53: اسم الصنف : لوحة كهرباء فارغة النور 24 خط
J54: 0 | K54: 0 | O54: 0 | Q54: اسم الصنف : لوحة كهرباء فارغة النور 24 خط
J55: 0 | K55: 0 | O55: 0 | Q55: اسم الصنف : لوحة كهرباء فارغة النور 24 خط
J56: 0 | K56: 0 | O56: 0
J57: 0 | K57: 0 | O57: 0
A58: الرصيد | J58: =G58-D58 -> 0 | K58: 0 | O58: 0
C59: =SUM(C10:C57) -> 1 | D59: =SUM(D10:D57) -> 0 | H59: =SUM(H10:H57) -> 0 | I59: =SUM(I10:I57) -> 1 | J59: =G59-D59 -> 0 | K59: =K58 -> 0 | O59: =SUM(O10:O58) -> 155 | P59: =SUM(G59:I59) -> 1

Sheet لوحة كهرباء فارغة 80سم
F1: بطاقة كارت صنف
A4: اسم الصنف : لوحة كهرباء فارغة 80*60*20 | K4: كود الصنف | L4: رقم كارت الصنف | M4: المخزن :
A7: رقم اذن اضافة الوارد | B7: تاريخ اذن اضافة الوارد | C7: وارد مشتريات وتحويل مشروع | D7: ع من الصيانة والمامورية | E7: رقم اذن الصرف | F7: تاريخ اذن الصرف | G7: صرف صيانة | H7: صرف تحويل | I7: صرف د الموقع | J7: فرق الصيانة | K7: الرصيد | L7: سعر توريد الصنف | M7: جهه التوريد | N7: ملاحظات
L9: رصيد اول المدة | O9: ج سعر التوريد | Q9: =$A$4 -> اسم الصنف : لوحة كهرباء فارغة 80*60*20
A10: 13055 | B10: 14/4/2018 | C10: 1 | J10: =G10-D10 -> 0 | K10: =K9+C10-I10 -> 1 | L10: 155 | M10: ادارة المشتريات | N10: جلال | O10: =C10*L10 -> 155 | Q10: =$A$4 -> اسم الصنف : لوحة كهرباء فارغة 80*60*20
E11: 788 | F11: 2018-05-05 | I11: 1 | J11: =G11-D11 -> 0 | K11: =K10+C11-I11 -> 0 | M11: خدمة موقع | O11: =C11*L11 -> 0 | Q11: اسم الصنف : لوحة كهرباء فارغة 80*60*20
J12: =G12-D12 -> 0 | K12: =K11+C12-G12-H12-I12+J12 -> 0 | O12: =C12*L12 -> 0 | Q12: اسم الصنف : لوحة كهرباء فارغة 80*60*20
J13: 0 | K13: 0 | O13: 0 | Q13: اسم الصنف : لوحة كهرباء فارغة 80*60*20
J14: 0 | K14: 0 | O14: 0 | Q14: اسم الصنف : لوحة كهرباء فارغة 80*60*20
J15: 0 | K15: 0 | O15: 0 | Q15: اسم الصنف : لوحة كهرباء فارغة 80*60*20
J16: 0 | K16: 0 | O16: 0 | Q16: اسم الصنف : لوحة كهرباء فارغة 80*60*20
J17: 0 | K17: 0 | O17: 0 | Q17: اسم الصنف : لوحة كهرباء فارغة 80*60*20
J18: 0 | K18: 0 | O18: 0 | Q18: اسم الصنف : لوحة كهرباء فارغة 80*60*20
J19: 0 | K19: 0 | O19: 0 | Q19: اسم الصنف : لوحة كهرباء فارغة 80*60*20
J20: 0 | K20: 0 | O20: 0 | Q20: اسم الصنف : لوحة كهرباء فارغة 80*60*20
J21: 0 | K21: 0 | O21: 0 | Q21: اسم الصنف : لوحة كهرباء فارغة 80*60*20
J22: 0 | K22: 0 | O22: 0 | Q22: اسم الصنف : لوحة كهرباء فارغة 80*60*20
J23: 0 | K23: 0 | O23: 0 | Q23: اسم الصنف : لوحة كهرباء فارغة 80*60*20
J24: 0 | K24: 0 | O24: 0 | Q24: اسم الصنف : لوحة كهرباء فارغة 80*60*20
J25: 0 | K25: 0 | O25: 0 | Q25: اسم الصنف : لوحة كهرباء فارغة 80*60*20
J26: 0 | K26: 0 | O26: 0 | Q26: اسم الصنف : لوحة كهرباء فارغة 80*60*20
J27: 0 | K27: 0 | O27: 0 | Q27: اسم الصنف : لوحة كهرباء فارغة 80*60*20
J28: 0 | K28: 0 | O28: 0 | Q28: اسم الصنف : لوحة كهرباء فارغة 80*60*20
J29: 0 | K29: 0 | O29: 0 | Q29: اسم الصنف : لوحة كهرباء فارغة 80*60*20
J30: 0 | K30: 0 | O30: 0 | Q30: اسم الصنف : لوحة كهرباء فارغة 80*60*20
J31: 0 | K31: 0 | O31: 0 | Q31: اسم الصنف : لوحة كهرباء فارغة 80*60*20
J32: 0 | K32: 0 | O32: 0 | Q32: اسم الصنف : لوحة كهرباء فارغة 80*60*20
J33: 0 | K33: 0 | O33: 0 | Q33: اسم الصنف : لوحة كهرباء فارغة 80*60*20
J34: 0 | K34: 0 | O34: 0 | Q34: اسم الصنف : لوحة كهرباء فارغة 80*60*20
J35: 0 | K35: 0 | O35: 0 | Q35: اسم الصنف : لوحة كهرباء فارغة 80*60*20
J36: 0 | K36: 0 | O36: 0 | Q36: اسم الصنف : لوحة كهرباء فارغة 80*60*20
J37: 0 | K37: 0 | O37: 0 | Q37: اسم الصنف : لوحة كهرباء فارغة 80*60*20
J38: 0 | K38: 0 | O38: 0 | Q38: اسم الصنف : لوحة كهرباء فارغة 80*60*20
J39: 0 | K39: 0 | O39: 0 | Q39: اسم الصنف : لوحة كهرباء فارغة 80*60*20
J40: 0 | K40: 0 | O40: 0 | Q40: اسم الصنف : لوحة كهرباء فارغة 80*60*20
J41: 0 | K41: 0 | O41: 0 | Q41: اسم الصنف : لوحة كهرباء فارغة 80*60*20
J42: 0 | K42: 0 | O42: 0 | Q42: اسم الصنف : لوحة كهرباء فارغة 80*60*20
J43: 0 | K43: 0 | O43: 0 | Q43: اسم الصنف : لوحة كهرباء فارغة 80*60*20
J44: 0 | K44: 0 | O44: 0 | Q44: اسم الصنف : لوحة كهرباء فارغة 80*60*20
J45: 0 | K45: 0 | O45: 0 | Q45: اسم الصنف : لوحة كهرباء فارغة 80*60*20
J46: 0 | K46: 0 | O46: 0 | Q46: اسم الصنف : لوحة كهرباء فارغة 80*60*20
J47: 0 | K47: 0 | O47: 0 | Q47: اسم الصنف : لوحة كهرباء فارغة 80*60*20
J48: 0 | K48: 0 | O48: 0 | Q48: اسم الصنف : لوحة كهرباء فارغة 80*60*20
J49: 0 | K49: 0 | O49: 0 | Q49: اسم الصنف : لوحة كهرباء فارغة 80*60*20
F50: . | J50: 0 | K50: 0 | O50: 0 | Q50: اسم الصنف : لوحة كهرباء فارغة 80*60*20
J51: 0 | K51: 0 | O51: 0 | Q51: اسم الصنف : لوحة كهرباء فارغة 80*60*20
J52: 0 | K52: 0 | O52: 0 | Q52: اسم الصنف : لوحة كهرباء فارغة 80*60*20
J53: 0 | K53: 0 | O53: 0 | Q53: اسم الصنف : لوحة كهرباء فارغة 80*60*20
J54: 0 | K54: 0 | O54: 0 | Q54: اسم الصنف : لوحة كهرباء فارغة 80*60*20
J55: 0 | K55: 0 | O55: 0 | Q55: اسم الصنف : لوحة كهرباء فارغة 80*60*20
J56: 0 | K56: 0 | O56: 0
J57: 0 | K57: 0 | O57: 0
A58: الرصيد | J58: =G58-D58 -> 0 | K58: 0 | O58: 0
C59: =SUM(C10:C57) -> 1 | D59: =SUM(D10:D57) -> 0 | H59: =SUM(H10:H57) -> 0 | I59: =SUM(I10:I57) -> 1 | J59: =G59-D59 -> 0 | K59: =K58 -> 0 | O59: =SUM(O10:O58) -> 155 | P59: =SUM(G59:I59) -> 1

Sheet لوحة كهرباء فارغة 40سم
F1: بطاقة كارت صنف
A4: اسم الصنف : لوحة كهرباء فارغة 40*30*20 | K4: كود الصنف | L4: رقم كارت الصنف | M4: المخزن :
A7: رقم اذن اضافة الوارد | B7: تاريخ اذن اضافة الوارد | C7: وارد مشتريات وتحويل مشروع | D7: ع من الصيانة والمامورية | E7: رقم اذن الصرف | F7: تاريخ اذن الصرف | G7: صرف صيانة | H7: صرف تحويل | I7: صرف د الموقع | J7: فرق الصيانة | K7: الرصيد | L7: سعر توريد الصنف | M7: جهه التوريد | N7: ملاحظات
L9: رصيد اول المدة | O9: ج سعر التوريد | Q9: =$A$4 -> اسم الصنف : لوحة كهرباء فارغة 40*30*20
A10: 13055 | B10: 14/4/2018 | C10: 1 | J10: =G10-D10 -> 0 | K10: =K9+C10-I10 -> 1 | L10: 155 | M10: ادارة المشتريات | N10: جلال | O10: =C10*L10 -> 155 | Q10: =$A$4 -> اسم الصنف : لوحة كهرباء فارغة 40*30*20
A11: 11990 | B11: 2018-11-11 | C11: 3 | J11: =G11-D11 -> 0 | K11: =K10+C11-H11-I11+J11 -> 4 | M11: ادارة المشتريات | O11: =C11*L11 -> 0 | Q11: اسم الصنف : لوحة كهرباء فارغة 40*30*20
A12: 12096 | B12: 14/11/2018 | C12: 9 | J12: =G12-D12 -> 0 | K12: =K11+C12-G12-H12-I12+J12 -> 13 | M12: ادارة المشتريات | O12: 0 | Q12: اسم الصنف : لوحة كهرباء فارغة 40*30*20
E13: 3312 | F13: 22/11/2018 | I13: 1 | J13: 0 | K13: 12 | M13: موقع | O13: 0 | Q13: اسم الصنف : لوحة كهرباء فارغة 40*30*20
E14: 3330 | F14: 26/11/2018 | I14: 6 | J14: 0 | K14: =K13+C14-I14 -> 6 | M14: موقع | Q14: اسم الصنف : لوحة كهرباء فارغة 40*30*20
E15: 3349 | F15: 29/11/2018 | I15: 1 | J15: 0 | K15: 5 | M15: موقع | O15: =C15*L15 -> 0 | Q15: اسم الصنف : لوحة كهرباء فارغة 40*30*20
E16: 11853 | F16: 2018-01-12 | I16: 5 | J16: 0 | K16: 0 | M16: موقع | Q16: اسم الصنف : لوحة كهرباء فارغة 40*30*20
A17: 11834 | B17: 2018-09-12 | C17: 20 | J17: 0 | K17: 20 | M17: ادارة المشتريات | O17: 0 | Q17: اسم الصنف : لوحة كهرباء فارغة 40*30*20
E18: 11885 | F18: 2018-11-12 | I18: 20 | J18: 0 | K18: 0 | M18: موقع | O18: 0 | Q18: اسم الصنف : لوحة كهرباء فارغة 40*30*20
J19: 0 | K19: 0 | O19: 0 | Q19: اسم الصنف : لوحة كهرباء فارغة 40*30*20
J20: 0 | K20: 0 | O20: 0 | Q20: اسم الصنف : لوحة كهرباء فارغة 40*30*20
J21: 0 | K21: 0 | O21: 0 | Q21: اسم الصنف : لوحة كهرباء فارغة 40*30*20
J22: 0 | K22: 0 | O22: 0 | Q22: اسم الصنف : لوحة كهرباء فارغة 40*30*20
J23: 0 | K23: 0 | O23: 0 | Q23: اسم الصنف : لوحة كهرباء فارغة 40*30*20
J24: 0 | K24: 0 | O24: 0 | Q24: اسم الصنف : لوحة كهرباء فارغة 40*30*20
J25: 0 | K25: 0 | O25: 0 | Q25: اسم الصنف : لوحة كهرباء فارغة 40*30*20
J26: 0 | K26: 0 | O26: 0 | Q26: اسم الصنف : لوحة كهرباء فارغة 40*30*20
J27: 0 | K27: 0 | O27: 0 | Q27: اسم الصنف : لوحة كهرباء فارغة 40*30*20
J28: 0 | K28: 0 | O28: 0 | Q28: اسم الصنف : لوحة كهرباء فارغة 40*30*20
J29: 0 | K29: 0 | O29: 0 | Q29: اسم الصنف : لوحة كهرباء فارغة 40*30*20
J30: 0 | K30: 0 | O30: 0 | Q30: اسم الصنف : لوحة كهرباء فارغة 40*30*20
J31: 0 | K31: 0 | O31: 0 | Q31: اسم الصنف : لوحة كهرباء فارغة 40*30*20
J32: 0 | K32: 0 | O32: 0 | Q32: اسم الصنف : لوحة كهرباء فارغة 40*30*20
J33: 0 | K33: 0 | O33: 0 | Q33: اسم الصنف : لوحة كهرباء فارغة 40*30*20
J34: 0 | K34: 0 | O34: 0 | Q34: اسم الصنف : لوحة كهرباء فارغة 40*30*20
J35: 0 | K35: 0 | O35: 0 | Q35: اسم الصنف : لوحة كهرباء فارغة 40*30*20
J36: 0 | K36: 0 | O36: 0 | Q36: اسم الصنف : لوحة كهرباء فارغة 40*30*20
J37: 0 | K37: 0 | O37: 0 | Q37: اسم الصنف : لوحة كهرباء فارغة 40*30*20
J38: 0 | K38: 0 | O38: 0 | Q38: اسم الصنف : لوحة كهرباء فارغة 40*30*20
J39: 0 | K39: 0 | O39: 0 | Q39: اسم الصنف : لوحة كهرباء فارغة 40*30*20
J40: 0 | K40: 0 | O40: 0 | Q40: اسم الصنف : لوحة كهرباء فارغة 40*30*20
J41: 0 | K41: 0 | O41: 0 | Q41: اسم الصنف : لوحة كهرباء فارغة 40*30*20
J42: 0 | K42: 0 | O42: 0 | Q42: اسم الصنف : لوحة كهرباء فارغة 40*30*20
J43: 0 | K43: 0 | O43: 0 | Q43: اسم الصنف : لوحة كهرباء فارغة 40*30*20
J44: 0 | K44: 0 | O44: 0 | Q44: اسم الصنف : لوحة كهرباء فارغة 40*30*20
J45: 0 | K45: 0 | O45: 0 | Q45: اسم الصنف : لوحة كهرباء فارغة 40*30*20
J46: 0 | K46: 0 | O46: 0 | Q46: اسم الصنف : لوحة كهرباء فارغة 40*30*20
J47: 0 | K47: 0 | O47: 0 | Q47: اسم الصنف : لوحة كهرباء فارغة 40*30*20
J48: 0 | K48: 0 | O48: 0 | Q48: اسم الصنف : لوحة كهرباء فارغة 40*30*20
J49: 0 | K49: 0 | O49: 0 | Q49: اسم الصنف : لوحة كهرباء فارغة 40*30*20
F50: . | J50: 0 | K50: 0 | O50: 0 | Q50: اسم الصنف : لوحة كهرباء فارغة 40*30*20
J51: 0 | K51: 0 | O51: 0 | Q51: اسم الصنف : لوحة كهرباء فارغة 40*30*20
J52: 0 | K52: 0 | O52: 0 | Q52: اسم الصنف : لوحة كهرباء فارغة 40*30*20
J53: 0 | K53: 0 | O53: 0 | Q53: اسم الصنف : لوحة كهرباء فارغة 40*30*20
J54: 0 | K54: 0 | O54: 0 | Q54: اسم الصنف : لوحة كهرباء فارغة 40*30*20
J55: 0 | K55: 0 | O55: 0 | Q55: اسم الصنف : لوحة كهرباء فارغة 40*30*20
J56: 0 | K56: 0 | O56: 0
J57: 0 | K57: 0 | O57: 0
A58: الرصيد | J58: =G58-D58 -> 0 | K58: 0 | O58: 0
C59: =SUM(C10:C57) -> 33 | D59: =SUM(D10:D57) -> 0 | H59: =SUM(H10:H57) -> 0 | I59: =SUM(I10:I57) -> 33 | J59: =G59-D59 -> 0 | K59: =K58 -> 0 | O59: =SUM(O10:O58) -> 155 | P59: =SUM(G59:I59) -> 33

Sheet لوحة كهرباء فارغة 1م
F1: بطاقة كارت صنف
A4: اسم الصنف : لوحة كهرباء فارغة 1م*80*25سم | K4: كود الصنف | L4: رقم كارت الصنف | M4: المخزن :
A7: رقم اذن اضافة الوارد | B7: تاريخ اذن اضافة الوارد | C7: وارد مشتريات وتحويل مشروع | D7: ع من الصيانة والمامورية | E7: رقم اذن الصرف | F7: تاريخ اذن الصرف | G7: صرف صيانة | H7: صرف تحويل | I7: صرف د الموقع | J7: فرق الصيانة | K7: الرصيد | L7: سعر توريد الصنف | M7: جهه التوريد | N7: ملاحظات
L9: رصيد اول المدة | O9: ج سعر التوريد | Q9: =$A$4 -> اسم الصنف : لوحة كهرباء فارغة 1م*80*25سم
A10: 14340 | B10: 29/11/2018 | C10: 2 | J10: =G10-D10 -> 0 | K10: =K9+C10-I10 -> 2 | L10: 155 | M10: ادارة المشتريات | N10: جلال | O10: =C10*L10 -> 310 | Q10: =$A$4 -> اسم الصنف : لوحة كهرباء فارغة 1م*80*25سم
E11: 11855 | F11: 2018-02-12 | I11: 1 | J11: =G11-D11 -> 0 | K11: =K10+C11-I11 -> 1 | O11: =C11*L11 -> 0 | Q11: اسم الصنف : لوحة كهرباء فارغة 1م*80*25سم
E12: 11885 | F12: 2018-11-12 | I12: 1 | J12: 0 | K12: =K11+C12-G12-H12-I12+J12 -> 0 | M12: موقع | O12: 0 | Q12: اسم الصنف : لوحة كهرباء فارغة 1م*80*25سم
J13: =G13-D13 -> 0 | K13: =K12+C13-G13-H13-I13+J13 -> 0 | M13: موقع | O13: =C13*L13 -> 0 | Q13: اسم الصنف : لوحة كهرباء فارغة 1م*80*25سم
J14: 0 | K14: =K13+C14-I14 -> 0 | Q14: اسم الصنف : لوحة كهرباء فارغة 1م*80*25سم
J15: 0 | K15: 0 | O15: =C15*L15 -> 0 | Q15: اسم الصنف : لوحة كهرباء فارغة 1م*80*25سم
J16: 0 | K16: 0 | Q16: اسم الصنف : لوحة كهرباء فارغة 1م*80*25سم
J17: 0 | K17: 0 | O17: 0 | Q17: اسم الصنف : لوحة كهرباء فارغة 1م*80*25سم
J18: 0 | K18: 0 | O18: 0 | Q18: اسم الصنف : لوحة كهرباء فارغة 1م*80*25سم
J19: 0 | K19: 0 | O19: 0 | Q19: اسم الصنف : لوحة كهرباء فارغة 1م*80*25سم
J20: 0 | K20: 0 | O20: 0 | Q20: اسم الصنف : لوحة كهرباء فارغة 1م*80*25سم
J21: 0 | K21: 0 | O21: 0 | Q21: اسم الصنف : لوحة كهرباء فارغة 1م*80*25سم
J22: 0 | K22: 0 | O22: 0 | Q22: اسم الصنف : لوحة كهرباء فارغة 1م*80*25سم
J23: 0 | K23: 0 | O23: 0 | Q23: اسم الصنف : لوحة كهرباء فارغة 1م*80*25سم
J24: 0 | K24: 0 | O24: 0 | Q24: اسم الصنف : لوحة كهرباء فارغة 1م*80*25سم
J25: 0 | K25: 0 | O25: 0 | Q25: اسم الصنف : لوحة كهرباء فارغة 1م*80*25سم
J26: 0 | K26: 0 | O26: 0 | Q26: اسم الصنف : لوحة كهرباء فارغة 1م*80*25سم
J27: 0 | K27: 0 | O27: 0 | Q27: اسم الصنف : لوحة كهرباء فارغة 1م*80*25سم
J28: 0 | K28: 0 | O28: 0 | Q28: اسم الصنف : لوحة كهرباء فارغة 1م*80*25سم
J29: 0 | K29: 0 | O29: 0 | Q29: اسم الصنف : لوحة كهرباء فارغة 1م*80*25سم
J30: 0 | K30: 0 | O30: 0 | Q30: اسم الصنف : لوحة كهرباء فارغة 1م*80*25سم
J31: 0 | K31: 0 | O31: 0 | Q31: اسم الصنف : لوحة كهرباء فارغة 1م*80*25سم
J32: 0 | K32: 0 | O32: 0 | Q32: اسم الصنف : لوحة كهرباء فارغة 1م*80*25سم
J33: 0 | K33: 0 | O33: 0 | Q33: اسم الصنف : لوحة كهرباء فارغة 1م*80*25سم
J34: 0 | K34: 0 | O34: 0 | Q34: اسم الصنف : لوحة كهرباء فارغة 1م*80*25سم
J35: 0 | K35: 0 | O35: 0 | Q35: اسم الصنف : لوحة كهرباء فارغة 1م*80*25سم
J36: 0 | K36: 0 | O36: 0 | Q36: اسم الصنف : لوحة كهرباء فارغة 1م*80*25سم
J37: 0 | K37: 0 | O37: 0 | Q37: اسم الصنف : لوحة كهرباء فارغة 1م*80*25سم
J38: 0 | K38: 0 | O38: 0 | Q38: اسم الصنف : لوحة كهرباء فارغة 1م*80*25سم
J39: 0 | K39: 0 | O39: 0 | Q39: اسم الصنف : لوحة كهرباء فارغة 1م*80*25سم
J40: 0 | K40: 0 | O40: 0 | Q40: اسم الصنف : لوحة كهرباء فارغة 1م*80*25سم
J41: 0 | K41: 0 | O41: 0 | Q41: اسم الصنف : لوحة كهرباء فارغة 1م*80*25سم
J42: 0 | K42: 0 | O42: 0 | Q42: اسم الصنف : لوحة كهرباء فارغة 1م*80*25سم
J43: 0 | K43: 0 | O43: 0 | Q43: اسم الصنف : لوحة كهرباء فارغة 1م*80*25سم
J44: 0 | K44: 0 | O44: 0 | Q44: اسم الصنف : لوحة كهرباء فارغة 1م*80*25سم
J45: 0 | K45: 0 | O45: 0 | Q45: اسم الصنف : لوحة كهرباء فارغة 1م*80*25سم
J46: 0 | K46: 0 | O46: 0 | Q46: اسم الصنف : لوحة كهرباء فارغة 1م*80*25سم
J47: 0 | K47: 0 | O47: 0 | Q47: اسم الصنف : لوحة كهرباء فارغة 1م*80*25سم
J48: 0 | K48: 0 | O48: 0 | Q48: اسم الصنف : لوحة كهرباء فارغة 1م*80*25سم
J49: 0 | K49: 0 | O49: 0 | Q49: اسم الصنف : لوحة كهرباء فارغة 1م*80*25سم
F50: . | J50: 0 | K50: 0 | O50: 0 | Q50: اسم الصنف : لوحة كهرباء فارغة 1م*80*25سم
J51: 0 | K51: 0 | O51: 0 | Q51: اسم الصنف : لوحة كهرباء فارغة 1م*80*25سم
J52: 0 | K52: 0 | O52: 0 | Q52: اسم الصنف : لوحة كهرباء فارغة 1م*80*25سم
J53: 0 | K53: 0 | O53: 0 | Q53: اسم الصنف : لوحة كهرباء فارغة 1م*80*25سم
J54: 0 | K54: 0 | O54: 0 | Q54: اسم الصنف : لوحة كهرباء فارغة 1م*80*25سم
J55: 0 | K55: 0 | O55: 0 | Q55: اسم الصنف : لوحة كهرباء فارغة 1م*80*25سم
J56: 0 | K56: 0 | O56: 0
J57: 0 | K57: 0 | O57: 0
A58: الرصيد | J58: =G58-D58 -> 0 | K58: 0 | O58: 0
C59: =SUM(C10:C57) -> 2 | D59: =SUM(D10:D57) -> 0 | H59: =SUM(H10:H57) -> 0 | I59: =SUM(I10:I57) -> 2 | J59: =G59-D59 -> 0 | K59: =K58 -> 0 | O59: =SUM(O10:O58) -> 310 | P59: =SUM(G59:I59) -> 2

Sheet لوحة كهرباء 70-80
F1: بطاقة كارت صنف
A4: اسم الصنف : لوحة كهرباء 70*80سم 160امبير | K4: كود الصنف | L4: رقم كارت الصنف | M4: المخزن :
A7: رقم اذن اضافة الوارد | B7: تاريخ اذن اضافة الوارد | C7: وارد مشتريات وتحويل مشروع | D7: ع من الصيانة والمامورية | E7: رقم اذن الصرف | F7: تاريخ اذن الصرف | G7: صرف صيانة | H7: صرف تحويل | I7: صرف د الموقع | J7: فرق الصيانة | K7: الرصيد | L7: سعر توريد الصنف | M7: جهه التوريد | N7: ملاحظات
L9: رصيد اول المدة | O9: ج سعر التوريد | Q9: =$A$4 -> اسم الصنف : لوحة كهرباء 70*80سم 160امبير
A10: 14361 | B10: 18/12/2018 | C10: 3 | J10: =G10-D10 -> 0 | K10: =K9+C10-I10 -> 3 | L10: 155 | M10: ادارة المشتريات | N10: جلال | O10: =C10*L10 -> 465 | Q10: =$A$4 -> اسم الصنف : لوحة كهرباء 70*80سم 160امبير
J11: =G11-D11 -> 0 | K11: =K10+C11-I11 -> 3 | O11: =C11*L11 -> 0 | Q11: اسم الصنف : لوحة كهرباء 70*80سم 160امبير
J12: 0 | K12: =K11+C12-G12-H12-I12+J12 -> 3 | M12: موقع | O12: 0 | Q12: اسم الصنف : لوحة كهرباء 70*80سم 160امبير
J13: 0 | K13: 3 | M13: موقع | O13: 0 | Q13: اسم الصنف : لوحة كهرباء 70*80سم 160امبير
J14: 0 | K14: =K13+C14-I14 -> 3 | Q14: اسم الصنف : لوحة كهرباء 70*80سم 160امبير
J15: 0 | K15: 3 | O15: =C15*L15 -> 0 | Q15: اسم الصنف : لوحة كهرباء 70*80سم 160امبير
J16: 0 | K16: 3 | Q16: اسم الصنف : لوحة كهرباء 70*80سم 160امبير
J17: 0 | K17: 3 | O17: 0 | Q17: اسم الصنف : لوحة كهرباء 70*80سم 160امبير
J18: 0 | K18: 3 | O18: 0 | Q18: اسم الصنف : لوحة كهرباء 70*80سم 160امبير
J19: 0 | K19: 3 | O19: 0 | Q19: اسم الصنف : لوحة كهرباء 70*80سم 160امبير
J20: 0 | K20: 3 | O20: 0 | Q20: اسم الصنف : لوحة كهرباء 70*80سم 160امبير
J21: 0 | K21: 3 | O21: 0 | Q21: اسم الصنف : لوحة كهرباء 70*80سم 160امبير
J22: 0 | K22: 3 | O22: 0 | Q22: اسم الصنف : لوحة كهرباء 70*80سم 160امبير
J23: 0 | K23: 3 | O23: 0 | Q23: اسم الصنف : لوحة كهرباء 70*80سم 160امبير
J24: 0 | K24: 3 | O24: 0 | Q24: اسم الصنف : لوحة كهرباء 70*80سم 160امبير
J25: 0 | K25: 3 | O25: 0 | Q25: اسم الصنف : لوحة كهرباء 70*80سم 160امبير
J26: 0 | K26: 3 | O26: 0 | Q26: اسم الصنف : لوحة كهرباء 70*80سم 160امبير
J27: 0 | K27: 3 | O27: 0 | Q27: اسم الصنف : لوحة كهرباء 70*80سم 160امبير
J28: 0 | K28: 3 | O28: 0 | Q28: اسم الصنف : لوحة كهرباء 70*80سم 160امبير
J29: 0 | K29: 3 | O29: 0 | Q29: اسم الصنف : لوحة كهرباء 70*80سم 160امبير
J30: 0 | K30: 3 | O30: 0 | Q30: اسم الصنف : لوحة كهرباء 70*80سم 160امبير
J31: 0 | K31: 3 | O31: 0 | Q31: اسم الصنف : لوحة كهرباء 70*80سم 160امبير
J32: 0 | K32: 3 | O32: 0 | Q32: اسم الصنف : لوحة كهرباء 70*80سم 160امبير
J33: 0 | K33: 3 | O33: 0 | Q33: اسم الصنف : لوحة كهرباء 70*80سم 160امبير
J34: 0 | K34: 3 | O34: 0 | Q34: اسم الصنف : لوحة كهرباء 70*80سم 160امبير
J35: 0 | K35: 3 | O35: 0 | Q35: اسم الصنف : لوحة كهرباء 70*80سم 160امبير
J36: 0 | K36: 3 | O36: 0 | Q36: اسم الصنف : لوحة كهرباء 70*80سم 160امبير
J37: 0 | K37: 3 | O37: 0 | Q37: اسم الصنف : لوحة كهرباء 70*80سم 160امبير
J38: 0 | K38: 3 | O38: 0 | Q38: اسم الصنف : لوحة كهرباء 70*80سم 160امبير
J39: 0 | K39: 3 | O39: 0 | Q39: اسم الصنف : لوحة كهرباء 70*80سم 160امبير
J40: 0 | K40: 3 | O40: 0 | Q40: اسم الصنف : لوحة كهرباء 70*80سم 160امبير
J41: 0 | K41: 3 | O41: 0 | Q41: اسم الصنف : لوحة كهرباء 70*80سم 160امبير
J42: 0 | K42: 3 | O42: 0 | Q42: اسم الصنف : لوحة كهرباء 70*80سم 160امبير
J43: 0 | K43: 3 | O43: 0 | Q43: اسم الصنف : لوحة كهرباء 70*80سم 160امبير
J44: 0 | K44: 3 | O44: 0 | Q44: اسم الصنف : لوحة كهرباء 70*80سم 160امبير
J45: 0 | K45: 3 | O45: 0 | Q45: اسم الصنف : لوحة كهرباء 70*80سم 160امبير
J46: 0 | K46: 3 | O46: 0 | Q46: اسم الصنف : لوحة كهرباء 70*80سم 160امبير
J47: 0 | K47: 3 | O47: 0 | Q47: اسم الصنف : لوحة كهرباء 70*80سم 160امبير
J48: 0 | K48: 3 | O48: 0 | Q48: اسم الصنف : لوحة كهرباء 70*80سم 160امبير
J49: 0 | K49: 3 | O49: 0 | Q49: اسم الصنف : لوحة كهرباء 70*80سم 160امبير
F50: . | J50: 0 | K50: 3 | O50: 0 | Q50: اسم الصنف : لوحة كهرباء 70*80سم 160امبير
J51: 0 | K51: 3 | O51: 0 | Q51: اسم الصنف : لوحة كهرباء 70*80سم 160امبير
J52: 0 | K52: 3 | O52: 0 | Q52: اسم الصنف : لوحة كهرباء 70*80سم 160امبير
J53: 0 | K53: 3 | O53: 0 | Q53: اسم الصنف : لوحة كهرباء 70*80سم 160امبير
J54: 0 | K54: 3 | O54: 0 | Q54: اسم الصنف : لوحة كهرباء 70*80سم 160امبير
J55: 0 | K55: 3 | O55: 0 | Q55: اسم الصنف : لوحة كهرباء 70*80سم 160امبير
J56: 0 | K56: 3 | O56: 0
J57: 0 | K57: 3 | O57: 0
A58: الرصيد | J58: =G58-D58 -> 0 | K58: 3 | O58: 0
C59: =SUM(C10:C57) -> 3 | D59: =SUM(D10:D57) -> 0 | H59: =SUM(H10:H57) -> 0 | I59: =SUM(I10:I57) -> 0 | J59: =G59-D59 -> 0 | K59: =K58 -> 3 | O59: =SUM(O10:O58) -> 465 | P59: =SUM(G59:I59) -> 0

Sheet لوحة كهرباء 50-70سم
F1: بطاقة كارت صنف
A4: اسم الصنف : لوحة كهرباء 50*70سم 160امبير | K4: كود الصنف | L4: رقم كارت الصنف | M4: المخزن :
A7: رقم اذن اضافة الوارد | B7: تاريخ اذن اضافة الوارد | C7: وارد مشتريات وتحويل مشروع | D7: ع من الصيانة والمامورية | E7: رقم اذن الصرف | F7: تاريخ اذن الصرف | G7: صرف صيانة | H7: صرف تحويل | I7: صرف د الموقع | J7: فرق الصيانة | K7: الرصيد | L7: سعر توريد الصنف | M7: جهه التوريد | N7: ملاحظات
L9: رصيد اول المدة | O9: ج سعر التوريد | Q9: =$A$4 -> اسم الصنف : لوحة كهرباء 50*70سم 160امبير
A10: 14361 | B10: 18/12/2018 | C10: 4 | J10: =G10-D10 -> 0 | K10: =K9+C10-I10 -> 4 | L10: 155 | M10: ادارة المشتريات | N10: جلال | O10: =C10*L10 -> 620 | Q10: =$A$4 -> اسم الصنف : لوحة كهرباء 50*70سم 160امبير
E11: 11674 | F11: 20/12/2018 | I11: 1 | J11: =G11-D11 -> 0 | K11: =K10+C11-I11 -> 3 | O11: =C11*L11 -> 0 | Q11: اسم الصنف : لوحة كهرباء 50*70سم 160امبير
E12: 12801ر | F12: 18/12/2018 | H12: 2 | J12: =G12-D12 -> 0 | K12: =K11+C12-G12-H12-I12+J12 -> 1 | M12: محول للمرحلة التانية بالضبعة | O12: =C12*L12 -> 0 | Q12: اسم الصنف : لوحة كهرباء 50*70سم 160امبير
J13: 0 | K13: 1 | M13: موقع | O13: 0 | Q13: اسم الصنف : لوحة كهرباء 50*70سم 160امبير
J14: 0 | K14: =K13+C14-I14 -> 1 | Q14: اسم الصنف : لوحة كهرباء 50*70سم 160امبير
J15: 0 | K15: 1 | O15: =C15*L15 -> 0 | Q15: اسم الصنف : لوحة كهرباء 50*70سم 160امبير
J16: 0 | K16: 1 | Q16: اسم الصنف : لوحة كهرباء 50*70سم 160امبير
J17: 0 | K17: 1 | O17: 0 | Q17: اسم الصنف : لوحة كهرباء 50*70سم 160امبير
J18: 0 | K18: 1 | O18: 0 | Q18: اسم الصنف : لوحة كهرباء 50*70سم 160امبير
J19: 0 | K19: 1 | O19: 0 | Q19: اسم الصنف : لوحة كهرباء 50*70سم 160امبير
J20: 0 | K20: 1 | O20: 0 | Q20: اسم الصنف : لوحة كهرباء 50*70سم 160امبير
J21: 0 | K21: 1 | O21: 0 | Q21: اسم الصنف : لوحة كهرباء 50*70سم 160امبير
J22: 0 | K22: 1 | O22: 0 | Q22: اسم الصنف : لوحة كهرباء 50*70سم 160امبير
J23: 0 | K23: 1 | O23: 0 | Q23: اسم الصنف : لوحة كهرباء 50*70سم 160امبير
J24: 0 | K24: 1 | O24: 0 | Q24: اسم الصنف : لوحة كهرباء 50*70سم 160امبير
J25: 0 | K25: 1 | O25: 0 | Q25: اسم الصنف : لوحة كهرباء 50*70سم 160امبير
J26: 0 | K26: 1 | O26: 0 | Q26: اسم الصنف : لوحة كهرباء 50*70سم 160امبير
J27: 0 | K27: 1 | O27: 0 | Q27: اسم الصنف : لوحة كهرباء 50*70سم 160امبير
J28: 0 | K28: 1 | O28: 0 | Q28: اسم الصنف : لوحة كهرباء 50*70سم 160امبير
J29: 0 | K29: 1 | O29: 0 | Q29: اسم الصنف : لوحة كهرباء 50*70سم 160امبير
J30: 0 | K30: 1 | O30: 0 | Q30: اسم الصنف : لوحة كهرباء 50*70سم 160امبير
J31: 0 | K31: 1 | O31: 0 | Q31: اسم الصنف : لوحة كهرباء 50*70سم 160امبير
J32: 0 | K32: 1 | O32: 0 | Q32: اسم الصنف : لوحة كهرباء 50*70سم 160امبير
J33: 0 | K33: 1 | O33: 0 | Q33: اسم الصنف : لوحة كهرباء 50*70سم 160امبير
J34: 0 | K34: 1 | O34: 0 | Q34: اسم الصنف : لوحة كهرباء 50*70سم 160امبير
J35: 0 | K35: 1 | O35: 0 | Q35: اسم الصنف : لوحة كهرباء 50*70سم 160امبير
J36: 0 | K36: 1 | O36: 0 | Q36: اسم الصنف : لوحة كهرباء 50*70سم 160امبير
J37: 0 | K37: 1 | O37: 0 | Q37: اسم الصنف : لوحة كهرباء 50*70سم 160امبير
J38: 0 | K38: 1 | O38: 0 | Q38: اسم الصنف : لوحة كهرباء 50*70سم 160امبير
J39: 0 | K39: 1 | O39: 0 | Q39: اسم الصنف : لوحة كهرباء 50*70سم 160امبير
J40: 0 | K40: 1 | O40: 0 | Q40: اسم الصنف : لوحة كهرباء 50*70سم 160امبير
J41: 0 | K41: 1 | O41: 0 | Q41: اسم الصنف : لوحة كهرباء 50*70سم 160امبير
J42: 0 | K42: 1 | O42: 0 | Q42: اسم الصنف : لوحة كهرباء 50*70سم 160امبير
J43: 0 | K43: 1 | O43: 0 | Q43: اسم الصنف : لوحة كهرباء 50*70سم 160امبير
J44: 0 | K44: 1 | O44: 0 | Q44: اسم الصنف : لوحة كهرباء 50*70سم 160امبير
J45: 0 | K45: 1 | O45: 0 | Q45: اسم الصنف : لوحة كهرباء 50*70سم 160امبير
J46: 0 | K46: 1 | O46: 0 | Q46: اسم الصنف : لوحة كهرباء 50*70سم 160امبير
J47: 0 | K47: 1 | O47: 0 | Q47: اسم الصنف : لوحة كهرباء 50*70سم 160امبير
J48: 0 | K48: 1 | O48: 0 | Q48: اسم الصنف : لوحة كهرباء 50*70سم 160امبير
J49: 0 | K49: 1 | O49: 0 | Q49: اسم الصنف : لوحة كهرباء 50*70سم 160امبير
F50: . | J50: 0 | K50: 1 | O50: 0 | Q50: اسم الصنف : لوحة كهرباء 50*70سم 160امبير
J51: 0 | K51: 1 | O51: 0 | Q51: اسم الصنف : لوحة كهرباء 50*70سم 160امبير
J52: 0 | K52: 1 | O52: 0 | Q52: اسم الصنف : لوحة كهرباء 50*70سم 160امبير
J53: 0 | K53: 1 | O53: 0 | Q53: اسم الصنف : لوحة كهرباء 50*70سم 160امبير
J54: 0 | K54: 1 | O54: 0 | Q54: اسم الصنف : لوحة كهرباء 50*70سم 160امبير
J55: 0 | K55: 1 | O55: 0 | Q55: اسم الصنف : لوحة كهرباء 50*70سم 160امبير
J56: 0 | K56: 1 | O56: 0
J57: 0 | K57: 1 | O57: 0
A58: الرصيد | J58: =G58-D58 -> 0 | K58: 1 | O58: 0
C59: =SUM(C10:C57) -> 4 | D59: =SUM(D10:D57) -> 0 | H59: =SUM(H10:H57) -> 2 | I59: =SUM(I10:I57) -> 1 | J59: =G59-D59 -> 0 | K59: =K58 -> 1 | O59: =SUM(O10:O58) -> 620 | P59: =SUM(G59:I59) -> 3

Sheet سكينة قلاب
F1: بطاقة كارت صنف
A4: اسم الصنف : سكينة قلاب | K4: كود الصنف | L4: رقم كارت الصنف | M4: المخزن :
A7: رقم اذن اضافة الوارد | B7: تاريخ اذن اضافة الوارد | C7: وارد مشتريات وتحويل مشروع | D7: ع من الصيانة والمامورية | E7: رقم اذن الصرف | F7: تاريخ اذن الصرف | G7: صرف صيانة | H7: صرف تحويل | I7: صرف د الموقع | J7: فرق الصيانة | K7: الرصيد | L7: سعر توريد الصنف | M7: جهه التوريد | N7: ملاحظات
L9: رصيد اول المدة | O9: ج سعر التوريد | Q9: =$A$4 -> اسم الصنف : سكينة قلاب
A10: 14397 | B10: 20/12/2018 | C10: 1 | J10: =G10-D10 -> 0 | K10: =K9+C10-I10 -> 1 | M10: ادارة المشتريات | O10: =C10*L10 -> 0 | Q10: =$A$4 -> اسم الصنف : سكينة قلاب
A11: 42101 | B11: 2019-03-14 | C11: 1 | J11: =G11-D11 -> 0 | K11: =K10+C11-G11-H11-I11+J11 -> 2 | M11: ادارة المشتريات | O11: =C11*L11 -> 0 | Q11: اسم الصنف : سكينة قلاب
J12: =G12-D12 -> 0 | K12: =K11+C12-G12-H12-I12+J12 -> 2 | O12: =C12*L12 -> 0 | Q12: اسم الصنف : سكينة قلاب
J13: 0 | K13: 2 | O13: 0 | Q13: اسم الصنف : سكينة قلاب
J14: 0 | K14: =K13+C14-I14 -> 2 | Q14: اسم الصنف : سكينة قلاب
J15: 0 | K15: 2 | O15: =C15*L15 -> 0 | Q15: اسم الصنف : سكينة قلاب
J16: 0 | K16: 2 | Q16: اسم الصنف : سكينة قلاب
J17: 0 | K17: 2 | O17: 0 | Q17: اسم الصنف : سكينة قلاب
J18: 0 | K18: 2 | O18: 0 | Q18: اسم الصنف : سكينة قلاب
J19: 0 | K19: 2 | O19: 0 | Q19: اسم الصنف : سكينة قلاب
J20: 0 | K20: 2 | O20: 0 | Q20: اسم الصنف : سكينة قلاب
J21: 0 | K21: 2 | O21: 0 | Q21: اسم الصنف : سكينة قلاب
J22: 0 | K22: 2 | O22: 0 | Q22: اسم الصنف : سكينة قلاب
J23: 0 | K23: 2 | O23: 0 | Q23: اسم الصنف : سكينة قلاب
J24: 0 | K24: 2 | O24: 0 | Q24: اسم الصنف : سكينة قلاب
J25: 0 | K25: 2 | O25: 0 | Q25: اسم الصنف : سكينة قلاب
J26: 0 | K26: 2 | O26: 0 | Q26: اسم الصنف : سكينة قلاب
J27: 0 | K27: 2 | O27: 0 | Q27: اسم الصنف : سكينة قلاب
J28: 0 | K28: 2 | O28: 0 | Q28: اسم الصنف : سكينة قلاب
J29: 0 | K29: 2 | O29: 0 | Q29: اسم الصنف : سكينة قلاب
J30: 0 | K30: 2 | O30: 0 | Q30: اسم الصنف : سكينة قلاب
J31: 0 | K31: 2 | O31: 0 | Q31: اسم الصنف : سكينة قلاب
J32: 0 | K32: 2 | O32: 0 | Q32: اسم الصنف : سكينة قلاب
J33: 0 | K33: 2 | O33: 0 | Q33: اسم الصنف : سكينة قلاب
J34: 0 | K34: 2 | O34: 0 | Q34: اسم الصنف : سكينة قلاب
J35: 0 | K35: 2 | O35: 0 | Q35: اسم الصنف : سكينة قلاب
J36: 0 | K36: 2 | O36: 0 | Q36: اسم الصنف : سكينة قلاب
J37: 0 | K37: 2 | O37: 0 | Q37: اسم الصنف : سكينة قلاب
J38: 0 | K38: 2 | O38: 0 | Q38: اسم الصنف : سكينة قلاب
J39: 0 | K39: 2 | O39: 0 | Q39: اسم الصنف : سكينة قلاب
J40: 0 | K40: 2 | O40: 0 | Q40: اسم الصنف : سكينة قلاب
J41: 0 | K41: 2 | O41: 0 | Q41: اسم الصنف : سكينة قلاب
J42: 0 | K42: 2 | O42: 0 | Q42: اسم الصنف : سكينة قلاب
J43: 0 | K43: 2 | O43: 0 | Q43: اسم الصنف : سكينة قلاب
J44: 0 | K44: 2 | O44: 0 | Q44: اسم الصنف : سكينة قلاب
J45: 0 | K45: 2 | O45: 0 | Q45: اسم الصنف : سكينة قلاب
J46: 0 | K46: 2 | O46: 0 | Q46: اسم الصنف : سكينة قلاب
J47: 0 | K47: 2 | O47: 0 | Q47: اسم الصنف : سكينة قلاب
J48: 0 | K48: 2 | O48: 0 | Q48: اسم الصنف : سكينة قلاب
J49: 0 | K49: 2 | O49: 0 | Q49: اسم الصنف : سكينة قلاب
F50: . | J50: 0 | K50: 2 | O50: 0 | Q50: اسم الصنف : سكينة قلاب
J51: 0 | K51: 2 | O51: 0 | Q51: اسم الصنف : سكينة قلاب
J52: 0 | K52: 2 | O52: 0 | Q52: اسم الصنف : سكينة قلاب
J53: 0 | K53: 2 | O53: 0 | Q53: اسم الصنف : سكينة قلاب
J54: 0 | K54: 2 | O54: 0 | Q54: اسم الصنف : سكينة قلاب
J55: 0 | K55: 2 | O55: 0 | Q55: اسم الصنف : سكينة قلاب
J56: 0 | K56: 2 | O56: 0
J57: 0 | K57: 2 | O57: 0
A58: الرصيد | J58: =G58-D58 -> 0 | K58: 2 | O58: 0
C59: =SUM(C10:C57) -> 2 | D59: =SUM(D10:D57) -> 0 | H59: =SUM(H10:H57) -> 0 | I59: =SUM(I10:I57) -> 0 | J59: =G59-D59 -> 0 | K59: =K58 -> 2 | O59: =SUM(O10:O58) -> 0 | P59: =SUM(G59:I59) -> 0

Sheet عود روزتة 10مم
F1: بطاقة كارت صنف
A4: اسم الصنف : عود روزتة10مم | K4: كود الصنف | L4: رقم كارت الصنف | M4: المخزن :
A7: رقم اذن اضافة الوارد | B7: تاريخ اذن اضافة الوارد | C7: وارد مشتريات وتحويل مشروع | D7: ع من الصيانة والمامورية | E7: رقم اذن الصرف | F7: تاريخ اذن الصرف | G7: صرف صيانة | H7: صرف تحويل | I7: صرف د الموقع | J7: فرق الصيانة | K7: الرصيد | L7: سعر توريد الصنف | M7: جهه التوريد | N7: ملاحظات
L9: رصيد اول المدة | O9: ج سعر التوريد | Q9: =$A$4 -> اسم الصنف : عود روزتة10مم
A10: 1240 | B10: 2018-09-10 | C10: 30 | J10: =G10-D10 -> 0 | K10: =K9+C10-I10 -> 30 | M10: ادارة المشتريات | O10: =C10*L10 -> 0 | Q10: =$A$4 -> اسم الصنف : عود روزتة10مم
E11: 3317 | F11: 24/11/2018 | I11: 2 | J11: =G11-D11 -> 0 | K11: =K10+C11-G11-H11-I11+J11 -> 28 | M11: موقع | O11: =C11*L11 -> 0 | Q11: اسم الصنف : عود روزتة10مم
E12: 11855 | F12: 2018-02-12 | I12: 2 | J12: =G12-D12 -> 0 | K12: =K11+C12-I12 -> 26 | O12: =C12*L12 -> 0 | Q12: اسم الصنف : عود روزتة10مم
E13: 9216 | F13: 19/2/2019 | I13: 24 | J13: 0 | K13: =K12+C13-G13-H13-I13+J13 -> 2 | O13: 0 | Q13: اسم الصنف : عود روزتة10مم
A14: 42101 | B14: 2019-03-14 | C14: 100 | J14: 0 | K14: 102 | M14: ادارة المشتريات | O14: 0 | Q14: اسم الصنف : عود روزتة10مم
J15: =G15-D15 -> 0 | K15: 102 | Q15: اسم الصنف : عود روزتة10مم
J16: 0 | K16: 102 | O16: =C16*L16 -> 0 | Q16: اسم الصنف : عود روزتة10مم
J17: 0 | K17: 102 | O17: 0 | Q17: اسم الصنف : عود روزتة10مم
J18: 0 | K18: 102 | O18: 0 | Q18: اسم الصنف : عود روزتة10مم
J19: 0 | K19: 102 | O19: 0 | Q19: اسم الصنف : عود روزتة10مم
J20: 0 | K20: 102 | O20: 0 | Q20: اسم الصنف : عود روزتة10مم
J21: 0 | K21: 102 | O21: 0 | Q21: اسم الصنف : عود روزتة10مم
J22: 0 | K22: 102 | O22: 0 | Q22: اسم الصنف : عود روزتة10مم
J23: 0 | K23: 102 | O23: 0 | Q23: اسم الصنف : عود روزتة10مم
J24: 0 | K24: 102 | O24: 0 | Q24: اسم الصنف : عود روزتة10مم
J25: 0 | K25: 102 | O25: 0 | Q25: اسم الصنف : عود روزتة10مم
J26: 0 | K26: 102 | O26: 0 | Q26: اسم الصنف : عود روزتة10مم
J27: 0 | K27: 102 | O27: 0 | Q27: اسم الصنف : عود روزتة10مم
J28: 0 | K28: 102 | O28: 0 | Q28: اسم الصنف : عود روزتة10مم
J29: 0 | K29: 102 | O29: 0 | Q29: اسم الصنف : عود روزتة10مم
J30: 0 | K30: 102 | O30: 0 | Q30: اسم الصنف : عود روزتة10مم
J31: 0 | K31: 102 | O31: 0 | Q31: اسم الصنف : عود روزتة10مم
J32: 0 | K32: 102 | O32: 0 | Q32: اسم الصنف : عود روزتة10مم
J33: 0 | K33: 102 | O33: 0 | Q33: اسم الصنف : عود روزتة10مم
J34: 0 | K34: 102 | O34: 0 | Q34: اسم الصنف : عود روزتة10مم
J35: 0 | K35: 102 | O35: 0 | Q35: اسم الصنف : عود روزتة10مم
J36: 0 | K36: 102 | O36: 0 | Q36: اسم الصنف : عود روزتة10مم
J37: 0 | K37: 102 | O37: 0 | Q37: اسم الصنف : عود روزتة10مم
J38: 0 | K38: 102 | O38: 0 | Q38: اسم الصنف : عود روزتة10مم
J39: 0 | K39: 102 | O39: 0 | Q39: اسم الصنف : عود روزتة10مم
J40: 0 | K40: 102 | O40: 0 | Q40: اسم الصنف : عود روزتة10مم
J41: 0 | K41: 102 | O41: 0 | Q41: اسم الصنف : عود روزتة10مم
J42: 0 | K42: 102 | O42: 0 | Q42: اسم الصنف : عود روزتة10مم
J43: 0 | K43: 102 | O43: 0 | Q43: اسم الصنف : عود روزتة10مم
J44: 0 | K44: 102 | O44: 0 | Q44: اسم الصنف : عود روزتة10مم
J45: 0 | K45: 102 | O45: 0 | Q45: اسم الصنف : عود روزتة10مم
J46: 0 | K46: 102 | O46: 0 | Q46: اسم الصنف : عود روزتة10مم
J47: 0 | K47: 102 | O47: 0 | Q47: اسم الصنف : عود روزتة10مم
J48: 0 | K48: 102 | O48: 0 | Q48: اسم الصنف : عود روزتة10مم
J49: 0 | K49: 102 | O49: 0 | Q49: اسم الصنف : عود روزتة10مم
F50: . | J50: 0 | K50: 102 | O50: 0 | Q50: اسم الصنف : عود روزتة10مم
J51: 0 | K51: 102 | O51: 0 | Q51: اسم الصنف : عود روزتة10مم
J52: 0 | K52: 102 | O52: 0 | Q52: اسم الصنف : عود روزتة10مم
J53: 0 | K53: 102 | O53: 0 | Q53: اسم الصنف : عود روزتة10مم
J54: 0 | K54: 102 | O54: 0 | Q54: اسم الصنف : عود روزتة10مم
J55: 0 | K55: 102 | O55: 0 | Q55: اسم الصنف : عود روزتة10مم
J56: 0 | K56: 102 | O56: 0
J57: 0 | K57: 102 | O57: 0
A58: الرصيد | J58: =G58-D58 -> 0 | K58: 102 | O58: 0
C59: =SUM(C10:C57) -> 130 | D59: =SUM(D10:D57) -> 0 | H59: =SUM(H10:H57) -> 0 | I59: =SUM(I10:I57) -> 28 | J59: =G59-D59 -> 0 | K59: 204 | O59: =SUM(O10:O58) -> 0 | P59: =SUM(G59:I59) -> 28

Sheet عود روزتة 6مم
F1: بطاقة كارت صنف
A4: اسم الصنف : عود روزتة6مم | K4: كود الصنف | L4: رقم كارت الصنف | M4: المخزن :
A7: رقم اذن اضافة الوارد | B7: تاريخ اذن اضافة الوارد | C7: وارد مشتريات وتحويل مشروع | D7: ع من الصيانة والمامورية | E7: رقم اذن الصرف | F7: تاريخ اذن الصرف | G7: صرف صيانة | H7: صرف تحويل | I7: صرف د الموقع | J7: فرق الصيانة | K7: الرصيد | L7: سعر توريد الصنف | M7: جهه التوريد | N7: ملاحظات
L9: رصيد اول المدة | O9: ج سعر التوريد | Q9: =$A$4 -> اسم الصنف : عود روزتة6مم
A10: 11975 | B10: 2018-08-11 | C10: 100 | J10: =G10-D10 -> 0 | K10: =K9+C10-I10 -> 100 | M10: ادارة المشتريات | O10: =C10*L10 -> 0 | Q10: =$A$4 -> اسم الصنف : عود روزتة6مم
E11: 12812 | F11: 31/12/2018 | H11: 20 | J11: =G11-D11 -> 0 | K11: 80 | M11: محول الي النادي | Q11: اسم الصنف : عود روزتة6مم
E12: 9217 | F12: 20/2/2019 | I12: 25 | J12: 0 | K12: =K11+C12-G12-H12-I12+J12 -> 55 | Q12: اسم الصنف : عود روزتة6مم
E13: 22818 | F13: 2019-03-07 | I13: 20 | J13: 0 | K13: =K12+C13-I13 -> 35 | O13: 0 | Q13: اسم الصنف : عود روزتة6مم
J14: =G14-D14 -> 0 | K14: 35 | Q14: اسم الصنف : عود روزتة6مم
J15: 0 | K15: 35 | Q15: اسم الصنف : عود روزتة6مم
J16: 0 | K16: 35 | O16: =C16*L16 -> 0 | Q16: اسم الصنف : عود روزتة6مم
J17: 0 | K17: 35 | O17: 0 | Q17: اسم الصنف : عود روزتة6مم
J18: 0 | K18: 35 | O18: 0 | Q18: اسم الصنف : عود روزتة6مم
J19: 0 | K19: 35 | O19: 0 | Q19: اسم الصنف : عود روزتة6مم
J20: 0 | K20: 35 | O20: 0 | Q20: اسم الصنف : عود روزتة6مم
J21: 0 | K21: 35 | O21: 0 | Q21: اسم الصنف : عود روزتة6مم
J22: 0 | K22: 35 | O22: 0 | Q22: اسم الصنف : عود روزتة6مم
J23: 0 | K23: 35 | O23: 0 | Q23: اسم الصنف : عود روزتة6مم
J24: 0 | K24: 35 | O24: 0 | Q24: اسم الصنف : عود روزتة6مم
J25: 0 | K25: 35 | O25: 0 | Q25: اسم الصنف : عود روزتة6مم
J26: 0 | K26: 35 | O26: 0 | Q26: اسم الصنف : عود روزتة6مم
J27: 0 | K27: 35 | O27: 0 | Q27: اسم الصنف : عود روزتة6مم
J28: 0 | K28: 35 | O28: 0 | Q28: اسم الصنف : عود روزتة6مم
J29: 0 | K29: 35 | O29: 0 | Q29: اسم الصنف : عود روزتة6مم
J30: 0 | K30: 35 | O30: 0 | Q30: اسم الصنف : عود روزتة6مم
J31: 0 | K31: 35 | O31: 0 | Q31: اسم الصنف : عود روزتة6مم
J32: 0 | K32: 35 | O32: 0 | Q32: اسم الصنف : عود روزتة6مم
J33: 0 | K33: 35 | O33: 0 | Q33: اسم الصنف : عود روزتة6مم
J34: 0 | K34: 35 | O34: 0 | Q34: اسم الصنف : عود روزتة6مم
J35: 0 | K35: 35 | O35: 0 | Q35: اسم الصنف : عود روزتة6مم
J36: 0 | K36: 35 | O36: 0 | Q36: اسم الصنف : عود روزتة6مم
J37: 0 | K37: 35 | O37: 0 | Q37: اسم الصنف : عود روزتة6مم
J38: 0 | K38: 35 | O38: 0 | Q38: اسم الصنف : عود روزتة6مم
J39: 0 | K39: 35 | O39: 0 | Q39: اسم الصنف : عود روزتة6مم
J40: 0 | K40: 35 | O40: 0 | Q40: اسم الصنف : عود روزتة6مم
J41: 0 | K41: 35 | O41: 0 | Q41: اسم الصنف : عود روزتة6مم
J42: 0 | K42: 35 | O42: 0 | Q42: اسم الصنف : عود روزتة6مم
J43: 0 | K43: 35 | O43: 0 | Q43: اسم الصنف : عود روزتة6مم
J44: 0 | K44: 35 | O44: 0 | Q44: اسم الصنف : عود روزتة6مم
J45: 0 | K45: 35 | O45: 0 | Q45: اسم الصنف : عود روزتة6مم
J46: 0 | K46: 35 | O46: 0 | Q46: اسم الصنف : عود روزتة6مم
J47: 0 | K47: 35 | O47: 0 | Q47: اسم الصنف : عود روزتة6مم
J48: 0 | K48: 35 | O48: 0 | Q48: اسم الصنف : عود روزتة6مم
J49: 0 | K49: 35 | O49: 0 | Q49: اسم الصنف : عود روزتة6مم
F50: . | J50: 0 | K50: 35 | O50: 0 | Q50: اسم الصنف : عود روزتة6مم
J51: 0 | K51: 35 | O51: 0 | Q51: اسم الصنف : عود روزتة6مم
J52: 0 | K52: 35 | O52: 0 | Q52: اسم الصنف : عود روزتة6مم
J53: 0 | K53: 35 | O53: 0 | Q53: اسم الصنف : عود روزتة6مم
J54: 0 | K54: 35 | O54: 0 | Q54: اسم الصنف : عود روزتة6مم
J55: 0 | K55: 35 | O55: 0 | Q55: اسم الصنف : عود روزتة6مم
J56: 0 | K56: 35 | O56: 0
J57: 0 | K57: 35 | O57: 0
A58: الرصيد | J58: =G58-D58 -> 0 | K58: 35 | O58: 0
C59: =SUM(C10:C57) -> 100 | D59: =SUM(D10:D57) -> 0 | H59: =SUM(H10:H57) -> 20 | I59: =SUM(I10:I57) -> 45 | J59: =G59-D59 -> 0 | K59: 100 | O59: =SUM(O10:O58) -> 0 | P59: =SUM(G59:I59) -> 65

Sheet عود روزتة 25مم
F1: بطاقة كارت صنف
A4: اسم الصنف : عود روزتة 25مم | K4: كود الصنف | L4: رقم كارت الصنف | M4: المخزن :
A7: رقم اذن اضافة الوارد | B7: تاريخ اذن اضافة الوارد | C7: وارد مشتريات وتحويل مشروع | D7: ع من الصيانة والمامورية | E7: رقم اذن الصرف | F7: تاريخ اذن الصرف | G7: صرف صيانة | H7: صرف تحويل | I7: صرف د الموقع | J7: فرق الصيانة | K7: الرصيد | L7: سعر توريد الصنف | M7: جهه التوريد | N7: ملاحظات
L9: رصيد اول المدة | O9: ج سعر التوريد | Q9: =$A$4 -> اسم الصنف : عود روزتة 25مم
A10: 13206 | B10: 24/5/2018 | C10: 15 | J10: =G10-D10 -> 0 | K10: =K9+C10-I10 -> 15 | M10: ادارة المشتريات | O10: =C10*L10 -> 0 | Q10: =$A$4 -> اسم الصنف : عود روزتة 25مم
E11: 3033 | F11: 25/5/2018 | H11: 5 | J11: =G11-D11 -> 0 | K11: 10 | M11: محول الي الهايبر | Q11: اسم الصنف : عود روزتة 25مم
E12: 13795 | F12: 2018-11-07 | I12: 2 | J12: 0 | K12: =K11+C12-G12-H12-I12+J12 -> 8 | M12: خدمة موقع | O12: =C12*L12 -> 0 | Q12: اسم الصنف : عود روزتة 25مم
E13: 13798 | F13: 14/7/2018 | I13: 2 | J13: 0 | K13: 6 | M13: خدمة موقع | O13: 0 | Q13: اسم الصنف : عود روزتة 25مم
E14: 13804 | F14: 19/7/2018 | I14: 3 | J14: =G14-D14 -> 0 | K14: 3 | M14: خدمة موقع | Q14: اسم الصنف : عود روزتة 25مم
E15: 13805 | F15: 21/7/2018 | I15: 3 | J15: 0 | K15: 0 | M15: خدمة موقع | Q15: اسم الصنف : عود روزتة 25مم
J16: 0 | K16: 0 | O16: =C16*L16 -> 0 | Q16: اسم الصنف : عود روزتة 25مم
J17: 0 | K17: 0 | O17: 0 | Q17: اسم الصنف : عود روزتة 25مم
J18: 0 | K18: 0 | O18: 0 | Q18: اسم الصنف : عود روزتة 25مم
J19: 0 | K19: 0 | O19: 0 | Q19: اسم الصنف : عود روزتة 25مم
J20: 0 | K20: 0 | O20: 0 | Q20: اسم الصنف : عود روزتة 25مم
J21: 0 | K21: 0 | O21: 0 | Q21: اسم الصنف : عود روزتة 25مم
J22: 0 | K22: 0 | O22: 0 | Q22: اسم الصنف : عود روزتة 25مم
J23: 0 | K23: 0 | O23: 0 | Q23: اسم الصنف : عود روزتة 25مم
J24: 0 | K24: 0 | O24: 0 | Q24: اسم الصنف : عود روزتة 25مم
J25: 0 | K25: 0 | O25: 0 | Q25: اسم الصنف : عود روزتة 25مم
J26: 0 | K26: 0 | O26: 0 | Q26: اسم الصنف : عود روزتة 25مم
J27: 0 | K27: 0 | O27: 0 | Q27: اسم الصنف : عود روزتة 25مم
J28: 0 | K28: 0 | O28: 0 | Q28: اسم الصنف : عود روزتة 25مم
J29: 0 | K29: 0 | O29: 0 | Q29: اسم الصنف : عود روزتة 25مم
J30: 0 | K30: 0 | O30: 0 | Q30: اسم الصنف : عود روزتة 25مم
J31: 0 | K31: 0 | O31: 0 | Q31: اسم الصنف : عود روزتة 25مم
J32: 0 | K32: 0 | O32: 0 | Q32: اسم الصنف : عود روزتة 25مم
J33: 0 | K33: 0 | O33: 0 | Q33: اسم الصنف : عود روزتة 25مم
J34: 0 | K34: 0 | O34: 0 | Q34: اسم الصنف : عود روزتة 25مم
J35: 0 | K35: 0 | O35: 0 | Q35: اسم الصنف : عود روزتة 25مم
J36: 0 | K36: 0 | O36: 0 | Q36: اسم الصنف : عود روزتة 25مم
J37: 0 | K37: 0 | O37: 0 | Q37: اسم الصنف : عود روزتة 25مم
J38: 0 | K38: 0 | O38: 0 | Q38: اسم الصنف : عود روزتة 25مم
J39: 0 | K39: 0 | O39: 0 | Q39: اسم الصنف : عود روزتة 25مم
J40: 0 | K40: 0 | O40: 0 | Q40: اسم الصنف : عود روزتة 25مم
J41: 0 | K41: 0 | O41: 0 | Q41: اسم الصنف : عود روزتة 25مم
J42: 0 | K42: 0 | O42: 0 | Q42: اسم الصنف : عود روزتة 25مم
J43: 0 | K43: 0 | O43: 0 | Q43: اسم الصنف : عود روزتة 25مم
J44: 0 | K44: 0 | O44: 0 | Q44: اسم الصنف : عود روزتة 25مم
J45: 0 | K45: 0 | O45: 0 | Q45: اسم الصنف : عود روزتة 25مم
J46: 0 | K46: 0 | O46: 0 | Q46: اسم الصنف : عود روزتة 25مم
J47: 0 | K47: 0 | O47: 0 | Q47: اسم الصنف : عود روزتة 25مم
J48: 0 | K48: 0 | O48: 0 | Q48: اسم الصنف : عود روزتة 25مم
J49: 0 | K49: 0 | O49: 0 | Q49: اسم الصنف : عود روزتة 25مم
F50: . | J50: 0 | K50: 0 | O50: 0 | Q50: اسم الصنف : عود روزتة 25مم
J51: 0 | K51: 0 | O51: 0 | Q51: اسم الصنف : عود روزتة 25مم
J52: 0 | K52: 0 | O52: 0 | Q52: اسم الصنف : عود روزتة 25مم
J53: 0 | K53: 0 | O53: 0 | Q53: اسم الصنف : عود روزتة 25مم
J54: 0 | K54: 0 | O54: 0 | Q54: اسم الصنف : عود روزتة 25مم
J55: 0 | K55: 0 | O55: 0 | Q55: اسم الصنف : عود روزتة 25مم
J56: 0 | K56: 0 | O56: 0
J57: 0 | K57: 0 | O57: 0
A58: الرصيد | J58: =G58-D58 -> 0 | K58: 0 | O58: 0
C59: =SUM(C10:C57) -> 15 | D59: =SUM(D10:D57) -> 0 | H59: =SUM(H10:H57) -> 5 | I59: =SUM(I10:I57) -> 10 | J59: =G59-D59 -> 0 | K59: 0 | O59: =SUM(O10:O58) -> 0 | P59: =SUM(G59:I59) -> 15

Sheet عود روزتة 35مم
F1: بطاقة كارت صنف
A4: اسم الصنف : عود روزتة 35مم | K4: كود الصنف | L4: رقم كارت الصنف | M4: المخزن :
A7: رقم اذن اضافة الوارد | B7: تاريخ اذن اضافة الوارد | C7: وارد مشتريات وتحويل مشروع | D7: ع من الصيانة والمامورية | E7: رقم اذن الصرف | F7: تاريخ اذن الصرف | G7: صرف صيانة | H7: صرف تحويل | I7: صرف د الموقع | J7: فرق الصيانة | K7: الرصيد | L7: سعر توريد الصنف | M7: جهه التوريد | N7: ملاحظات
L9: رصيد اول المدة | O9: ج سعر التوريد | Q9: =$A$4 -> اسم الصنف : عود روزتة 35مم
A10: 699 | B10: 2018-04-03 | C10: 10 | J10: =G10-D10 -> 0 | K10: =K9+C10-I10 -> 10 | L10: 45 | M10: مش موقع | N10: احمد حامد المحاسب | O10: =C10*L10 -> 450 | Q10: =$A$4 -> اسم الصنف : عود روزتة 35مم
E11: 757 | F11: 2018-04-04 | I11: 1 | J11: 0 | K11: =K10+C11-I11 -> 9 | M11: خدمة موقع | Q11: اسم الصنف : عود روزتة 35مم
E12: 769 | F12: 17/4/2018 | I12: 5 | J12: 0 | K12: =K11+C12-G12-H12-I12+J12 -> 4 | M12: خدمة موقع | O12: =C12*L12 -> 0 | Q12: اسم الصنف : عود روزتة 35مم
E13: 771 | F13: 18/4/2018 | I13: 2 | J13: 0 | K13: =K12+C13-G13-H13-I13+J13 -> 2 | M13: خدمة موقع | O13: 0 | Q13: اسم الصنف : عود روزتة 35مم
E14: 775 | F14: 22/4/2018 | I14: 2 | J14: 0 | K14: =K13+C14-G14-H14-I14+J14 -> 0 | M14: خدمة موقع | O14: 0 | Q14: اسم الصنف : عود روزتة 35مم
J15: 0 | K15: =K14+C15-G15-H15-I15+J15 -> 0 | O15: 0 | Q15: اسم الصنف : عود روزتة 35مم
J16: 0 | K16: 0 | O16: 0 | Q16: اسم الصنف : عود روزتة 35مم
J17: 0 | K17: 0 | O17: 0 | Q17: اسم الصنف : عود روزتة 35مم
J18: 0 | K18: 0 | O18: 0 | Q18: اسم الصنف : عود روزتة 35مم
J19: 0 | K19: 0 | O19: 0 | Q19: اسم الصنف : عود روزتة 35مم
J20: 0 | K20: =K19+C20-G20-H20-I20+J20 -> 0 | O20: 0 | Q20: اسم الصنف : عود روزتة 35مم
J21: 0 | K21: 0 | O21: 0 | Q21: اسم الصنف : عود روزتة 35مم
J22: 0 | K22: 0 | O22: 0 | Q22: اسم الصنف : عود روزتة 35مم
J23: 0 | K23: 0 | O23: 0 | Q23: اسم الصنف : عود روزتة 35مم
J24: 0 | K24: 0 | O24: 0 | Q24: اسم الصنف : عود روزتة 35مم
J25: 0 | K25: 0 | O25: 0 | Q25: اسم الصنف : عود روزتة 35مم
J26: 0 | K26: 0 | O26: 0 | Q26: اسم الصنف : عود روزتة 35مم
J27: 0 | K27: 0 | O27: 0 | Q27: اسم الصنف : عود روزتة 35مم
J28: 0 | K28: 0 | O28: 0 | Q28: اسم الصنف : عود روزتة 35مم
J29: 0 | K29: 0 | O29: 0 | Q29: اسم الصنف : عود روزتة 35مم
J30: 0 | K30: 0 | O30: 0 | Q30: اسم الصنف : عود روزتة 35مم
J31: 0 | K31: 0 | O31: 0 | Q31: اسم الصنف : عود روزتة 35مم
J32: 0 | K32: 0 | O32: 0 | Q32: اسم الصنف : عود روزتة 35مم
J33: 0 | K33: 0 | O33: 0 | Q33: اسم الصنف : عود روزتة 35مم
J34: 0 | K34: 0 | O34: 0 | Q34: اسم الصنف : عود روزتة 35مم
J35: 0 | K35: 0 | O35: 0 | Q35: اسم الصنف : عود روزتة 35مم
J36: 0 | K36: 0 | O36: 0 | Q36: اسم الصنف : عود روزتة 35مم
J37: 0 | K37: 0 | O37: 0 | Q37: اسم الصنف : عود روزتة 35مم
J38: 0 | K38: 0 | O38: 0 | Q38: اسم الصنف : عود روزتة 35مم
J39: 0 | K39: 0 | O39: 0 | Q39: اسم الصنف : عود روزتة 35مم
J40: 0 | K40: 0 | O40: 0 | Q40: اسم الصنف : عود روزتة 35مم
J41: 0 | K41: 0 | O41: 0 | Q41: اسم الصنف : عود روزتة 35مم
J42: =G42-D42 -> 0 | K42: 0 | O42: 0 | Q42: اسم الصنف : عود روزتة 35مم
J43: 0 | K43: 0 | O43: 0 | Q43: اسم الصنف : عود روزتة 35مم
J44: 0 | K44: 0 | O44: 0 | Q44: اسم الصنف : عود روزتة 35مم
J45: 0 | K45: 0 | O45: 0 | Q45: اسم الصنف : عود روزتة 35مم
J46: 0 | K46: 0 | O46: 0 | Q46: اسم الصنف : عود روزتة 35مم
J47: 0 | K47: 0 | O47: 0 | Q47: اسم الصنف : عود روزتة 35مم
J48: 0 | K48: 0 | O48: 0 | Q48: اسم الصنف : عود روزتة 35مم
F49: . | J49: 0 | K49: 0 | O49: 0 | Q49: اسم الصنف : عود روزتة 35مم
J50: 0 | K50: 0 | O50: 0 | Q50: اسم الصنف : عود روزتة 35مم
J51: 0 | K51: 0 | O51: 0 | Q51: اسم الصنف : عود روزتة 35مم
J52: 0 | K52: 0 | O52: 0 | Q52: اسم الصنف : عود روزتة 35مم
J53: 0 | K53: 0 | O53: 0 | Q53: اسم الصنف : عود روزتة 35مم
J54: 0 | K54: 0 | O54: 0 | Q54: اسم الصنف : عود روزتة 35مم
J55: 0 | K55: 0 | O55: 0 | Q55: اسم الصنف : عود روزتة 35مم
J56: 0 | K56: 0 | O56: 0
A57: الرصيد | J57: 0 | K57: 0 | O57: 0
C58: =SUM(C10:C56) -> 10 | D58: =SUM(D10:D56) -> 0 | H58: =SUM(H10:H56) -> 0 | I58: =SUM(I10:I56) -> 10 | J58: 0 | K58: =K57 -> 0 | O58: =SUM(O10:O57) -> 450 | P58: =SUM(G58:I58) -> 10

Sheet عود روزتة 40مم
F1: بطاقة كارت صنف
A4: اسم الصنف : عود روزتة 40مم | K4: كود الصنف | L4: رقم كارت الصنف | M4: المخزن :
A7: رقم اذن اضافة الوارد | B7: تاريخ اذن اضافة الوارد | C7: وارد مشتريات وتحويل مشروع | D7: ع من الصيانة والمامورية | E7: رقم اذن الصرف | F7: تاريخ اذن الصرف | G7: صرف صيانة | H7: صرف تحويل | I7: صرف د الموقع | J7: فرق الصيانة | K7: الرصيد | L7: سعر توريد الصنف | M7: جهه التوريد | N7: ملاحظات
L9: رصيد اول المدة | O9: ج سعر التوريد | Q9: =$A$4 -> اسم الصنف : عود روزتة 40مم
A10: 13206 | B10: 24/5/2018 | C10: 15 | J10: =G10-D10 -> 0 | K10: =K9+C10-I10 -> 15 | M10: ادارة المشتريات | O10: =C10*L10 -> 0 | Q10: =$A$4 -> اسم الصنف : عود روزتة 40مم
E11: 3033 | F11: 25/5/2018 | H11: 3 | J11: =G11-D11 -> 0 | K11: 12 | M11: محول الي الهايبر | Q11: اسم الصنف : عود روزتة 40مم
J12: =G12-D12 -> 0 | K12: =K11+C12-G12-H12-I12+J12 -> 12 | O12: =C12*L12 -> 0 | Q12: اسم الصنف : عود روزتة 40مم
E13: 13793 | F13: 2018-10-07 | I13: 1 | J13: 0 | K13: 11 | M13: خدمة موقع | O13: 0 | Q13: اسم الصنف : عود روزتة 40مم
E14: 13798 | F14: 14/7/2018 | I14: 3 | J14: 0 | K14: 8 | M14: خدمة موقع | O14: 0 | Q14: اسم الصنف : عود روزتة 40مم
E15: 2815ر | F15: 2018-05-08 | H15: 2 | J15: 0 | K15: 6 | M15: محول الي كلية طب اسنان | Q15: اسم الصنف : عود روزتة 40مم
E16: 2822ر | F16: 2018-08-08 | H16: 2 | J16: 0 | K16: 4 | M16: محول الي كلية طب اسنان | O16: =C16*L16 -> 0 | Q16: اسم الصنف : عود روزتة 40مم
E17: 2823ر | F17: 2018-08-08 | H17: 1 | J17: 0 | K17: 3 | M17: محول الي كلية طب اسنان | Q17: اسم الصنف : عود روزتة 40مم
E18: 2824ر | F18: 2018-12-08 | H18: 2 | J18: 0 | K18: 1 | M18: محول الي طب اسنان | Q18: اسم الصنف : عود روزتة 40مم
E19: 13838 | F19: 2018-09-09 | I19: 1 | J19: 0 | K19: 0 | M19: خدمة موقع | O19: =C19*L19 -> 0 | Q19: اسم الصنف : عود روزتة 40مم
A20: 1243 | B20: 2018-09-10 | C20: 5 | J20: 0 | K20: 5 | M20: محول من طب اسنان | Q20: اسم الصنف : عود روزتة 40مم
E21: 19869 | F21: 2018-09-10 | I21: 2 | J21: 0 | K21: 3 | M21: مبني ادارة الجامعة | Q21: اسم الصنف : عود روزتة 40مم
A22: 11594 | B22: 2018-11-10 | C22: 1 | J22: 0 | K22: 4 | M22: محول من طب اسنان | Q22: اسم الصنف : عود روزتة 40مم
E23: 19872 | F23: 2018-11-10 | I23: 4 | J23: 0 | K23: 0 | M23: خدمة موقع | Q23: اسم الصنف : عود روزتة 40مم
A24: 12215 | B24: 22/11/2018 | C24: 2 | J24: 0 | K24: 2 | M24: محول من طب اسنان | O24: 0 | Q24: اسم الصنف : عود روزتة 40مم
E25: 3317 | F25: 24/11/2018 | I25: 2 | J25: 0 | K25: 0 | M25: موقع | O25: 0 | Q25: اسم الصنف : عود روزتة 40مم
A26: 7936 | B26: 15/1/2019 | C26: 100 | J26: 0 | K26: 100 | M26: ادارة المشتريات | Q26: اسم الصنف : عود روزتة 40مم
E27: 11841 | F27: 16/1/2019 | I27: 4 | J27: =G27-D27 -> 0 | K27: 96 | O27: =C27*L27 -> 0 | Q27: اسم الصنف : عود روزتة 40مم
E28: 14531 | F28: 26/1/2019 | I28: 1 | J28: 0 | K28: 95 | O28: 0 | Q28: اسم الصنف : عود روزتة 40مم
E29: 22818 | F29: 2019-03-07 | I29: 21 | J29: 0 | K29: =K28+C29-I29 -> 74 | O29: 0 | Q29: اسم الصنف : عود روزتة 40مم
J30: 0 | K30: 74 | O30: 0 | Q30: اسم الصنف : عود روزتة 40مم
J31: 0 | K31: 74 | O31: 0 | Q31: اسم الصنف : عود روزتة 40مم
J32: 0 | K32: 74 | O32: 0 | Q32: اسم الصنف : عود روزتة 40مم
J33: 0 | K33: 74 | O33: 0 | Q33: اسم الصنف : عود روزتة 40مم
J34: 0 | K34: 74 | O34: 0 | Q34: اسم الصنف : عود روزتة 40مم
J35: 0 | K35: 74 | O35: 0 | Q35: اسم الصنف : عود روزتة 40مم
J36: 0 | K36: 74 | O36: 0 | Q36: اسم الصنف : عود روزتة 40مم
J37: 0 | K37: 74 | O37: 0 | Q37: اسم الصنف : عود روزتة 40مم
J38: 0 | K38: 74 | O38: 0 | Q38: اسم الصنف : عود روزتة 40مم
J39: 0 | K39: 74 | O39: 0 | Q39: اسم الصنف : عود روزتة 40مم
J40: 0 | K40: 74 | O40: 0 | Q40: اسم الصنف : عود روزتة 40مم
J41: 0 | K41: 74 | O41: 0 | Q41: اسم الصنف : عود روزتة 40مم
J42: 0 | K42: 74 | O42: 0 | Q42: اسم الصنف : عود روزتة 40مم
J43: 0 | K43: 74 | O43: 0 | Q43: اسم الصنف : عود روزتة 40مم
J44: 0 | K44: 74 | O44: 0 | Q44: اسم الصنف : عود روزتة 40مم
J45: 0 | K45: 74 | O45: 0 | Q45: اسم الصنف : عود روزتة 40مم
J46: 0 | K46: 74 | O46: 0 | Q46: اسم الصنف : عود روزتة 40مم
J47: 0 | K47: 74 | O47: 0 | Q47: اسم الصنف : عود روزتة 40مم
J48: 0 | K48: 74 | O48: 0 | Q48: اسم الصنف : عود روزتة 40مم
J49: 0 | K49: 74 | O49: 0 | Q49: اسم الصنف : عود روزتة 40مم
J50: 0 | K50: 74 | O50: 0 | Q50: اسم الصنف : عود روزتة 40مم
J51: 0 | K51: 74 | O51: 0 | Q51: اسم الصنف : عود روزتة 40مم
J52: 0 | K52: 74 | O52: 0 | Q52: اسم الصنف : عود روزتة 40مم
F53: . | J53: 0 | K53: 74 | O53: 0 | Q53: اسم الصنف : عود روزتة 40مم
J54: 0 | K54: 74 | O54: 0 | Q54: اسم الصنف : عود روزتة 40مم
J55: 0 | K55: 74 | O55: 0 | Q55: اسم الصنف : عود روزتة 40مم
J56: 0 | K56: 74 | O56: 0
J57: 0 | K57: 74 | O57: 0
J58: 0 | K58: 74 | O58: 0
J59: 0 | K59: 74 | O59: 0
J60: 0 | K60: 74 | O60: 0
A61: الرصيد | J61: =G61-D61 -> 0 | K61: 74 | O61: 0
C62: =SUM(C10:C60) -> 123 | D62: =SUM(D10:D60) -> 0 | H62: =SUM(H10:H60) -> 10 | I62: =SUM(I10:I60) -> 39 | J62: =G62-D62 -> 0 | K62: =K61 -> 74 | O62: =SUM(O10:O61) -> 0 | P62: =SUM(G62:I62) -> 49

Sheet مسمار سن صاج 3سم
F1: بطاقة كارت صنف
A4: اسم الصنف : مسمار سن صاج 3سم | K4: كود الصنف | L4: رقم كارت الصنف | M4: المخزن :
A7: رقم اذن اضافة الوارد | B7: تاريخ اذن اضافة الوارد | C7: وارد مشتريات وتحويل مشروع | D7: ع من الصيانة والمامورية | E7: رقم اذن الصرف | F7: تاريخ اذن الصرف | G7: صرف صيانة | H7: صرف تحويل | I7: صرف د الموقع | J7: فرق الصيانة | K7: الرصيد | L7: سعر توريد الصنف | M7: جهه التوريد | N7: ملاحظات
L9: رصيد اول المدة | Q9: =$A$4 -> اسم الصنف : مسمار سن صاج 3سم
A10: 13003 | B10: 2018-04-04 | C10: 1 | J10: =G10-D10 -> 0 | K10: =K9+C10-I10 -> 1 | M10: مشتريات الموقع | Q10: =$A$4 -> اسم الصنف : مسمار سن صاج 3سم
E11: 775 | F11: 22/4/2018 | I11: 1 | J11: =G11-D11 -> 0 | K11: =K10+C11-H11-I11+J11 -> 0 | M11: خدمة موقع | Q11: اسم الصنف : مسمار سن صاج 3سم
A12: 13140 | B12: 16/5/2018 | C12: 2 | J12: =G12-D12 -> 0 | K12: =K11+C12-G12-H12-I12+J12 -> 2 | M12: ادارة المشتريات | Q12: اسم الصنف : مسمار سن صاج 3سم
E13: 13751 | F13: 17/5/2018 | I13: 1 | J13: 0 | K13: 1 | M13: كرفان الجيش | O13: =C13*L13 -> 0 | Q13: اسم الصنف : مسمار سن صاج 3سم
E14: 13819 | F14: 2018-07-08 | I14: 1 | J14: 0 | K14: 0 | M14: خدمة موقع | Q14: اسم الصنف : مسمار سن صاج 3سم
A15: 8019 | B15: 14/8/2018 | C15: 2 | J15: 0 | K15: 2 | M15: ادارة المشتريات | Q15: اسم الصنف : مسمار سن صاج 3سم
E16: 13835 | F16: 2018-05-09 | I16: 1 | J16: 0 | K16: 1 | M16: خدمة موقع | Q16: اسم الصنف : مسمار سن صاج 3سم
E17: 19858 | F17: 2018-02-10 | I17: 1 | J17: 0 | K17: 0 | M17: خدمة موقع | Q17: اسم الصنف : مسمار سن صاج 3سم
A18: 11811 | B18: 2018-06-12 | C18: 32 | J18: 0 | K18: 32 | M18: ادارة المشتريات | Q18: اسم الصنف : مسمار سن صاج 3سم
E19: 11871 | F19: 2018-07-12 | I19: 5 | J19: 0 | K19: =K18+C19-I19 -> 27 | O19: =C19*L19 -> 0 | Q19: اسم الصنف : مسمار سن صاج 3سم
E20: 11876 | F20: 2018-09-12 | I20: 10 | J20: 0 | K20: 17 | M20: موقع | O20: 0 | Q20: اسم الصنف : مسمار سن صاج 3سم
E21: 11880 | F21: 2018-10-12 | I21: 1 | J21: 0 | K21: =K20+C21-G21-H21-I21+J21 -> 16 | M21: خدمة موقع | Q21: اسم الصنف : مسمار سن صاج 3سم
A22: 11840 | B22: 2018-10-12 | C22: 10 | J22: 0 | K22: 26 | N22: كيلو | Q22: اسم الصنف : مسمار سن صاج 3سم
A23: 11852 | B23: 13/12/2018 | C23: 2 | J23: 0 | K23: 28 | M23: ادارة المشتريات | N23: كيلو | O23: =C23*L23 -> 0 | Q23: اسم الصنف : مسمار سن صاج 3سم
E24: 11885 | F24: 2018-11-12 | I24: 4 | J24: 0 | K24: =K23+C24-I24 -> 24 | M24: موقع | O24: 0 | Q24: اسم الصنف : مسمار سن صاج 3سم
E25: 11894 | F25: 2018-12-12 | I25: 2 | J25: 0 | K25: 22 | Q25: اسم الصنف : مسمار سن صاج 3سم
E26: 11658 | F26: 15/12/2018 | I26: 1 | J26: 0 | K26: =K25+C26-I26 -> 21 | Q26: اسم الصنف : مسمار سن صاج 3سم
E27: 11673 | F27: 20/12/2018 | I27: 8 | J27: 0 | K27: 13 | O27: =C27*L27 -> 0 | Q27: اسم الصنف : مسمار سن صاج 3سم
E28: 11688 | F28: 22/12/2018 | I28: 5 | J28: 0 | K28: =K27+C28-G28-H28-I28+J28 -> 8 | O28: 0 | Q28: اسم الصنف : مسمار سن صاج 3سم
E29: 11690 | F29: 23/12/2018 | I29: 3 | J29: 0 | K29: =K28+C29-I29 -> 5 | O29: 0 | Q29: اسم الصنف : مسمار سن صاج 3سم
E30: 11697 | F30: 25/12/2018 | I30: 3 | J30: 0 | K30: 2 | Q30: اسم الصنف : مسمار سن صاج 3سم
E31: 3602 | F31: 26/12/2018 | I31: 1 | J31: 0 | K31: 1 | M31: موقع | Q31: اسم الصنف : مسمار سن صاج 3سم
A32: 2248 | B32: 2019-02-01 | C32: 20 | J32: 0 | K32: 21 | M32: ادارة المشتريات | Q32: اسم الصنف : مسمار سن صاج 3سم
E33: 3632 | F33: 2019-03-01 | I33: 6 | J33: 0 | K33: 15 | O33: =C33*L33 -> 0 | Q33: اسم الصنف : مسمار سن صاج 3سم
E34: 12822ر | F34: 2019-05-01 | H34: 4 | J34: 0 | K34: 11 | M34: محول الى طب اسنان | Q34: اسم الصنف : مسمار سن صاج 3سم
E35: 3637 | F35: 2019-05-01 | I35: 4 | J35: 0 | K35: 7 | Q35: اسم الصنف : مسمار سن صاج 3سم
E36: 3638 | F36: 2019-05-01 | I36: 1 | J36: 0 | K36: 6 | O36: =C36*L36 -> 0 | Q36: اسم الصنف : مسمار سن صاج 3سم
E37: 12829 | F37: 2019-07-01 | H37: 2 | J37: 0 | K37: 4 | M37: محول الى طب اسنان | Q37: اسم الصنف : مسمار سن صاج 3سم
E38: 12835ر | F38: 2019-09-01 | H38: 4 | J38: 0 | K38: 0 | M38: محول الى طب اسنان | Q38: اسم الصنف : مسمار سن صاج 3سم
J39: 0 | K39: 0 | Q39: اسم الصنف : مسمار سن صاج 3سم
J40: 0 | K40: 0 | Q40: اسم الصنف : مسمار سن صاج 3سم
J41: 0 | K41: 0 | Q41: اسم الصنف : مسمار سن صاج 3سم
J42: 0 | K42: 0 | Q42: اسم الصنف : مسمار سن صاج 3سم
